Workbook

Sheet Control
A1: Sheets | B1: Text File Names | C1: Description | E1: Notes: 50 sheets maximum
A2: P_NToe | B2: Project_NToe_Stats.txt | C2: Project concentrations for the North Toe | E2: Referenced text files must be in same root folder as this spreadsheet
A3: P_NWToe | B3: Project_NWtoe_Stats.txt | C3: Project concentrations for the Northwest Toe
A4: P_SToe | B4: Project_SToe_Stats.txt | C4: Project concentrations for the South Toe
A5: P_WToe | B5: Project_WToe_Stats.txt | C5: Project concentrations for the West Toe
A6: P_EToe | B6: Project_Etoe_Stats.txt | C6: Project concentrations for the East Toe
A7: NA_NToe | B7: Ex_NToe_Stats.txt | C7: Existing concentrations for the North Toe
A8: NA_NWToe | B8: Ex_NWtoe_Stats.txt | C8: Existing concentrations for the Northwest Toe
A9: NA_SToe | B9: Ex_SToe_Stats.txt | C9: Existing concentrations for the South Toe
A10: NA_WToe | B10: Ex_WToe_Stats.txt | C10: Existing concentrations for the West Toe

Sheet PlotControl
A2: Model Name: | B2: Plant Site Version 6.0
A4: Plot: | B4: Annual Average | C4: =B2 & " Model " & IF(B4="Annual Max", "Annual Maximum", B4) & " of Concentration Statistics " & B6 & " at the " & B8 -> Plant Site Version 6.0 Model Annual Average of Concentration Statistics Ag at the North Toe | V4: Directory to save PDFs to: | W4: C:\Users\jem4\Desktop\temp
C5: =B2 & " Model Monthly Concentration Statistics " & B6 & " at the " & B8 -> Plant Site Version 6.0 Model Monthly Concentration Statistics Ag at the North Toe | V5: Figure caption | W5: Figure F-04-27.1
A6: Constituent to Plot (dropdown): | B6: Ag | C6: =MATCH(B6,$A$25:$A$52,0) -> 1
A8: Location to Plot (dropdown): | B8: North Toe | C8: =MATCH(B8,$A$15:$A$21,0) -> 1
A10: Initial Time for Monthly Plot (yr): | B10: 0
B11: =B10+20 -> 20
A12: Standard | B12: =VLOOKUP($B$6,$A$25:$B$52,2,FALSE) -> 0
A14: Locations
A15: North Toe
A16: Northwest Toe
A17: South Toe
A18: West Toe
A19: East Toe
I23: Annual Project Results | L23: Annual No Action Results | R23: Monthly Project Results | U23: Monthly No Action Results
A24: Constituent | H24: Time | I24: P10 | J24: P50 | K24: P90 | L24: P10 | M24: P50 | N24: P90 | O24: SW Standard | Q24: Time | R24: P10 | S24: P50 | T24: P90 | U24: P10 | V24: P50 | W24: P90 | X24: SW Standard
A25: Ag | H25: 0 | I25: =VLOOKUP($H25,P_All!$A$5:$V$205,3*($C$8-1)+2) -> 0.1276075 | J25: =VLOOKUP($H25,P_All!$A$5:$V$205,3*($C$8-1)+3) -> 0.1276075 | K25: =VLOOKUP($H25,P_All!$A$5:$V$205,3*($C$8-1)+4) -> 0.1276075 | L25: =VLOOKUP($H25,NA_All!$A$5:$V$205,3*($C$8-1)+2) -> 0.1276075 | M25: =VLOOKUP($H25,NA_All!$A$5:$V$205,3*($C$8-1)+3) -> 0.1276075 | N25: =VLOOKUP($H25,NA_All!$A$5:$V$205,3*($C$8-1)+4) -> 0.1276075 | O25: =IF(ISNA(VLOOKUP($B$6,$A$25:$E$51,IF($B$8=$A$22,3,2))),EXP(VLOOKUP($B$6,$A$25:$E$51,4)*LN(VLOOKUP($H25,#REF!,$C$8+1)/1000)+VLOOKUP($B$6,$A$25:$E$51,5)),VLOOKUP($B$6,$A$25:$E$51,IF($B$8=$A$22,3,2))) -> 0 | Q25: =B10 -> 0 | R25: =VLOOKUP($Q25,P_All!$X$5:$AS$245,3*($C$8-1)+2) -> 0.13 | S25: =VLOOKUP($Q25,P_All!$X$5:$AS$245,3*($C$8-1)+3) -> 0.13 | T25: =VLOOKUP($Q25,P_All!$X$5:$AS$245,3*($C$8-1)+4) -> 0.13 | U25: =VLOOKUP($Q25,NA_All!$X$5:$AS$245,3*($C$8-1)+2) -> 0.13 | V25: =VLOOKUP($Q25,NA_All!$X$5:$AS$245,3*($C$8-1)+3) -> 0.13 | W25: =VLOOKUP($Q25,NA_All!$X$5:$AS$245,3*($C$8-1)+4) -> 0.13 | X25: =IF(ISNA(VLOOKUP($B$6,$A$25:$E$52,IF($B$8=$A$22,3,2))),EXP(VLOOKUP($B$6,$A$25:$E$52,4)*LN(VLOOKUP($Q25,#REF!,$C$8+1)/1000)+VLOOKUP($B$6,$A$25:$E$52,5)),VLOOKUP($B$6,$A$25:$E$52,IF($B$8=$A$22,3,2))) -> 0
A26: Al | H26: 1 | I26: =VLOOKUP($H26,P_All!$A$5:$V$205,3*($C$8-1)+2) -> 0.1273916667 | J26: =VLOOKUP($H26,P_All!$A$5:$V$205,3*($C$8-1)+3) -> 0.1273916667 | K26: =VLOOKUP($H26,P_All!$A$5:$V$205,3*($C$8-1)+4) -> 0.1273916667 | L26: =VLOOKUP($H26,NA_All!$A$5:$V$205,3*($C$8-1)+2) -> 0.1273908333 | M26: =VLOOKUP($H26,NA_All!$A$5:$V$205,3*($C$8-1)+3) -> 0.1273908333 | N26: =VLOOKUP($H26,NA_All!$A$5:$V$205,3*($C$8-1)+4) -> 0.1273908333 | O26: =IF(ISNA(VLOOKUP($B$6,$A$25:$E$51,IF($B$8=$A$22,3,2))),EXP(VLOOKUP($B$6,$A$25:$E$51,4)*LN(VLOOKUP($H26,#REF!,$C$8+1)/1000)+VLOOKUP($B$6,$A$25:$E$51,5)),VLOOKUP($B$6,$A$25:$E$51,IF($B$8=$A$22,3,2))) -> 0 | Q26: =Q25+1/12 -> 0.08333333333 | R26: =VLOOKUP($Q26,P_All!$X$5:$AS$245,3*($C$8-1)+2) -> 0.12739 | S26: =VLOOKUP($Q26,P_All!$X$5:$AS$245,3*($C$8-1)+3) -> 0.12739 | T26: =VLOOKUP($Q26,P_All!$X$5:$AS$245,3*($C$8-1)+4) -> 0.12739 | U26: =VLOOKUP($Q26,NA_All!$X$5:$AS$245,3*($C$8-1)+2) -> 0.12739 | V26: =VLOOKUP($Q26,NA_All!$X$5:$AS$245,3*($C$8-1)+3) -> 0.12739 | W26: =VLOOKUP($Q26,NA_All!$X$5:$AS$245,3*($C$8-1)+4) -> 0.12739 | X26: =IF(ISNA(VLOOKUP($B$6,$A$25:$E$52,IF($B$8=$A$22,3,2))),EXP(VLOOKUP($B$6,$A$25:$E$52,4)*LN(VLOOKUP($Q26,#REF!,$C$8+1)/1000)+VLOOKUP($B$6,$A$25:$E$52,5)),VLOOKUP($B$6,$A$25:$E$52,IF($B$8=$A$22,3,2))) -> 0
A27: Alkalinity | H27: 2 | I27: =VLOOKUP($H27,P_All!$A$5:$V$205,3*($C$8-1)+2) -> 0.1272616667 | J27: =VLOOKUP($H27,P_All!$A$5:$V$205,3*($C$8-1)+3) -> 0.1272691667 | K27: =VLOOKUP($H27,P_All!$A$5:$V$205,3*($C$8-1)+4) -> 0.1272816667 | L27: =VLOOKUP($H27,NA_All!$A$5:$V$205,3*($C$8-1)+2) -> 0.12732 | M27: =VLOOKUP($H27,NA_All!$A$5:$V$205,3*($C$8-1)+3) -> 0.1273258333 | N27: =VLOOKUP($H27,NA_All!$A$5:$V$205,3*($C$8-1)+4) -> 0.1273416667 | O27: =IF(ISNA(VLOOKUP($B$6,$A$25:$E$51,IF($B$8=$A$22,3,2))),EXP(VLOOKUP($B$6,$A$25:$E$51,4)*LN(VLOOKUP($H27,#REF!,$C$8+1)/1000)+VLOOKUP($B$6,$A$25:$E$51,5)),VLOOKUP($B$6,$A$25:$E$51,IF($B$8=$A$22,3,2))) -> 0 | Q27: =Q26+1/12 -> 0.1666666667 | R27: =VLOOKUP($Q27,P_All!$X$5:$AS$245,3*($C$8-1)+2) -> 0.12739 | S27: =VLOOKUP($Q27,P_All!$X$5:$AS$245,3*($C$8-1)+3) -> 0.12739 | T27: =VLOOKUP($Q27,P_All!$X$5:$AS$245,3*($C$8-1)+4) -> 0.12739 | U27: =VLOOKUP($Q27,NA_All!$X$5:$AS$245,3*($C$8-1)+2) -> 0.12739 | V27: =VLOOKUP($Q27,NA_All!$X$5:$AS$245,3*($C$8-1)+3) -> 0.12739 | W27: =VLOOKUP($Q27,NA_All!$X$5:$AS$245,3*($C$8-1)+4) -> 0.12739 | X27: =IF(ISNA(VLOOKUP($B$6,$A$25:$E$52,IF($B$8=$A$22,3,2))),EXP(VLOOKUP($B$6,$A$25:$E$52,4)*LN(VLOOKUP($Q27,#REF!,$C$8+1)/1000)+VLOOKUP($B$6,$A$25:$E$52,5)),VLOOKUP($B$6,$A$25:$E$52,IF($B$8=$A$22,3,2))) -> 0
A28: As | H28: 3 | I28: =VLOOKUP($H28,P_All!$A$5:$V$205,3*($C$8-1)+2) -> 0.1299733333 | J28: =VLOOKUP($H28,P_All!$A$5:$V$205,3*($C$8-1)+3) -> 0.1302833333 | K28: =VLOOKUP($H28,P_All!$A$5:$V$205,3*($C$8-1)+4) -> 0.1306083333 | L28: =VLOOKUP($H28,NA_All!$A$5:$V$205,3*($C$8-1)+2) -> 0.1263641667 | M28: =VLOOKUP($H28,NA_All!$A$5:$V$205,3*($C$8-1)+3) -> 0.1264916667 | N28: =VLOOKUP($H28,NA_All!$A$5:$V$205,3*($C$8-1)+4) -> 0.1268616667 | O28: =IF(ISNA(VLOOKUP($B$6,$A$25:$E$51,IF($B$8=$A$22,3,2))),EXP(VLOOKUP($B$6,$A$25:$E$51,4)*LN(VLOOKUP($H28,#REF!,$C$8+1)/1000)+VLOOKUP($B$6,$A$25:$E$51,5)),VLOOKUP($B$6,$A$25:$E$51,IF($B$8=$A$22,3,2))) -> 0 | Q28: 0.25 | R28: =VLOOKUP($Q28,P_All!$X$5:$AS$245,3*($C$8-1)+2) -> 0.12739 | S28: =VLOOKUP($Q28,P_All!$X$5:$AS$245,3*($C$8-1)+3) -> 0.12739 | T28: =VLOOKUP($Q28,P_All!$X$5:$AS$245,3*($C$8-1)+4) -> 0.12739 | U28: =VLOOKUP($Q28,NA_All!$X$5:$AS$245,3*($C$8-1)+2) -> 0.12739 | V28: =VLOOKUP($Q28,NA_All!$X$5:$AS$245,3*($C$8-1)+3) -> 0.12739 | W28: =VLOOKUP($Q28,NA_All!$X$5:$AS$245,3*($C$8-1)+4) -> 0.12739 | X28: =IF(ISNA(VLOOKUP($B$6,$A$25:$E$52,IF($B$8=$A$22,3,2))),EXP(VLOOKUP($B$6,$A$25:$E$52,4)*LN(VLOOKUP($Q28,#REF!,$C$8+1)/1000)+VLOOKUP($B$6,$A$25:$E$52,5)),VLOOKUP($B$6,$A$25:$E$52,IF($B$8=$A$22,3,2))) -> 0
A29: B | H29: 4 | I29: =VLOOKUP($H29,P_All!$A$5:$V$205,3*($C$8-1)+2) -> 0.1644908333 | J29: =VLOOKUP($H29,P_All!$A$5:$V$205,3*($C$8-1)+3) -> 0.1667708333 | K29: =VLOOKUP($H29,P_All!$A$5:$V$205,3*($C$8-1)+4) -> 0.1685966667 | L29: =VLOOKUP($H29,NA_All!$A$5:$V$205,3*($C$8-1)+2) -> 0.1238066667 | M29: =VLOOKUP($H29,NA_All!$A$5:$V$205,3*($C$8-1)+3) -> 0.1244858333 | N29: =VLOOKUP($H29,NA_All!$A$5:$V$205,3*($C$8-1)+4) -> 0.126425 | O29: =IF(ISNA(VLOOKUP($B$6,$A$25:$E$51,IF($B$8=$A$22,3,2))),EXP(VLOOKUP($B$6,$A$25:$E$51,4)*LN(VLOOKUP($H29,#REF!,$C$8+1)/1000)+VLOOKUP($B$6,$A$25:$E$51,5)),VLOOKUP($B$6,$A$25:$E$51,IF($B$8=$A$22,3,2))) -> 0 | Q29: 0.3333333333 | R29: =VLOOKUP($Q29,P_All!$X$5:$AS$245,3*($C$8-1)+2) -> 0.12739 | S29: =VLOOKUP($Q29,P_All!$X$5:$AS$245,3*($C$8-1)+3) -> 0.12739 | T29: =VLOOKUP($Q29,P_All!$X$5:$AS$245,3*($C$8-1)+4) -> 0.12739 | U29: =VLOOKUP($Q29,NA_All!$X$5:$AS$245,3*($C$8-1)+2) -> 0.12739 | V29: =VLOOKUP($Q29,NA_All!$X$5:$AS$245,3*($C$8-1)+3) -> 0.12739 | W29: =VLOOKUP($Q29,NA_All!$X$5:$AS$245,3*($C$8-1)+4) -> 0.12739 | X29: =IF(ISNA(VLOOKUP($B$6,$A$25:$E$52,IF($B$8=$A$22,3,2))),EXP(VLOOKUP($B$6,$A$25:$E$52,4)*LN(VLOOKUP($Q29,#REF!,$C$8+1)/1000)+VLOOKUP($B$6,$A$25:$E$52,5)),VLOOKUP($B$6,$A$25:$E$52,IF($B$8=$A$22,3,2))) -> 0
A30: Ba | H30: 5 | I30: =VLOOKUP($H30,P_All!$A$5:$V$205,3*($C$8-1)+2) -> 0.26289 | J30: =VLOOKUP($H30,P_All!$A$5:$V$205,3*($C$8-1)+3) -> 0.2686275 | K30: =VLOOKUP($H30,P_All!$A$5:$V$205,3*($C$8-1)+4) -> 0.2739066667 | L30: =VLOOKUP($H30,NA_All!$A$5:$V$205,3*($C$8-1)+2) -> 0.1218 | M30: =VLOOKUP($H30,NA_All!$A$5:$V$205,3*($C$8-1)+3) -> 0.1235925 | N30: =VLOOKUP($H30,NA_All!$A$5:$V$205,3*($C$8-1)+4) -> 0.1279825 | O30: =IF(ISNA(VLOOKUP($B$6,$A$25:$E$51,IF($B$8=$A$22,3,2))),EXP(VLOOKUP($B$6,$A$25:$E$51,4)*LN(VLOOKUP($H30,#REF!,$C$8+1)/1000)+VLOOKUP($B$6,$A$25:$E$51,5)),VLOOKUP($B$6,$A$25:$E$51,IF($B$8=$A$22,3,2))) -> 0 | Q30: 0.4166666667 | R30: =VLOOKUP($Q30,P_All!$X$5:$AS$245,3*($C$8-1)+2) -> 0.12739 | S30: =VLOOKUP($Q30,P_All!$X$5:$AS$245,3*($C$8-1)+3) -> 0.12739 | T30: =VLOOKUP($Q30,P_All!$X$5:$AS$245,3*($C$8-1)+4) -> 0.12739 | U30: =VLOOKUP($Q30,NA_All!$X$5:$AS$245,3*($C$8-1)+2) -> 0.12739 | V30: =VLOOKUP($Q30,NA_All!$X$5:$AS$245,3*($C$8-1)+3) -> 0.12739 | W30: =VLOOKUP($Q30,NA_All!$X$5:$AS$245,3*($C$8-1)+4) -> 0.12739 | X30: =IF(ISNA(VLOOKUP($B$6,$A$25:$E$52,IF($B$8=$A$22,3,2))),EXP(VLOOKUP($B$6,$A$25:$E$52,4)*LN(VLOOKUP($Q30,#REF!,$C$8+1)/1000)+VLOOKUP($B$6,$A$25:$E$52,5)),VLOOKUP($B$6,$A$25:$E$52,IF($B$8=$A$22,3,2))) -> 0
A31: Be | H31: 6 | I31: =VLOOKUP($H31,P_All!$A$5:$V$205,3*($C$8-1)+2) -> 0.3395208333 | J31: =VLOOKUP($H31,P_All!$A$5:$V$205,3*($C$8-1)+3) -> 0.3515416667 | K31: =VLOOKUP($H31,P_All!$A$5:$V$205,3*($C$8-1)+4) -> 0.3630233333 | L31: =VLOOKUP($H31,NA_All!$A$5:$V$205,3*($C$8-1)+2) -> 0.1207175 | M31: =VLOOKUP($H31,NA_All!$A$5:$V$205,3*($C$8-1)+3) -> 0.1239583333 | N31: =VLOOKUP($H31,NA_All!$A$5:$V$205,3*($C$8-1)+4) -> 0.1308375 | O31: =IF(ISNA(VLOOKUP($B$6,$A$25:$E$51,IF($B$8=$A$22,3,2))),EXP(VLOOKUP($B$6,$A$25:$E$51,4)*LN(VLOOKUP($H31,#REF!,$C$8+1)/1000)+VLOOKUP($B$6,$A$25:$E$51,5)),VLOOKUP($B$6,$A$25:$E$51,IF($B$8=$A$22,3,2))) -> 0 | Q31: 0.5 | R31: =VLOOKUP($Q31,P_All!$X$5:$AS$245,3*($C$8-1)+2) -> 0.12739 | S31: =VLOOKUP($Q31,P_All!$X$5:$AS$245,3*($C$8-1)+3) -> 0.12739 | T31: =VLOOKUP($Q31,P_All!$X$5:$AS$245,3*($C$8-1)+4) -> 0.12739 | U31: =VLOOKUP($Q31,NA_All!$X$5:$AS$245,3*($C$8-1)+2) -> 0.12739 | V31: =VLOOKUP($Q31,NA_All!$X$5:$AS$245,3*($C$8-1)+3) -> 0.12739 | W31: =VLOOKUP($Q31,NA_All!$X$5:$AS$245,3*($C$8-1)+4) -> 0.12739 | X31: =IF(ISNA(VLOOKUP($B$6,$A$25:$E$52,IF($B$8=$A$22,3,2))),EXP(VLOOKUP($B$6,$A$25:$E$52,4)*LN(VLOOKUP($Q31,#REF!,$C$8+1)/1000)+VLOOKUP($B$6,$A$25:$E$52,5)),VLOOKUP($B$6,$A$25:$E$52,IF($B$8=$A$22,3,2))) -> 0
A32: Ca | H32: 7 | I32: =VLOOKUP($H32,P_All!$A$5:$V$205,3*($C$8-1)+2) -> 0.3252658333 | J32: =VLOOKUP($H32,P_All!$A$5:$V$205,3*($C$8-1)+3) -> 0.3377925 | K32: =VLOOKUP($H32,P_All!$A$5:$V$205,3*($C$8-1)+4) -> 0.3503133333 | L32: =VLOOKUP($H32,NA_All!$A$5:$V$205,3*($C$8-1)+2) -> 0.1197975 | M32: =VLOOKUP($H32,NA_All!$A$5:$V$205,3*($C$8-1)+3) -> 0.1241633333 | N32: =VLOOKUP($H32,NA_All!$A$5:$V$205,3*($C$8-1)+4) -> 0.1330783333 | O32: =IF(ISNA(VLOOKUP($B$6,$A$25:$E$51,IF($B$8=$A$22,3,2))),EXP(VLOOKUP($B$6,$A$25:$E$51,4)*LN(VLOOKUP($H32,#REF!,$C$8+1)/1000)+VLOOKUP($B$6,$A$25:$E$51,5)),VLOOKUP($B$6,$A$25:$E$51,IF($B$8=$A$22,3,2))) -> 0 | Q32: 0.5833333333 | R32: =VLOOKUP($Q32,P_All!$X$5:$AS$245,3*($C$8-1)+2) -> 0.12739 | S32: =VLOOKUP($Q32,P_All!$X$5:$AS$245,3*($C$8-1)+3) -> 0.12739 | T32: =VLOOKUP($Q32,P_All!$X$5:$AS$245,3*($C$8-1)+4) -> 0.12739 | U32: =VLOOKUP($Q32,NA_All!$X$5:$AS$245,3*($C$8-1)+2) -> 0.12739 | V32: =VLOOKUP($Q32,NA_All!$X$5:$AS$245,3*($C$8-1)+3) -> 0.12739 | W32: =VLOOKUP($Q32,NA_All!$X$5:$AS$245,3*($C$8-1)+4) -> 0.12739 | X32: =IF(ISNA(VLOOKUP($B$6,$A$25:$E$52,IF($B$8=$A$22,3,2))),EXP(VLOOKUP($B$6,$A$25:$E$52,4)*LN(VLOOKUP($Q32,#REF!,$C$8+1)/1000)+VLOOKUP($B$6,$A$25:$E$52,5)),VLOOKUP($B$6,$A$25:$E$52,IF($B$8=$A$22,3,2))) -> 0
A33: Cd | H33: 8 | I33: =VLOOKUP($H33,P_All!$A$5:$V$205,3*($C$8-1)+2) -> 0.2713266667 | J33: =VLOOKUP($H33,P_All!$A$5:$V$205,3*($C$8-1)+3) -> 0.2785775 | K33: =VLOOKUP($H33,P_All!$A$5:$V$205,3*($C$8-1)+4) -> 0.2867033333 | L33: =VLOOKUP($H33,NA_All!$A$5:$V$205,3*($C$8-1)+2) -> 0.1188716667 | M33: =VLOOKUP($H33,NA_All!$A$5:$V$205,3*($C$8-1)+3) -> 0.1239483333 | N33: =VLOOKUP($H33,NA_All!$A$5:$V$205,3*($C$8-1)+4) -> 0.1348591667 | O33: =IF(ISNA(VLOOKUP($B$6,$A$25:$E$51,IF($B$8=$A$22,3,2))),EXP(VLOOKUP($B$6,$A$25:$E$51,4)*LN(VLOOKUP($H33,#REF!,$C$8+1)/1000)+VLOOKUP($B$6,$A$25:$E$51,5)),VLOOKUP($B$6,$A$25:$E$51,IF($B$8=$A$22,3,2))) -> 0 | Q33: 0.6666666667 | R33: =VLOOKUP($Q33,P_All!$X$5:$AS$245,3*($C$8-1)+2) -> 0.12739 | S33: =VLOOKUP($Q33,P_All!$X$5:$AS$245,3*($C$8-1)+3) -> 0.12739 | T33: =VLOOKUP($Q33,P_All!$X$5:$AS$245,3*($C$8-1)+4) -> 0.12739 | U33: =VLOOKUP($Q33,NA_All!$X$5:$AS$245,3*($C$8-1)+2) -> 0.12739 | V33: =VLOOKUP($Q33,NA_All!$X$5:$AS$245,3*($C$8-1)+3) -> 0.12739 | W33: =VLOOKUP($Q33,NA_All!$X$5:$AS$245,3*($C$8-1)+4) -> 0.12739 | X33: =IF(ISNA(VLOOKUP($B$6,$A$25:$E$52,IF($B$8=$A$22,3,2))),EXP(VLOOKUP($B$6,$A$25:$E$52,4)*LN(VLOOKUP($Q33,#REF!,$C$8+1)/1000)+VLOOKUP($B$6,$A$25:$E$52,5)),VLOOKUP($B$6,$A$25:$E$52,IF($B$8=$A$22,3,2))) -> 0
A34: Cl | H34: 9 | I34: =VLOOKUP($H34,P_All!$A$5:$V$205,3*($C$8-1)+2) -> 0.2307375 | J34: =VLOOKUP($H34,P_All!$A$5:$V$205,3*($C$8-1)+3) -> 0.2344875 | K34: =VLOOKUP($H34,P_All!$A$5:$V$205,3*($C$8-1)+4) -> 0.2387308333 | L34: =VLOOKUP($H34,NA_All!$A$5:$V$205,3*($C$8-1)+2) -> 0.1181233333 | M34: =VLOOKUP($H34,NA_All!$A$5:$V$205,3*($C$8-1)+3) -> 0.1241141667 | N34: =VLOOKUP($H34,NA_All!$A$5:$V$205,3*($C$8-1)+4) -> 0.13698 | O34: =IF(ISNA(VLOOKUP($B$6,$A$25:$E$51,IF($B$8=$A$22,3,2))),EXP(VLOOKUP($B$6,$A$25:$E$51,4)*LN(VLOOKUP($H34,#REF!,$C$8+1)/1000)+VLOOKUP($B$6,$A$25:$E$51,5)),VLOOKUP($B$6,$A$25:$E$51,IF($B$8=$A$22,3,2))) -> 0 | Q34: 0.75 | R34: =VLOOKUP($Q34,P_All!$X$5:$AS$245,3*($C$8-1)+2) -> 0.12739 | S34: =VLOOKUP($Q34,P_All!$X$5:$AS$245,3*($C$8-1)+3) -> 0.12739 | T34: =VLOOKUP($Q34,P_All!$X$5:$AS$245,3*($C$8-1)+4) -> 0.12739 | U34: =VLOOKUP($Q34,NA_All!$X$5:$AS$245,3*($C$8-1)+2) -> 0.12739 | V34: =VLOOKUP($Q34,NA_All!$X$5:$AS$245,3*($C$8-1)+3) -> 0.12739 | W34: =VLOOKUP($Q34,NA_All!$X$5:$AS$245,3*($C$8-1)+4) -> 0.12739 | X34: =IF(ISNA(VLOOKUP($B$6,$A$25:$E$52,IF($B$8=$A$22,3,2))),EXP(VLOOKUP($B$6,$A$25:$E$52,4)*LN(VLOOKUP($Q34,#REF!,$C$8+1)/1000)+VLOOKUP($B$6,$A$25:$E$52,5)),VLOOKUP($B$6,$A$25:$E$52,IF($B$8=$A$22,3,2))) -> 0
A35: Co | H35: 10 | I35: =VLOOKUP($H35,P_All!$A$5:$V$205,3*($C$8-1)+2) -> 0.2098516667 | J35: =VLOOKUP($H35,P_All!$A$5:$V$205,3*($C$8-1)+3) -> 0.2120433333 | K35: =VLOOKUP($H35,P_All!$A$5:$V$205,3*($C$8-1)+4) -> 0.2151883333 | L35: =VLOOKUP($H35,NA_All!$A$5:$V$205,3*($C$8-1)+2) -> 0.1168208333 | M35: =VLOOKUP($H35,NA_All!$A$5:$V$205,3*($C$8-1)+3) -> 0.12379 | N35: =VLOOKUP($H35,NA_All!$A$5:$V$205,3*($C$8-1)+4) -> 0.1390766667 | O35: =IF(ISNA(VLOOKUP($B$6,$A$25:$E$51,IF($B$8=$A$22,3,2))),EXP(VLOOKUP($B$6,$A$25:$E$51,4)*LN(VLOOKUP($H35,#REF!,$C$8+1)/1000)+VLOOKUP($B$6,$A$25:$E$51,5)),VLOOKUP($B$6,$A$25:$E$51,IF($B$8=$A$22,3,2))) -> 0 | Q35: 0.8333333333 | R35: =VLOOKUP($Q35,P_All!$X$5:$AS$245,3*($C$8-1)+2) -> 0.12739 | S35: =VLOOKUP($Q35,P_All!$X$5:$AS$245,3*($C$8-1)+3) -> 0.12739 | T35: =VLOOKUP($Q35,P_All!$X$5:$AS$245,3*($C$8-1)+4) -> 0.12739 | U35: =VLOOKUP($Q35,NA_All!$X$5:$AS$245,3*($C$8-1)+2) -> 0.12739 | V35: =VLOOKUP($Q35,NA_All!$X$5:$AS$245,3*($C$8-1)+3) -> 0.12739 | W35: =VLOOKUP($Q35,NA_All!$X$5:$AS$245,3*($C$8-1)+4) -> 0.12739 | X35: =IF(ISNA(VLOOKUP($B$6,$A$25:$E$52,IF($B$8=$A$22,3,2))),EXP(VLOOKUP($B$6,$A$25:$E$52,4)*LN(VLOOKUP($Q35,#REF!,$C$8+1)/1000)+VLOOKUP($B$6,$A$25:$E$52,5)),VLOOKUP($B$6,$A$25:$E$52,IF($B$8=$A$22,3,2))) -> 0
A36: Cr | H36: 11 | I36: =VLOOKUP($H36,P_All!$A$5:$V$205,3*($C$8-1)+2) -> 0.2035133333 | J36: =VLOOKUP($H36,P_All!$A$5:$V$205,3*($C$8-1)+3) -> 0.2054583333 | K36: =VLOOKUP($H36,P_All!$A$5:$V$205,3*($C$8-1)+4) -> 0.2091775 | L36: =VLOOKUP($H36,NA_All!$A$5:$V$205,3*($C$8-1)+2) -> 0.115645 | M36: =VLOOKUP($H36,NA_All!$A$5:$V$205,3*($C$8-1)+3) -> 0.1231966667 | N36: =VLOOKUP($H36,NA_All!$A$5:$V$205,3*($C$8-1)+4) -> 0.14184 | O36: =IF(ISNA(VLOOKUP($B$6,$A$25:$E$51,IF($B$8=$A$22,3,2))),EXP(VLOOKUP($B$6,$A$25:$E$51,4)*LN(VLOOKUP($H36,#REF!,$C$8+1)/1000)+VLOOKUP($B$6,$A$25:$E$51,5)),VLOOKUP($B$6,$A$25:$E$51,IF($B$8=$A$22,3,2))) -> 0 | Q36: 0.9166666667 | R36: =VLOOKUP($Q36,P_All!$X$5:$AS$245,3*($C$8-1)+2) -> 0.12739 | S36: =VLOOKUP($Q36,P_All!$X$5:$AS$245,3*($C$8-1)+3) -> 0.12739 | T36: =VLOOKUP($Q36,P_All!$X$5:$AS$245,3*($C$8-1)+4) -> 0.12739 | U36: =VLOOKUP($Q36,NA_All!$X$5:$AS$245,3*($C$8-1)+2) -> 0.12739 | V36: =VLOOKUP($Q36,NA_All!$X$5:$AS$245,3*($C$8-1)+3) -> 0.12739 | W36: =VLOOKUP($Q36,NA_All!$X$5:$AS$245,3*($C$8-1)+4) -> 0.12739 | X36: =IF(ISNA(VLOOKUP($B$6,$A$25:$E$52,IF($B$8=$A$22,3,2))),EXP(VLOOKUP($B$6,$A$25:$E$52,4)*LN(VLOOKUP($Q36,#REF!,$C$8+1)/1000)+VLOOKUP($B$6,$A$25:$E$52,5)),VLOOKUP($B$6,$A$25:$E$52,IF($B$8=$A$22,3,2))) -> 0
A37: Cu | H37: 12 | I37: =VLOOKUP($H37,P_All!$A$5:$V$205,3*($C$8-1)+2) -> 0.2027666667 | J37: =VLOOKUP($H37,P_All!$A$5:$V$205,3*($C$8-1)+3) -> 0.204915 | K37: =VLOOKUP($H37,P_All!$A$5:$V$205,3*($C$8-1)+4) -> 0.2098808333 | L37: =VLOOKUP($H37,NA_All!$A$5:$V$205,3*($C$8-1)+2) -> 0.114695 | M37: =VLOOKUP($H37,NA_All!$A$5:$V$205,3*($C$8-1)+3) -> 0.1226725 | N37: =VLOOKUP($H37,NA_All!$A$5:$V$205,3*($C$8-1)+4) -> 0.1449658333 | O37: =IF(ISNA(VLOOKUP($B$6,$A$25:$E$51,IF($B$8=$A$22,3,2))),EXP(VLOOKUP($B$6,$A$25:$E$51,4)*LN(VLOOKUP($H37,#REF!,$C$8+1)/1000)+VLOOKUP($B$6,$A$25:$E$51,5)),VLOOKUP($B$6,$A$25:$E$51,IF($B$8=$A$22,3,2))) -> 0 | Q37: 1 | R37: =VLOOKUP($Q37,P_All!$X$5:$AS$245,3*($C$8-1)+2) -> 0.12739 | S37: =VLOOKUP($Q37,P_All!$X$5:$AS$245,3*($C$8-1)+3) -> 0.12739 | T37: =VLOOKUP($Q37,P_All!$X$5:$AS$245,3*($C$8-1)+4) -> 0.12739 | U37: =VLOOKUP($Q37,NA_All!$X$5:$AS$245,3*($C$8-1)+2) -> 0.12739 | V37: =VLOOKUP($Q37,NA_All!$X$5:$AS$245,3*($C$8-1)+3) -> 0.12739 | W37: =VLOOKUP($Q37,NA_All!$X$5:$AS$245,3*($C$8-1)+4) -> 0.12739 | X37: =IF(ISNA(VLOOKUP($B$6,$A$25:$E$52,IF($B$8=$A$22,3,2))),EXP(VLOOKUP($B$6,$A$25:$E$52,4)*LN(VLOOKUP($Q37,#REF!,$C$8+1)/1000)+VLOOKUP($B$6,$A$25:$E$52,5)),VLOOKUP($B$6,$A$25:$E$52,IF($B$8=$A$22,3,2))) -> 0
A38: F | H38: 13 | I38: =VLOOKUP($H38,P_All!$A$5:$V$205,3*($C$8-1)+2) -> 0.2037425 | J38: =VLOOKUP($H38,P_All!$A$5:$V$205,3*($C$8-1)+3) -> 0.206185 | K38: =VLOOKUP($H38,P_All!$A$5:$V$205,3*($C$8-1)+4) -> 0.212675 | L38: =VLOOKUP($H38,NA_All!$A$5:$V$205,3*($C$8-1)+2) -> 0.1138391667 | M38: =VLOOKUP($H38,NA_All!$A$5:$V$205,3*($C$8-1)+3) -> 0.1223933333 | N38: =VLOOKUP($H38,NA_All!$A$5:$V$205,3*($C$8-1)+4) -> 0.1473233333 | O38: =IF(ISNA(VLOOKUP($B$6,$A$25:$E$51,IF($B$8=$A$22,3,2))),EXP(VLOOKUP($B$6,$A$25:$E$51,4)*LN(VLOOKUP($H38,#REF!,$C$8+1)/1000)+VLOOKUP($B$6,$A$25:$E$51,5)),VLOOKUP($B$6,$A$25:$E$51,IF($B$8=$A$22,3,2))) -> 0 | Q38: 1.083333333 | R38: =VLOOKUP($Q38,P_All!$X$5:$AS$245,3*($C$8-1)+2) -> 0.12739 | S38: =VLOOKUP($Q38,P_All!$X$5:$AS$245,3*($C$8-1)+3) -> 0.12739 | T38: =VLOOKUP($Q38,P_All!$X$5:$AS$245,3*($C$8-1)+4) -> 0.12739 | U38: =VLOOKUP($Q38,NA_All!$X$5:$AS$245,3*($C$8-1)+2) -> 0.12739 | V38: =VLOOKUP($Q38,NA_All!$X$5:$AS$245,3*($C$8-1)+3) -> 0.12739 | W38: =VLOOKUP($Q38,NA_All!$X$5:$AS$245,3*($C$8-1)+4) -> 0.12739 | X38: =IF(ISNA(VLOOKUP($B$6,$A$25:$E$52,IF($B$8=$A$22,3,2))),EXP(VLOOKUP($B$6,$A$25:$E$52,4)*LN(VLOOKUP($Q38,#REF!,$C$8+1)/1000)+VLOOKUP($B$6,$A$25:$E$52,5)),VLOOKUP($B$6,$A$25:$E$52,IF($B$8=$A$22,3,2))) -> 0
A39: Fe | H39: 14 | I39: =VLOOKUP($H39,P_All!$A$5:$V$205,3*($C$8-1)+2) -> 0.2027241667 | J39: =VLOOKUP($H39,P_All!$A$5:$V$205,3*($C$8-1)+3) -> 0.2053283333 | K39: =VLOOKUP($H39,P_All!$A$5:$V$205,3*($C$8-1)+4) -> 0.2119166667 | L39: =VLOOKUP($H39,NA_All!$A$5:$V$205,3*($C$8-1)+2) -> 0.1131816667 | M39: =VLOOKUP($H39,NA_All!$A$5:$V$205,3*($C$8-1)+3) -> 0.1222683333 | N39: =VLOOKUP($H39,NA_All!$A$5:$V$205,3*($C$8-1)+4) -> 0.1482116667 | O39: =IF(ISNA(VLOOKUP($B$6,$A$25:$E$51,IF($B$8=$A$22,3,2))),EXP(VLOOKUP($B$6,$A$25:$E$51,4)*LN(VLOOKUP($H39,#REF!,$C$8+1)/1000)+VLOOKUP($B$6,$A$25:$E$51,5)),VLOOKUP($B$6,$A$25:$E$51,IF($B$8=$A$22,3,2))) -> 0 | Q39: 1.166666667 | R39: =VLOOKUP($Q39,P_All!$X$5:$AS$245,3*($C$8-1)+2) -> 0.12739 | S39: =VLOOKUP($Q39,P_All!$X$5:$AS$245,3*($C$8-1)+3) -> 0.12739 | T39: =VLOOKUP($Q39,P_All!$X$5:$AS$245,3*($C$8-1)+4) -> 0.12739 | U39: =VLOOKUP($Q39,NA_All!$X$5:$AS$245,3*($C$8-1)+2) -> 0.12739 | V39: =VLOOKUP($Q39,NA_All!$X$5:$AS$245,3*($C$8-1)+3) -> 0.12739 | W39: =VLOOKUP($Q39,NA_All!$X$5:$AS$245,3*($C$8-1)+4) -> 0.12739 | X39: =IF(ISNA(VLOOKUP($B$6,$A$25:$E$52,IF($B$8=$A$22,3,2))),EXP(VLOOKUP($B$6,$A$25:$E$52,4)*LN(VLOOKUP($Q39,#REF!,$C$8+1)/1000)+VLOOKUP($B$6,$A$25:$E$52,5)),VLOOKUP($B$6,$A$25:$E$52,IF($B$8=$A$22,3,2))) -> 0
A40: K | H40: 15 | I40: =VLOOKUP($H40,P_All!$A$5:$V$205,3*($C$8-1)+2) -> 0.1992708333 | J40: =VLOOKUP($H40,P_All!$A$5:$V$205,3*($C$8-1)+3) -> 0.2016583333 | K40: =VLOOKUP($H40,P_All!$A$5:$V$205,3*($C$8-1)+4) -> 0.2066375 | L40: =VLOOKUP($H40,NA_All!$A$5:$V$205,3*($C$8-1)+2) -> 0.1123558333 | M40: =VLOOKUP($H40,NA_All!$A$5:$V$205,3*($C$8-1)+3) -> 0.1220341667 | N40: =VLOOKUP($H40,NA_All!$A$5:$V$205,3*($C$8-1)+4) -> 0.1484616667 | O40: =IF(ISNA(VLOOKUP($B$6,$A$25:$E$51,IF($B$8=$A$22,3,2))),EXP(VLOOKUP($B$6,$A$25:$E$51,4)*LN(VLOOKUP($H40,#REF!,$C$8+1)/1000)+VLOOKUP($B$6,$A$25:$E$51,5)),VLOOKUP($B$6,$A$25:$E$51,IF($B$8=$A$22,3,2))) -> 0 | Q40: 1.25 | R40: =VLOOKUP($Q40,P_All!$X$5:$AS$245,3*($C$8-1)+2) -> 0.12739 | S40: =VLOOKUP($Q40,P_All!$X$5:$AS$245,3*($C$8-1)+3) -> 0.12739 | T40: =VLOOKUP($Q40,P_All!$X$5:$AS$245,3*($C$8-1)+4) -> 0.12739 | U40: =VLOOKUP($Q40,NA_All!$X$5:$AS$245,3*($C$8-1)+2) -> 0.12739 | V40: =VLOOKUP($Q40,NA_All!$X$5:$AS$245,3*($C$8-1)+3) -> 0.12739 | W40: =VLOOKUP($Q40,NA_All!$X$5:$AS$245,3*($C$8-1)+4) -> 0.12739 | X40: =IF(ISNA(VLOOKUP($B$6,$A$25:$E$52,IF($B$8=$A$22,3,2))),EXP(VLOOKUP($B$6,$A$25:$E$52,4)*LN(VLOOKUP($Q40,#REF!,$C$8+1)/1000)+VLOOKUP($B$6,$A$25:$E$52,5)),VLOOKUP($B$6,$A$25:$E$52,IF($B$8=$A$22,3,2))) -> 0
A41: Mg | H41: 16 | I41: =VLOOKUP($H41,P_All!$A$5:$V$205,3*($C$8-1)+2) -> 0.1957033333 | J41: =VLOOKUP($H41,P_All!$A$5:$V$205,3*($C$8-1)+3) -> 0.1978541667 | K41: =VLOOKUP($H41,P_All!$A$5:$V$205,3*($C$8-1)+4) -> 0.201095 | L41: =VLOOKUP($H41,NA_All!$A$5:$V$205,3*($C$8-1)+2) -> 0.1113058333 | M41: =VLOOKUP($H41,NA_All!$A$5:$V$205,3*($C$8-1)+3) -> 0.121615 | N41: =VLOOKUP($H41,NA_All!$A$5:$V$205,3*($C$8-1)+4) -> 0.149685 | O41: =IF(ISNA(VLOOKUP($B$6,$A$25:$E$51,IF($B$8=$A$22,3,2))),EXP(VLOOKUP($B$6,$A$25:$E$51,4)*LN(VLOOKUP($H41,#REF!,$C$8+1)/1000)+VLOOKUP($B$6,$A$25:$E$51,5)),VLOOKUP($B$6,$A$25:$E$51,IF($B$8=$A$22,3,2))) -> 0 | Q41: 1.333333333 | R41: =VLOOKUP($Q41,P_All!$X$5:$AS$245,3*($C$8-1)+2) -> 0.12739 | S41: =VLOOKUP($Q41,P_All!$X$5:$AS$245,3*($C$8-1)+3) -> 0.12739 | T41: =VLOOKUP($Q41,P_All!$X$5:$AS$245,3*($C$8-1)+4) -> 0.12739 | U41: =VLOOKUP($Q41,NA_All!$X$5:$AS$245,3*($C$8-1)+2) -> 0.12739 | V41: =VLOOKUP($Q41,NA_All!$X$5:$AS$245,3*($C$8-1)+3) -> 0.12739 | W41: =VLOOKUP($Q41,NA_All!$X$5:$AS$245,3*($C$8-1)+4) -> 0.12739 | X41: =IF(ISNA(VLOOKUP($B$6,$A$25:$E$52,IF($B$8=$A$22,3,2))),EXP(VLOOKUP($B$6,$A$25:$E$52,4)*LN(VLOOKUP($Q41,#REF!,$C$8+1)/1000)+VLOOKUP($B$6,$A$25:$E$52,5)),VLOOKUP($B$6,$A$25:$E$52,IF($B$8=$A$22,3,2))) -> 0
A42: Mn | H42: 17 | I42: =VLOOKUP($H42,P_All!$A$5:$V$205,3*($C$8-1)+2) -> 0.1932958333 | J42: =VLOOKUP($H42,P_All!$A$5:$V$205,3*($C$8-1)+3) -> 0.1952941667 | K42: =VLOOKUP($H42,P_All!$A$5:$V$205,3*($C$8-1)+4) -> 0.1977133333 | L42: =VLOOKUP($H42,NA_All!$A$5:$V$205,3*($C$8-1)+2) -> 0.1103366667 | M42: =VLOOKUP($H42,NA_All!$A$5:$V$205,3*($C$8-1)+3) -> 0.1213716667 | N42: =VLOOKUP($H42,NA_All!$A$5:$V$205,3*($C$8-1)+4) -> 0.1525683333 | O42: =IF(ISNA(VLOOKUP($B$6,$A$25:$E$51,IF($B$8=$A$22,3,2))),EXP(VLOOKUP($B$6,$A$25:$E$51,4)*LN(VLOOKUP($H42,#REF!,$C$8+1)/1000)+VLOOKUP($B$6,$A$25:$E$51,5)),VLOOKUP($B$6,$A$25:$E$51,IF($B$8=$A$22,3,2))) -> 0 | Q42: 1.416666667 | R42: =VLOOKUP($Q42,P_All!$X$5:$AS$245,3*($C$8-1)+2) -> 0.12739 | S42: =VLOOKUP($Q42,P_All!$X$5:$AS$245,3*($C$8-1)+3) -> 0.12739 | T42: =VLOOKUP($Q42,P_All!$X$5:$AS$245,3*($C$8-1)+4) -> 0.12739 | U42: =VLOOKUP($Q42,NA_All!$X$5:$AS$245,3*($C$8-1)+2) -> 0.12739 | V42: =VLOOKUP($Q42,NA_All!$X$5:$AS$245,3*($C$8-1)+3) -> 0.12739 | W42: =VLOOKUP($Q42,NA_All!$X$5:$AS$245,3*($C$8-1)+4) -> 0.12739 | X42: =IF(ISNA(VLOOKUP($B$6,$A$25:$E$52,IF($B$8=$A$22,3,2))),EXP(VLOOKUP($B$6,$A$25:$E$52,4)*LN(VLOOKUP($Q42,#REF!,$C$8+1)/1000)+VLOOKUP($B$6,$A$25:$E$52,5)),VLOOKUP($B$6,$A$25:$E$52,IF($B$8=$A$22,3,2))) -> 0
A43: Na | H43: 18 | I43: =VLOOKUP($H43,P_All!$A$5:$V$205,3*($C$8-1)+2) -> 0.1920191667 | J43: =VLOOKUP($H43,P_All!$A$5:$V$205,3*($C$8-1)+3) -> 0.194 | K43: =VLOOKUP($H43,P_All!$A$5:$V$205,3*($C$8-1)+4) -> 0.1962441667 | L43: =VLOOKUP($H43,NA_All!$A$5:$V$205,3*($C$8-1)+2) -> 0.1093966667 | M43: =VLOOKUP($H43,NA_All!$A$5:$V$205,3*($C$8-1)+3) -> 0.1214066667 | N43: =VLOOKUP($H43,NA_All!$A$5:$V$205,3*($C$8-1)+4) -> 0.15523 | O43: =IF(ISNA(VLOOKUP($B$6,$A$25:$E$51,IF($B$8=$A$22,3,2))),EXP(VLOOKUP($B$6,$A$25:$E$51,4)*LN(VLOOKUP($H43,#REF!,$C$8+1)/1000)+VLOOKUP($B$6,$A$25:$E$51,5)),VLOOKUP($B$6,$A$25:$E$51,IF($B$8=$A$22,3,2))) -> 0 | Q43: 1.5 | R43: =VLOOKUP($Q43,P_All!$X$5:$AS$245,3*($C$8-1)+2) -> 0.12739 | S43: =VLOOKUP($Q43,P_All!$X$5:$AS$245,3*($C$8-1)+3) -> 0.12739 | T43: =VLOOKUP($Q43,P_All!$X$5:$AS$245,3*($C$8-1)+4) -> 0.12739 | U43: =VLOOKUP($Q43,NA_All!$X$5:$AS$245,3*($C$8-1)+2) -> 0.12739 | V43: =VLOOKUP($Q43,NA_All!$X$5:$AS$245,3*($C$8-1)+3) -> 0.12739 | W43: =VLOOKUP($Q43,NA_All!$X$5:$AS$245,3*($C$8-1)+4) -> 0.12739 | X43: =IF(ISNA(VLOOKUP($B$6,$A$25:$E$52,IF($B$8=$A$22,3,2))),EXP(VLOOKUP($B$6,$A$25:$E$52,4)*LN(VLOOKUP($Q43,#REF!,$C$8+1)/1000)+VLOOKUP($B$6,$A$25:$E$52,5)),VLOOKUP($B$6,$A$25:$E$52,IF($B$8=$A$22,3,2))) -> 0
A44: Ni | H44: 19 | I44: =VLOOKUP($H44,P_All!$A$5:$V$205,3*($C$8-1)+2) -> 0.1912516667 | J44: =VLOOKUP($H44,P_All!$A$5:$V$205,3*($C$8-1)+3) -> 0.1933208333 | K44: =VLOOKUP($H44,P_All!$A$5:$V$205,3*($C$8-1)+4) -> 0.1957341667 | L44: =VLOOKUP($H44,NA_All!$A$5:$V$205,3*($C$8-1)+2) -> 0.1086425 | M44: =VLOOKUP($H44,NA_All!$A$5:$V$205,3*($C$8-1)+3) -> 0.1208233333 | N44: =VLOOKUP($H44,NA_All!$A$5:$V$205,3*($C$8-1)+4) -> 0.1565516667 | O44: =IF(ISNA(VLOOKUP($B$6,$A$25:$E$51,IF($B$8=$A$22,3,2))),EXP(VLOOKUP($B$6,$A$25:$E$51,4)*LN(VLOOKUP($H44,#REF!,$C$8+1)/1000)+VLOOKUP($B$6,$A$25:$E$51,5)),VLOOKUP($B$6,$A$25:$E$51,IF($B$8=$A$22,3,2))) -> 0 | Q44: 1.583333333 | R44: =VLOOKUP($Q44,P_All!$X$5:$AS$245,3*($C$8-1)+2) -> 0.12739 | S44: =VLOOKUP($Q44,P_All!$X$5:$AS$245,3*($C$8-1)+3) -> 0.12739 | T44: =VLOOKUP($Q44,P_All!$X$5:$AS$245,3*($C$8-1)+4) -> 0.12739 | U44: =VLOOKUP($Q44,NA_All!$X$5:$AS$245,3*($C$8-1)+2) -> 0.12739 | V44: =VLOOKUP($Q44,NA_All!$X$5:$AS$245,3*($C$8-1)+3) -> 0.12739 | W44: =VLOOKUP($Q44,NA_All!$X$5:$AS$245,3*($C$8-1)+4) -> 0.12739 | X44: =IF(ISNA(VLOOKUP($B$6,$A$25:$E$52,IF($B$8=$A$22,3,2))),EXP(VLOOKUP($B$6,$A$25:$E$52,4)*LN(VLOOKUP($Q44,#REF!,$C$8+1)/1000)+VLOOKUP($B$6,$A$25:$E$52,5)),VLOOKUP($B$6,$A$25:$E$52,IF($B$8=$A$22,3,2))) -> 0
A45: Pb | H45: 20 | I45: =VLOOKUP($H45,P_All!$A$5:$V$205,3*($C$8-1)+2) -> 0.1908133333 | J45: =VLOOKUP($H45,P_All!$A$5:$V$205,3*($C$8-1)+3) -> 0.1930558333 | K45: =VLOOKUP($H45,P_All!$A$5:$V$205,3*($C$8-1)+4) -> 0.1955558333 | L45: =VLOOKUP($H45,NA_All!$A$5:$V$205,3*($C$8-1)+2) -> 0.1081266667 | M45: =VLOOKUP($H45,NA_All!$A$5:$V$205,3*($C$8-1)+3) -> 0.120275 | N45: =VLOOKUP($H45,NA_All!$A$5:$V$205,3*($C$8-1)+4) -> 0.1572266667 | O45: =IF(ISNA(VLOOKUP($B$6,$A$25:$E$51,IF($B$8=$A$22,3,2))),EXP(VLOOKUP($B$6,$A$25:$E$51,4)*LN(VLOOKUP($H45,#REF!,$C$8+1)/1000)+VLOOKUP($B$6,$A$25:$E$51,5)),VLOOKUP($B$6,$A$25:$E$51,IF($B$8=$A$22,3,2))) -> 0 | Q45: 1.666666667 | R45: =VLOOKUP($Q45,P_All!$X$5:$AS$245,3*($C$8-1)+2) -> 0.12741 | S45: =VLOOKUP($Q45,P_All!$X$5:$AS$245,3*($C$8-1)+3) -> 0.12741 | T45: =VLOOKUP($Q45,P_All!$X$5:$AS$245,3*($C$8-1)+4) -> 0.12741 | U45: =VLOOKUP($Q45,NA_All!$X$5:$AS$245,3*($C$8-1)+2) -> 0.1274 | V45: =VLOOKUP($Q45,NA_All!$X$5:$AS$245,3*($C$8-1)+3) -> 0.1274 | W45: =VLOOKUP($Q45,NA_All!$X$5:$AS$245,3*($C$8-1)+4) -> 0.1274 | X45: =IF(ISNA(VLOOKUP($B$6,$A$25:$E$52,IF($B$8=$A$22,3,2))),EXP(VLOOKUP($B$6,$A$25:$E$52,4)*LN(VLOOKUP($Q45,#REF!,$C$8+1)/1000)+VLOOKUP($B$6,$A$25:$E$52,5)),VLOOKUP($B$6,$A$25:$E$52,IF($B$8=$A$22,3,2))) -> 0
A46: Sb | H46: 21 | I46: =VLOOKUP($H46,P_All!$A$5:$V$205,3*($C$8-1)+2) -> 0.19057 | J46: =VLOOKUP($H46,P_All!$A$5:$V$205,3*($C$8-1)+3) -> 0.1928725 | K46: =VLOOKUP($H46,P_All!$A$5:$V$205,3*($C$8-1)+4) -> 0.1955991667 | L46: =VLOOKUP($H46,NA_All!$A$5:$V$205,3*($C$8-1)+2) -> 0.1076675 | M46: =VLOOKUP($H46,NA_All!$A$5:$V$205,3*($C$8-1)+3) -> 0.1196833333 | N46: =VLOOKUP($H46,NA_All!$A$5:$V$205,3*($C$8-1)+4) -> 0.1589291667 | O46: =IF(ISNA(VLOOKUP($B$6,$A$25:$E$51,IF($B$8=$A$22,3,2))),EXP(VLOOKUP($B$6,$A$25:$E$51,4)*LN(VLOOKUP($H46,#REF!,$C$8+1)/1000)+VLOOKUP($B$6,$A$25:$E$51,5)),VLOOKUP($B$6,$A$25:$E$51,IF($B$8=$A$22,3,2))) -> 0 | Q46: 1.75 | R46: =VLOOKUP($Q46,P_All!$X$5:$AS$245,3*($C$8-1)+2) -> 0.12739 | S46: =VLOOKUP($Q46,P_All!$X$5:$AS$245,3*($C$8-1)+3) -> 0.12739 | T46: =VLOOKUP($Q46,P_All!$X$5:$AS$245,3*($C$8-1)+4) -> 0.12739 | U46: =VLOOKUP($Q46,NA_All!$X$5:$AS$245,3*($C$8-1)+2) -> 0.12739 | V46: =VLOOKUP($Q46,NA_All!$X$5:$AS$245,3*($C$8-1)+3) -> 0.12739 | W46: =VLOOKUP($Q46,NA_All!$X$5:$AS$245,3*($C$8-1)+4) -> 0.12739 | X46: =IF(ISNA(VLOOKUP($B$6,$A$25:$E$52,IF($B$8=$A$22,3,2))),EXP(VLOOKUP($B$6,$A$25:$E$52,4)*LN(VLOOKUP($Q46,#REF!,$C$8+1)/1000)+VLOOKUP($B$6,$A$25:$E$52,5)),VLOOKUP($B$6,$A$25:$E$52,IF($B$8=$A$22,3,2))) -> 0
A47: Se | H47: 22 | I47: =VLOOKUP($H47,P_All!$A$5:$V$205,3*($C$8-1)+2) -> 0.1904883333 | J47: =VLOOKUP($H47,P_All!$A$5:$V$205,3*($C$8-1)+3) -> 0.1929591667 | K47: =VLOOKUP($H47,P_All!$A$5:$V$205,3*($C$8-1)+4) -> 0.1957641667 | L47: =VLOOKUP($H47,NA_All!$A$5:$V$205,3*($C$8-1)+2) -> 0.1070808333 | M47: =VLOOKUP($H47,NA_All!$A$5:$V$205,3*($C$8-1)+3) -> 0.1195291667 | N47: =VLOOKUP($H47,NA_All!$A$5:$V$205,3*($C$8-1)+4) -> 0.1613266667 | O47: =IF(ISNA(VLOOKUP($B$6,$A$25:$E$51,IF($B$8=$A$22,3,2))),EXP(VLOOKUP($B$6,$A$25:$E$51,4)*LN(VLOOKUP($H47,#REF!,$C$8+1)/1000)+VLOOKUP($B$6,$A$25:$E$51,5)),VLOOKUP($B$6,$A$25:$E$51,IF($B$8=$A$22,3,2))) -> 0 | Q47: 1.833333333 | R47: =VLOOKUP($Q47,P_All!$X$5:$AS$245,3*($C$8-1)+2) -> 0.12739 | S47: =VLOOKUP($Q47,P_All!$X$5:$AS$245,3*($C$8-1)+3) -> 0.12739 | T47: =VLOOKUP($Q47,P_All!$X$5:$AS$245,3*($C$8-1)+4) -> 0.12739 | U47: =VLOOKUP($Q47,NA_All!$X$5:$AS$245,3*($C$8-1)+2) -> 0.12739 | V47: =VLOOKUP($Q47,NA_All!$X$5:$AS$245,3*($C$8-1)+3) -> 0.12739 | W47: =VLOOKUP($Q47,NA_All!$X$5:$AS$245,3*($C$8-1)+4) -> 0.12739 | X47: =IF(ISNA(VLOOKUP($B$6,$A$25:$E$52,IF($B$8=$A$22,3,2))),EXP(VLOOKUP($B$6,$A$25:$E$52,4)*LN(VLOOKUP($Q47,#REF!,$C$8+1)/1000)+VLOOKUP($B$6,$A$25:$E$52,5)),VLOOKUP($B$6,$A$25:$E$52,IF($B$8=$A$22,3,2))) -> 0
A48: SO4 | H48: 23 | I48: =VLOOKUP($H48,P_All!$A$5:$V$205,3*($C$8-1)+2) -> 0.1899325 | J48: =VLOOKUP($H48,P_All!$A$5:$V$205,3*($C$8-1)+3) -> 0.1926391667 | K48: =VLOOKUP($H48,P_All!$A$5:$V$205,3*($C$8-1)+4) -> 0.1956816667 | L48: =VLOOKUP($H48,NA_All!$A$5:$V$205,3*($C$8-1)+2) -> 0.1064825 | M48: =VLOOKUP($H48,NA_All!$A$5:$V$205,3*($C$8-1)+3) -> 0.1193341667 | N48: =VLOOKUP($H48,NA_All!$A$5:$V$205,3*($C$8-1)+4) -> 0.1628783333 | O48: =IF(ISNA(VLOOKUP($B$6,$A$25:$E$51,IF($B$8=$A$22,3,2))),EXP(VLOOKUP($B$6,$A$25:$E$51,4)*LN(VLOOKUP($H48,#REF!,$C$8+1)/1000)+VLOOKUP($B$6,$A$25:$E$51,5)),VLOOKUP($B$6,$A$25:$E$51,IF($B$8=$A$22,3,2))) -> 0 | Q48: 1.916666667 | R48: =VLOOKUP($Q48,P_All!$X$5:$AS$245,3*($C$8-1)+2) -> 0.12739 | S48: =VLOOKUP($Q48,P_All!$X$5:$AS$245,3*($C$8-1)+3) -> 0.12739 | T48: =VLOOKUP($Q48,P_All!$X$5:$AS$245,3*($C$8-1)+4) -> 0.12739 | U48: =VLOOKUP($Q48,NA_All!$X$5:$AS$245,3*($C$8-1)+2) -> 0.12739 | V48: =VLOOKUP($Q48,NA_All!$X$5:$AS$245,3*($C$8-1)+3) -> 0.12739 | W48: =VLOOKUP($Q48,NA_All!$X$5:$AS$245,3*($C$8-1)+4) -> 0.12739 | X48: =IF(ISNA(VLOOKUP($B$6,$A$25:$E$52,IF($B$8=$A$22,3,2))),EXP(VLOOKUP($B$6,$A$25:$E$52,4)*LN(VLOOKUP($Q48,#REF!,$C$8+1)/1000)+VLOOKUP($B$6,$A$25:$E$52,5)),VLOOKUP($B$6,$A$25:$E$52,IF($B$8=$A$22,3,2))) -> 0
A49: Tl | H49: 24 | I49: =VLOOKUP($H49,P_All!$A$5:$V$205,3*($C$8-1)+2) -> 0.1891883333 | J49: =VLOOKUP($H49,P_All!$A$5:$V$205,3*($C$8-1)+3) -> 0.1920766667 | K49: =VLOOKUP($H49,P_All!$A$5:$V$205,3*($C$8-1)+4) -> 0.1956116667 | L49: =VLOOKUP($H49,NA_All!$A$5:$V$205,3*($C$8-1)+2) -> 0.106055 | M49: =VLOOKUP($H49,NA_All!$A$5:$V$205,3*($C$8-1)+3) -> 0.1190983333 | N49: =VLOOKUP($H49,NA_All!$A$5:$V$205,3*($C$8-1)+4) -> 0.16368 | O49: =IF(ISNA(VLOOKUP($B$6,$A$25:$E$51,IF($B$8=$A$22,3,2))),EXP(VLOOKUP($B$6,$A$25:$E$51,4)*LN(VLOOKUP($H49,#REF!,$C$8+1)/1000)+VLOOKUP($B$6,$A$25:$E$51,5)),VLOOKUP($B$6,$A$25:$E$51,IF($B$8=$A$22,3,2))) -> 0 | Q49: 2 | R49: =VLOOKUP($Q49,P_All!$X$5:$AS$245,3*($C$8-1)+2) -> 0.12739 | S49: =VLOOKUP($Q49,P_All!$X$5:$AS$245,3*($C$8-1)+3) -> 0.12739 | T49: =VLOOKUP($Q49,P_All!$X$5:$AS$245,3*($C$8-1)+4) -> 0.12739 | U49: =VLOOKUP($Q49,NA_All!$X$5:$AS$245,3*($C$8-1)+2) -> 0.12739 | V49: =VLOOKUP($Q49,NA_All!$X$5:$AS$245,3*($C$8-1)+3) -> 0.12739 | W49: =VLOOKUP($Q49,NA_All!$X$5:$AS$245,3*($C$8-1)+4) -> 0.12739 | X49: =IF(ISNA(VLOOKUP($B$6,$A$25:$E$52,IF($B$8=$A$22,3,2))),EXP(VLOOKUP($B$6,$A$25:$E$52,4)*LN(VLOOKUP($Q49,#REF!,$C$8+1)/1000)+VLOOKUP($B$6,$A$25:$E$52,5)),VLOOKUP($B$6,$A$25:$E$52,IF($B$8=$A$22,3,2))) -> 0
A50: V | H50: 25 | I50: =VLOOKUP($H50,P_All!$A$5:$V$205,3*($C$8-1)+2) -> 0.1887375 | J50: =VLOOKUP($H50,P_All!$A$5:$V$205,3*($C$8-1)+3) -> 0.1918633333 | K50: =VLOOKUP($H50,P_All!$A$5:$V$205,3*($C$8-1)+4) -> 0.1958508333 | L50: =VLOOKUP($H50,NA_All!$A$5:$V$205,3*($C$8-1)+2) -> 0.105685 | M50: =VLOOKUP($H50,NA_All!$A$5:$V$205,3*($C$8-1)+3) -> 0.1189208333 | N50: =VLOOKUP($H50,NA_All!$A$5:$V$205,3*($C$8-1)+4) -> 0.1634775 | O50: =IF(ISNA(VLOOKUP($B$6,$A$25:$E$51,IF($B$8=$A$22,3,2))),EXP(VLOOKUP($B$6,$A$25:$E$51,4)*LN(VLOOKUP($H50,#REF!,$C$8+1)/1000)+VLOOKUP($B$6,$A$25:$E$51,5)),VLOOKUP($B$6,$A$25:$E$51,IF($B$8=$A$22,3,2))) -> 0 | Q50: 2.083333333 | R50: =VLOOKUP($Q50,P_All!$X$5:$AS$245,3*($C$8-1)+2) -> 0.12739 | S50: =VLOOKUP($Q50,P_All!$X$5:$AS$245,3*($C$8-1)+3) -> 0.12739 | T50: =VLOOKUP($Q50,P_All!$X$5:$AS$245,3*($C$8-1)+4) -> 0.12739 | U50: =VLOOKUP($Q50,NA_All!$X$5:$AS$245,3*($C$8-1)+2) -> 0.12739 | V50: =VLOOKUP($Q50,NA_All!$X$5:$AS$245,3*($C$8-1)+3) -> 0.12739 | W50: =VLOOKUP($Q50,NA_All!$X$5:$AS$245,3*($C$8-1)+4) -> 0.12739 | X50: =IF(ISNA(VLOOKUP($B$6,$A$25:$E$52,IF($B$8=$A$22,3,2))),EXP(VLOOKUP($B$6,$A$25:$E$52,4)*LN(VLOOKUP($Q50,#REF!,$C$8+1)/1000)+VLOOKUP($B$6,$A$25:$E$52,5)),VLOOKUP($B$6,$A$25:$E$52,IF($B$8=$A$22,3,2))) -> 0
A51: Zn | H51: 26 | I51: =VLOOKUP($H51,P_All!$A$5:$V$205,3*($C$8-1)+2) -> 0.1873458333 | J51: =VLOOKUP($H51,P_All!$A$5:$V$205,3*($C$8-1)+3) -> 0.1908908333 | K51: =VLOOKUP($H51,P_All!$A$5:$V$205,3*($C$8-1)+4) -> 0.19549 | L51: =VLOOKUP($H51,NA_All!$A$5:$V$205,3*($C$8-1)+2) -> 0.1051925 | M51: =VLOOKUP($H51,NA_All!$A$5:$V$205,3*($C$8-1)+3) -> 0.1184375 | N51: =VLOOKUP($H51,NA_All!$A$5:$V$205,3*($C$8-1)+4) -> 0.16396 | O51: =IF(ISNA(VLOOKUP($B$6,$A$25:$E$51,IF($B$8=$A$22,3,2))),EXP(VLOOKUP($B$6,$A$25:$E$51,4)*LN(VLOOKUP($H51,#REF!,$C$8+1)/1000)+VLOOKUP($B$6,$A$25:$E$51,5)),VLOOKUP($B$6,$A$25:$E$51,IF($B$8=$A$22,3,2))) -> 0 | Q51: 2.166666667 | R51: =VLOOKUP($Q51,P_All!$X$5:$AS$245,3*($C$8-1)+2) -> 0.12747 | S51: =VLOOKUP($Q51,P_All!$X$5:$AS$245,3*($C$8-1)+3) -> 0.12747 | T51: =VLOOKUP($Q51,P_All!$X$5:$AS$245,3*($C$8-1)+4) -> 0.12747 | U51: =VLOOKUP($Q51,NA_All!$X$5:$AS$245,3*($C$8-1)+2) -> 0.12744 | V51: =VLOOKUP($Q51,NA_All!$X$5:$AS$245,3*($C$8-1)+3) -> 0.12745 | W51: =VLOOKUP($Q51,NA_All!$X$5:$AS$245,3*($C$8-1)+4) -> 0.12745 | X51: =IF(ISNA(VLOOKUP($B$6,$A$25:$E$52,IF($B$8=$A$22,3,2))),EXP(VLOOKUP($B$6,$A$25:$E$52,4)*LN(VLOOKUP($Q51,#REF!,$C$8+1)/1000)+VLOOKUP($B$6,$A$25:$E$52,5)),VLOOKUP($B$6,$A$25:$E$52,IF($B$8=$A$22,3,2))) -> 0
H52: 27 | I52: =VLOOKUP($H52,P_All!$A$5:$V$205,3*($C$8-1)+2) -> 0.1844808333 | J52: =VLOOKUP($H52,P_All!$A$5:$V$205,3*($C$8-1)+3) -> 0.1885533333 | K52: =VLOOKUP($H52,P_All!$A$5:$V$205,3*($C$8-1)+4) -> 0.1940175 | L52: =VLOOKUP($H52,NA_All!$A$5:$V$205,3*($C$8-1)+2) -> 0.1045633333 | M52: =VLOOKUP($H52,NA_All!$A$5:$V$205,3*($C$8-1)+3) -> 0.1184825 | N52: =VLOOKUP($H52,NA_All!$A$5:$V$205,3*($C$8-1)+4) -> 0.1634583333 | O52: =IF(ISNA(VLOOKUP($B$6,$A$25:$E$51,IF($B$8=$A$22,3,2))),EXP(VLOOKUP($B$6,$A$25:$E$51,4)*LN(VLOOKUP($H52,#REF!,$C$8+1)/1000)+VLOOKUP($B$6,$A$25:$E$51,5)),VLOOKUP($B$6,$A$25:$E$51,IF($B$8=$A$22,3,2))) -> 0 | Q52: 2.25 | R52: =VLOOKUP($Q52,P_All!$X$5:$AS$245,3*($C$8-1)+2) -> 0.12734 | S52: =VLOOKUP($Q52,P_All!$X$5:$AS$245,3*($C$8-1)+3) -> 0.12734 | T52: =VLOOKUP($Q52,P_All!$X$5:$AS$245,3*($C$8-1)+4) -> 0.12735 | U52: =VLOOKUP($Q52,NA_All!$X$5:$AS$245,3*($C$8-1)+2) -> 0.12738 | V52: =VLOOKUP($Q52,NA_All!$X$5:$AS$245,3*($C$8-1)+3) -> 0.12738 | W52: =VLOOKUP($Q52,NA_All!$X$5:$AS$245,3*($C$8-1)+4) -> 0.12738 | X52: =IF(ISNA(VLOOKUP($B$6,$A$25:$E$52,IF($B$8=$A$22,3,2))),EXP(VLOOKUP($B$6,$A$25:$E$52,4)*LN(VLOOKUP($Q52,#REF!,$C$8+1)/1000)+VLOOKUP($B$6,$A$25:$E$52,5)),VLOOKUP($B$6,$A$25:$E$52,IF($B$8=$A$22,3,2))) -> 0
H53: 28 | I53: =VLOOKUP($H53,P_All!$A$5:$V$205,3*($C$8-1)+2) -> 0.180875 | J53: =VLOOKUP($H53,P_All!$A$5:$V$205,3*($C$8-1)+3) -> 0.1855441667 | K53: =VLOOKUP($H53,P_All!$A$5:$V$205,3*($C$8-1)+4) -> 0.1918133333 | L53: =VLOOKUP($H53,NA_All!$A$5:$V$205,3*($C$8-1)+2) -> 0.1041616667 | M53: =VLOOKUP($H53,NA_All!$A$5:$V$205,3*($C$8-1)+3) -> 0.118745 | N53: =VLOOKUP($H53,NA_All!$A$5:$V$205,3*($C$8-1)+4) -> 0.1633108333 | O53: =IF(ISNA(VLOOKUP($B$6,$A$25:$E$51,IF($B$8=$A$22,3,2))),EXP(VLOOKUP($B$6,$A$25:$E$51,4)*LN(VLOOKUP($H53,#REF!,$C$8+1)/1000)+VLOOKUP($B$6,$A$25:$E$51,5)),VLOOKUP($B$6,$A$25:$E$51,IF($B$8=$A$22,3,2))) -> 0 | Q53: 2.333333333 | R53: =VLOOKUP($Q53,P_All!$X$5:$AS$245,3*($C$8-1)+2) -> 0.12674 | S53: =VLOOKUP($Q53,P_All!$X$5:$AS$245,3*($C$8-1)+3) -> 0.12674 | T53: =VLOOKUP($Q53,P_All!$X$5:$AS$245,3*($C$8-1)+4) -> 0.12674 | U53: =VLOOKUP($Q53,NA_All!$X$5:$AS$245,3*($C$8-1)+2) -> 0.12736 | V53: =VLOOKUP($Q53,NA_All!$X$5:$AS$245,3*($C$8-1)+3) -> 0.12736 | W53: =VLOOKUP($Q53,NA_All!$X$5:$AS$245,3*($C$8-1)+4) -> 0.12736 | X53: =IF(ISNA(VLOOKUP($B$6,$A$25:$E$52,IF($B$8=$A$22,3,2))),EXP(VLOOKUP($B$6,$A$25:$E$52,4)*LN(VLOOKUP($Q53,#REF!,$C$8+1)/1000)+VLOOKUP($B$6,$A$25:$E$52,5)),VLOOKUP($B$6,$A$25:$E$52,IF($B$8=$A$22,3,2))) -> 0
H54: 29 | I54: =VLOOKUP($H54,P_All!$A$5:$V$205,3*($C$8-1)+2) -> 0.1783025 | J54: =VLOOKUP($H54,P_All!$A$5:$V$205,3*($C$8-1)+3) -> 0.1831525 | K54: =VLOOKUP($H54,P_All!$A$5:$V$205,3*($C$8-1)+4) -> 0.1901883333 | L54: =VLOOKUP($H54,NA_All!$A$5:$V$205,3*($C$8-1)+2) -> 0.1037358333 | M54: =VLOOKUP($H54,NA_All!$A$5:$V$205,3*($C$8-1)+3) -> 0.1189558333 | N54: =VLOOKUP($H54,NA_All!$A$5:$V$205,3*($C$8-1)+4) -> 0.1645525 | O54: =IF(ISNA(VLOOKUP($B$6,$A$25:$E$51,IF($B$8=$A$22,3,2))),EXP(VLOOKUP($B$6,$A$25:$E$51,4)*LN(VLOOKUP($H54,#REF!,$C$8+1)/1000)+VLOOKUP($B$6,$A$25:$E$51,5)),VLOOKUP($B$6,$A$25:$E$51,IF($B$8=$A$22,3,2))) -> 0 | Q54: 2.416666667 | R54: =VLOOKUP($Q54,P_All!$X$5:$AS$245,3*($C$8-1)+2) -> 0.12745 | S54: =VLOOKUP($Q54,P_All!$X$5:$AS$245,3*($C$8-1)+3) -> 0.12746 | T54: =VLOOKUP($Q54,P_All!$X$5:$AS$245,3*($C$8-1)+4) -> 0.12746 | U54: =VLOOKUP($Q54,NA_All!$X$5:$AS$245,3*($C$8-1)+2) -> 0.12734 | V54: =VLOOKUP($Q54,NA_All!$X$5:$AS$245,3*($C$8-1)+3) -> 0.12734 | W54: =VLOOKUP($Q54,NA_All!$X$5:$AS$245,3*($C$8-1)+4) -> 0.12735 | X54: =IF(ISNA(VLOOKUP($B$6,$A$25:$E$52,IF($B$8=$A$22,3,2))),EXP(VLOOKUP($B$6,$A$25:$E$52,4)*LN(VLOOKUP($Q54,#REF!,$C$8+1)/1000)+VLOOKUP($B$6,$A$25:$E$52,5)),VLOOKUP($B$6,$A$25:$E$52,IF($B$8=$A$22,3,2))) -> 0
H55: 30 | I55: =VLOOKUP($H55,P_All!$A$5:$V$205,3*($C$8-1)+2) -> 0.1769308333 | J55: =VLOOKUP($H55,P_All!$A$5:$V$205,3*($C$8-1)+3) -> 0.1818891667 | K55: =VLOOKUP($H55,P_All!$A$5:$V$205,3*($C$8-1)+4) -> 0.1892083333 | L55: =VLOOKUP($H55,NA_All!$A$5:$V$205,3*($C$8-1)+2) -> 0.1033708333 | M55: =VLOOKUP($H55,NA_All!$A$5:$V$205,3*($C$8-1)+3) -> 0.1192641667 | N55: =VLOOKUP($H55,NA_All!$A$5:$V$205,3*($C$8-1)+4) -> 0.1647208333 | O55: =IF(ISNA(VLOOKUP($B$6,$A$25:$E$51,IF($B$8=$A$22,3,2))),EXP(VLOOKUP($B$6,$A$25:$E$51,4)*LN(VLOOKUP($H55,#REF!,$C$8+1)/1000)+VLOOKUP($B$6,$A$25:$E$51,5)),VLOOKUP($B$6,$A$25:$E$51,IF($B$8=$A$22,3,2))) -> 0 | Q55: 2.5 | R55: =VLOOKUP($Q55,P_All!$X$5:$AS$245,3*($C$8-1)+2) -> 0.12751 | S55: =VLOOKUP($Q55,P_All!$X$5:$AS$245,3*($C$8-1)+3) -> 0.12751 | T55: =VLOOKUP($Q55,P_All!$X$5:$AS$245,3*($C$8-1)+4) -> 0.12752 | U55: =VLOOKUP($Q55,NA_All!$X$5:$AS$245,3*($C$8-1)+2) -> 0.12732 | V55: =VLOOKUP($Q55,NA_All!$X$5:$AS$245,3*($C$8-1)+3) -> 0.12733 | W55: =VLOOKUP($Q55,NA_All!$X$5:$AS$245,3*($C$8-1)+4) -> 0.12734 | X55: =IF(ISNA(VLOOKUP($B$6,$A$25:$E$52,IF($B$8=$A$22,3,2))),EXP(VLOOKUP($B$6,$A$25:$E$52,4)*LN(VLOOKUP($Q55,#REF!,$C$8+1)/1000)+VLOOKUP($B$6,$A$25:$E$52,5)),VLOOKUP($B$6,$A$25:$E$52,IF($B$8=$A$22,3,2))) -> 0
H56: 31 | I56: =VLOOKUP($H56,P_All!$A$5:$V$205,3*($C$8-1)+2) -> 0.1760058333 | J56: =VLOOKUP($H56,P_All!$A$5:$V$205,3*($C$8-1)+3) -> 0.1811125 | K56: =VLOOKUP($H56,P_All!$A$5:$V$205,3*($C$8-1)+4) -> 0.1886883333 | L56: =VLOOKUP($H56,NA_All!$A$5:$V$205,3*($C$8-1)+2) -> 0.1029533333 | M56: =VLOOKUP($H56,NA_All!$A$5:$V$205,3*($C$8-1)+3) -> 0.1189258333 | N56: =VLOOKUP($H56,NA_All!$A$5:$V$205,3*($C$8-1)+4) -> 0.1656133333 | O56: =IF(ISNA(VLOOKUP($B$6,$A$25:$E$51,IF($B$8=$A$22,3,2))),EXP(VLOOKUP($B$6,$A$25:$E$51,4)*LN(VLOOKUP($H56,#REF!,$C$8+1)/1000)+VLOOKUP($B$6,$A$25:$E$51,5)),VLOOKUP($B$6,$A$25:$E$51,IF($B$8=$A$22,3,2))) -> 0 | Q56: 2.583333333 | R56: =VLOOKUP($Q56,P_All!$X$5:$AS$245,3*($C$8-1)+2) -> 0.12786 | S56: =VLOOKUP($Q56,P_All!$X$5:$AS$245,3*($C$8-1)+3) -> 0.12787 | T56: =VLOOKUP($Q56,P_All!$X$5:$AS$245,3*($C$8-1)+4) -> 0.12788 | U56: =VLOOKUP($Q56,NA_All!$X$5:$AS$245,3*($C$8-1)+2) -> 0.12752 | V56: =VLOOKUP($Q56,NA_All!$X$5:$AS$245,3*($C$8-1)+3) -> 0.12752 | W56: =VLOOKUP($Q56,NA_All!$X$5:$AS$245,3*($C$8-1)+4) -> 0.12753 | X56: =IF(ISNA(VLOOKUP($B$6,$A$25:$E$52,IF($B$8=$A$22,3,2))),EXP(VLOOKUP($B$6,$A$25:$E$52,4)*LN(VLOOKUP($Q56,#REF!,$C$8+1)/1000)+VLOOKUP($B$6,$A$25:$E$52,5)),VLOOKUP($B$6,$A$25:$E$52,IF($B$8=$A$22,3,2))) -> 0
H57: 32 | I57: =VLOOKUP($H57,P_All!$A$5:$V$205,3*($C$8-1)+2) -> 0.1753091667 | J57: =VLOOKUP($H57,P_All!$A$5:$V$205,3*($C$8-1)+3) -> 0.1804866667 | K57: =VLOOKUP($H57,P_All!$A$5:$V$205,3*($C$8-1)+4) -> 0.18832 | L57: =VLOOKUP($H57,NA_All!$A$5:$V$205,3*($C$8-1)+2) -> 0.1026 | M57: =VLOOKUP($H57,NA_All!$A$5:$V$205,3*($C$8-1)+3) -> 0.118175 | N57: =VLOOKUP($H57,NA_All!$A$5:$V$205,3*($C$8-1)+4) -> 0.1662575 | O57: =IF(ISNA(VLOOKUP($B$6,$A$25:$E$51,IF($B$8=$A$22,3,2))),EXP(VLOOKUP($B$6,$A$25:$E$51,4)*LN(VLOOKUP($H57,#REF!,$C$8+1)/1000)+VLOOKUP($B$6,$A$25:$E$51,5)),VLOOKUP($B$6,$A$25:$E$51,IF($B$8=$A$22,3,2))) -> 0 | Q57: 2.666666667 | R57: =VLOOKUP($Q57,P_All!$X$5:$AS$245,3*($C$8-1)+2) -> 0.12748 | S57: =VLOOKUP($Q57,P_All!$X$5:$AS$245,3*($C$8-1)+3) -> 0.12749 | T57: =VLOOKUP($Q57,P_All!$X$5:$AS$245,3*($C$8-1)+4) -> 0.12751 | U57: =VLOOKUP($Q57,NA_All!$X$5:$AS$245,3*($C$8-1)+2) -> 0.12726 | V57: =VLOOKUP($Q57,NA_All!$X$5:$AS$245,3*($C$8-1)+3) -> 0.12726 | W57: =VLOOKUP($Q57,NA_All!$X$5:$AS$245,3*($C$8-1)+4) -> 0.12728 | X57: =IF(ISNA(VLOOKUP($B$6,$A$25:$E$52,IF($B$8=$A$22,3,2))),EXP(VLOOKUP($B$6,$A$25:$E$52,4)*LN(VLOOKUP($Q57,#REF!,$C$8+1)/1000)+VLOOKUP($B$6,$A$25:$E$52,5)),VLOOKUP($B$6,$A$25:$E$52,IF($B$8=$A$22,3,2))) -> 0
H58: 33 | I58: =VLOOKUP($H58,P_All!$A$5:$V$205,3*($C$8-1)+2) -> 0.1749066667 | J58: =VLOOKUP($H58,P_All!$A$5:$V$205,3*($C$8-1)+3) -> 0.1803958333 | K58: =VLOOKUP($H58,P_All!$A$5:$V$205,3*($C$8-1)+4) -> 0.1885808333 | L58: =VLOOKUP($H58,NA_All!$A$5:$V$205,3*($C$8-1)+2) -> 0.10245 | M58: =VLOOKUP($H58,NA_All!$A$5:$V$205,3*($C$8-1)+3) -> 0.1182075 | N58: =VLOOKUP($H58,NA_All!$A$5:$V$205,3*($C$8-1)+4) -> 0.1680641667 | O58: =IF(ISNA(VLOOKUP($B$6,$A$25:$E$51,IF($B$8=$A$22,3,2))),EXP(VLOOKUP($B$6,$A$25:$E$51,4)*LN(VLOOKUP($H58,#REF!,$C$8+1)/1000)+VLOOKUP($B$6,$A$25:$E$51,5)),VLOOKUP($B$6,$A$25:$E$51,IF($B$8=$A$22,3,2))) -> 0 | Q58: 2.75 | R58: =VLOOKUP($Q58,P_All!$X$5:$AS$245,3*($C$8-1)+2) -> 0.12761 | S58: =VLOOKUP($Q58,P_All!$X$5:$AS$245,3*($C$8-1)+3) -> 0.12762 | T58: =VLOOKUP($Q58,P_All!$X$5:$AS$245,3*($C$8-1)+4) -> 0.12765 | U58: =VLOOKUP($Q58,NA_All!$X$5:$AS$245,3*($C$8-1)+2) -> 0.12721 | V58: =VLOOKUP($Q58,NA_All!$X$5:$AS$245,3*($C$8-1)+3) -> 0.12722 | W58: =VLOOKUP($Q58,NA_All!$X$5:$AS$245,3*($C$8-1)+4) -> 0.12724 | X58: =IF(ISNA(VLOOKUP($B$6,$A$25:$E$52,IF($B$8=$A$22,3,2))),EXP(VLOOKUP($B$6,$A$25:$E$52,4)*LN(VLOOKUP($Q58,#REF!,$C$8+1)/1000)+VLOOKUP($B$6,$A$25:$E$52,5)),VLOOKUP($B$6,$A$25:$E$52,IF($B$8=$A$22,3,2))) -> 0
H59: 34 | I59: =VLOOKUP($H59,P_All!$A$5:$V$205,3*($C$8-1)+2) -> 0.17322 | J59: =VLOOKUP($H59,P_All!$A$5:$V$205,3*($C$8-1)+3) -> 0.1794058333 | K59: =VLOOKUP($H59,P_All!$A$5:$V$205,3*($C$8-1)+4) -> 0.1891625 | L59: =VLOOKUP($H59,NA_All!$A$5:$V$205,3*($C$8-1)+2) -> 0.10215 | M59: =VLOOKUP($H59,NA_All!$A$5:$V$205,3*($C$8-1)+3) -> 0.1184508333 | N59: =VLOOKUP($H59,NA_All!$A$5:$V$205,3*($C$8-1)+4) -> 0.1681158333 | O59: =IF(ISNA(VLOOKUP($B$6,$A$25:$E$51,IF($B$8=$A$22,3,2))),EXP(VLOOKUP($B$6,$A$25:$E$51,4)*LN(VLOOKUP($H59,#REF!,$C$8+1)/1000)+VLOOKUP($B$6,$A$25:$E$51,5)),VLOOKUP($B$6,$A$25:$E$51,IF($B$8=$A$22,3,2))) -> 0 | Q59: 2.833333333 | R59: =VLOOKUP($Q59,P_All!$X$5:$AS$245,3*($C$8-1)+2) -> 0.12765 | S59: =VLOOKUP($Q59,P_All!$X$5:$AS$245,3*($C$8-1)+3) -> 0.12767 | T59: =VLOOKUP($Q59,P_All!$X$5:$AS$245,3*($C$8-1)+4) -> 0.1277 | U59: =VLOOKUP($Q59,NA_All!$X$5:$AS$245,3*($C$8-1)+2) -> 0.12716 | V59: =VLOOKUP($Q59,NA_All!$X$5:$AS$245,3*($C$8-1)+3) -> 0.12718 | W59: =VLOOKUP($Q59,NA_All!$X$5:$AS$245,3*($C$8-1)+4) -> 0.12722 | X59: =IF(ISNA(VLOOKUP($B$6,$A$25:$E$52,IF($B$8=$A$22,3,2))),EXP(VLOOKUP($B$6,$A$25:$E$52,4)*LN(VLOOKUP($Q59,#REF!,$C$8+1)/1000)+VLOOKUP($B$6,$A$25:$E$52,5)),VLOOKUP($B$6,$A$25:$E$52,IF($B$8=$A$22,3,2))) -> 0
H60: 35 | I60: =VLOOKUP($H60,P_All!$A$5:$V$205,3*($C$8-1)+2) -> 0.1670741667 | J60: =VLOOKUP($H60,P_All!$A$5:$V$205,3*($C$8-1)+3) -> 0.1744533333 | K60: =VLOOKUP($H60,P_All!$A$5:$V$205,3*($C$8-1)+4) -> 0.1868575 | L60: =VLOOKUP($H60,NA_All!$A$5:$V$205,3*($C$8-1)+2) -> 0.1018183333 | M60: =VLOOKUP($H60,NA_All!$A$5:$V$205,3*($C$8-1)+3) -> 0.1183716667 | N60: =VLOOKUP($H60,NA_All!$A$5:$V$205,3*($C$8-1)+4) -> 0.1697825 | O60: =IF(ISNA(VLOOKUP($B$6,$A$25:$E$51,IF($B$8=$A$22,3,2))),EXP(VLOOKUP($B$6,$A$25:$E$51,4)*LN(VLOOKUP($H60,#REF!,$C$8+1)/1000)+VLOOKUP($B$6,$A$25:$E$51,5)),VLOOKUP($B$6,$A$25:$E$51,IF($B$8=$A$22,3,2))) -> 0 | Q60: 2.916666667 | R60: =VLOOKUP($Q60,P_All!$X$5:$AS$245,3*($C$8-1)+2) -> 0.1254 | S60: =VLOOKUP($Q60,P_All!$X$5:$AS$245,3*($C$8-1)+3) -> 0.12543 | T60: =VLOOKUP($Q60,P_All!$X$5:$AS$245,3*($C$8-1)+4) -> 0.12546 | U60: =VLOOKUP($Q60,NA_All!$X$5:$AS$245,3*($C$8-1)+2) -> 0.12711 | V60: =VLOOKUP($Q60,NA_All!$X$5:$AS$245,3*($C$8-1)+3) -> 0.12713 | W60: =VLOOKUP($Q60,NA_All!$X$5:$AS$245,3*($C$8-1)+4) -> 0.1272 | X60: =IF(ISNA(VLOOKUP($B$6,$A$25:$E$52,IF($B$8=$A$22,3,2))),EXP(VLOOKUP($B$6,$A$25:$E$52,4)*LN(VLOOKUP($Q60,#REF!,$C$8+1)/1000)+VLOOKUP($B$6,$A$25:$E$52,5)),VLOOKUP($B$6,$A$25:$E$52,IF($B$8=$A$22,3,2))) -> 0
H61: 36 | I61: =VLOOKUP($H61,P_All!$A$5:$V$205,3*($C$8-1)+2) -> 0.1592691667 | J61: =VLOOKUP($H61,P_All!$A$5:$V$205,3*($C$8-1)+3) -> 0.1674508333 | K61: =VLOOKUP($H61,P_All!$A$5:$V$205,3*($C$8-1)+4) -> 0.1822408333 | L61: =VLOOKUP($H61,NA_All!$A$5:$V$205,3*($C$8-1)+2) -> 0.1015133333 | M61: =VLOOKUP($H61,NA_All!$A$5:$V$205,3*($C$8-1)+3) -> 0.1181658333 | N61: =VLOOKUP($H61,NA_All!$A$5:$V$205,3*($C$8-1)+4) -> 0.1707266667 | O61: =IF(ISNA(VLOOKUP($B$6,$A$25:$E$51,IF($B$8=$A$22,3,2))),EXP(VLOOKUP($B$6,$A$25:$E$51,4)*LN(VLOOKUP($H61,#REF!,$C$8+1)/1000)+VLOOKUP($B$6,$A$25:$E$51,5)),VLOOKUP($B$6,$A$25:$E$51,IF($B$8=$A$22,3,2))) -> 0 | Q61: 3 | R61: =VLOOKUP($Q61,P_All!$X$5:$AS$245,3*($C$8-1)+2) -> 0.12449 | S61: =VLOOKUP($Q61,P_All!$X$5:$AS$245,3*($C$8-1)+3) -> 0.12453 | T61: =VLOOKUP($Q61,P_All!$X$5:$AS$245,3*($C$8-1)+4) -> 0.12458 | U61: =VLOOKUP($Q61,NA_All!$X$5:$AS$245,3*($C$8-1)+2) -> 0.12703 | V61: =VLOOKUP($Q61,NA_All!$X$5:$AS$245,3*($C$8-1)+3) -> 0.12706 | W61: =VLOOKUP($Q61,NA_All!$X$5:$AS$245,3*($C$8-1)+4) -> 0.12715 | X61: =IF(ISNA(VLOOKUP($B$6,$A$25:$E$52,IF($B$8=$A$22,3,2))),EXP(VLOOKUP($B$6,$A$25:$E$52,4)*LN(VLOOKUP($Q61,#REF!,$C$8+1)/1000)+VLOOKUP($B$6,$A$25:$E$52,5)),VLOOKUP($B$6,$A$25:$E$52,IF($B$8=$A$22,3,2))) -> 0
H62: 37 | I62: =VLOOKUP($H62,P_All!$A$5:$V$205,3*($C$8-1)+2) -> 0.1556558333 | J62: =VLOOKUP($H62,P_All!$A$5:$V$205,3*($C$8-1)+3) -> 0.1636866667 | K62: =VLOOKUP($H62,P_All!$A$5:$V$205,3*($C$8-1)+4) -> 0.1790591667 | L62: =VLOOKUP($H62,NA_All!$A$5:$V$205,3*($C$8-1)+2) -> 0.1015066667 | M62: =VLOOKUP($H62,NA_All!$A$5:$V$205,3*($C$8-1)+3) -> 0.11844 | N62: =VLOOKUP($H62,NA_All!$A$5:$V$205,3*($C$8-1)+4) -> 0.17309 | O62: =IF(ISNA(VLOOKUP($B$6,$A$25:$E$51,IF($B$8=$A$22,3,2))),EXP(VLOOKUP($B$6,$A$25:$E$51,4)*LN(VLOOKUP($H62,#REF!,$C$8+1)/1000)+VLOOKUP($B$6,$A$25:$E$51,5)),VLOOKUP($B$6,$A$25:$E$51,IF($B$8=$A$22,3,2))) -> 0 | Q62: 3.083333333 | R62: =VLOOKUP($Q62,P_All!$X$5:$AS$245,3*($C$8-1)+2) -> 0.12896 | S62: =VLOOKUP($Q62,P_All!$X$5:$AS$245,3*($C$8-1)+3) -> 0.12903 | T62: =VLOOKUP($Q62,P_All!$X$5:$AS$245,3*($C$8-1)+4) -> 0.12911 | U62: =VLOOKUP($Q62,NA_All!$X$5:$AS$245,3*($C$8-1)+2) -> 0.12735 | V62: =VLOOKUP($Q62,NA_All!$X$5:$AS$245,3*($C$8-1)+3) -> 0.12738 | W62: =VLOOKUP($Q62,NA_All!$X$5:$AS$245,3*($C$8-1)+4) -> 0.12747 | X62: =IF(ISNA(VLOOKUP($B$6,$A$25:$E$52,IF($B$8=$A$22,3,2))),EXP(VLOOKUP($B$6,$A$25:$E$52,4)*LN(VLOOKUP($Q62,#REF!,$C$8+1)/1000)+VLOOKUP($B$6,$A$25:$E$52,5)),VLOOKUP($B$6,$A$25:$E$52,IF($B$8=$A$22,3,2))) -> 0
H63: 38 | I63: =VLOOKUP($H63,P_All!$A$5:$V$205,3*($C$8-1)+2) -> 0.1544241667 | J63: =VLOOKUP($H63,P_All!$A$5:$V$205,3*($C$8-1)+3) -> 0.1625666667 | K63: =VLOOKUP($H63,P_All!$A$5:$V$205,3*($C$8-1)+4) -> 0.177575 | L63: =VLOOKUP($H63,NA_All!$A$5:$V$205,3*($C$8-1)+2) -> 0.1013433333 | M63: =VLOOKUP($H63,NA_All!$A$5:$V$205,3*($C$8-1)+3) -> 0.118605 | N63: =VLOOKUP($H63,NA_All!$A$5:$V$205,3*($C$8-1)+4) -> 0.1738683333 | O63: =IF(ISNA(VLOOKUP($B$6,$A$25:$E$51,IF($B$8=$A$22,3,2))),EXP(VLOOKUP($B$6,$A$25:$E$51,4)*LN(VLOOKUP($H63,#REF!,$C$8+1)/1000)+VLOOKUP($B$6,$A$25:$E$51,5)),VLOOKUP($B$6,$A$25:$E$51,IF($B$8=$A$22,3,2))) -> 0 | Q63: 3.166666667 | R63: =VLOOKUP($Q63,P_All!$X$5:$AS$245,3*($C$8-1)+2) -> 0.12877 | S63: =VLOOKUP($Q63,P_All!$X$5:$AS$245,3*($C$8-1)+3) -> 0.12885 | T63: =VLOOKUP($Q63,P_All!$X$5:$AS$245,3*($C$8-1)+4) -> 0.12896 | U63: =VLOOKUP($Q63,NA_All!$X$5:$AS$245,3*($C$8-1)+2) -> 0.12687 | V63: =VLOOKUP($Q63,NA_All!$X$5:$AS$245,3*($C$8-1)+3) -> 0.12692 | W63: =VLOOKUP($Q63,NA_All!$X$5:$AS$245,3*($C$8-1)+4) -> 0.12705 | X63: =IF(ISNA(VLOOKUP($B$6,$A$25:$E$52,IF($B$8=$A$22,3,2))),EXP(VLOOKUP($B$6,$A$25:$E$52,4)*LN(VLOOKUP($Q63,#REF!,$C$8+1)/1000)+VLOOKUP($B$6,$A$25:$E$52,5)),VLOOKUP($B$6,$A$25:$E$52,IF($B$8=$A$22,3,2))) -> 0
H64: 39 | I64: =VLOOKUP($H64,P_All!$A$5:$V$205,3*($C$8-1)+2) -> 0.1541066667 | J64: =VLOOKUP($H64,P_All!$A$5:$V$205,3*($C$8-1)+3) -> 0.1620541667 | K64: =VLOOKUP($H64,P_All!$A$5:$V$205,3*($C$8-1)+4) -> 0.1773625 | L64: =VLOOKUP($H64,NA_All!$A$5:$V$205,3*($C$8-1)+2) -> 0.1010775 | M64: =VLOOKUP($H64,NA_All!$A$5:$V$205,3*($C$8-1)+3) -> 0.1183683333 | N64: =VLOOKUP($H64,NA_All!$A$5:$V$205,3*($C$8-1)+4) -> 0.1740691667 | O64: =IF(ISNA(VLOOKUP($B$6,$A$25:$E$51,IF($B$8=$A$22,3,2))),EXP(VLOOKUP($B$6,$A$25:$E$51,4)*LN(VLOOKUP($H64,#REF!,$C$8+1)/1000)+VLOOKUP($B$6,$A$25:$E$51,5)),VLOOKUP($B$6,$A$25:$E$51,IF($B$8=$A$22,3,2))) -> 0 | Q64: 3.25 | R64: =VLOOKUP($Q64,P_All!$X$5:$AS$245,3*($C$8-1)+2) -> 0.12945 | S64: =VLOOKUP($Q64,P_All!$X$5:$AS$245,3*($C$8-1)+3) -> 0.12957 | T64: =VLOOKUP($Q64,P_All!$X$5:$AS$245,3*($C$8-1)+4) -> 0.12972 | U64: =VLOOKUP($Q64,NA_All!$X$5:$AS$245,3*($C$8-1)+2) -> 0.12674 | V64: =VLOOKUP($Q64,NA_All!$X$5:$AS$245,3*($C$8-1)+3) -> 0.1268 | W64: =VLOOKUP($Q64,NA_All!$X$5:$AS$245,3*($C$8-1)+4) -> 0.12697 | X64: =IF(ISNA(VLOOKUP($B$6,$A$25:$E$52,IF($B$8=$A$22,3,2))),EXP(VLOOKUP($B$6,$A$25:$E$52,4)*LN(VLOOKUP($Q64,#REF!,$C$8+1)/1000)+VLOOKUP($B$6,$A$25:$E$52,5)),VLOOKUP($B$6,$A$25:$E$52,IF($B$8=$A$22,3,2))) -> 0
H65: 40 | I65: =VLOOKUP($H65,P_All!$A$5:$V$205,3*($C$8-1)+2) -> 0.1538458333 | J65: =VLOOKUP($H65,P_All!$A$5:$V$205,3*($C$8-1)+3) -> 0.16183 | K65: =VLOOKUP($H65,P_All!$A$5:$V$205,3*($C$8-1)+4) -> 0.1773208333 | L65: =VLOOKUP($H65,NA_All!$A$5:$V$205,3*($C$8-1)+2) -> 0.1007291667 | M65: =VLOOKUP($H65,NA_All!$A$5:$V$205,3*($C$8-1)+3) -> 0.1182408333 | N65: =VLOOKUP($H65,NA_All!$A$5:$V$205,3*($C$8-1)+4) -> 0.1740308333 | O65: =IF(ISNA(VLOOKUP($B$6,$A$25:$E$51,IF($B$8=$A$22,3,2))),EXP(VLOOKUP($B$6,$A$25:$E$51,4)*LN(VLOOKUP($H65,#REF!,$C$8+1)/1000)+VLOOKUP($B$6,$A$25:$E$51,5)),VLOOKUP($B$6,$A$25:$E$51,IF($B$8=$A$22,3,2))) -> 0 | Q65: 3.333333333 | R65: =VLOOKUP($Q65,P_All!$X$5:$AS$245,3*($C$8-1)+2) -> 0.12998 | S65: =VLOOKUP($Q65,P_All!$X$5:$AS$245,3*($C$8-1)+3) -> 0.13014 | T65: =VLOOKUP($Q65,P_All!$X$5:$AS$245,3*($C$8-1)+4) -> 0.13032 | U65: =VLOOKUP($Q65,NA_All!$X$5:$AS$245,3*($C$8-1)+2) -> 0.12658 | V65: =VLOOKUP($Q65,NA_All!$X$5:$AS$245,3*($C$8-1)+3) -> 0.12666 | W65: =VLOOKUP($Q65,NA_All!$X$5:$AS$245,3*($C$8-1)+4) -> 0.12688 | X65: =IF(ISNA(VLOOKUP($B$6,$A$25:$E$52,IF($B$8=$A$22,3,2))),EXP(VLOOKUP($B$6,$A$25:$E$52,4)*LN(VLOOKUP($Q65,#REF!,$C$8+1)/1000)+VLOOKUP($B$6,$A$25:$E$52,5)),VLOOKUP($B$6,$A$25:$E$52,IF($B$8=$A$22,3,2))) -> 0
H66: 41 | I66: =VLOOKUP($H66,P_All!$A$5:$V$205,3*($C$8-1)+2) -> 0.1534041667 | J66: =VLOOKUP($H66,P_All!$A$5:$V$205,3*($C$8-1)+3) -> 0.1619058333 | K66: =VLOOKUP($H66,P_All!$A$5:$V$205,3*($C$8-1)+4) -> 0.1782116667 | L66: =VLOOKUP($H66,NA_All!$A$5:$V$205,3*($C$8-1)+2) -> 0.1004158333 | M66: =VLOOKUP($H66,NA_All!$A$5:$V$205,3*($C$8-1)+3) -> 0.1183383333 | N66: =VLOOKUP($H66,NA_All!$A$5:$V$205,3*($C$8-1)+4) -> 0.1741508333 | O66: =IF(ISNA(VLOOKUP($B$6,$A$25:$E$51,IF($B$8=$A$22,3,2))),EXP(VLOOKUP($B$6,$A$25:$E$51,4)*LN(VLOOKUP($H66,#REF!,$C$8+1)/1000)+VLOOKUP($B$6,$A$25:$E$51,5)),VLOOKUP($B$6,$A$25:$E$51,IF($B$8=$A$22,3,2))) -> 0 | Q66: 3.416666667 | R66: =VLOOKUP($Q66,P_All!$X$5:$AS$245,3*($C$8-1)+2) -> 0.13039 | S66: =VLOOKUP($Q66,P_All!$X$5:$AS$245,3*($C$8-1)+3) -> 0.13061 | T66: =VLOOKUP($Q66,P_All!$X$5:$AS$245,3*($C$8-1)+4) -> 0.13084 | U66: =VLOOKUP($Q66,NA_All!$X$5:$AS$245,3*($C$8-1)+2) -> 0.12643 | V66: =VLOOKUP($Q66,NA_All!$X$5:$AS$245,3*($C$8-1)+3) -> 0.12653 | W66: =VLOOKUP($Q66,NA_All!$X$5:$AS$245,3*($C$8-1)+4) -> 0.12682 | X66: =IF(ISNA(VLOOKUP($B$6,$A$25:$E$52,IF($B$8=$A$22,3,2))),EXP(VLOOKUP($B$6,$A$25:$E$52,4)*LN(VLOOKUP($Q66,#REF!,$C$8+1)/1000)+VLOOKUP($B$6,$A$25:$E$52,5)),VLOOKUP($B$6,$A$25:$E$52,IF($B$8=$A$22,3,2))) -> 0
H67: 42 | I67: =VLOOKUP($H67,P_All!$A$5:$V$205,3*($C$8-1)+2) -> 0.1531808333 | J67: =VLOOKUP($H67,P_All!$A$5:$V$205,3*($C$8-1)+3) -> 0.1620483333 | K67: =VLOOKUP($H67,P_All!$A$5:$V$205,3*($C$8-1)+4) -> 0.1786391667 | L67: =VLOOKUP($H67,NA_All!$A$5:$V$205,3*($C$8-1)+2) -> 0.1000146667 | M67: =VLOOKUP($H67,NA_All!$A$5:$V$205,3*($C$8-1)+3) -> 0.1182241667 | N67: =VLOOKUP($H67,NA_All!$A$5:$V$205,3*($C$8-1)+4) -> 0.1734183333 | O67: =IF(ISNA(VLOOKUP($B$6,$A$25:$E$51,IF($B$8=$A$22,3,2))),EXP(VLOOKUP($B$6,$A$25:$E$51,4)*LN(VLOOKUP($H67,#REF!,$C$8+1)/1000)+VLOOKUP($B$6,$A$25:$E$51,5)),VLOOKUP($B$6,$A$25:$E$51,IF($B$8=$A$22,3,2))) -> 0 | Q67: 3.5 | R67: =VLOOKUP($Q67,P_All!$X$5:$AS$245,3*($C$8-1)+2) -> 0.13113 | S67: =VLOOKUP($Q67,P_All!$X$5:$AS$245,3*($C$8-1)+3) -> 0.1314 | T67: =VLOOKUP($Q67,P_All!$X$5:$AS$245,3*($C$8-1)+4) -> 0.13167 | U67: =VLOOKUP($Q67,NA_All!$X$5:$AS$245,3*($C$8-1)+2) -> 0.12629 | V67: =VLOOKUP($Q67,NA_All!$X$5:$AS$245,3*($C$8-1)+3) -> 0.12642 | W67: =VLOOKUP($Q67,NA_All!$X$5:$AS$245,3*($C$8-1)+4) -> 0.12678 | X67: =IF(ISNA(VLOOKUP($B$6,$A$25:$E$52,IF($B$8=$A$22,3,2))),EXP(VLOOKUP($B$6,$A$25:$E$52,4)*LN(VLOOKUP($Q67,#REF!,$C$8+1)/1000)+VLOOKUP($B$6,$A$25:$E$52,5)),VLOOKUP($B$6,$A$25:$E$52,IF($B$8=$A$22,3,2))) -> 0
H68: 43 | I68: =VLOOKUP($H68,P_All!$A$5:$V$205,3*($C$8-1)+2) -> 0.1534283333 | J68: =VLOOKUP($H68,P_All!$A$5:$V$205,3*($C$8-1)+3) -> 0.1619566667 | K68: =VLOOKUP($H68,P_All!$A$5:$V$205,3*($C$8-1)+4) -> 0.17879 | L68: =VLOOKUP($H68,NA_All!$A$5:$V$205,3*($C$8-1)+2) -> 0.0996815 | M68: =VLOOKUP($H68,NA_All!$A$5:$V$205,3*($C$8-1)+3) -> 0.1180008333 | N68: =VLOOKUP($H68,NA_All!$A$5:$V$205,3*($C$8-1)+4) -> 0.1754858333 | O68: =IF(ISNA(VLOOKUP($B$6,$A$25:$E$51,IF($B$8=$A$22,3,2))),EXP(VLOOKUP($B$6,$A$25:$E$51,4)*LN(VLOOKUP($H68,#REF!,$C$8+1)/1000)+VLOOKUP($B$6,$A$25:$E$51,5)),VLOOKUP($B$6,$A$25:$E$51,IF($B$8=$A$22,3,2))) -> 0 | Q68: 3.583333333 | R68: =VLOOKUP($Q68,P_All!$X$5:$AS$245,3*($C$8-1)+2) -> 0.1322 | S68: =VLOOKUP($Q68,P_All!$X$5:$AS$245,3*($C$8-1)+3) -> 0.13255 | T68: =VLOOKUP($Q68,P_All!$X$5:$AS$245,3*($C$8-1)+4) -> 0.13291 | U68: =VLOOKUP($Q68,NA_All!$X$5:$AS$245,3*($C$8-1)+2) -> 0.12645 | V68: =VLOOKUP($Q68,NA_All!$X$5:$AS$245,3*($C$8-1)+3) -> 0.1266 | W68: =VLOOKUP($Q68,NA_All!$X$5:$AS$245,3*($C$8-1)+4) -> 0.12702 | X68: =IF(ISNA(VLOOKUP($B$6,$A$25:$E$52,IF($B$8=$A$22,3,2))),EXP(VLOOKUP($B$6,$A$25:$E$52,4)*LN(VLOOKUP($Q68,#REF!,$C$8+1)/1000)+VLOOKUP($B$6,$A$25:$E$52,5)),VLOOKUP($B$6,$A$25:$E$52,IF($B$8=$A$22,3,2))) -> 0
H69: 44 | I69: =VLOOKUP($H69,P_All!$A$5:$V$205,3*($C$8-1)+2) -> 0.1528258333 | J69: =VLOOKUP($H69,P_All!$A$5:$V$205,3*($C$8-1)+3) -> 0.1618808333 | K69: =VLOOKUP($H69,P_All!$A$5:$V$205,3*($C$8-1)+4) -> 0.178795 | L69: =VLOOKUP($H69,NA_All!$A$5:$V$205,3*($C$8-1)+2) -> 0.09959566667 | M69: =VLOOKUP($H69,NA_All!$A$5:$V$205,3*($C$8-1)+3) -> 0.1173375 | N69: =VLOOKUP($H69,NA_All!$A$5:$V$205,3*($C$8-1)+4) -> 0.1761733333 | O69: =IF(ISNA(VLOOKUP($B$6,$A$25:$E$51,IF($B$8=$A$22,3,2))),EXP(VLOOKUP($B$6,$A$25:$E$51,4)*LN(VLOOKUP($H69,#REF!,$C$8+1)/1000)+VLOOKUP($B$6,$A$25:$E$51,5)),VLOOKUP($B$6,$A$25:$E$51,IF($B$8=$A$22,3,2))) -> 0 | Q69: 3.666666667 | R69: =VLOOKUP($Q69,P_All!$X$5:$AS$245,3*($C$8-1)+2) -> 0.11252 | S69: =VLOOKUP($Q69,P_All!$X$5:$AS$245,3*($C$8-1)+3) -> 0.11294 | T69: =VLOOKUP($Q69,P_All!$X$5:$AS$245,3*($C$8-1)+4) -> 0.11343 | U69: =VLOOKUP($Q69,NA_All!$X$5:$AS$245,3*($C$8-1)+2) -> 0.12592 | V69: =VLOOKUP($Q69,NA_All!$X$5:$AS$245,3*($C$8-1)+3) -> 0.1261 | W69: =VLOOKUP($Q69,NA_All!$X$5:$AS$245,3*($C$8-1)+4) -> 0.12661 | X69: =IF(ISNA(VLOOKUP($B$6,$A$25:$E$52,IF($B$8=$A$22,3,2))),EXP(VLOOKUP($B$6,$A$25:$E$52,4)*LN(VLOOKUP($Q69,#REF!,$C$8+1)/1000)+VLOOKUP($B$6,$A$25:$E$52,5)),VLOOKUP($B$6,$A$25:$E$52,IF($B$8=$A$22,3,2))) -> 0
H70: 45 | I70: =VLOOKUP($H70,P_All!$A$5:$V$205,3*($C$8-1)+2) -> 0.1524583333 | J70: =VLOOKUP($H70,P_All!$A$5:$V$205,3*($C$8-1)+3) -> 0.1616625 | K70: =VLOOKUP($H70,P_All!$A$5:$V$205,3*($C$8-1)+4) -> 0.1783883333 | L70: =VLOOKUP($H70,NA_All!$A$5:$V$205,3*($C$8-1)+2) -> 0.0993855 | M70: =VLOOKUP($H70,NA_All!$A$5:$V$205,3*($C$8-1)+3) -> 0.1173791667 | N70: =VLOOKUP($H70,NA_All!$A$5:$V$205,3*($C$8-1)+4) -> 0.1750525 | O70: =IF(ISNA(VLOOKUP($B$6,$A$25:$E$51,IF($B$8=$A$22,3,2))),EXP(VLOOKUP($B$6,$A$25:$E$51,4)*LN(VLOOKUP($H70,#REF!,$C$8+1)/1000)+VLOOKUP($B$6,$A$25:$E$51,5)),VLOOKUP($B$6,$A$25:$E$51,IF($B$8=$A$22,3,2))) -> 0 | Q70: 3.75 | R70: =VLOOKUP($Q70,P_All!$X$5:$AS$245,3*($C$8-1)+2) -> 0.13471 | S70: =VLOOKUP($Q70,P_All!$X$5:$AS$245,3*($C$8-1)+3) -> 0.13524 | T70: =VLOOKUP($Q70,P_All!$X$5:$AS$245,3*($C$8-1)+4) -> 0.13579 | U70: =VLOOKUP($Q70,NA_All!$X$5:$AS$245,3*($C$8-1)+2) -> 0.12575 | V70: =VLOOKUP($Q70,NA_All!$X$5:$AS$245,3*($C$8-1)+3) -> 0.12595 | W70: =VLOOKUP($Q70,NA_All!$X$5:$AS$245,3*($C$8-1)+4) -> 0.12655 | X70: =IF(ISNA(VLOOKUP($B$6,$A$25:$E$52,IF($B$8=$A$22,3,2))),EXP(VLOOKUP($B$6,$A$25:$E$52,4)*LN(VLOOKUP($Q70,#REF!,$C$8+1)/1000)+VLOOKUP($B$6,$A$25:$E$52,5)),VLOOKUP($B$6,$A$25:$E$52,IF($B$8=$A$22,3,2))) -> 0
H71: 46 | I71: =VLOOKUP($H71,P_All!$A$5:$V$205,3*($C$8-1)+2) -> 0.1525491667 | J71: =VLOOKUP($H71,P_All!$A$5:$V$205,3*($C$8-1)+3) -> 0.1615083333 | K71: =VLOOKUP($H71,P_All!$A$5:$V$205,3*($C$8-1)+4) -> 0.1783416667 | L71: =VLOOKUP($H71,NA_All!$A$5:$V$205,3*($C$8-1)+2) -> 0.09931591667 | M71: =VLOOKUP($H71,NA_All!$A$5:$V$205,3*($C$8-1)+3) -> 0.1174458333 | N71: =VLOOKUP($H71,NA_All!$A$5:$V$205,3*($C$8-1)+4) -> 0.1747708333 | O71: =IF(ISNA(VLOOKUP($B$6,$A$25:$E$51,IF($B$8=$A$22,3,2))),EXP(VLOOKUP($B$6,$A$25:$E$51,4)*LN(VLOOKUP($H71,#REF!,$C$8+1)/1000)+VLOOKUP($B$6,$A$25:$E$51,5)),VLOOKUP($B$6,$A$25:$E$51,IF($B$8=$A$22,3,2))) -> 0 | Q71: 3.833333333 | R71: =VLOOKUP($Q71,P_All!$X$5:$AS$245,3*($C$8-1)+2) -> 0.13722 | S71: =VLOOKUP($Q71,P_All!$X$5:$AS$245,3*($C$8-1)+3) -> 0.13788 | T71: =VLOOKUP($Q71,P_All!$X$5:$AS$245,3*($C$8-1)+4) -> 0.13854 | U71: =VLOOKUP($Q71,NA_All!$X$5:$AS$245,3*($C$8-1)+2) -> 0.12558 | V71: =VLOOKUP($Q71,NA_All!$X$5:$AS$245,3*($C$8-1)+3) -> 0.12582 | W71: =VLOOKUP($Q71,NA_All!$X$5:$AS$245,3*($C$8-1)+4) -> 0.12654 | X71: =IF(ISNA(VLOOKUP($B$6,$A$25:$E$52,IF($B$8=$A$22,3,2))),EXP(VLOOKUP($B$6,$A$25:$E$52,4)*LN(VLOOKUP($Q71,#REF!,$C$8+1)/1000)+VLOOKUP($B$6,$A$25:$E$52,5)),VLOOKUP($B$6,$A$25:$E$52,IF($B$8=$A$22,3,2))) -> 0
H72: 47 | I72: =VLOOKUP($H72,P_All!$A$5:$V$205,3*($C$8-1)+2) -> 0.152315 | J72: =VLOOKUP($H72,P_All!$A$5:$V$205,3*($C$8-1)+3) -> 0.1614341667 | K72: =VLOOKUP($H72,P_All!$A$5:$V$205,3*($C$8-1)+4) -> 0.1785666667 | L72: =VLOOKUP($H72,NA_All!$A$5:$V$205,3*($C$8-1)+2) -> 0.09903958333 | M72: =VLOOKUP($H72,NA_All!$A$5:$V$205,3*($C$8-1)+3) -> 0.1179016667 | N72: =VLOOKUP($H72,NA_All!$A$5:$V$205,3*($C$8-1)+4) -> 0.17549 | O72: =IF(ISNA(VLOOKUP($B$6,$A$25:$E$51,IF($B$8=$A$22,3,2))),EXP(VLOOKUP($B$6,$A$25:$E$51,4)*LN(VLOOKUP($H72,#REF!,$C$8+1)/1000)+VLOOKUP($B$6,$A$25:$E$51,5)),VLOOKUP($B$6,$A$25:$E$51,IF($B$8=$A$22,3,2))) -> 0 | Q72: 3.916666667 | R72: =VLOOKUP($Q72,P_All!$X$5:$AS$245,3*($C$8-1)+2) -> 0.13986 | S72: =VLOOKUP($Q72,P_All!$X$5:$AS$245,3*($C$8-1)+3) -> 0.14066 | T72: =VLOOKUP($Q72,P_All!$X$5:$AS$245,3*($C$8-1)+4) -> 0.14143 | U72: =VLOOKUP($Q72,NA_All!$X$5:$AS$245,3*($C$8-1)+2) -> 0.12538 | V72: =VLOOKUP($Q72,NA_All!$X$5:$AS$245,3*($C$8-1)+3) -> 0.12566 | W72: =VLOOKUP($Q72,NA_All!$X$5:$AS$245,3*($C$8-1)+4) -> 0.1265 | X72: =IF(ISNA(VLOOKUP($B$6,$A$25:$E$52,IF($B$8=$A$22,3,2))),EXP(VLOOKUP($B$6,$A$25:$E$52,4)*LN(VLOOKUP($Q72,#REF!,$C$8+1)/1000)+VLOOKUP($B$6,$A$25:$E$52,5)),VLOOKUP($B$6,$A$25:$E$52,IF($B$8=$A$22,3,2))) -> 0
H73: 48 | I73: =VLOOKUP($H73,P_All!$A$5:$V$205,3*($C$8-1)+2) -> 0.1524383333 | J73: =VLOOKUP($H73,P_All!$A$5:$V$205,3*($C$8-1)+3) -> 0.1613458333 | K73: =VLOOKUP($H73,P_All!$A$5:$V$205,3*($C$8-1)+4) -> 0.1781491667 | L73: =VLOOKUP($H73,NA_All!$A$5:$V$205,3*($C$8-1)+2) -> 0.09893 | M73: =VLOOKUP($H73,NA_All!$A$5:$V$205,3*($C$8-1)+3) -> 0.1182216667 | N73: =VLOOKUP($H73,NA_All!$A$5:$V$205,3*($C$8-1)+4) -> 0.1757783333 | O73: =IF(ISNA(VLOOKUP($B$6,$A$25:$E$51,IF($B$8=$A$22,3,2))),EXP(VLOOKUP($B$6,$A$25:$E$51,4)*LN(VLOOKUP($H73,#REF!,$C$8+1)/1000)+VLOOKUP($B$6,$A$25:$E$51,5)),VLOOKUP($B$6,$A$25:$E$51,IF($B$8=$A$22,3,2))) -> 0 | Q73: 4 | R73: =VLOOKUP($Q73,P_All!$X$5:$AS$245,3*($C$8-1)+2) -> 0.14258 | S73: =VLOOKUP($Q73,P_All!$X$5:$AS$245,3*($C$8-1)+3) -> 0.14354 | T73: =VLOOKUP($Q73,P_All!$X$5:$AS$245,3*($C$8-1)+4) -> 0.14443 | U73: =VLOOKUP($Q73,NA_All!$X$5:$AS$245,3*($C$8-1)+2) -> 0.12509 | V73: =VLOOKUP($Q73,NA_All!$X$5:$AS$245,3*($C$8-1)+3) -> 0.12543 | W73: =VLOOKUP($Q73,NA_All!$X$5:$AS$245,3*($C$8-1)+4) -> 0.12641 | X73: =IF(ISNA(VLOOKUP($B$6,$A$25:$E$52,IF($B$8=$A$22,3,2))),EXP(VLOOKUP($B$6,$A$25:$E$52,4)*LN(VLOOKUP($Q73,#REF!,$C$8+1)/1000)+VLOOKUP($B$6,$A$25:$E$52,5)),VLOOKUP($B$6,$A$25:$E$52,IF($B$8=$A$22,3,2))) -> 0
H74: 49 | I74: =VLOOKUP($H74,P_All!$A$5:$V$205,3*($C$8-1)+2) -> 0.1523933333 | J74: =VLOOKUP($H74,P_All!$A$5:$V$205,3*($C$8-1)+3) -> 0.1615225 | K74: =VLOOKUP($H74,P_All!$A$5:$V$205,3*($C$8-1)+4) -> 0.1783825 | L74: =VLOOKUP($H74,NA_All!$A$5:$V$205,3*($C$8-1)+2) -> 0.09883808333 | M74: =VLOOKUP($H74,NA_All!$A$5:$V$205,3*($C$8-1)+3) -> 0.1182491667 | N74: =VLOOKUP($H74,NA_All!$A$5:$V$205,3*($C$8-1)+4) -> 0.17525 | O74: =IF(ISNA(VLOOKUP($B$6,$A$25:$E$51,IF($B$8=$A$22,3,2))),EXP(VLOOKUP($B$6,$A$25:$E$51,4)*LN(VLOOKUP($H74,#REF!,$C$8+1)/1000)+VLOOKUP($B$6,$A$25:$E$51,5)),VLOOKUP($B$6,$A$25:$E$51,IF($B$8=$A$22,3,2))) -> 0 | Q74: 4.083333333 | R74: =VLOOKUP($Q74,P_All!$X$5:$AS$245,3*($C$8-1)+2) -> 0.14504 | S74: =VLOOKUP($Q74,P_All!$X$5:$AS$245,3*($C$8-1)+3) -> 0.14619 | T74: =VLOOKUP($Q74,P_All!$X$5:$AS$245,3*($C$8-1)+4) -> 0.14723 | U74: =VLOOKUP($Q74,NA_All!$X$5:$AS$245,3*($C$8-1)+2) -> 0.12457 | V74: =VLOOKUP($Q74,NA_All!$X$5:$AS$245,3*($C$8-1)+3) -> 0.12497 | W74: =VLOOKUP($Q74,NA_All!$X$5:$AS$245,3*($C$8-1)+4) -> 0.12611 | X74: =IF(ISNA(VLOOKUP($B$6,$A$25:$E$52,IF($B$8=$A$22,3,2))),EXP(VLOOKUP($B$6,$A$25:$E$52,4)*LN(VLOOKUP($Q74,#REF!,$C$8+1)/1000)+VLOOKUP($B$6,$A$25:$E$52,5)),VLOOKUP($B$6,$A$25:$E$52,IF($B$8=$A$22,3,2))) -> 0
H75: 50 | I75: =VLOOKUP($H75,P_All!$A$5:$V$205,3*($C$8-1)+2) -> 0.1523916667 | J75: =VLOOKUP($H75,P_All!$A$5:$V$205,3*($C$8-1)+3) -> 0.1618233333 | K75: =VLOOKUP($H75,P_All!$A$5:$V$205,3*($C$8-1)+4) -> 0.178225 | L75: =VLOOKUP($H75,NA_All!$A$5:$V$205,3*($C$8-1)+2) -> 0.09864075 | M75: =VLOOKUP($H75,NA_All!$A$5:$V$205,3*($C$8-1)+3) -> 0.1179891667 | N75: =VLOOKUP($H75,NA_All!$A$5:$V$205,3*($C$8-1)+4) -> 0.1760141667 | O75: =IF(ISNA(VLOOKUP($B$6,$A$25:$E$51,IF($B$8=$A$22,3,2))),EXP(VLOOKUP($B$6,$A$25:$E$51,4)*LN(VLOOKUP($H75,#REF!,$C$8+1)/1000)+VLOOKUP($B$6,$A$25:$E$51,5)),VLOOKUP($B$6,$A$25:$E$51,IF($B$8=$A$22,3,2))) -> 0 | Q75: 4.166666667 | R75: =VLOOKUP($Q75,P_All!$X$5:$AS$245,3*($C$8-1)+2) -> 0.1485 | S75: =VLOOKUP($Q75,P_All!$X$5:$AS$245,3*($C$8-1)+3) -> 0.14986 | T75: =VLOOKUP($Q75,P_All!$X$5:$AS$245,3*($C$8-1)+4) -> 0.15106 | U75: =VLOOKUP($Q75,NA_All!$X$5:$AS$245,3*($C$8-1)+2) -> 0.12462 | V75: =VLOOKUP($Q75,NA_All!$X$5:$AS$245,3*($C$8-1)+3) -> 0.12507 | W75: =VLOOKUP($Q75,NA_All!$X$5:$AS$245,3*($C$8-1)+4) -> 0.12637 | X75: =IF(ISNA(VLOOKUP($B$6,$A$25:$E$52,IF($B$8=$A$22,3,2))),EXP(VLOOKUP($B$6,$A$25:$E$52,4)*LN(VLOOKUP($Q75,#REF!,$C$8+1)/1000)+VLOOKUP($B$6,$A$25:$E$52,5)),VLOOKUP($B$6,$A$25:$E$52,IF($B$8=$A$22,3,2))) -> 0
H76: 51 | I76: =VLOOKUP($H76,P_All!$A$5:$V$205,3*($C$8-1)+2) -> 0.1527716667 | J76: =VLOOKUP($H76,P_All!$A$5:$V$205,3*($C$8-1)+3) -> 0.1615966667 | K76: =VLOOKUP($H76,P_All!$A$5:$V$205,3*($C$8-1)+4) -> 0.17849 | L76: =VLOOKUP($H76,NA_All!$A$5:$V$205,3*($C$8-1)+2) -> 0.09840416667 | M76: =VLOOKUP($H76,NA_All!$A$5:$V$205,3*($C$8-1)+3) -> 0.1173516667 | N76: =VLOOKUP($H76,NA_All!$A$5:$V$205,3*($C$8-1)+4) -> 0.1755933333 | O76: =IF(ISNA(VLOOKUP($B$6,$A$25:$E$51,IF($B$8=$A$22,3,2))),EXP(VLOOKUP($B$6,$A$25:$E$51,4)*LN(VLOOKUP($H76,#REF!,$C$8+1)/1000)+VLOOKUP($B$6,$A$25:$E$51,5)),VLOOKUP($B$6,$A$25:$E$51,IF($B$8=$A$22,3,2))) -> 0 | Q76: 4.25 | R76: =VLOOKUP($Q76,P_All!$X$5:$AS$245,3*($C$8-1)+2) -> 0.15167 | S76: =VLOOKUP($Q76,P_All!$X$5:$AS$245,3*($C$8-1)+3) -> 0.15324 | T76: =VLOOKUP($Q76,P_All!$X$5:$AS$245,3*($C$8-1)+4) -> 0.15459 | U76: =VLOOKUP($Q76,NA_All!$X$5:$AS$245,3*($C$8-1)+2) -> 0.12449 | V76: =VLOOKUP($Q76,NA_All!$X$5:$AS$245,3*($C$8-1)+3) -> 0.125 | W76: =VLOOKUP($Q76,NA_All!$X$5:$AS$245,3*($C$8-1)+4) -> 0.12645 | X76: =IF(ISNA(VLOOKUP($B$6,$A$25:$E$52,IF($B$8=$A$22,3,2))),EXP(VLOOKUP($B$6,$A$25:$E$52,4)*LN(VLOOKUP($Q76,#REF!,$C$8+1)/1000)+VLOOKUP($B$6,$A$25:$E$52,5)),VLOOKUP($B$6,$A$25:$E$52,IF($B$8=$A$22,3,2))) -> 0
H77: 52 | I77: =VLOOKUP($H77,P_All!$A$5:$V$205,3*($C$8-1)+2) -> 0.152945 | J77: =VLOOKUP($H77,P_All!$A$5:$V$205,3*($C$8-1)+3) -> 0.1613866667 | K77: =VLOOKUP($H77,P_All!$A$5:$V$205,3*($C$8-1)+4) -> 0.1783616667 | L77: =VLOOKUP($H77,NA_All!$A$5:$V$205,3*($C$8-1)+2) -> 0.09821208333 | M77: =VLOOKUP($H77,NA_All!$A$5:$V$205,3*($C$8-1)+3) -> 0.1169683333 | N77: =VLOOKUP($H77,NA_All!$A$5:$V$205,3*($C$8-1)+4) -> 0.1748116667 | O77: =IF(ISNA(VLOOKUP($B$6,$A$25:$E$51,IF($B$8=$A$22,3,2))),EXP(VLOOKUP($B$6,$A$25:$E$51,4)*LN(VLOOKUP($H77,#REF!,$C$8+1)/1000)+VLOOKUP($B$6,$A$25:$E$51,5)),VLOOKUP($B$6,$A$25:$E$51,IF($B$8=$A$22,3,2))) -> 0 | Q77: 4.333333333 | R77: =VLOOKUP($Q77,P_All!$X$5:$AS$245,3*($C$8-1)+2) -> 0.13356 | S77: =VLOOKUP($Q77,P_All!$X$5:$AS$245,3*($C$8-1)+3) -> 0.13534 | T77: =VLOOKUP($Q77,P_All!$X$5:$AS$245,3*($C$8-1)+4) -> 0.13695 | U77: =VLOOKUP($Q77,NA_All!$X$5:$AS$245,3*($C$8-1)+2) -> 0.12415 | V77: =VLOOKUP($Q77,NA_All!$X$5:$AS$245,3*($C$8-1)+3) -> 0.12469 | W77: =VLOOKUP($Q77,NA_All!$X$5:$AS$245,3*($C$8-1)+4) -> 0.12632 | X77: =IF(ISNA(VLOOKUP($B$6,$A$25:$E$52,IF($B$8=$A$22,3,2))),EXP(VLOOKUP($B$6,$A$25:$E$52,4)*LN(VLOOKUP($Q77,#REF!,$C$8+1)/1000)+VLOOKUP($B$6,$A$25:$E$52,5)),VLOOKUP($B$6,$A$25:$E$52,IF($B$8=$A$22,3,2))) -> 0
H78: 53 | I78: =VLOOKUP($H78,P_All!$A$5:$V$205,3*($C$8-1)+2) -> 0.1529408333 | J78: =VLOOKUP($H78,P_All!$A$5:$V$205,3*($C$8-1)+3) -> 0.1612016667 | K78: =VLOOKUP($H78,P_All!$A$5:$V$205,3*($C$8-1)+4) -> 0.17881 | L78: =VLOOKUP($H78,NA_All!$A$5:$V$205,3*($C$8-1)+2) -> 0.09830325 | M78: =VLOOKUP($H78,NA_All!$A$5:$V$205,3*($C$8-1)+3) -> 0.1165066667 | N78: =VLOOKUP($H78,NA_All!$A$5:$V$205,3*($C$8-1)+4) -> 0.1741833333 | O78: =IF(ISNA(VLOOKUP($B$6,$A$25:$E$51,IF($B$8=$A$22,3,2))),EXP(VLOOKUP($B$6,$A$25:$E$51,4)*LN(VLOOKUP($H78,#REF!,$C$8+1)/1000)+VLOOKUP($B$6,$A$25:$E$51,5)),VLOOKUP($B$6,$A$25:$E$51,IF($B$8=$A$22,3,2))) -> 0 | Q78: 4.416666667 | R78: =VLOOKUP($Q78,P_All!$X$5:$AS$245,3*($C$8-1)+2) -> 0.14561 | S78: =VLOOKUP($Q78,P_All!$X$5:$AS$245,3*($C$8-1)+3) -> 0.14769 | T78: =VLOOKUP($Q78,P_All!$X$5:$AS$245,3*($C$8-1)+4) -> 0.14942 | U78: =VLOOKUP($Q78,NA_All!$X$5:$AS$245,3*($C$8-1)+2) -> 0.12391 | V78: =VLOOKUP($Q78,NA_All!$X$5:$AS$245,3*($C$8-1)+3) -> 0.12451 | W78: =VLOOKUP($Q78,NA_All!$X$5:$AS$245,3*($C$8-1)+4) -> 0.12631 | X78: =IF(ISNA(VLOOKUP($B$6,$A$25:$E$52,IF($B$8=$A$22,3,2))),EXP(VLOOKUP($B$6,$A$25:$E$52,4)*LN(VLOOKUP($Q78,#REF!,$C$8+1)/1000)+VLOOKUP($B$6,$A$25:$E$52,5)),VLOOKUP($B$6,$A$25:$E$52,IF($B$8=$A$22,3,2))) -> 0
H79: 54 | I79: =VLOOKUP($H79,P_All!$A$5:$V$205,3*($C$8-1)+2) -> 0.1523441667 | J79: =VLOOKUP($H79,P_All!$A$5:$V$205,3*($C$8-1)+3) -> 0.1613241667 | K79: =VLOOKUP($H79,P_All!$A$5:$V$205,3*($C$8-1)+4) -> 0.17914 | L79: =VLOOKUP($H79,NA_All!$A$5:$V$205,3*($C$8-1)+2) -> 0.09832525 | M79: =VLOOKUP($H79,NA_All!$A$5:$V$205,3*($C$8-1)+3) -> 0.1162741667 | N79: =VLOOKUP($H79,NA_All!$A$5:$V$205,3*($C$8-1)+4) -> 0.1735658333 | O79: =IF(ISNA(VLOOKUP($B$6,$A$25:$E$51,IF($B$8=$A$22,3,2))),EXP(VLOOKUP($B$6,$A$25:$E$51,4)*LN(VLOOKUP($H79,#REF!,$C$8+1)/1000)+VLOOKUP($B$6,$A$25:$E$51,5)),VLOOKUP($B$6,$A$25:$E$51,IF($B$8=$A$22,3,2))) -> 0 | Q79: 4.5 | R79: =VLOOKUP($Q79,P_All!$X$5:$AS$245,3*($C$8-1)+2) -> 0.16655 | S79: =VLOOKUP($Q79,P_All!$X$5:$AS$245,3*($C$8-1)+3) -> 0.16891 | T79: =VLOOKUP($Q79,P_All!$X$5:$AS$245,3*($C$8-1)+4) -> 0.17075 | U79: =VLOOKUP($Q79,NA_All!$X$5:$AS$245,3*($C$8-1)+2) -> 0.12377 | V79: =VLOOKUP($Q79,NA_All!$X$5:$AS$245,3*($C$8-1)+3) -> 0.12445 | W79: =VLOOKUP($Q79,NA_All!$X$5:$AS$245,3*($C$8-1)+4) -> 0.12643 | X79: =IF(ISNA(VLOOKUP($B$6,$A$25:$E$52,IF($B$8=$A$22,3,2))),EXP(VLOOKUP($B$6,$A$25:$E$52,4)*LN(VLOOKUP($Q79,#REF!,$C$8+1)/1000)+VLOOKUP($B$6,$A$25:$E$52,5)),VLOOKUP($B$6,$A$25:$E$52,IF($B$8=$A$22,3,2))) -> 0
H80: 55 | I80: =VLOOKUP($H80,P_All!$A$5:$V$205,3*($C$8-1)+2) -> 0.1522666667 | J80: =VLOOKUP($H80,P_All!$A$5:$V$205,3*($C$8-1)+3) -> 0.1614691667 | K80: =VLOOKUP($H80,P_All!$A$5:$V$205,3*($C$8-1)+4) -> 0.1795791667 | L80: =VLOOKUP($H80,NA_All!$A$5:$V$205,3*($C$8-1)+2) -> 0.09810983333 | M80: =VLOOKUP($H80,NA_All!$A$5:$V$205,3*($C$8-1)+3) -> 0.1164775 | N80: =VLOOKUP($H80,NA_All!$A$5:$V$205,3*($C$8-1)+4) -> 0.1742858333 | O80: =IF(ISNA(VLOOKUP($B$6,$A$25:$E$51,IF($B$8=$A$22,3,2))),EXP(VLOOKUP($B$6,$A$25:$E$51,4)*LN(VLOOKUP($H80,#REF!,$C$8+1)/1000)+VLOOKUP($B$6,$A$25:$E$51,5)),VLOOKUP($B$6,$A$25:$E$51,IF($B$8=$A$22,3,2))) -> 0 | Q80: 4.583333333 | R80: =VLOOKUP($Q80,P_All!$X$5:$AS$245,3*($C$8-1)+2) -> 0.17243 | S80: =VLOOKUP($Q80,P_All!$X$5:$AS$245,3*($C$8-1)+3) -> 0.17511 | T80: =VLOOKUP($Q80,P_All!$X$5:$AS$245,3*($C$8-1)+4) -> 0.17719 | U80: =VLOOKUP($Q80,NA_All!$X$5:$AS$245,3*($C$8-1)+2) -> 0.12296 | V80: =VLOOKUP($Q80,NA_All!$X$5:$AS$245,3*($C$8-1)+3) -> 0.12372 | W80: =VLOOKUP($Q80,NA_All!$X$5:$AS$245,3*($C$8-1)+4) -> 0.12595 | X80: =IF(ISNA(VLOOKUP($B$6,$A$25:$E$52,IF($B$8=$A$22,3,2))),EXP(VLOOKUP($B$6,$A$25:$E$52,4)*LN(VLOOKUP($Q80,#REF!,$C$8+1)/1000)+VLOOKUP($B$6,$A$25:$E$52,5)),VLOOKUP($B$6,$A$25:$E$52,IF($B$8=$A$22,3,2))) -> 0
H81: 56 | I81: =VLOOKUP($H81,P_All!$A$5:$V$205,3*($C$8-1)+2) -> 0.1520466667 | J81: =VLOOKUP($H81,P_All!$A$5:$V$205,3*($C$8-1)+3) -> 0.161645 | K81: =VLOOKUP($H81,P_All!$A$5:$V$205,3*($C$8-1)+4) -> 0.1795366667 | L81: =VLOOKUP($H81,NA_All!$A$5:$V$205,3*($C$8-1)+2) -> 0.09805841667 | M81: =VLOOKUP($H81,NA_All!$A$5:$V$205,3*($C$8-1)+3) -> 0.1159016667 | N81: =VLOOKUP($H81,NA_All!$A$5:$V$205,3*($C$8-1)+4) -> 0.1746858333 | O81: =IF(ISNA(VLOOKUP($B$6,$A$25:$E$51,IF($B$8=$A$22,3,2))),EXP(VLOOKUP($B$6,$A$25:$E$51,4)*LN(VLOOKUP($H81,#REF!,$C$8+1)/1000)+VLOOKUP($B$6,$A$25:$E$51,5)),VLOOKUP($B$6,$A$25:$E$51,IF($B$8=$A$22,3,2))) -> 0 | Q81: 4.666666667 | R81: =VLOOKUP($Q81,P_All!$X$5:$AS$245,3*($C$8-1)+2) -> 0.18111 | S81: =VLOOKUP($Q81,P_All!$X$5:$AS$245,3*($C$8-1)+3) -> 0.184 | T81: =VLOOKUP($Q81,P_All!$X$5:$AS$245,3*($C$8-1)+4) -> 0.18622 | U81: =VLOOKUP($Q81,NA_All!$X$5:$AS$245,3*($C$8-1)+2) -> 0.12332 | V81: =VLOOKUP($Q81,NA_All!$X$5:$AS$245,3*($C$8-1)+3) -> 0.12418 | W81: =VLOOKUP($Q81,NA_All!$X$5:$AS$245,3*($C$8-1)+4) -> 0.12656 | X81: =IF(ISNA(VLOOKUP($B$6,$A$25:$E$52,IF($B$8=$A$22,3,2))),EXP(VLOOKUP($B$6,$A$25:$E$52,4)*LN(VLOOKUP($Q81,#REF!,$C$8+1)/1000)+VLOOKUP($B$6,$A$25:$E$52,5)),VLOOKUP($B$6,$A$25:$E$52,IF($B$8=$A$22,3,2))) -> 0
H82: 57 | I82: =VLOOKUP($H82,P_All!$A$5:$V$205,3*($C$8-1)+2) -> 0.1518125 | J82: =VLOOKUP($H82,P_All!$A$5:$V$205,3*($C$8-1)+3) -> 0.1615225 | K82: =VLOOKUP($H82,P_All!$A$5:$V$205,3*($C$8-1)+4) -> 0.1794475 | L82: =VLOOKUP($H82,NA_All!$A$5:$V$205,3*($C$8-1)+2) -> 0.09793508333 | M82: =VLOOKUP($H82,NA_All!$A$5:$V$205,3*($C$8-1)+3) -> 0.1157008333 | N82: =VLOOKUP($H82,NA_All!$A$5:$V$205,3*($C$8-1)+4) -> 0.1766325 | O82: =IF(ISNA(VLOOKUP($B$6,$A$25:$E$51,IF($B$8=$A$22,3,2))),EXP(VLOOKUP($B$6,$A$25:$E$51,4)*LN(VLOOKUP($H82,#REF!,$C$8+1)/1000)+VLOOKUP($B$6,$A$25:$E$51,5)),VLOOKUP($B$6,$A$25:$E$51,IF($B$8=$A$22,3,2))) -> 0 | Q82: 4.75 | R82: =VLOOKUP($Q82,P_All!$X$5:$AS$245,3*($C$8-1)+2) -> 0.18807 | S82: =VLOOKUP($Q82,P_All!$X$5:$AS$245,3*($C$8-1)+3) -> 0.19127 | T82: =VLOOKUP($Q82,P_All!$X$5:$AS$245,3*($C$8-1)+4) -> 0.19369 | U82: =VLOOKUP($Q82,NA_All!$X$5:$AS$245,3*($C$8-1)+2) -> 0.12306 | V82: =VLOOKUP($Q82,NA_All!$X$5:$AS$245,3*($C$8-1)+3) -> 0.12397 | W82: =VLOOKUP($Q82,NA_All!$X$5:$AS$245,3*($C$8-1)+4) -> 0.12658 | X82: =IF(ISNA(VLOOKUP($B$6,$A$25:$E$52,IF($B$8=$A$22,3,2))),EXP(VLOOKUP($B$6,$A$25:$E$52,4)*LN(VLOOKUP($Q82,#REF!,$C$8+1)/1000)+VLOOKUP($B$6,$A$25:$E$52,5)),VLOOKUP($B$6,$A$25:$E$52,IF($B$8=$A$22,3,2))) -> 0
H83: 58 | I83: =VLOOKUP($H83,P_All!$A$5:$V$205,3*($C$8-1)+2) -> 0.1516125 | J83: =VLOOKUP($H83,P_All!$A$5:$V$205,3*($C$8-1)+3) -> 0.1614758333 | K83: =VLOOKUP($H83,P_All!$A$5:$V$205,3*($C$8-1)+4) -> 0.1787616667 | L83: =VLOOKUP($H83,NA_All!$A$5:$V$205,3*($C$8-1)+2) -> 0.09766325 | M83: =VLOOKUP($H83,NA_All!$A$5:$V$205,3*($C$8-1)+3) -> 0.1157191667 | N83: =VLOOKUP($H83,NA_All!$A$5:$V$205,3*($C$8-1)+4) -> 0.176635 | O83: =IF(ISNA(VLOOKUP($B$6,$A$25:$E$51,IF($B$8=$A$22,3,2))),EXP(VLOOKUP($B$6,$A$25:$E$51,4)*LN(VLOOKUP($H83,#REF!,$C$8+1)/1000)+VLOOKUP($B$6,$A$25:$E$51,5)),VLOOKUP($B$6,$A$25:$E$51,IF($B$8=$A$22,3,2))) -> 0 | Q83: 4.833333333 | R83: =VLOOKUP($Q83,P_All!$X$5:$AS$245,3*($C$8-1)+2) -> 0.1955 | S83: =VLOOKUP($Q83,P_All!$X$5:$AS$245,3*($C$8-1)+3) -> 0.19902 | T83: =VLOOKUP($Q83,P_All!$X$5:$AS$245,3*($C$8-1)+4) -> 0.20168 | U83: =VLOOKUP($Q83,NA_All!$X$5:$AS$245,3*($C$8-1)+2) -> 0.12292 | V83: =VLOOKUP($Q83,NA_All!$X$5:$AS$245,3*($C$8-1)+3) -> 0.12392 | W83: =VLOOKUP($Q83,NA_All!$X$5:$AS$245,3*($C$8-1)+4) -> 0.12672 | X83: =IF(ISNA(VLOOKUP($B$6,$A$25:$E$52,IF($B$8=$A$22,3,2))),EXP(VLOOKUP($B$6,$A$25:$E$52,4)*LN(VLOOKUP($Q83,#REF!,$C$8+1)/1000)+VLOOKUP($B$6,$A$25:$E$52,5)),VLOOKUP($B$6,$A$25:$E$52,IF($B$8=$A$22,3,2))) -> 0
H84: 59 | I84: =VLOOKUP($H84,P_All!$A$5:$V$205,3*($C$8-1)+2) -> 0.1517666667 | J84: =VLOOKUP($H84,P_All!$A$5:$V$205,3*($C$8-1)+3) -> 0.1611825 | K84: =VLOOKUP($H84,P_All!$A$5:$V$205,3*($C$8-1)+4) -> 0.1787491667 | L84: =VLOOKUP($H84,NA_All!$A$5:$V$205,3*($C$8-1)+2) -> 0.09748591667 | M84: =VLOOKUP($H84,NA_All!$A$5:$V$205,3*($C$8-1)+3) -> 0.1158091667 | N84: =VLOOKUP($H84,NA_All!$A$5:$V$205,3*($C$8-1)+4) -> 0.1752941667 | O84: =IF(ISNA(VLOOKUP($B$6,$A$25:$E$51,IF($B$8=$A$22,3,2))),EXP(VLOOKUP($B$6,$A$25:$E$51,4)*LN(VLOOKUP($H84,#REF!,$C$8+1)/1000)+VLOOKUP($B$6,$A$25:$E$51,5)),VLOOKUP($B$6,$A$25:$E$51,IF($B$8=$A$22,3,2))) -> 0 | Q84: 4.916666667 | R84: =VLOOKUP($Q84,P_All!$X$5:$AS$245,3*($C$8-1)+2) -> 0.1955 | S84: =VLOOKUP($Q84,P_All!$X$5:$AS$245,3*($C$8-1)+3) -> 0.19902 | T84: =VLOOKUP($Q84,P_All!$X$5:$AS$245,3*($C$8-1)+4) -> 0.20168 | U84: =VLOOKUP($Q84,NA_All!$X$5:$AS$245,3*($C$8-1)+2) -> 0.12292 | V84: =VLOOKUP($Q84,NA_All!$X$5:$AS$245,3*($C$8-1)+3) -> 0.12392 | W84: =VLOOKUP($Q84,NA_All!$X$5:$AS$245,3*($C$8-1)+4) -> 0.12672 | X84: =IF(ISNA(VLOOKUP($B$6,$A$25:$E$52,IF($B$8=$A$22,3,2))),EXP(VLOOKUP($B$6,$A$25:$E$52,4)*LN(VLOOKUP($Q84,#REF!,$C$8+1)/1000)+VLOOKUP($B$6,$A$25:$E$52,5)),VLOOKUP($B$6,$A$25:$E$52,IF($B$8=$A$22,3,2))) -> 0
H85: 60 | I85: =VLOOKUP($H85,P_All!$A$5:$V$205,3*($C$8-1)+2) -> 0.1521991667 | J85: =VLOOKUP($H85,P_All!$A$5:$V$205,3*($C$8-1)+3) -> 0.1610258333 | K85: =VLOOKUP($H85,P_All!$A$5:$V$205,3*($C$8-1)+4) -> 0.1789991667 | L85: =VLOOKUP($H85,NA_All!$A$5:$V$205,3*($C$8-1)+2) -> 0.09726075 | M85: =VLOOKUP($H85,NA_All!$A$5:$V$205,3*($C$8-1)+3) -> 0.1157783333 | N85: =VLOOKUP($H85,NA_All!$A$5:$V$205,3*($C$8-1)+4) -> 0.1751691667 | O85: =IF(ISNA(VLOOKUP($B$6,$A$25:$E$51,IF($B$8=$A$22,3,2))),EXP(VLOOKUP($B$6,$A$25:$E$51,4)*LN(VLOOKUP($H85,#REF!,$C$8+1)/1000)+VLOOKUP($B$6,$A$25:$E$51,5)),VLOOKUP($B$6,$A$25:$E$51,IF($B$8=$A$22,3,2))) -> 0 | Q85: 5 | R85: =VLOOKUP($Q85,P_All!$X$5:$AS$245,3*($C$8-1)+2) -> 0.20327 | S85: =VLOOKUP($Q85,P_All!$X$5:$AS$245,3*($C$8-1)+3) -> 0.20708 | T85: =VLOOKUP($Q85,P_All!$X$5:$AS$245,3*($C$8-1)+4) -> 0.20995 | U85: =VLOOKUP($Q85,NA_All!$X$5:$AS$245,3*($C$8-1)+2) -> 0.12282 | V85: =VLOOKUP($Q85,NA_All!$X$5:$AS$245,3*($C$8-1)+3) -> 0.12392 | W85: =VLOOKUP($Q85,NA_All!$X$5:$AS$245,3*($C$8-1)+4) -> 0.12689 | X85: =IF(ISNA(VLOOKUP($B$6,$A$25:$E$52,IF($B$8=$A$22,3,2))),EXP(VLOOKUP($B$6,$A$25:$E$52,4)*LN(VLOOKUP($Q85,#REF!,$C$8+1)/1000)+VLOOKUP($B$6,$A$25:$E$52,5)),VLOOKUP($B$6,$A$25:$E$52,IF($B$8=$A$22,3,2))) -> 0
H86: 61 | I86: =VLOOKUP($H86,P_All!$A$5:$V$205,3*($C$8-1)+2) -> 0.152475 | J86: =VLOOKUP($H86,P_All!$A$5:$V$205,3*($C$8-1)+3) -> 0.1609708333 | K86: =VLOOKUP($H86,P_All!$A$5:$V$205,3*($C$8-1)+4) -> 0.1794116667 | L86: =VLOOKUP($H86,NA_All!$A$5:$V$205,3*($C$8-1)+2) -> 0.09687675 | M86: =VLOOKUP($H86,NA_All!$A$5:$V$205,3*($C$8-1)+3) -> 0.1153091667 | N86: =VLOOKUP($H86,NA_All!$A$5:$V$205,3*($C$8-1)+4) -> 0.1725625 | O86: =IF(ISNA(VLOOKUP($B$6,$A$25:$E$51,IF($B$8=$A$22,3,2))),EXP(VLOOKUP($B$6,$A$25:$E$51,4)*LN(VLOOKUP($H86,#REF!,$C$8+1)/1000)+VLOOKUP($B$6,$A$25:$E$51,5)),VLOOKUP($B$6,$A$25:$E$51,IF($B$8=$A$22,3,2))) -> 0 | Q86: 5.083333333 | R86: =VLOOKUP($Q86,P_All!$X$5:$AS$245,3*($C$8-1)+2) -> 0.20639 | S86: =VLOOKUP($Q86,P_All!$X$5:$AS$245,3*($C$8-1)+3) -> 0.21047 | T86: =VLOOKUP($Q86,P_All!$X$5:$AS$245,3*($C$8-1)+4) -> 0.21351 | U86: =VLOOKUP($Q86,NA_All!$X$5:$AS$245,3*($C$8-1)+2) -> 0.12255 | V86: =VLOOKUP($Q86,NA_All!$X$5:$AS$245,3*($C$8-1)+3) -> 0.12372 | W86: =VLOOKUP($Q86,NA_All!$X$5:$AS$245,3*($C$8-1)+4) -> 0.12688 | X86: =IF(ISNA(VLOOKUP($B$6,$A$25:$E$52,IF($B$8=$A$22,3,2))),EXP(VLOOKUP($B$6,$A$25:$E$52,4)*LN(VLOOKUP($Q86,#REF!,$C$8+1)/1000)+VLOOKUP($B$6,$A$25:$E$52,5)),VLOOKUP($B$6,$A$25:$E$52,IF($B$8=$A$22,3,2))) -> 0
H87: 62 | I87: =VLOOKUP($H87,P_All!$A$5:$V$205,3*($C$8-1)+2) -> 0.1526041667 | J87: =VLOOKUP($H87,P_All!$A$5:$V$205,3*($C$8-1)+3) -> 0.1609333333 | K87: =VLOOKUP($H87,P_All!$A$5:$V$205,3*($C$8-1)+4) -> 0.180265 | L87: =VLOOKUP($H87,NA_All!$A$5:$V$205,3*($C$8-1)+2) -> 0.09669975 | M87: =VLOOKUP($H87,NA_All!$A$5:$V$205,3*($C$8-1)+3) -> 0.1153308333 | N87: =VLOOKUP($H87,NA_All!$A$5:$V$205,3*($C$8-1)+4) -> 0.1728558333 | O87: =IF(ISNA(VLOOKUP($B$6,$A$25:$E$51,IF($B$8=$A$22,3,2))),EXP(VLOOKUP($B$6,$A$25:$E$51,4)*LN(VLOOKUP($H87,#REF!,$C$8+1)/1000)+VLOOKUP($B$6,$A$25:$E$51,5)),VLOOKUP($B$6,$A$25:$E$51,IF($B$8=$A$22,3,2))) -> 0 | Q87: 5.166666667 | R87: =VLOOKUP($Q87,P_All!$X$5:$AS$245,3*($C$8-1)+2) -> 0.19946 | S87: =VLOOKUP($Q87,P_All!$X$5:$AS$245,3*($C$8-1)+3) -> 0.20385 | T87: =VLOOKUP($Q87,P_All!$X$5:$AS$245,3*($C$8-1)+4) -> 0.20691 | U87: =VLOOKUP($Q87,NA_All!$X$5:$AS$245,3*($C$8-1)+2) -> 0.12166 | V87: =VLOOKUP($Q87,NA_All!$X$5:$AS$245,3*($C$8-1)+3) -> 0.12293 | W87: =VLOOKUP($Q87,NA_All!$X$5:$AS$245,3*($C$8-1)+4) -> 0.12634 | X87: =IF(ISNA(VLOOKUP($B$6,$A$25:$E$52,IF($B$8=$A$22,3,2))),EXP(VLOOKUP($B$6,$A$25:$E$52,4)*LN(VLOOKUP($Q87,#REF!,$C$8+1)/1000)+VLOOKUP($B$6,$A$25:$E$52,5)),VLOOKUP($B$6,$A$25:$E$52,IF($B$8=$A$22,3,2))) -> 0
H88: 63 | I88: =VLOOKUP($H88,P_All!$A$5:$V$205,3*($C$8-1)+2) -> 0.1526133333 | J88: =VLOOKUP($H88,P_All!$A$5:$V$205,3*($C$8-1)+3) -> 0.1610108333 | K88: =VLOOKUP($H88,P_All!$A$5:$V$205,3*($C$8-1)+4) -> 0.180285 | L88: =VLOOKUP($H88,NA_All!$A$5:$V$205,3*($C$8-1)+2) -> 0.0967305 | M88: =VLOOKUP($H88,NA_All!$A$5:$V$205,3*($C$8-1)+3) -> 0.115055 | N88: =VLOOKUP($H88,NA_All!$A$5:$V$205,3*($C$8-1)+4) -> 0.1738675 | O88: =IF(ISNA(VLOOKUP($B$6,$A$25:$E$51,IF($B$8=$A$22,3,2))),EXP(VLOOKUP($B$6,$A$25:$E$51,4)*LN(VLOOKUP($H88,#REF!,$C$8+1)/1000)+VLOOKUP($B$6,$A$25:$E$51,5)),VLOOKUP($B$6,$A$25:$E$51,IF($B$8=$A$22,3,2))) -> 0 | Q88: 5.25 | R88: =VLOOKUP($Q88,P_All!$X$5:$AS$245,3*($C$8-1)+2) -> 0.22975 | S88: =VLOOKUP($Q88,P_All!$X$5:$AS$245,3*($C$8-1)+3) -> 0.23453 | T88: =VLOOKUP($Q88,P_All!$X$5:$AS$245,3*($C$8-1)+4) -> 0.23806 | U88: =VLOOKUP($Q88,NA_All!$X$5:$AS$245,3*($C$8-1)+2) -> 0.12224 | V88: =VLOOKUP($Q88,NA_All!$X$5:$AS$245,3*($C$8-1)+3) -> 0.12368 | W88: =VLOOKUP($Q88,NA_All!$X$5:$AS$245,3*($C$8-1)+4) -> 0.12723 | X88: =IF(ISNA(VLOOKUP($B$6,$A$25:$E$52,IF($B$8=$A$22,3,2))),EXP(VLOOKUP($B$6,$A$25:$E$52,4)*LN(VLOOKUP($Q88,#REF!,$C$8+1)/1000)+VLOOKUP($B$6,$A$25:$E$52,5)),VLOOKUP($B$6,$A$25:$E$52,IF($B$8=$A$22,3,2))) -> 0
H89: 64 | I89: =VLOOKUP($H89,P_All!$A$5:$V$205,3*($C$8-1)+2) -> 0.1523108333 | J89: =VLOOKUP($H89,P_All!$A$5:$V$205,3*($C$8-1)+3) -> 0.1613333333 | K89: =VLOOKUP($H89,P_All!$A$5:$V$205,3*($C$8-1)+4) -> 0.1806941667 | L89: =VLOOKUP($H89,NA_All!$A$5:$V$205,3*($C$8-1)+2) -> 0.09665016667 | M89: =VLOOKUP($H89,NA_All!$A$5:$V$205,3*($C$8-1)+3) -> 0.11471 | N89: =VLOOKUP($H89,NA_All!$A$5:$V$205,3*($C$8-1)+4) -> 0.1720366667 | O89: =IF(ISNA(VLOOKUP($B$6,$A$25:$E$51,IF($B$8=$A$22,3,2))),EXP(VLOOKUP($B$6,$A$25:$E$51,4)*LN(VLOOKUP($H89,#REF!,$C$8+1)/1000)+VLOOKUP($B$6,$A$25:$E$51,5)),VLOOKUP($B$6,$A$25:$E$51,IF($B$8=$A$22,3,2))) -> 0 | Q89: 5.333333333 | R89: =VLOOKUP($Q89,P_All!$X$5:$AS$245,3*($C$8-1)+2) -> 0.23977 | S89: =VLOOKUP($Q89,P_All!$X$5:$AS$245,3*($C$8-1)+3) -> 0.24462 | T89: =VLOOKUP($Q89,P_All!$X$5:$AS$245,3*($C$8-1)+4) -> 0.24855 | U89: =VLOOKUP($Q89,NA_All!$X$5:$AS$245,3*($C$8-1)+2) -> 0.12223 | V89: =VLOOKUP($Q89,NA_All!$X$5:$AS$245,3*($C$8-1)+3) -> 0.12374 | W89: =VLOOKUP($Q89,NA_All!$X$5:$AS$245,3*($C$8-1)+4) -> 0.12756 | X89: =IF(ISNA(VLOOKUP($B$6,$A$25:$E$52,IF($B$8=$A$22,3,2))),EXP(VLOOKUP($B$6,$A$25:$E$52,4)*LN(VLOOKUP($Q89,#REF!,$C$8+1)/1000)+VLOOKUP($B$6,$A$25:$E$52,5)),VLOOKUP($B$6,$A$25:$E$52,IF($B$8=$A$22,3,2))) -> 0
H90: 65 | I90: =VLOOKUP($H90,P_All!$A$5:$V$205,3*($C$8-1)+2) -> 0.1521875 | J90: =VLOOKUP($H90,P_All!$A$5:$V$205,3*($C$8-1)+3) -> 0.1611791667 | K90: =VLOOKUP($H90,P_All!$A$5:$V$205,3*($C$8-1)+4) -> 0.1805241667 | L90: =VLOOKUP($H90,NA_All!$A$5:$V$205,3*($C$8-1)+2) -> 0.09646466667 | M90: =VLOOKUP($H90,NA_All!$A$5:$V$205,3*($C$8-1)+3) -> 0.1146833333 | N90: =VLOOKUP($H90,NA_All!$A$5:$V$205,3*($C$8-1)+4) -> 0.1706258333 | O90: =IF(ISNA(VLOOKUP($B$6,$A$25:$E$51,IF($B$8=$A$22,3,2))),EXP(VLOOKUP($B$6,$A$25:$E$51,4)*LN(VLOOKUP($H90,#REF!,$C$8+1)/1000)+VLOOKUP($B$6,$A$25:$E$51,5)),VLOOKUP($B$6,$A$25:$E$51,IF($B$8=$A$22,3,2))) -> 0 | Q90: 5.416666667 | R90: =VLOOKUP($Q90,P_All!$X$5:$AS$245,3*($C$8-1)+2) -> 0.24983 | S90: =VLOOKUP($Q90,P_All!$X$5:$AS$245,3*($C$8-1)+3) -> 0.25486 | T90: =VLOOKUP($Q90,P_All!$X$5:$AS$245,3*($C$8-1)+4) -> 0.25924 | U90: =VLOOKUP($Q90,NA_All!$X$5:$AS$245,3*($C$8-1)+2) -> 0.12206 | V90: =VLOOKUP($Q90,NA_All!$X$5:$AS$245,3*($C$8-1)+3) -> 0.1237 | W90: =VLOOKUP($Q90,NA_All!$X$5:$AS$245,3*($C$8-1)+4) -> 0.12772 | X90: =IF(ISNA(VLOOKUP($B$6,$A$25:$E$52,IF($B$8=$A$22,3,2))),EXP(VLOOKUP($B$6,$A$25:$E$52,4)*LN(VLOOKUP($Q90,#REF!,$C$8+1)/1000)+VLOOKUP($B$6,$A$25:$E$52,5)),VLOOKUP($B$6,$A$25:$E$52,IF($B$8=$A$22,3,2))) -> 0
H91: 66 | I91: =VLOOKUP($H91,P_All!$A$5:$V$205,3*($C$8-1)+2) -> 0.151875 | J91: =VLOOKUP($H91,P_All!$A$5:$V$205,3*($C$8-1)+3) -> 0.1612775 | K91: =VLOOKUP($H91,P_All!$A$5:$V$205,3*($C$8-1)+4) -> 0.18065 | L91: =VLOOKUP($H91,NA_All!$A$5:$V$205,3*($C$8-1)+2) -> 0.09619433333 | M91: =VLOOKUP($H91,NA_All!$A$5:$V$205,3*($C$8-1)+3) -> 0.11473 | N91: =VLOOKUP($H91,NA_All!$A$5:$V$205,3*($C$8-1)+4) -> 0.1701041667 | O91: =IF(ISNA(VLOOKUP($B$6,$A$25:$E$51,IF($B$8=$A$22,3,2))),EXP(VLOOKUP($B$6,$A$25:$E$51,4)*LN(VLOOKUP($H91,#REF!,$C$8+1)/1000)+VLOOKUP($B$6,$A$25:$E$51,5)),VLOOKUP($B$6,$A$25:$E$51,IF($B$8=$A$22,3,2))) -> 0 | Q91: =Q90+1/12 -> 5.5 | R91: =VLOOKUP($Q91,P_All!$X$5:$AS$245,3*($C$8-1)+2) -> 0.25984 | S91: =VLOOKUP($Q91,P_All!$X$5:$AS$245,3*($C$8-1)+3) -> 0.26512 | T91: =VLOOKUP($Q91,P_All!$X$5:$AS$245,3*($C$8-1)+4) -> 0.26979 | U91: =VLOOKUP($Q91,NA_All!$X$5:$AS$245,3*($C$8-1)+2) -> 0.12196 | V91: =VLOOKUP($Q91,NA_All!$X$5:$AS$245,3*($C$8-1)+3) -> 0.12366 | W91: =VLOOKUP($Q91,NA_All!$X$5:$AS$245,3*($C$8-1)+4) -> 0.12796 | X91: =IF(ISNA(VLOOKUP($B$6,$A$25:$E$52,IF($B$8=$A$22,3,2))),EXP(VLOOKUP($B$6,$A$25:$E$52,4)*LN(VLOOKUP($Q91,#REF!,$C$8+1)/1000)+VLOOKUP($B$6,$A$25:$E$52,5)),VLOOKUP($B$6,$A$25:$E$52,IF($B$8=$A$22,3,2))) -> 0
H92: 67 | I92: =VLOOKUP($H92,P_All!$A$5:$V$205,3*($C$8-1)+2) -> 0.1516408333 | J92: =VLOOKUP($H92,P_All!$A$5:$V$205,3*($C$8-1)+3) -> 0.16121 | K92: =VLOOKUP($H92,P_All!$A$5:$V$205,3*($C$8-1)+4) -> 0.1803175 | L92: =VLOOKUP($H92,NA_All!$A$5:$V$205,3*($C$8-1)+2) -> 0.096061 | M92: =VLOOKUP($H92,NA_All!$A$5:$V$205,3*($C$8-1)+3) -> 0.114385 | N92: =VLOOKUP($H92,NA_All!$A$5:$V$205,3*($C$8-1)+4) -> 0.1699125 | O92: =IF(ISNA(VLOOKUP($B$6,$A$25:$E$51,IF($B$8=$A$22,3,2))),EXP(VLOOKUP($B$6,$A$25:$E$51,4)*LN(VLOOKUP($H92,#REF!,$C$8+1)/1000)+VLOOKUP($B$6,$A$25:$E$51,5)),VLOOKUP($B$6,$A$25:$E$51,IF($B$8=$A$22,3,2))) -> 0 | Q92: 5.583333333 | R92: =VLOOKUP($Q92,P_All!$X$5:$AS$245,3*($C$8-1)+2) -> 0.2697 | S92: =VLOOKUP($Q92,P_All!$X$5:$AS$245,3*($C$8-1)+3) -> 0.27513 | T92: =VLOOKUP($Q92,P_All!$X$5:$AS$245,3*($C$8-1)+4) -> 0.28032 | U92: =VLOOKUP($Q92,NA_All!$X$5:$AS$245,3*($C$8-1)+2) -> 0.12185 | V92: =VLOOKUP($Q92,NA_All!$X$5:$AS$245,3*($C$8-1)+3) -> 0.12365 | W92: =VLOOKUP($Q92,NA_All!$X$5:$AS$245,3*($C$8-1)+4) -> 0.12819 | X92: =IF(ISNA(VLOOKUP($B$6,$A$25:$E$52,IF($B$8=$A$22,3,2))),EXP(VLOOKUP($B$6,$A$25:$E$52,4)*LN(VLOOKUP($Q92,#REF!,$C$8+1)/1000)+VLOOKUP($B$6,$A$25:$E$52,5)),VLOOKUP($B$6,$A$25:$E$52,IF($B$8=$A$22,3,2))) -> 0
H93: 68 | I93: =VLOOKUP($H93,P_All!$A$5:$V$205,3*($C$8-1)+2) -> 0.1516866667 | J93: =VLOOKUP($H93,P_All!$A$5:$V$205,3*($C$8-1)+3) -> 0.1610441667 | K93: =VLOOKUP($H93,P_All!$A$5:$V$205,3*($C$8-1)+4) -> 0.1800208333 | L93: =VLOOKUP($H93,NA_All!$A$5:$V$205,3*($C$8-1)+2) -> 0.09607575 | M93: =VLOOKUP($H93,NA_All!$A$5:$V$205,3*($C$8-1)+3) -> 0.1139316667 | N93: =VLOOKUP($H93,NA_All!$A$5:$V$205,3*($C$8-1)+4) -> 0.1694916667 | O93: =IF(ISNA(VLOOKUP($B$6,$A$25:$E$51,IF($B$8=$A$22,3,2))),EXP(VLOOKUP($B$6,$A$25:$E$51,4)*LN(VLOOKUP($H93,#REF!,$C$8+1)/1000)+VLOOKUP($B$6,$A$25:$E$51,5)),VLOOKUP($B$6,$A$25:$E$51,IF($B$8=$A$22,3,2))) -> 0 | Q93: 5.666666667 | R93: =VLOOKUP($Q93,P_All!$X$5:$AS$245,3*($C$8-1)+2) -> 0.27863 | S93: =VLOOKUP($Q93,P_All!$X$5:$AS$245,3*($C$8-1)+3) -> 0.28445 | T93: =VLOOKUP($Q93,P_All!$X$5:$AS$245,3*($C$8-1)+4) -> 0.2902 | U93: =VLOOKUP($Q93,NA_All!$X$5:$AS$245,3*($C$8-1)+2) -> 0.12155 | V93: =VLOOKUP($Q93,NA_All!$X$5:$AS$245,3*($C$8-1)+3) -> 0.12351 | W93: =VLOOKUP($Q93,NA_All!$X$5:$AS$245,3*($C$8-1)+4) -> 0.12829 | X93: =IF(ISNA(VLOOKUP($B$6,$A$25:$E$52,IF($B$8=$A$22,3,2))),EXP(VLOOKUP($B$6,$A$25:$E$52,4)*LN(VLOOKUP($Q93,#REF!,$C$8+1)/1000)+VLOOKUP($B$6,$A$25:$E$52,5)),VLOOKUP($B$6,$A$25:$E$52,IF($B$8=$A$22,3,2))) -> 0
H94: 69 | I94: =VLOOKUP($H94,P_All!$A$5:$V$205,3*($C$8-1)+2) -> 0.1518591667 | J94: =VLOOKUP($H94,P_All!$A$5:$V$205,3*($C$8-1)+3) -> 0.1609716667 | K94: =VLOOKUP($H94,P_All!$A$5:$V$205,3*($C$8-1)+4) -> 0.1804175 | L94: =VLOOKUP($H94,NA_All!$A$5:$V$205,3*($C$8-1)+2) -> 0.09604091667 | M94: =VLOOKUP($H94,NA_All!$A$5:$V$205,3*($C$8-1)+3) -> 0.1137841667 | N94: =VLOOKUP($H94,NA_All!$A$5:$V$205,3*($C$8-1)+4) -> 0.1688183333 | O94: =IF(ISNA(VLOOKUP($B$6,$A$25:$E$51,IF($B$8=$A$22,3,2))),EXP(VLOOKUP($B$6,$A$25:$E$51,4)*LN(VLOOKUP($H94,#REF!,$C$8+1)/1000)+VLOOKUP($B$6,$A$25:$E$51,5)),VLOOKUP($B$6,$A$25:$E$51,IF($B$8=$A$22,3,2))) -> 0 | Q94: 5.75 | R94: =VLOOKUP($Q94,P_All!$X$5:$AS$245,3*($C$8-1)+2) -> 0.28887 | S94: =VLOOKUP($Q94,P_All!$X$5:$AS$245,3*($C$8-1)+3) -> 0.29488 | T94: =VLOOKUP($Q94,P_All!$X$5:$AS$245,3*($C$8-1)+4) -> 0.30132 | U94: =VLOOKUP($Q94,NA_All!$X$5:$AS$245,3*($C$8-1)+2) -> 0.12154 | V94: =VLOOKUP($Q94,NA_All!$X$5:$AS$245,3*($C$8-1)+3) -> 0.12363 | W94: =VLOOKUP($Q94,NA_All!$X$5:$AS$245,3*($C$8-1)+4) -> 0.12861 | X94: =IF(ISNA(VLOOKUP($B$6,$A$25:$E$52,IF($B$8=$A$22,3,2))),EXP(VLOOKUP($B$6,$A$25:$E$52,4)*LN(VLOOKUP($Q94,#REF!,$C$8+1)/1000)+VLOOKUP($B$6,$A$25:$E$52,5)),VLOOKUP($B$6,$A$25:$E$52,IF($B$8=$A$22,3,2))) -> 0
H95: 70 | I95: =VLOOKUP($H95,P_All!$A$5:$V$205,3*($C$8-1)+2) -> 0.1518825 | J95: =VLOOKUP($H95,P_All!$A$5:$V$205,3*($C$8-1)+3) -> 0.1609816667 | K95: =VLOOKUP($H95,P_All!$A$5:$V$205,3*($C$8-1)+4) -> 0.1808241667 | L95: =VLOOKUP($H95,NA_All!$A$5:$V$205,3*($C$8-1)+2) -> 0.09594516667 | M95: =VLOOKUP($H95,NA_All!$A$5:$V$205,3*($C$8-1)+3) -> 0.1136591667 | N95: =VLOOKUP($H95,NA_All!$A$5:$V$205,3*($C$8-1)+4) -> 0.1689358333 | O95: =IF(ISNA(VLOOKUP($B$6,$A$25:$E$51,IF($B$8=$A$22,3,2))),EXP(VLOOKUP($B$6,$A$25:$E$51,4)*LN(VLOOKUP($H95,#REF!,$C$8+1)/1000)+VLOOKUP($B$6,$A$25:$E$51,5)),VLOOKUP($B$6,$A$25:$E$51,IF($B$8=$A$22,3,2))) -> 0 | Q95: 5.833333333 | R95: =VLOOKUP($Q95,P_All!$X$5:$AS$245,3*($C$8-1)+2) -> 0.31332 | S95: =VLOOKUP($Q95,P_All!$X$5:$AS$245,3*($C$8-1)+3) -> 0.32088 | T95: =VLOOKUP($Q95,P_All!$X$5:$AS$245,3*($C$8-1)+4) -> 0.32855 | U95: =VLOOKUP($Q95,NA_All!$X$5:$AS$245,3*($C$8-1)+2) -> 0.12132 | V95: =VLOOKUP($Q95,NA_All!$X$5:$AS$245,3*($C$8-1)+3) -> 0.1235 | W95: =VLOOKUP($Q95,NA_All!$X$5:$AS$245,3*($C$8-1)+4) -> 0.12862 | X95: =IF(ISNA(VLOOKUP($B$6,$A$25:$E$52,IF($B$8=$A$22,3,2))),EXP(VLOOKUP($B$6,$A$25:$E$52,4)*LN(VLOOKUP($Q95,#REF!,$C$8+1)/1000)+VLOOKUP($B$6,$A$25:$E$52,5)),VLOOKUP($B$6,$A$25:$E$52,IF($B$8=$A$22,3,2))) -> 0
H96: 71 | I96: =VLOOKUP($H96,P_All!$A$5:$V$205,3*($C$8-1)+2) -> 0.1513441667 | J96: =VLOOKUP($H96,P_All!$A$5:$V$205,3*($C$8-1)+3) -> 0.1607116667 | K96: =VLOOKUP($H96,P_All!$A$5:$V$205,3*($C$8-1)+4) -> 0.1808116667 | L96: =VLOOKUP($H96,NA_All!$A$5:$V$205,3*($C$8-1)+2) -> 0.09580833333 | M96: =VLOOKUP($H96,NA_All!$A$5:$V$205,3*($C$8-1)+3) -> 0.1135541667 | N96: =VLOOKUP($H96,NA_All!$A$5:$V$205,3*($C$8-1)+4) -> 0.168685 | O96: =IF(ISNA(VLOOKUP($B$6,$A$25:$E$51,IF($B$8=$A$22,3,2))),EXP(VLOOKUP($B$6,$A$25:$E$51,4)*LN(VLOOKUP($H96,#REF!,$C$8+1)/1000)+VLOOKUP($B$6,$A$25:$E$51,5)),VLOOKUP($B$6,$A$25:$E$51,IF($B$8=$A$22,3,2))) -> 0 | Q96: 5.916666667 | R96: =VLOOKUP($Q96,P_All!$X$5:$AS$245,3*($C$8-1)+2) -> 0.3083 | S96: =VLOOKUP($Q96,P_All!$X$5:$AS$245,3*($C$8-1)+3) -> 0.31582 | T96: =VLOOKUP($Q96,P_All!$X$5:$AS$245,3*($C$8-1)+4) -> 0.32359 | U96: =VLOOKUP($Q96,NA_All!$X$5:$AS$245,3*($C$8-1)+2) -> 0.12132 | V96: =VLOOKUP($Q96,NA_All!$X$5:$AS$245,3*($C$8-1)+3) -> 0.12363 | W96: =VLOOKUP($Q96,NA_All!$X$5:$AS$245,3*($C$8-1)+4) -> 0.12897 | X96: =IF(ISNA(VLOOKUP($B$6,$A$25:$E$52,IF($B$8=$A$22,3,2))),EXP(VLOOKUP($B$6,$A$25:$E$52,4)*LN(VLOOKUP($Q96,#REF!,$C$8+1)/1000)+VLOOKUP($B$6,$A$25:$E$52,5)),VLOOKUP($B$6,$A$25:$E$52,IF($B$8=$A$22,3,2))) -> 0
H97: 72 | I97: =VLOOKUP($H97,P_All!$A$5:$V$205,3*($C$8-1)+2) -> 0.1507825 | J97: =VLOOKUP($H97,P_All!$A$5:$V$205,3*($C$8-1)+3) -> 0.1606716667 | K97: =VLOOKUP($H97,P_All!$A$5:$V$205,3*($C$8-1)+4) -> 0.1806208333 | L97: =VLOOKUP($H97,NA_All!$A$5:$V$205,3*($C$8-1)+2) -> 0.095536 | M97: =VLOOKUP($H97,NA_All!$A$5:$V$205,3*($C$8-1)+3) -> 0.1133183333 | N97: =VLOOKUP($H97,NA_All!$A$5:$V$205,3*($C$8-1)+4) -> 0.1671841667 | O97: =IF(ISNA(VLOOKUP($B$6,$A$25:$E$51,IF($B$8=$A$22,3,2))),EXP(VLOOKUP($B$6,$A$25:$E$51,4)*LN(VLOOKUP($H97,#REF!,$C$8+1)/1000)+VLOOKUP($B$6,$A$25:$E$51,5)),VLOOKUP($B$6,$A$25:$E$51,IF($B$8=$A$22,3,2))) -> 0 | Q97: 6 | R97: =VLOOKUP($Q97,P_All!$X$5:$AS$245,3*($C$8-1)+2) -> 0.31082 | S97: =VLOOKUP($Q97,P_All!$X$5:$AS$245,3*($C$8-1)+3) -> 0.31892 | T97: =VLOOKUP($Q97,P_All!$X$5:$AS$245,3*($C$8-1)+4) -> 0.32684 | U97: =VLOOKUP($Q97,NA_All!$X$5:$AS$245,3*($C$8-1)+2) -> 0.12132 | V97: =VLOOKUP($Q97,NA_All!$X$5:$AS$245,3*($C$8-1)+3) -> 0.12376 | W97: =VLOOKUP($Q97,NA_All!$X$5:$AS$245,3*($C$8-1)+4) -> 0.12942 | X97: =IF(ISNA(VLOOKUP($B$6,$A$25:$E$52,IF($B$8=$A$22,3,2))),EXP(VLOOKUP($B$6,$A$25:$E$52,4)*LN(VLOOKUP($Q97,#REF!,$C$8+1)/1000)+VLOOKUP($B$6,$A$25:$E$52,5)),VLOOKUP($B$6,$A$25:$E$52,IF($B$8=$A$22,3,2))) -> 0
H98: 73 | I98: =VLOOKUP($H98,P_All!$A$5:$V$205,3*($C$8-1)+2) -> 0.1511575 | J98: =VLOOKUP($H98,P_All!$A$5:$V$205,3*($C$8-1)+3) -> 0.1607616667 | K98: =VLOOKUP($H98,P_All!$A$5:$V$205,3*($C$8-1)+4) -> 0.1810458333 | L98: =VLOOKUP($H98,NA_All!$A$5:$V$205,3*($C$8-1)+2) -> 0.09540183333 | M98: =VLOOKUP($H98,NA_All!$A$5:$V$205,3*($C$8-1)+3) -> 0.1127808333 | N98: =VLOOKUP($H98,NA_All!$A$5:$V$205,3*($C$8-1)+4) -> 0.1669383333 | O98: =IF(ISNA(VLOOKUP($B$6,$A$25:$E$51,IF($B$8=$A$22,3,2))),EXP(VLOOKUP($B$6,$A$25:$E$51,4)*LN(VLOOKUP($H98,#REF!,$C$8+1)/1000)+VLOOKUP($B$6,$A$25:$E$51,5)),VLOOKUP($B$6,$A$25:$E$51,IF($B$8=$A$22,3,2))) -> 0 | Q98: 6.083333333 | R98: =VLOOKUP($Q98,P_All!$X$5:$AS$245,3*($C$8-1)+2) -> 0.31671 | S98: =VLOOKUP($Q98,P_All!$X$5:$AS$245,3*($C$8-1)+3) -> 0.32567 | T98: =VLOOKUP($Q98,P_All!$X$5:$AS$245,3*($C$8-1)+4) -> 0.33413 | U98: =VLOOKUP($Q98,NA_All!$X$5:$AS$245,3*($C$8-1)+2) -> 0.12113 | V98: =VLOOKUP($Q98,NA_All!$X$5:$AS$245,3*($C$8-1)+3) -> 0.12369 | W98: =VLOOKUP($Q98,NA_All!$X$5:$AS$245,3*($C$8-1)+4) -> 0.12957 | X98: =IF(ISNA(VLOOKUP($B$6,$A$25:$E$52,IF($B$8=$A$22,3,2))),EXP(VLOOKUP($B$6,$A$25:$E$52,4)*LN(VLOOKUP($Q98,#REF!,$C$8+1)/1000)+VLOOKUP($B$6,$A$25:$E$52,5)),VLOOKUP($B$6,$A$25:$E$52,IF($B$8=$A$22,3,2))) -> 0
H99: 74 | I99: =VLOOKUP($H99,P_All!$A$5:$V$205,3*($C$8-1)+2) -> 0.1514791667 | J99: =VLOOKUP($H99,P_All!$A$5:$V$205,3*($C$8-1)+3) -> 0.1606425 | K99: =VLOOKUP($H99,P_All!$A$5:$V$205,3*($C$8-1)+4) -> 0.1805766667 | L99: =VLOOKUP($H99,NA_All!$A$5:$V$205,3*($C$8-1)+2) -> 0.09509341667 | M99: =VLOOKUP($H99,NA_All!$A$5:$V$205,3*($C$8-1)+3) -> 0.1125066667 | N99: =VLOOKUP($H99,NA_All!$A$5:$V$205,3*($C$8-1)+4) -> 0.1663758333 | O99: =IF(ISNA(VLOOKUP($B$6,$A$25:$E$51,IF($B$8=$A$22,3,2))),EXP(VLOOKUP($B$6,$A$25:$E$51,4)*LN(VLOOKUP($H99,#REF!,$C$8+1)/1000)+VLOOKUP($B$6,$A$25:$E$51,5)),VLOOKUP($B$6,$A$25:$E$51,IF($B$8=$A$22,3,2))) -> 0 | Q99: 6.166666667 | R99: =VLOOKUP($Q99,P_All!$X$5:$AS$245,3*($C$8-1)+2) -> 0.32239 | S99: =VLOOKUP($Q99,P_All!$X$5:$AS$245,3*($C$8-1)+3) -> 0.33189 | T99: =VLOOKUP($Q99,P_All!$X$5:$AS$245,3*($C$8-1)+4) -> 0.34104 | U99: =VLOOKUP($Q99,NA_All!$X$5:$AS$245,3*($C$8-1)+2) -> 0.12107 | V99: =VLOOKUP($Q99,NA_All!$X$5:$AS$245,3*($C$8-1)+3) -> 0.12379 | W99: =VLOOKUP($Q99,NA_All!$X$5:$AS$245,3*($C$8-1)+4) -> 0.12988 | X99: =IF(ISNA(VLOOKUP($B$6,$A$25:$E$52,IF($B$8=$A$22,3,2))),EXP(VLOOKUP($B$6,$A$25:$E$52,4)*LN(VLOOKUP($Q99,#REF!,$C$8+1)/1000)+VLOOKUP($B$6,$A$25:$E$52,5)),VLOOKUP($B$6,$A$25:$E$52,IF($B$8=$A$22,3,2))) -> 0
H100: 75 | I100: =VLOOKUP($H100,P_All!$A$5:$V$205,3*($C$8-1)+2) -> 0.1513225 | J100: =VLOOKUP($H100,P_All!$A$5:$V$205,3*($C$8-1)+3) -> 0.16065 | K100: =VLOOKUP($H100,P_All!$A$5:$V$205,3*($C$8-1)+4) -> 0.1804041667 | L100: =VLOOKUP($H100,NA_All!$A$5:$V$205,3*($C$8-1)+2) -> 0.09516841667 | M100: =VLOOKUP($H100,NA_All!$A$5:$V$205,3*($C$8-1)+3) -> 0.1121508333 | N100: =VLOOKUP($H100,NA_All!$A$5:$V$205,3*($C$8-1)+4) -> 0.1667975 | O100: =IF(ISNA(VLOOKUP($B$6,$A$25:$E$51,IF($B$8=$A$22,3,2))),EXP(VLOOKUP($B$6,$A$25:$E$51,4)*LN(VLOOKUP($H100,#REF!,$C$8+1)/1000)+VLOOKUP($B$6,$A$25:$E$51,5)),VLOOKUP($B$6,$A$25:$E$51,IF($B$8=$A$22,3,2))) -> 0 | Q100: 6.25 | R100: =VLOOKUP($Q100,P_All!$X$5:$AS$245,3*($C$8-1)+2) -> 0.32785 | S100: =VLOOKUP($Q100,P_All!$X$5:$AS$245,3*($C$8-1)+3) -> 0.33761 | T100: =VLOOKUP($Q100,P_All!$X$5:$AS$245,3*($C$8-1)+4) -> 0.34745 | U100: =VLOOKUP($Q100,NA_All!$X$5:$AS$245,3*($C$8-1)+2) -> 0.12105 | V100: =VLOOKUP($Q100,NA_All!$X$5:$AS$245,3*($C$8-1)+3) -> 0.12399 | W100: =VLOOKUP($Q100,NA_All!$X$5:$AS$245,3*($C$8-1)+4) -> 0.13028 | X100: =IF(ISNA(VLOOKUP($B$6,$A$25:$E$52,IF($B$8=$A$22,3,2))),EXP(VLOOKUP($B$6,$A$25:$E$52,4)*LN(VLOOKUP($Q100,#REF!,$C$8+1)/1000)+VLOOKUP($B$6,$A$25:$E$52,5)),VLOOKUP($B$6,$A$25:$E$52,IF($B$8=$A$22,3,2))) -> 0
H101: 76 | I101: =VLOOKUP($H101,P_All!$A$5:$V$205,3*($C$8-1)+2) -> 0.1512158333 | J101: =VLOOKUP($H101,P_All!$A$5:$V$205,3*($C$8-1)+3) -> 0.1606433333 | K101: =VLOOKUP($H101,P_All!$A$5:$V$205,3*($C$8-1)+4) -> 0.1809908333 | L101: =VLOOKUP($H101,NA_All!$A$5:$V$205,3*($C$8-1)+2) -> 0.09506833333 | M101: =VLOOKUP($H101,NA_All!$A$5:$V$205,3*($C$8-1)+3) -> 0.1122466667 | N101: =VLOOKUP($H101,NA_All!$A$5:$V$205,3*($C$8-1)+4) -> 0.1667733333 | O101: =IF(ISNA(VLOOKUP($B$6,$A$25:$E$51,IF($B$8=$A$22,3,2))),EXP(VLOOKUP($B$6,$A$25:$E$51,4)*LN(VLOOKUP($H101,#REF!,$C$8+1)/1000)+VLOOKUP($B$6,$A$25:$E$51,5)),VLOOKUP($B$6,$A$25:$E$51,IF($B$8=$A$22,3,2))) -> 0 | Q101: 6.333333333 | R101: =VLOOKUP($Q101,P_All!$X$5:$AS$245,3*($C$8-1)+2) -> 0.33273 | S101: =VLOOKUP($Q101,P_All!$X$5:$AS$245,3*($C$8-1)+3) -> 0.34324 | T101: =VLOOKUP($Q101,P_All!$X$5:$AS$245,3*($C$8-1)+4) -> 0.35376 | U101: =VLOOKUP($Q101,NA_All!$X$5:$AS$245,3*($C$8-1)+2) -> 0.12102 | V101: =VLOOKUP($Q101,NA_All!$X$5:$AS$245,3*($C$8-1)+3) -> 0.12408 | W101: =VLOOKUP($Q101,NA_All!$X$5:$AS$245,3*($C$8-1)+4) -> 0.1305 | X101: =IF(ISNA(VLOOKUP($B$6,$A$25:$E$52,IF($B$8=$A$22,3,2))),EXP(VLOOKUP($B$6,$A$25:$E$52,4)*LN(VLOOKUP($Q101,#REF!,$C$8+1)/1000)+VLOOKUP($B$6,$A$25:$E$52,5)),VLOOKUP($B$6,$A$25:$E$52,IF($B$8=$A$22,3,2))) -> 0
H102: 77 | I102: =VLOOKUP($H102,P_All!$A$5:$V$205,3*($C$8-1)+2) -> 0.1512925 | J102: =VLOOKUP($H102,P_All!$A$5:$V$205,3*($C$8-1)+3) -> 0.1606875 | K102: =VLOOKUP($H102,P_All!$A$5:$V$205,3*($C$8-1)+4) -> 0.1815741667 | L102: =VLOOKUP($H102,NA_All!$A$5:$V$205,3*($C$8-1)+2) -> 0.0948745 | M102: =VLOOKUP($H102,NA_All!$A$5:$V$205,3*($C$8-1)+3) -> 0.1118791667 | N102: =VLOOKUP($H102,NA_All!$A$5:$V$205,3*($C$8-1)+4) -> 0.1648008333 | O102: =IF(ISNA(VLOOKUP($B$6,$A$25:$E$51,IF($B$8=$A$22,3,2))),EXP(VLOOKUP($B$6,$A$25:$E$51,4)*LN(VLOOKUP($H102,#REF!,$C$8+1)/1000)+VLOOKUP($B$6,$A$25:$E$51,5)),VLOOKUP($B$6,$A$25:$E$51,IF($B$8=$A$22,3,2))) -> 0 | Q102: 6.416666667 | R102: =VLOOKUP($Q102,P_All!$X$5:$AS$245,3*($C$8-1)+2) -> 0.33714 | S102: =VLOOKUP($Q102,P_All!$X$5:$AS$245,3*($C$8-1)+3) -> 0.34836 | T102: =VLOOKUP($Q102,P_All!$X$5:$AS$245,3*($C$8-1)+4) -> 0.35927 | U102: =VLOOKUP($Q102,NA_All!$X$5:$AS$245,3*($C$8-1)+2) -> 0.12083 | V102: =VLOOKUP($Q102,NA_All!$X$5:$AS$245,3*($C$8-1)+3) -> 0.12396 | W102: =VLOOKUP($Q102,NA_All!$X$5:$AS$245,3*($C$8-1)+4) -> 0.13046 | X102: =IF(ISNA(VLOOKUP($B$6,$A$25:$E$52,IF($B$8=$A$22,3,2))),EXP(VLOOKUP($B$6,$A$25:$E$52,4)*LN(VLOOKUP($Q102,#REF!,$C$8+1)/1000)+VLOOKUP($B$6,$A$25:$E$52,5)),VLOOKUP($B$6,$A$25:$E$52,IF($B$8=$A$22,3,2))) -> 0
H103: 78 | I103: =VLOOKUP($H103,P_All!$A$5:$V$205,3*($C$8-1)+2) -> 0.1515758333 | J103: =VLOOKUP($H103,P_All!$A$5:$V$205,3*($C$8-1)+3) -> 0.1604641667 | K103: =VLOOKUP($H103,P_All!$A$5:$V$205,3*($C$8-1)+4) -> 0.180915 | L103: =VLOOKUP($H103,NA_All!$A$5:$V$205,3*($C$8-1)+2) -> 0.09462225 | M103: =VLOOKUP($H103,NA_All!$A$5:$V$205,3*($C$8-1)+3) -> 0.1116725 | N103: =VLOOKUP($H103,NA_All!$A$5:$V$205,3*($C$8-1)+4) -> 0.1646666667 | O103: =IF(ISNA(VLOOKUP($B$6,$A$25:$E$51,IF($B$8=$A$22,3,2))),EXP(VLOOKUP($B$6,$A$25:$E$51,4)*LN(VLOOKUP($H103,#REF!,$C$8+1)/1000)+VLOOKUP($B$6,$A$25:$E$51,5)),VLOOKUP($B$6,$A$25:$E$51,IF($B$8=$A$22,3,2))) -> 0 | Q103: 6.5 | R103: =VLOOKUP($Q103,P_All!$X$5:$AS$245,3*($C$8-1)+2) -> 0.3606 | S103: =VLOOKUP($Q103,P_All!$X$5:$AS$245,3*($C$8-1)+3) -> 0.3745 | T103: =VLOOKUP($Q103,P_All!$X$5:$AS$245,3*($C$8-1)+4) -> 0.38708 | U103: =VLOOKUP($Q103,NA_All!$X$5:$AS$245,3*($C$8-1)+2) -> 0.12067 | V103: =VLOOKUP($Q103,NA_All!$X$5:$AS$245,3*($C$8-1)+3) -> 0.12393 | W103: =VLOOKUP($Q103,NA_All!$X$5:$AS$245,3*($C$8-1)+4) -> 0.13063 | X103: =IF(ISNA(VLOOKUP($B$6,$A$25:$E$52,IF($B$8=$A$22,3,2))),EXP(VLOOKUP($B$6,$A$25:$E$52,4)*LN(VLOOKUP($Q103,#REF!,$C$8+1)/1000)+VLOOKUP($B$6,$A$25:$E$52,5)),VLOOKUP($B$6,$A$25:$E$52,IF($B$8=$A$22,3,2))) -> 0
H104: 79 | I104: =VLOOKUP($H104,P_All!$A$5:$V$205,3*($C$8-1)+2) -> 0.1513516667 | J104: =VLOOKUP($H104,P_All!$A$5:$V$205,3*($C$8-1)+3) -> 0.159995 | K104: =VLOOKUP($H104,P_All!$A$5:$V$205,3*($C$8-1)+4) -> 0.1802908333 | L104: =VLOOKUP($H104,NA_All!$A$5:$V$205,3*($C$8-1)+2) -> 0.09452508333 | M104: =VLOOKUP($H104,NA_All!$A$5:$V$205,3*($C$8-1)+3) -> 0.1115758333 | N104: =VLOOKUP($H104,NA_All!$A$5:$V$205,3*($C$8-1)+4) -> 0.1644191667 | O104: =IF(ISNA(VLOOKUP($B$6,$A$25:$E$51,IF($B$8=$A$22,3,2))),EXP(VLOOKUP($B$6,$A$25:$E$51,4)*LN(VLOOKUP($H104,#REF!,$C$8+1)/1000)+VLOOKUP($B$6,$A$25:$E$51,5)),VLOOKUP($B$6,$A$25:$E$51,IF($B$8=$A$22,3,2))) -> 0 | Q104: 6.583333333 | R104: =VLOOKUP($Q104,P_All!$X$5:$AS$245,3*($C$8-1)+2) -> 0.37147 | S104: =VLOOKUP($Q104,P_All!$X$5:$AS$245,3*($C$8-1)+3) -> 0.38686 | T104: =VLOOKUP($Q104,P_All!$X$5:$AS$245,3*($C$8-1)+4) -> 0.40058 | U104: =VLOOKUP($Q104,NA_All!$X$5:$AS$245,3*($C$8-1)+2) -> 0.1207 | V104: =VLOOKUP($Q104,NA_All!$X$5:$AS$245,3*($C$8-1)+3) -> 0.12401 | W104: =VLOOKUP($Q104,NA_All!$X$5:$AS$245,3*($C$8-1)+4) -> 0.13092 | X104: =IF(ISNA(VLOOKUP($B$6,$A$25:$E$52,IF($B$8=$A$22,3,2))),EXP(VLOOKUP($B$6,$A$25:$E$52,4)*LN(VLOOKUP($Q104,#REF!,$C$8+1)/1000)+VLOOKUP($B$6,$A$25:$E$52,5)),VLOOKUP($B$6,$A$25:$E$52,IF($B$8=$A$22,3,2))) -> 0
H105: 80 | I105: =VLOOKUP($H105,P_All!$A$5:$V$205,3*($C$8-1)+2) -> 0.1512633333 | J105: =VLOOKUP($H105,P_All!$A$5:$V$205,3*($C$8-1)+3) -> 0.1603183333 | K105: =VLOOKUP($H105,P_All!$A$5:$V$205,3*($C$8-1)+4) -> 0.1800791667 | L105: =VLOOKUP($H105,NA_All!$A$5:$V$205,3*($C$8-1)+2) -> 0.09453875 | M105: =VLOOKUP($H105,NA_All!$A$5:$V$205,3*($C$8-1)+3) -> 0.1113041667 | N105: =VLOOKUP($H105,NA_All!$A$5:$V$205,3*($C$8-1)+4) -> 0.1636283333 | O105: =IF(ISNA(VLOOKUP($B$6,$A$25:$E$51,IF($B$8=$A$22,3,2))),EXP(VLOOKUP($B$6,$A$25:$E$51,4)*LN(VLOOKUP($H105,#REF!,$C$8+1)/1000)+VLOOKUP($B$6,$A$25:$E$51,5)),VLOOKUP($B$6,$A$25:$E$51,IF($B$8=$A$22,3,2))) -> 0 | Q105: 6.666666667 | R105: =VLOOKUP($Q105,P_All!$X$5:$AS$245,3*($C$8-1)+2) -> 0.34255 | S105: =VLOOKUP($Q105,P_All!$X$5:$AS$245,3*($C$8-1)+3) -> 0.35558 | T105: =VLOOKUP($Q105,P_All!$X$5:$AS$245,3*($C$8-1)+4) -> 0.36764 | U105: =VLOOKUP($Q105,NA_All!$X$5:$AS$245,3*($C$8-1)+2) -> 0.1208 | V105: =VLOOKUP($Q105,NA_All!$X$5:$AS$245,3*($C$8-1)+3) -> 0.12418 | W105: =VLOOKUP($Q105,NA_All!$X$5:$AS$245,3*($C$8-1)+4) -> 0.13132 | X105: =IF(ISNA(VLOOKUP($B$6,$A$25:$E$52,IF($B$8=$A$22,3,2))),EXP(VLOOKUP($B$6,$A$25:$E$52,4)*LN(VLOOKUP($Q105,#REF!,$C$8+1)/1000)+VLOOKUP($B$6,$A$25:$E$52,5)),VLOOKUP($B$6,$A$25:$E$52,IF($B$8=$A$22,3,2))) -> 0
H106: 81 | I106: =VLOOKUP($H106,P_All!$A$5:$V$205,3*($C$8-1)+2) -> 0.1512725 | J106: =VLOOKUP($H106,P_All!$A$5:$V$205,3*($C$8-1)+3) -> 0.1605666667 | K106: =VLOOKUP($H106,P_All!$A$5:$V$205,3*($C$8-1)+4) -> 0.1805358333 | L106: =VLOOKUP($H106,NA_All!$A$5:$V$205,3*($C$8-1)+2) -> 0.09445025 | M106: =VLOOKUP($H106,NA_All!$A$5:$V$205,3*($C$8-1)+3) -> 0.1105358333 | N106: =VLOOKUP($H106,NA_All!$A$5:$V$205,3*($C$8-1)+4) -> 0.16266 | O106: =IF(ISNA(VLOOKUP($B$6,$A$25:$E$51,IF($B$8=$A$22,3,2))),EXP(VLOOKUP($B$6,$A$25:$E$51,4)*LN(VLOOKUP($H106,#REF!,$C$8+1)/1000)+VLOOKUP($B$6,$A$25:$E$51,5)),VLOOKUP($B$6,$A$25:$E$51,IF($B$8=$A$22,3,2))) -> 0 | Q106: 6.75 | R106: =VLOOKUP($Q106,P_All!$X$5:$AS$245,3*($C$8-1)+2) -> 0.34187 | S106: =VLOOKUP($Q106,P_All!$X$5:$AS$245,3*($C$8-1)+3) -> 0.35459 | T106: =VLOOKUP($Q106,P_All!$X$5:$AS$245,3*($C$8-1)+4) -> 0.36681 | U106: =VLOOKUP($Q106,NA_All!$X$5:$AS$245,3*($C$8-1)+2) -> 0.12045 | V106: =VLOOKUP($Q106,NA_All!$X$5:$AS$245,3*($C$8-1)+3) -> 0.1239 | W106: =VLOOKUP($Q106,NA_All!$X$5:$AS$245,3*($C$8-1)+4) -> 0.13127 | X106: =IF(ISNA(VLOOKUP($B$6,$A$25:$E$52,IF($B$8=$A$22,3,2))),EXP(VLOOKUP($B$6,$A$25:$E$52,4)*LN(VLOOKUP($Q106,#REF!,$C$8+1)/1000)+VLOOKUP($B$6,$A$25:$E$52,5)),VLOOKUP($B$6,$A$25:$E$52,IF($B$8=$A$22,3,2))) -> 0
H107: 82 | I107: =VLOOKUP($H107,P_All!$A$5:$V$205,3*($C$8-1)+2) -> 0.1508625 | J107: =VLOOKUP($H107,P_All!$A$5:$V$205,3*($C$8-1)+3) -> 0.160255 | K107: =VLOOKUP($H107,P_All!$A$5:$V$205,3*($C$8-1)+4) -> 0.181335 | L107: =VLOOKUP($H107,NA_All!$A$5:$V$205,3*($C$8-1)+2) -> 0.09429483333 | M107: =VLOOKUP($H107,NA_All!$A$5:$V$205,3*($C$8-1)+3) -> 0.1103833333 | N107: =VLOOKUP($H107,NA_All!$A$5:$V$205,3*($C$8-1)+4) -> 0.1624575 | O107: =IF(ISNA(VLOOKUP($B$6,$A$25:$E$51,IF($B$8=$A$22,3,2))),EXP(VLOOKUP($B$6,$A$25:$E$51,4)*LN(VLOOKUP($H107,#REF!,$C$8+1)/1000)+VLOOKUP($B$6,$A$25:$E$51,5)),VLOOKUP($B$6,$A$25:$E$51,IF($B$8=$A$22,3,2))) -> 0 | Q107: 6.833333333 | R107: =VLOOKUP($Q107,P_All!$X$5:$AS$245,3*($C$8-1)+2) -> 0.34099 | S107: =VLOOKUP($Q107,P_All!$X$5:$AS$245,3*($C$8-1)+3) -> 0.35407 | T107: =VLOOKUP($Q107,P_All!$X$5:$AS$245,3*($C$8-1)+4) -> 0.3667 | U107: =VLOOKUP($Q107,NA_All!$X$5:$AS$245,3*($C$8-1)+2) -> 0.12021 | V107: =VLOOKUP($Q107,NA_All!$X$5:$AS$245,3*($C$8-1)+3) -> 0.12373 | W107: =VLOOKUP($Q107,NA_All!$X$5:$AS$245,3*($C$8-1)+4) -> 0.13129 | X107: =IF(ISNA(VLOOKUP($B$6,$A$25:$E$52,IF($B$8=$A$22,3,2))),EXP(VLOOKUP($B$6,$A$25:$E$52,4)*LN(VLOOKUP($Q107,#REF!,$C$8+1)/1000)+VLOOKUP($B$6,$A$25:$E$52,5)),VLOOKUP($B$6,$A$25:$E$52,IF($B$8=$A$22,3,2))) -> 0
H108: 83 | I108: =VLOOKUP($H108,P_All!$A$5:$V$205,3*($C$8-1)+2) -> 0.15089 | J108: =VLOOKUP($H108,P_All!$A$5:$V$205,3*($C$8-1)+3) -> 0.1601858333 | K108: =VLOOKUP($H108,P_All!$A$5:$V$205,3*($C$8-1)+4) -> 0.1812225 | L108: =VLOOKUP($H108,NA_All!$A$5:$V$205,3*($C$8-1)+2) -> 0.09416925 | M108: =VLOOKUP($H108,NA_All!$A$5:$V$205,3*($C$8-1)+3) -> 0.1104483333 | N108: =VLOOKUP($H108,NA_All!$A$5:$V$205,3*($C$8-1)+4) -> 0.1640891667 | O108: =IF(ISNA(VLOOKUP($B$6,$A$25:$E$51,IF($B$8=$A$22,3,2))),EXP(VLOOKUP($B$6,$A$25:$E$51,4)*LN(VLOOKUP($H108,#REF!,$C$8+1)/1000)+VLOOKUP($B$6,$A$25:$E$51,5)),VLOOKUP($B$6,$A$25:$E$51,IF($B$8=$A$22,3,2))) -> 0 | Q108: 6.916666667 | R108: =VLOOKUP($Q108,P_All!$X$5:$AS$245,3*($C$8-1)+2) -> 0.34016 | S108: =VLOOKUP($Q108,P_All!$X$5:$AS$245,3*($C$8-1)+3) -> 0.35329 | T108: =VLOOKUP($Q108,P_All!$X$5:$AS$245,3*($C$8-1)+4) -> 0.36611 | U108: =VLOOKUP($Q108,NA_All!$X$5:$AS$245,3*($C$8-1)+2) -> 0.12028 | V108: =VLOOKUP($Q108,NA_All!$X$5:$AS$245,3*($C$8-1)+3) -> 0.12399 | W108: =VLOOKUP($Q108,NA_All!$X$5:$AS$245,3*($C$8-1)+4) -> 0.13178 | X108: =IF(ISNA(VLOOKUP($B$6,$A$25:$E$52,IF($B$8=$A$22,3,2))),EXP(VLOOKUP($B$6,$A$25:$E$52,4)*LN(VLOOKUP($Q108,#REF!,$C$8+1)/1000)+VLOOKUP($B$6,$A$25:$E$52,5)),VLOOKUP($B$6,$A$25:$E$52,IF($B$8=$A$22,3,2))) -> 0
H109: 84 | I109: =VLOOKUP($H109,P_All!$A$5:$V$205,3*($C$8-1)+2) -> 0.150875 | J109: =VLOOKUP($H109,P_All!$A$5:$V$205,3*($C$8-1)+3) -> 0.1600083333 | K109: =VLOOKUP($H109,P_All!$A$5:$V$205,3*($C$8-1)+4) -> 0.1815983333 | L109: =VLOOKUP($H109,NA_All!$A$5:$V$205,3*($C$8-1)+2) -> 0.09406408333 | M109: =VLOOKUP($H109,NA_All!$A$5:$V$205,3*($C$8-1)+3) -> 0.1108566667 | N109: =VLOOKUP($H109,NA_All!$A$5:$V$205,3*($C$8-1)+4) -> 0.1651233333 | O109: =IF(ISNA(VLOOKUP($B$6,$A$25:$E$51,IF($B$8=$A$22,3,2))),EXP(VLOOKUP($B$6,$A$25:$E$51,4)*LN(VLOOKUP($H109,#REF!,$C$8+1)/1000)+VLOOKUP($B$6,$A$25:$E$51,5)),VLOOKUP($B$6,$A$25:$E$51,IF($B$8=$A$22,3,2))) -> 0 | Q109: 7 | R109: =VLOOKUP($Q109,P_All!$X$5:$AS$245,3*($C$8-1)+2) -> 0.33979 | S109: =VLOOKUP($Q109,P_All!$X$5:$AS$245,3*($C$8-1)+3) -> 0.35284 | T109: =VLOOKUP($Q109,P_All!$X$5:$AS$245,3*($C$8-1)+4) -> 0.36571 | U109: =VLOOKUP($Q109,NA_All!$X$5:$AS$245,3*($C$8-1)+2) -> 0.1204 | V109: =VLOOKUP($Q109,NA_All!$X$5:$AS$245,3*($C$8-1)+3) -> 0.12425 | W109: =VLOOKUP($Q109,NA_All!$X$5:$AS$245,3*($C$8-1)+4) -> 0.13215 | X109: =IF(ISNA(VLOOKUP($B$6,$A$25:$E$52,IF($B$8=$A$22,3,2))),EXP(VLOOKUP($B$6,$A$25:$E$52,4)*LN(VLOOKUP($Q109,#REF!,$C$8+1)/1000)+VLOOKUP($B$6,$A$25:$E$52,5)),VLOOKUP($B$6,$A$25:$E$52,IF($B$8=$A$22,3,2))) -> 0
H110: 85 | I110: =VLOOKUP($H110,P_All!$A$5:$V$205,3*($C$8-1)+2) -> 0.1509683333 | J110: =VLOOKUP($H110,P_All!$A$5:$V$205,3*($C$8-1)+3) -> 0.1597366667 | K110: =VLOOKUP($H110,P_All!$A$5:$V$205,3*($C$8-1)+4) -> 0.181305 | L110: =VLOOKUP($H110,NA_All!$A$5:$V$205,3*($C$8-1)+2) -> 0.0940225 | M110: =VLOOKUP($H110,NA_All!$A$5:$V$205,3*($C$8-1)+3) -> 0.1104458333 | N110: =VLOOKUP($H110,NA_All!$A$5:$V$205,3*($C$8-1)+4) -> 0.16649 | O110: =IF(ISNA(VLOOKUP($B$6,$A$25:$E$51,IF($B$8=$A$22,3,2))),EXP(VLOOKUP($B$6,$A$25:$E$51,4)*LN(VLOOKUP($H110,#REF!,$C$8+1)/1000)+VLOOKUP($B$6,$A$25:$E$51,5)),VLOOKUP($B$6,$A$25:$E$51,IF($B$8=$A$22,3,2))) -> 0 | Q110: 7.083333333 | R110: =VLOOKUP($Q110,P_All!$X$5:$AS$245,3*($C$8-1)+2) -> 0.3389 | S110: =VLOOKUP($Q110,P_All!$X$5:$AS$245,3*($C$8-1)+3) -> 0.35198 | T110: =VLOOKUP($Q110,P_All!$X$5:$AS$245,3*($C$8-1)+4) -> 0.36489 | U110: =VLOOKUP($Q110,NA_All!$X$5:$AS$245,3*($C$8-1)+2) -> 0.12016 | V110: =VLOOKUP($Q110,NA_All!$X$5:$AS$245,3*($C$8-1)+3) -> 0.12403 | W110: =VLOOKUP($Q110,NA_All!$X$5:$AS$245,3*($C$8-1)+4) -> 0.13207 | X110: =IF(ISNA(VLOOKUP($B$6,$A$25:$E$52,IF($B$8=$A$22,3,2))),EXP(VLOOKUP($B$6,$A$25:$E$52,4)*LN(VLOOKUP($Q110,#REF!,$C$8+1)/1000)+VLOOKUP($B$6,$A$25:$E$52,5)),VLOOKUP($B$6,$A$25:$E$52,IF($B$8=$A$22,3,2))) -> 0
H111: 86 | I111: =VLOOKUP($H111,P_All!$A$5:$V$205,3*($C$8-1)+2) -> 0.15113 | J111: =VLOOKUP($H111,P_All!$A$5:$V$205,3*($C$8-1)+3) -> 0.1599441667 | K111: =VLOOKUP($H111,P_All!$A$5:$V$205,3*($C$8-1)+4) -> 0.1804216667 | L111: =VLOOKUP($H111,NA_All!$A$5:$V$205,3*($C$8-1)+2) -> 0.093838 | M111: =VLOOKUP($H111,NA_All!$A$5:$V$205,3*($C$8-1)+3) -> 0.110165 | N111: =VLOOKUP($H111,NA_All!$A$5:$V$205,3*($C$8-1)+4) -> 0.1659825 | O111: =IF(ISNA(VLOOKUP($B$6,$A$25:$E$51,IF($B$8=$A$22,3,2))),EXP(VLOOKUP($B$6,$A$25:$E$51,4)*LN(VLOOKUP($H111,#REF!,$C$8+1)/1000)+VLOOKUP($B$6,$A$25:$E$51,5)),VLOOKUP($B$6,$A$25:$E$51,IF($B$8=$A$22,3,2))) -> 0 | Q111: 7.166666667 | R111: =VLOOKUP($Q111,P_All!$X$5:$AS$245,3*($C$8-1)+2) -> 0.33787 | S111: =VLOOKUP($Q111,P_All!$X$5:$AS$245,3*($C$8-1)+3) -> 0.35092 | T111: =VLOOKUP($Q111,P_All!$X$5:$AS$245,3*($C$8-1)+4) -> 0.36407 | U111: =VLOOKUP($Q111,NA_All!$X$5:$AS$245,3*($C$8-1)+2) -> 0.12009 | V111: =VLOOKUP($Q111,NA_All!$X$5:$AS$245,3*($C$8-1)+3) -> 0.12405 | W111: =VLOOKUP($Q111,NA_All!$X$5:$AS$245,3*($C$8-1)+4) -> 0.13222 | X111: =IF(ISNA(VLOOKUP($B$6,$A$25:$E$52,IF($B$8=$A$22,3,2))),EXP(VLOOKUP($B$6,$A$25:$E$52,4)*LN(VLOOKUP($Q111,#REF!,$C$8+1)/1000)+VLOOKUP($B$6,$A$25:$E$52,5)),VLOOKUP($B$6,$A$25:$E$52,IF($B$8=$A$22,3,2))) -> 0
H112: 87 | I112: =VLOOKUP($H112,P_All!$A$5:$V$205,3*($C$8-1)+2) -> 0.1511841667 | J112: =VLOOKUP($H112,P_All!$A$5:$V$205,3*($C$8-1)+3) -> 0.16009 | K112: =VLOOKUP($H112,P_All!$A$5:$V$205,3*($C$8-1)+4) -> 0.1807016667 | L112: =VLOOKUP($H112,NA_All!$A$5:$V$205,3*($C$8-1)+2) -> 0.09377241667 | M112: =VLOOKUP($H112,NA_All!$A$5:$V$205,3*($C$8-1)+3) -> 0.1096991667 | N112: =VLOOKUP($H112,NA_All!$A$5:$V$205,3*($C$8-1)+4) -> 0.164225 | O112: =IF(ISNA(VLOOKUP($B$6,$A$25:$E$51,IF($B$8=$A$22,3,2))),EXP(VLOOKUP($B$6,$A$25:$E$51,4)*LN(VLOOKUP($H112,#REF!,$C$8+1)/1000)+VLOOKUP($B$6,$A$25:$E$51,5)),VLOOKUP($B$6,$A$25:$E$51,IF($B$8=$A$22,3,2))) -> 0 | Q112: 7.25 | R112: =VLOOKUP($Q112,P_All!$X$5:$AS$245,3*($C$8-1)+2) -> 0.37563 | S112: =VLOOKUP($Q112,P_All!$X$5:$AS$245,3*($C$8-1)+3) -> 0.39287 | T112: =VLOOKUP($Q112,P_All!$X$5:$AS$245,3*($C$8-1)+4) -> 0.41002 | U112: =VLOOKUP($Q112,NA_All!$X$5:$AS$245,3*($C$8-1)+2) -> 0.12032 | V112: =VLOOKUP($Q112,NA_All!$X$5:$AS$245,3*($C$8-1)+3) -> 0.12441 | W112: =VLOOKUP($Q112,NA_All!$X$5:$AS$245,3*($C$8-1)+4) -> 0.13278 | X112: =IF(ISNA(VLOOKUP($B$6,$A$25:$E$52,IF($B$8=$A$22,3,2))),EXP(VLOOKUP($B$6,$A$25:$E$52,4)*LN(VLOOKUP($Q112,#REF!,$C$8+1)/1000)+VLOOKUP($B$6,$A$25:$E$52,5)),VLOOKUP($B$6,$A$25:$E$52,IF($B$8=$A$22,3,2))) -> 0
H113: 88 | I113: =VLOOKUP($H113,P_All!$A$5:$V$205,3*($C$8-1)+2) -> 0.15102 | J113: =VLOOKUP($H113,P_All!$A$5:$V$205,3*($C$8-1)+3) -> 0.1601475 | K113: =VLOOKUP($H113,P_All!$A$5:$V$205,3*($C$8-1)+4) -> 0.1809183333 | L113: =VLOOKUP($H113,NA_All!$A$5:$V$205,3*($C$8-1)+2) -> 0.09376466667 | M113: =VLOOKUP($H113,NA_All!$A$5:$V$205,3*($C$8-1)+3) -> 0.1098375 | N113: =VLOOKUP($H113,NA_All!$A$5:$V$205,3*($C$8-1)+4) -> 0.1618833333 | O113: =IF(ISNA(VLOOKUP($B$6,$A$25:$E$51,IF($B$8=$A$22,3,2))),EXP(VLOOKUP($B$6,$A$25:$E$51,4)*LN(VLOOKUP($H113,#REF!,$C$8+1)/1000)+VLOOKUP($B$6,$A$25:$E$51,5)),VLOOKUP($B$6,$A$25:$E$51,IF($B$8=$A$22,3,2))) -> 0 | Q113: 7.333333333 | R113: =VLOOKUP($Q113,P_All!$X$5:$AS$245,3*($C$8-1)+2) -> 0.3312 | S113: =VLOOKUP($Q113,P_All!$X$5:$AS$245,3*($C$8-1)+3) -> 0.34454 | T113: =VLOOKUP($Q113,P_All!$X$5:$AS$245,3*($C$8-1)+4) -> 0.35736 | U113: =VLOOKUP($Q113,NA_All!$X$5:$AS$245,3*($C$8-1)+2) -> 0.12012 | V113: =VLOOKUP($Q113,NA_All!$X$5:$AS$245,3*($C$8-1)+3) -> 0.12432 | W113: =VLOOKUP($Q113,NA_All!$X$5:$AS$245,3*($C$8-1)+4) -> 0.13301 | X113: =IF(ISNA(VLOOKUP($B$6,$A$25:$E$52,IF($B$8=$A$22,3,2))),EXP(VLOOKUP($B$6,$A$25:$E$52,4)*LN(VLOOKUP($Q113,#REF!,$C$8+1)/1000)+VLOOKUP($B$6,$A$25:$E$52,5)),VLOOKUP($B$6,$A$25:$E$52,IF($B$8=$A$22,3,2))) -> 0
H114: 89 | I114: =VLOOKUP($H114,P_All!$A$5:$V$205,3*($C$8-1)+2) -> 0.1508808333 | J114: =VLOOKUP($H114,P_All!$A$5:$V$205,3*($C$8-1)+3) -> 0.1600758333 | K114: =VLOOKUP($H114,P_All!$A$5:$V$205,3*($C$8-1)+4) -> 0.1808308333 | L114: =VLOOKUP($H114,NA_All!$A$5:$V$205,3*($C$8-1)+2) -> 0.09368708333 | M114: =VLOOKUP($H114,NA_All!$A$5:$V$205,3*($C$8-1)+3) -> 0.10989 | N114: =VLOOKUP($H114,NA_All!$A$5:$V$205,3*($C$8-1)+4) -> 0.1599683333 | O114: =IF(ISNA(VLOOKUP($B$6,$A$25:$E$51,IF($B$8=$A$22,3,2))),EXP(VLOOKUP($B$6,$A$25:$E$51,4)*LN(VLOOKUP($H114,#REF!,$C$8+1)/1000)+VLOOKUP($B$6,$A$25:$E$51,5)),VLOOKUP($B$6,$A$25:$E$51,IF($B$8=$A$22,3,2))) -> 0 | Q114: 7.416666667 | R114: =VLOOKUP($Q114,P_All!$X$5:$AS$245,3*($C$8-1)+2) -> 0.32697 | S114: =VLOOKUP($Q114,P_All!$X$5:$AS$245,3*($C$8-1)+3) -> 0.33973 | T114: =VLOOKUP($Q114,P_All!$X$5:$AS$245,3*($C$8-1)+4) -> 0.35227 | U114: =VLOOKUP($Q114,NA_All!$X$5:$AS$245,3*($C$8-1)+2) -> 0.11994 | V114: =VLOOKUP($Q114,NA_All!$X$5:$AS$245,3*($C$8-1)+3) -> 0.1241 | W114: =VLOOKUP($Q114,NA_All!$X$5:$AS$245,3*($C$8-1)+4) -> 0.13292 | X114: =IF(ISNA(VLOOKUP($B$6,$A$25:$E$52,IF($B$8=$A$22,3,2))),EXP(VLOOKUP($B$6,$A$25:$E$52,4)*LN(VLOOKUP($Q114,#REF!,$C$8+1)/1000)+VLOOKUP($B$6,$A$25:$E$52,5)),VLOOKUP($B$6,$A$25:$E$52,IF($B$8=$A$22,3,2))) -> 0
H115: 90 | I115: =VLOOKUP($H115,P_All!$A$5:$V$205,3*($C$8-1)+2) -> 0.1504616667 | J115: =VLOOKUP($H115,P_All!$A$5:$V$205,3*($C$8-1)+3) -> 0.15997 | K115: =VLOOKUP($H115,P_All!$A$5:$V$205,3*($C$8-1)+4) -> 0.1807391667 | L115: =VLOOKUP($H115,NA_All!$A$5:$V$205,3*($C$8-1)+2) -> 0.09363316667 | M115: =VLOOKUP($H115,NA_All!$A$5:$V$205,3*($C$8-1)+3) -> 0.1094175 | N115: =VLOOKUP($H115,NA_All!$A$5:$V$205,3*($C$8-1)+4) -> 0.1591525 | O115: =IF(ISNA(VLOOKUP($B$6,$A$25:$E$51,IF($B$8=$A$22,3,2))),EXP(VLOOKUP($B$6,$A$25:$E$51,4)*LN(VLOOKUP($H115,#REF!,$C$8+1)/1000)+VLOOKUP($B$6,$A$25:$E$51,5)),VLOOKUP($B$6,$A$25:$E$51,IF($B$8=$A$22,3,2))) -> 0 | Q115: 7.5 | R115: =VLOOKUP($Q115,P_All!$X$5:$AS$245,3*($C$8-1)+2) -> 0.32273 | S115: =VLOOKUP($Q115,P_All!$X$5:$AS$245,3*($C$8-1)+3) -> 0.33521 | T115: =VLOOKUP($Q115,P_All!$X$5:$AS$245,3*($C$8-1)+4) -> 0.3474 | U115: =VLOOKUP($Q115,NA_All!$X$5:$AS$245,3*($C$8-1)+2) -> 0.11981 | V115: =VLOOKUP($Q115,NA_All!$X$5:$AS$245,3*($C$8-1)+3) -> 0.12411 | W115: =VLOOKUP($Q115,NA_All!$X$5:$AS$245,3*($C$8-1)+4) -> 0.13301 | X115: =IF(ISNA(VLOOKUP($B$6,$A$25:$E$52,IF($B$8=$A$22,3,2))),EXP(VLOOKUP($B$6,$A$25:$E$52,4)*LN(VLOOKUP($Q115,#REF!,$C$8+1)/1000)+VLOOKUP($B$6,$A$25:$E$52,5)),VLOOKUP($B$6,$A$25:$E$52,IF($B$8=$A$22,3,2))) -> 0
H116: 91 | I116: =VLOOKUP($H116,P_All!$A$5:$V$205,3*($C$8-1)+2) -> 0.1501858333 | J116: =VLOOKUP($H116,P_All!$A$5:$V$205,3*($C$8-1)+3) -> 0.1598708333 | K116: =VLOOKUP($H116,P_All!$A$5:$V$205,3*($C$8-1)+4) -> 0.1806691667 | L116: =VLOOKUP($H116,NA_All!$A$5:$V$205,3*($C$8-1)+2) -> 0.09351966667 | M116: =VLOOKUP($H116,NA_All!$A$5:$V$205,3*($C$8-1)+3) -> 0.1092708333 | N116: =VLOOKUP($H116,NA_All!$A$5:$V$205,3*($C$8-1)+4) -> 0.1590458333 | O116: =IF(ISNA(VLOOKUP($B$6,$A$25:$E$51,IF($B$8=$A$22,3,2))),EXP(VLOOKUP($B$6,$A$25:$E$51,4)*LN(VLOOKUP($H116,#REF!,$C$8+1)/1000)+VLOOKUP($B$6,$A$25:$E$51,5)),VLOOKUP($B$6,$A$25:$E$51,IF($B$8=$A$22,3,2))) -> 0 | Q116: 7.583333333 | R116: =VLOOKUP($Q116,P_All!$X$5:$AS$245,3*($C$8-1)+2) -> 0.31857 | S116: =VLOOKUP($Q116,P_All!$X$5:$AS$245,3*($C$8-1)+3) -> 0.33086 | T116: =VLOOKUP($Q116,P_All!$X$5:$AS$245,3*($C$8-1)+4) -> 0.3428 | U116: =VLOOKUP($Q116,NA_All!$X$5:$AS$245,3*($C$8-1)+2) -> 0.1197 | V116: =VLOOKUP($Q116,NA_All!$X$5:$AS$245,3*($C$8-1)+3) -> 0.12413 | W116: =VLOOKUP($Q116,NA_All!$X$5:$AS$245,3*($C$8-1)+4) -> 0.13326 | X116: =IF(ISNA(VLOOKUP($B$6,$A$25:$E$52,IF($B$8=$A$22,3,2))),EXP(VLOOKUP($B$6,$A$25:$E$52,4)*LN(VLOOKUP($Q116,#REF!,$C$8+1)/1000)+VLOOKUP($B$6,$A$25:$E$52,5)),VLOOKUP($B$6,$A$25:$E$52,IF($B$8=$A$22,3,2))) -> 0
H117: 92 | I117: =VLOOKUP($H117,P_All!$A$5:$V$205,3*($C$8-1)+2) -> 0.1501075 | J117: =VLOOKUP($H117,P_All!$A$5:$V$205,3*($C$8-1)+3) -> 0.1598975 | K117: =VLOOKUP($H117,P_All!$A$5:$V$205,3*($C$8-1)+4) -> 0.1811875 | L117: =VLOOKUP($H117,NA_All!$A$5:$V$205,3*($C$8-1)+2) -> 0.0932865 | M117: =VLOOKUP($H117,NA_All!$A$5:$V$205,3*($C$8-1)+3) -> 0.1092475 | N117: =VLOOKUP($H117,NA_All!$A$5:$V$205,3*($C$8-1)+4) -> 0.1594975 | O117: =IF(ISNA(VLOOKUP($B$6,$A$25:$E$51,IF($B$8=$A$22,3,2))),EXP(VLOOKUP($B$6,$A$25:$E$51,4)*LN(VLOOKUP($H117,#REF!,$C$8+1)/1000)+VLOOKUP($B$6,$A$25:$E$51,5)),VLOOKUP($B$6,$A$25:$E$51,IF($B$8=$A$22,3,2))) -> 0 | Q117: 7.666666667 | R117: =VLOOKUP($Q117,P_All!$X$5:$AS$245,3*($C$8-1)+2) -> 0.31503 | S117: =VLOOKUP($Q117,P_All!$X$5:$AS$245,3*($C$8-1)+3) -> 0.32678 | T117: =VLOOKUP($Q117,P_All!$X$5:$AS$245,3*($C$8-1)+4) -> 0.3386 | U117: =VLOOKUP($Q117,NA_All!$X$5:$AS$245,3*($C$8-1)+2) -> 0.11987 | V117: =VLOOKUP($Q117,NA_All!$X$5:$AS$245,3*($C$8-1)+3) -> 0.12445 | W117: =VLOOKUP($Q117,NA_All!$X$5:$AS$245,3*($C$8-1)+4) -> 0.13355 | X117: =IF(ISNA(VLOOKUP($B$6,$A$25:$E$52,IF($B$8=$A$22,3,2))),EXP(VLOOKUP($B$6,$A$25:$E$52,4)*LN(VLOOKUP($Q117,#REF!,$C$8+1)/1000)+VLOOKUP($B$6,$A$25:$E$52,5)),VLOOKUP($B$6,$A$25:$E$52,IF($B$8=$A$22,3,2))) -> 0
H118: 93 | I118: =VLOOKUP($H118,P_All!$A$5:$V$205,3*($C$8-1)+2) -> 0.1499025 | J118: =VLOOKUP($H118,P_All!$A$5:$V$205,3*($C$8-1)+3) -> 0.1601525 | K118: =VLOOKUP($H118,P_All!$A$5:$V$205,3*($C$8-1)+4) -> 0.1811208333 | L118: =VLOOKUP($H118,NA_All!$A$5:$V$205,3*($C$8-1)+2) -> 0.09323791667 | M118: =VLOOKUP($H118,NA_All!$A$5:$V$205,3*($C$8-1)+3) -> 0.10922 | N118: =VLOOKUP($H118,NA_All!$A$5:$V$205,3*($C$8-1)+4) -> 0.1599433333 | O118: =IF(ISNA(VLOOKUP($B$6,$A$25:$E$51,IF($B$8=$A$22,3,2))),EXP(VLOOKUP($B$6,$A$25:$E$51,4)*LN(VLOOKUP($H118,#REF!,$C$8+1)/1000)+VLOOKUP($B$6,$A$25:$E$51,5)),VLOOKUP($B$6,$A$25:$E$51,IF($B$8=$A$22,3,2))) -> 0 | Q118: 7.75 | R118: =VLOOKUP($Q118,P_All!$X$5:$AS$245,3*($C$8-1)+2) -> 0.31097 | S118: =VLOOKUP($Q118,P_All!$X$5:$AS$245,3*($C$8-1)+3) -> 0.32237 | T118: =VLOOKUP($Q118,P_All!$X$5:$AS$245,3*($C$8-1)+4) -> 0.33393 | U118: =VLOOKUP($Q118,NA_All!$X$5:$AS$245,3*($C$8-1)+2) -> 0.11949 | V118: =VLOOKUP($Q118,NA_All!$X$5:$AS$245,3*($C$8-1)+3) -> 0.12409 | W118: =VLOOKUP($Q118,NA_All!$X$5:$AS$245,3*($C$8-1)+4) -> 0.13334 | X118: =IF(ISNA(VLOOKUP($B$6,$A$25:$E$52,IF($B$8=$A$22,3,2))),EXP(VLOOKUP($B$6,$A$25:$E$52,4)*LN(VLOOKUP($Q118,#REF!,$C$8+1)/1000)+VLOOKUP($B$6,$A$25:$E$52,5)),VLOOKUP($B$6,$A$25:$E$52,IF($B$8=$A$22,3,2))) -> 0
H119: 94 | I119: =VLOOKUP($H119,P_All!$A$5:$V$205,3*($C$8-1)+2) -> 0.1502191667 | J119: =VLOOKUP($H119,P_All!$A$5:$V$205,3*($C$8-1)+3) -> 0.1603825 | K119: =VLOOKUP($H119,P_All!$A$5:$V$205,3*($C$8-1)+4) -> 0.1808791667 | L119: =VLOOKUP($H119,NA_All!$A$5:$V$205,3*($C$8-1)+2) -> 0.09337466667 | M119: =VLOOKUP($H119,NA_All!$A$5:$V$205,3*($C$8-1)+3) -> 0.1091525 | N119: =VLOOKUP($H119,NA_All!$A$5:$V$205,3*($C$8-1)+4) -> 0.158025 | O119: =IF(ISNA(VLOOKUP($B$6,$A$25:$E$51,IF($B$8=$A$22,3,2))),EXP(VLOOKUP($B$6,$A$25:$E$51,4)*LN(VLOOKUP($H119,#REF!,$C$8+1)/1000)+VLOOKUP($B$6,$A$25:$E$51,5)),VLOOKUP($B$6,$A$25:$E$51,IF($B$8=$A$22,3,2))) -> 0 | Q119: 7.833333333 | R119: =VLOOKUP($Q119,P_All!$X$5:$AS$245,3*($C$8-1)+2) -> 0.30734 | S119: =VLOOKUP($Q119,P_All!$X$5:$AS$245,3*($C$8-1)+3) -> 0.31803 | T119: =VLOOKUP($Q119,P_All!$X$5:$AS$245,3*($C$8-1)+4) -> 0.32931 | U119: =VLOOKUP($Q119,NA_All!$X$5:$AS$245,3*($C$8-1)+2) -> 0.11918 | V119: =VLOOKUP($Q119,NA_All!$X$5:$AS$245,3*($C$8-1)+3) -> 0.12379 | W119: =VLOOKUP($Q119,NA_All!$X$5:$AS$245,3*($C$8-1)+4) -> 0.13318 | X119: =IF(ISNA(VLOOKUP($B$6,$A$25:$E$52,IF($B$8=$A$22,3,2))),EXP(VLOOKUP($B$6,$A$25:$E$52,4)*LN(VLOOKUP($Q119,#REF!,$C$8+1)/1000)+VLOOKUP($B$6,$A$25:$E$52,5)),VLOOKUP($B$6,$A$25:$E$52,IF($B$8=$A$22,3,2))) -> 0
H120: 95 | I120: =VLOOKUP($H120,P_All!$A$5:$V$205,3*($C$8-1)+2) -> 0.1504066667 | J120: =VLOOKUP($H120,P_All!$A$5:$V$205,3*($C$8-1)+3) -> 0.160125 | K120: =VLOOKUP($H120,P_All!$A$5:$V$205,3*($C$8-1)+4) -> 0.1807683333 | L120: =VLOOKUP($H120,NA_All!$A$5:$V$205,3*($C$8-1)+2) -> 0.0933555 | M120: =VLOOKUP($H120,NA_All!$A$5:$V$205,3*($C$8-1)+3) -> 0.10899 | N120: =VLOOKUP($H120,NA_All!$A$5:$V$205,3*($C$8-1)+4) -> 0.15802 | O120: =IF(ISNA(VLOOKUP($B$6,$A$25:$E$51,IF($B$8=$A$22,3,2))),EXP(VLOOKUP($B$6,$A$25:$E$51,4)*LN(VLOOKUP($H120,#REF!,$C$8+1)/1000)+VLOOKUP($B$6,$A$25:$E$51,5)),VLOOKUP($B$6,$A$25:$E$51,IF($B$8=$A$22,3,2))) -> 0 | Q120: 7.916666667 | R120: =VLOOKUP($Q120,P_All!$X$5:$AS$245,3*($C$8-1)+2) -> 0.3127 | S120: =VLOOKUP($Q120,P_All!$X$5:$AS$245,3*($C$8-1)+3) -> 0.32403 | T120: =VLOOKUP($Q120,P_All!$X$5:$AS$245,3*($C$8-1)+4) -> 0.33581 | U120: =VLOOKUP($Q120,NA_All!$X$5:$AS$245,3*($C$8-1)+2) -> 0.11943 | V120: =VLOOKUP($Q120,NA_All!$X$5:$AS$245,3*($C$8-1)+3) -> 0.12416 | W120: =VLOOKUP($Q120,NA_All!$X$5:$AS$245,3*($C$8-1)+4) -> 0.13371 | X120: =IF(ISNA(VLOOKUP($B$6,$A$25:$E$52,IF($B$8=$A$22,3,2))),EXP(VLOOKUP($B$6,$A$25:$E$52,4)*LN(VLOOKUP($Q120,#REF!,$C$8+1)/1000)+VLOOKUP($B$6,$A$25:$E$52,5)),VLOOKUP($B$6,$A$25:$E$52,IF($B$8=$A$22,3,2))) -> 0
H121: 96 | I121: =VLOOKUP($H121,P_All!$A$5:$V$205,3*($C$8-1)+2) -> 0.14997 | J121: =VLOOKUP($H121,P_All!$A$5:$V$205,3*($C$8-1)+3) -> 0.1600016667 | K121: =VLOOKUP($H121,P_All!$A$5:$V$205,3*($C$8-1)+4) -> 0.180645 | L121: =VLOOKUP($H121,NA_All!$A$5:$V$205,3*($C$8-1)+2) -> 0.09336366667 | M121: =VLOOKUP($H121,NA_All!$A$5:$V$205,3*($C$8-1)+3) -> 0.1085991667 | N121: =VLOOKUP($H121,NA_All!$A$5:$V$205,3*($C$8-1)+4) -> 0.157635 | O121: =IF(ISNA(VLOOKUP($B$6,$A$25:$E$51,IF($B$8=$A$22,3,2))),EXP(VLOOKUP($B$6,$A$25:$E$51,4)*LN(VLOOKUP($H121,#REF!,$C$8+1)/1000)+VLOOKUP($B$6,$A$25:$E$51,5)),VLOOKUP($B$6,$A$25:$E$51,IF($B$8=$A$22,3,2))) -> 0 | Q121: 8 | R121: =VLOOKUP($Q121,P_All!$X$5:$AS$245,3*($C$8-1)+2) -> 0.30528 | S121: =VLOOKUP($Q121,P_All!$X$5:$AS$245,3*($C$8-1)+3) -> 0.31619 | T121: =VLOOKUP($Q121,P_All!$X$5:$AS$245,3*($C$8-1)+4) -> 0.3273 | U121: =VLOOKUP($Q121,NA_All!$X$5:$AS$245,3*($C$8-1)+2) -> 0.11946 | V121: =VLOOKUP($Q121,NA_All!$X$5:$AS$245,3*($C$8-1)+3) -> 0.12432 | W121: =VLOOKUP($Q121,NA_All!$X$5:$AS$245,3*($C$8-1)+4) -> 0.13389 | X121: =IF(ISNA(VLOOKUP($B$6,$A$25:$E$52,IF($B$8=$A$22,3,2))),EXP(VLOOKUP($B$6,$A$25:$E$52,4)*LN(VLOOKUP($Q121,#REF!,$C$8+1)/1000)+VLOOKUP($B$6,$A$25:$E$52,5)),VLOOKUP($B$6,$A$25:$E$52,IF($B$8=$A$22,3,2))) -> 0
H122: 97 | I122: =VLOOKUP($H122,P_All!$A$5:$V$205,3*($C$8-1)+2) -> 0.1498658333 | J122: =VLOOKUP($H122,P_All!$A$5:$V$205,3*($C$8-1)+3) -> 0.1603816667 | K122: =VLOOKUP($H122,P_All!$A$5:$V$205,3*($C$8-1)+4) -> 0.1809416667 | L122: =VLOOKUP($H122,NA_All!$A$5:$V$205,3*($C$8-1)+2) -> 0.09310058333 | M122: =VLOOKUP($H122,NA_All!$A$5:$V$205,3*($C$8-1)+3) -> 0.1086016667 | N122: =VLOOKUP($H122,NA_All!$A$5:$V$205,3*($C$8-1)+4) -> 0.1566675 | O122: =IF(ISNA(VLOOKUP($B$6,$A$25:$E$51,IF($B$8=$A$22,3,2))),EXP(VLOOKUP($B$6,$A$25:$E$51,4)*LN(VLOOKUP($H122,#REF!,$C$8+1)/1000)+VLOOKUP($B$6,$A$25:$E$51,5)),VLOOKUP($B$6,$A$25:$E$51,IF($B$8=$A$22,3,2))) -> 0 | Q122: 8.083333333 | R122: =VLOOKUP($Q122,P_All!$X$5:$AS$245,3*($C$8-1)+2) -> 0.2943 | S122: =VLOOKUP($Q122,P_All!$X$5:$AS$245,3*($C$8-1)+3) -> 0.30434 | T122: =VLOOKUP($Q122,P_All!$X$5:$AS$245,3*($C$8-1)+4) -> 0.31461 | U122: =VLOOKUP($Q122,NA_All!$X$5:$AS$245,3*($C$8-1)+2) -> 0.11912 | V122: =VLOOKUP($Q122,NA_All!$X$5:$AS$245,3*($C$8-1)+3) -> 0.12386 | W122: =VLOOKUP($Q122,NA_All!$X$5:$AS$245,3*($C$8-1)+4) -> 0.13361 | X122: =IF(ISNA(VLOOKUP($B$6,$A$25:$E$52,IF($B$8=$A$22,3,2))),EXP(VLOOKUP($B$6,$A$25:$E$52,4)*LN(VLOOKUP($Q122,#REF!,$C$8+1)/1000)+VLOOKUP($B$6,$A$25:$E$52,5)),VLOOKUP($B$6,$A$25:$E$52,IF($B$8=$A$22,3,2))) -> 0
H123: 98 | I123: =VLOOKUP($H123,P_All!$A$5:$V$205,3*($C$8-1)+2) -> 0.1497991667 | J123: =VLOOKUP($H123,P_All!$A$5:$V$205,3*($C$8-1)+3) -> 0.1602991667 | K123: =VLOOKUP($H123,P_All!$A$5:$V$205,3*($C$8-1)+4) -> 0.1813825 | L123: =VLOOKUP($H123,NA_All!$A$5:$V$205,3*($C$8-1)+2) -> 0.09289233333 | M123: =VLOOKUP($H123,NA_All!$A$5:$V$205,3*($C$8-1)+3) -> 0.1085525 | N123: =VLOOKUP($H123,NA_All!$A$5:$V$205,3*($C$8-1)+4) -> 0.1567183333 | O123: =IF(ISNA(VLOOKUP($B$6,$A$25:$E$51,IF($B$8=$A$22,3,2))),EXP(VLOOKUP($B$6,$A$25:$E$51,4)*LN(VLOOKUP($H123,#REF!,$C$8+1)/1000)+VLOOKUP($B$6,$A$25:$E$51,5)),VLOOKUP($B$6,$A$25:$E$51,IF($B$8=$A$22,3,2))) -> 0 | Q123: 8.166666667 | R123: =VLOOKUP($Q123,P_All!$X$5:$AS$245,3*($C$8-1)+2) -> 0.29005 | S123: =VLOOKUP($Q123,P_All!$X$5:$AS$245,3*($C$8-1)+3) -> 0.29921 | T123: =VLOOKUP($Q123,P_All!$X$5:$AS$245,3*($C$8-1)+4) -> 0.30929 | U123: =VLOOKUP($Q123,NA_All!$X$5:$AS$245,3*($C$8-1)+2) -> 0.119 | V123: =VLOOKUP($Q123,NA_All!$X$5:$AS$245,3*($C$8-1)+3) -> 0.12382 | W123: =VLOOKUP($Q123,NA_All!$X$5:$AS$245,3*($C$8-1)+4) -> 0.1338 | X123: =IF(ISNA(VLOOKUP($B$6,$A$25:$E$52,IF($B$8=$A$22,3,2))),EXP(VLOOKUP($B$6,$A$25:$E$52,4)*LN(VLOOKUP($Q123,#REF!,$C$8+1)/1000)+VLOOKUP($B$6,$A$25:$E$52,5)),VLOOKUP($B$6,$A$25:$E$52,IF($B$8=$A$22,3,2))) -> 0
H124: 99 | I124: =VLOOKUP($H124,P_All!$A$5:$V$205,3*($C$8-1)+2) -> 0.150095 | J124: =VLOOKUP($H124,P_All!$A$5:$V$205,3*($C$8-1)+3) -> 0.1604125 | K124: =VLOOKUP($H124,P_All!$A$5:$V$205,3*($C$8-1)+4) -> 0.1817708333 | L124: =VLOOKUP($H124,NA_All!$A$5:$V$205,3*($C$8-1)+2) -> 0.09274475 | M124: =VLOOKUP($H124,NA_All!$A$5:$V$205,3*($C$8-1)+3) -> 0.1084691667 | N124: =VLOOKUP($H124,NA_All!$A$5:$V$205,3*($C$8-1)+4) -> 0.1559333333 | O124: =IF(ISNA(VLOOKUP($B$6,$A$25:$E$51,IF($B$8=$A$22,3,2))),EXP(VLOOKUP($B$6,$A$25:$E$51,4)*LN(VLOOKUP($H124,#REF!,$C$8+1)/1000)+VLOOKUP($B$6,$A$25:$E$51,5)),VLOOKUP($B$6,$A$25:$E$51,IF($B$8=$A$22,3,2))) -> 0 | Q124: 8.25 | R124: =VLOOKUP($Q124,P_All!$X$5:$AS$245,3*($C$8-1)+2) -> 0.28553 | S124: =VLOOKUP($Q124,P_All!$X$5:$AS$245,3*($C$8-1)+3) -> 0.29428 | T124: =VLOOKUP($Q124,P_All!$X$5:$AS$245,3*($C$8-1)+4) -> 0.30371 | U124: =VLOOKUP($Q124,NA_All!$X$5:$AS$245,3*($C$8-1)+2) -> 0.11914 | V124: =VLOOKUP($Q124,NA_All!$X$5:$AS$245,3*($C$8-1)+3) -> 0.12408 | W124: =VLOOKUP($Q124,NA_All!$X$5:$AS$245,3*($C$8-1)+4) -> 0.13435 | X124: =IF(ISNA(VLOOKUP($B$6,$A$25:$E$52,IF($B$8=$A$22,3,2))),EXP(VLOOKUP($B$6,$A$25:$E$52,4)*LN(VLOOKUP($Q124,#REF!,$C$8+1)/1000)+VLOOKUP($B$6,$A$25:$E$52,5)),VLOOKUP($B$6,$A$25:$E$52,IF($B$8=$A$22,3,2))) -> 0
H125: 100 | I125: =VLOOKUP($H125,P_All!$A$5:$V$205,3*($C$8-1)+2) -> 0.1503833333 | J125: =VLOOKUP($H125,P_All!$A$5:$V$205,3*($C$8-1)+3) -> 0.1603741667 | K125: =VLOOKUP($H125,P_All!$A$5:$V$205,3*($C$8-1)+4) -> 0.1810216667 | L125: =VLOOKUP($H125,NA_All!$A$5:$V$205,3*($C$8-1)+2) -> 0.09272116667 | M125: =VLOOKUP($H125,NA_All!$A$5:$V$205,3*($C$8-1)+3) -> 0.1082416667 | N125: =VLOOKUP($H125,NA_All!$A$5:$V$205,3*($C$8-1)+4) -> 0.155805 | O125: =IF(ISNA(VLOOKUP($B$6,$A$25:$E$51,IF($B$8=$A$22,3,2))),EXP(VLOOKUP($B$6,$A$25:$E$51,4)*LN(VLOOKUP($H125,#REF!,$C$8+1)/1000)+VLOOKUP($B$6,$A$25:$E$51,5)),VLOOKUP($B$6,$A$25:$E$51,IF($B$8=$A$22,3,2))) -> 0 | Q125: 8.333333333 | R125: =VLOOKUP($Q125,P_All!$X$5:$AS$245,3*($C$8-1)+2) -> 0.28134 | S125: =VLOOKUP($Q125,P_All!$X$5:$AS$245,3*($C$8-1)+3) -> 0.28961 | T125: =VLOOKUP($Q125,P_All!$X$5:$AS$245,3*($C$8-1)+4) -> 0.29864 | U125: =VLOOKUP($Q125,NA_All!$X$5:$AS$245,3*($C$8-1)+2) -> 0.11915 | V125: =VLOOKUP($Q125,NA_All!$X$5:$AS$245,3*($C$8-1)+3) -> 0.12418 | W125: =VLOOKUP($Q125,NA_All!$X$5:$AS$245,3*($C$8-1)+4) -> 0.13451 | X125: =IF(ISNA(VLOOKUP($B$6,$A$25:$E$52,IF($B$8=$A$22,3,2))),EXP(VLOOKUP($B$6,$A$25:$E$52,4)*LN(VLOOKUP($Q125,#REF!,$C$8+1)/1000)+VLOOKUP($B$6,$A$25:$E$52,5)),VLOOKUP($B$6,$A$25:$E$52,IF($B$8=$A$22,3,2))) -> 0
H126: 101 | I126: =VLOOKUP($H126,P_All!$A$5:$V$205,3*($C$8-1)+2) -> 0.150495 | J126: =VLOOKUP($H126,P_All!$A$5:$V$205,3*($C$8-1)+3) -> 0.1602533333 | K126: =VLOOKUP($H126,P_All!$A$5:$V$205,3*($C$8-1)+4) -> 0.1803341667 | L126: =VLOOKUP($H126,NA_All!$A$5:$V$205,3*($C$8-1)+2) -> 0.09271575 | M126: =VLOOKUP($H126,NA_All!$A$5:$V$205,3*($C$8-1)+3) -> 0.1080875 | N126: =VLOOKUP($H126,NA_All!$A$5:$V$205,3*($C$8-1)+4) -> 0.1552125 | O126: =IF(ISNA(VLOOKUP($B$6,$A$25:$E$51,IF($B$8=$A$22,3,2))),EXP(VLOOKUP($B$6,$A$25:$E$51,4)*LN(VLOOKUP($H126,#REF!,$C$8+1)/1000)+VLOOKUP($B$6,$A$25:$E$51,5)),VLOOKUP($B$6,$A$25:$E$51,IF($B$8=$A$22,3,2))) -> 0 | Q126: 8.416666667 | R126: =VLOOKUP($Q126,P_All!$X$5:$AS$245,3*($C$8-1)+2) -> 0.27699 | S126: =VLOOKUP($Q126,P_All!$X$5:$AS$245,3*($C$8-1)+3) -> 0.28476 | T126: =VLOOKUP($Q126,P_All!$X$5:$AS$245,3*($C$8-1)+4) -> 0.29367 | U126: =VLOOKUP($Q126,NA_All!$X$5:$AS$245,3*($C$8-1)+2) -> 0.11893 | V126: =VLOOKUP($Q126,NA_All!$X$5:$AS$245,3*($C$8-1)+3) -> 0.12397 | W126: =VLOOKUP($Q126,NA_All!$X$5:$AS$245,3*($C$8-1)+4) -> 0.13448 | X126: =IF(ISNA(VLOOKUP($B$6,$A$25:$E$52,IF($B$8=$A$22,3,2))),EXP(VLOOKUP($B$6,$A$25:$E$52,4)*LN(VLOOKUP($Q126,#REF!,$C$8+1)/1000)+VLOOKUP($B$6,$A$25:$E$52,5)),VLOOKUP($B$6,$A$25:$E$52,IF($B$8=$A$22,3,2))) -> 0
H127: 102 | I127: =VLOOKUP($H127,P_All!$A$5:$V$205,3*($C$8-1)+2) -> 0.1505991667 | J127: =VLOOKUP($H127,P_All!$A$5:$V$205,3*($C$8-1)+3) -> 0.1604208333 | K127: =VLOOKUP($H127,P_All!$A$5:$V$205,3*($C$8-1)+4) -> 0.1798975 | L127: =VLOOKUP($H127,NA_All!$A$5:$V$205,3*($C$8-1)+2) -> 0.09259266667 | M127: =VLOOKUP($H127,NA_All!$A$5:$V$205,3*($C$8-1)+3) -> 0.1081033333 | N127: =VLOOKUP($H127,NA_All!$A$5:$V$205,3*($C$8-1)+4) -> 0.15492 | O127: =IF(ISNA(VLOOKUP($B$6,$A$25:$E$51,IF($B$8=$A$22,3,2))),EXP(VLOOKUP($B$6,$A$25:$E$51,4)*LN(VLOOKUP($H127,#REF!,$C$8+1)/1000)+VLOOKUP($B$6,$A$25:$E$51,5)),VLOOKUP($B$6,$A$25:$E$51,IF($B$8=$A$22,3,2))) -> 0 | Q127: 8.5 | R127: =VLOOKUP($Q127,P_All!$X$5:$AS$245,3*($C$8-1)+2) -> 0.27314 | S127: =VLOOKUP($Q127,P_All!$X$5:$AS$245,3*($C$8-1)+3) -> 0.2802 | T127: =VLOOKUP($Q127,P_All!$X$5:$AS$245,3*($C$8-1)+4) -> 0.28866 | U127: =VLOOKUP($Q127,NA_All!$X$5:$AS$245,3*($C$8-1)+2) -> 0.11885 | V127: =VLOOKUP($Q127,NA_All!$X$5:$AS$245,3*($C$8-1)+3) -> 0.12396 | W127: =VLOOKUP($Q127,NA_All!$X$5:$AS$245,3*($C$8-1)+4) -> 0.13469 | X127: =IF(ISNA(VLOOKUP($B$6,$A$25:$E$52,IF($B$8=$A$22,3,2))),EXP(VLOOKUP($B$6,$A$25:$E$52,4)*LN(VLOOKUP($Q127,#REF!,$C$8+1)/1000)+VLOOKUP($B$6,$A$25:$E$52,5)),VLOOKUP($B$6,$A$25:$E$52,IF($B$8=$A$22,3,2))) -> 0
H128: 103 | I128: =VLOOKUP($H128,P_All!$A$5:$V$205,3*($C$8-1)+2) -> 0.1508266667 | J128: =VLOOKUP($H128,P_All!$A$5:$V$205,3*($C$8-1)+3) -> 0.1601533333 | K128: =VLOOKUP($H128,P_All!$A$5:$V$205,3*($C$8-1)+4) -> 0.1797775 | L128: =VLOOKUP($H128,NA_All!$A$5:$V$205,3*($C$8-1)+2) -> 0.09251066667 | M128: =VLOOKUP($H128,NA_All!$A$5:$V$205,3*($C$8-1)+3) -> 0.1080316667 | N128: =VLOOKUP($H128,NA_All!$A$5:$V$205,3*($C$8-1)+4) -> 0.1545991667 | O128: =IF(ISNA(VLOOKUP($B$6,$A$25:$E$51,IF($B$8=$A$22,3,2))),EXP(VLOOKUP($B$6,$A$25:$E$51,4)*LN(VLOOKUP($H128,#REF!,$C$8+1)/1000)+VLOOKUP($B$6,$A$25:$E$51,5)),VLOOKUP($B$6,$A$25:$E$51,IF($B$8=$A$22,3,2))) -> 0 | Q128: 8.583333333 | R128: =VLOOKUP($Q128,P_All!$X$5:$AS$245,3*($C$8-1)+2) -> 0.26814 | S128: =VLOOKUP($Q128,P_All!$X$5:$AS$245,3*($C$8-1)+3) -> 0.27486 | T128: =VLOOKUP($Q128,P_All!$X$5:$AS$245,3*($C$8-1)+4) -> 0.28263 | U128: =VLOOKUP($Q128,NA_All!$X$5:$AS$245,3*($C$8-1)+2) -> 0.11892 | V128: =VLOOKUP($Q128,NA_All!$X$5:$AS$245,3*($C$8-1)+3) -> 0.12396 | W128: =VLOOKUP($Q128,NA_All!$X$5:$AS$245,3*($C$8-1)+4) -> 0.13506 | X128: =IF(ISNA(VLOOKUP($B$6,$A$25:$E$52,IF($B$8=$A$22,3,2))),EXP(VLOOKUP($B$6,$A$25:$E$52,4)*LN(VLOOKUP($Q128,#REF!,$C$8+1)/1000)+VLOOKUP($B$6,$A$25:$E$52,5)),VLOOKUP($B$6,$A$25:$E$52,IF($B$8=$A$22,3,2))) -> 0
H129: 104 | I129: =VLOOKUP($H129,P_All!$A$5:$V$205,3*($C$8-1)+2) -> 0.15082 | J129: =VLOOKUP($H129,P_All!$A$5:$V$205,3*($C$8-1)+3) -> 0.1598366667 | K129: =VLOOKUP($H129,P_All!$A$5:$V$205,3*($C$8-1)+4) -> 0.1799791667 | L129: =VLOOKUP($H129,NA_All!$A$5:$V$205,3*($C$8-1)+2) -> 0.09238316667 | M129: =VLOOKUP($H129,NA_All!$A$5:$V$205,3*($C$8-1)+3) -> 0.1076025 | N129: =VLOOKUP($H129,NA_All!$A$5:$V$205,3*($C$8-1)+4) -> 0.1538658333 | O129: =IF(ISNA(VLOOKUP($B$6,$A$25:$E$51,IF($B$8=$A$22,3,2))),EXP(VLOOKUP($B$6,$A$25:$E$51,4)*LN(VLOOKUP($H129,#REF!,$C$8+1)/1000)+VLOOKUP($B$6,$A$25:$E$51,5)),VLOOKUP($B$6,$A$25:$E$51,IF($B$8=$A$22,3,2))) -> 0 | Q129: 8.666666667 | R129: =VLOOKUP($Q129,P_All!$X$5:$AS$245,3*($C$8-1)+2) -> 0.26187 | S129: =VLOOKUP($Q129,P_All!$X$5:$AS$245,3*($C$8-1)+3) -> 0.26819 | T129: =VLOOKUP($Q129,P_All!$X$5:$AS$245,3*($C$8-1)+4) -> 0.27525 | U129: =VLOOKUP($Q129,NA_All!$X$5:$AS$245,3*($C$8-1)+2) -> 0.11903 | V129: =VLOOKUP($Q129,NA_All!$X$5:$AS$245,3*($C$8-1)+3) -> 0.12414 | W129: =VLOOKUP($Q129,NA_All!$X$5:$AS$245,3*($C$8-1)+4) -> 0.13534 | X129: =IF(ISNA(VLOOKUP($B$6,$A$25:$E$52,IF($B$8=$A$22,3,2))),EXP(VLOOKUP($B$6,$A$25:$E$52,4)*LN(VLOOKUP($Q129,#REF!,$C$8+1)/1000)+VLOOKUP($B$6,$A$25:$E$52,5)),VLOOKUP($B$6,$A$25:$E$52,IF($B$8=$A$22,3,2))) -> 0
H130: 105 | I130: =VLOOKUP($H130,P_All!$A$5:$V$205,3*($C$8-1)+2) -> 0.1508708333 | J130: =VLOOKUP($H130,P_All!$A$5:$V$205,3*($C$8-1)+3) -> 0.15966 | K130: =VLOOKUP($H130,P_All!$A$5:$V$205,3*($C$8-1)+4) -> 0.1804091667 | L130: =VLOOKUP($H130,NA_All!$A$5:$V$205,3*($C$8-1)+2) -> 0.0922105 | M130: =VLOOKUP($H130,NA_All!$A$5:$V$205,3*($C$8-1)+3) -> 0.107215 | N130: =VLOOKUP($H130,NA_All!$A$5:$V$205,3*($C$8-1)+4) -> 0.153125 | O130: =IF(ISNA(VLOOKUP($B$6,$A$25:$E$51,IF($B$8=$A$22,3,2))),EXP(VLOOKUP($B$6,$A$25:$E$51,4)*LN(VLOOKUP($H130,#REF!,$C$8+1)/1000)+VLOOKUP($B$6,$A$25:$E$51,5)),VLOOKUP($B$6,$A$25:$E$51,IF($B$8=$A$22,3,2))) -> 0 | Q130: 8.75 | R130: =VLOOKUP($Q130,P_All!$X$5:$AS$245,3*($C$8-1)+2) -> 0.2614 | S130: =VLOOKUP($Q130,P_All!$X$5:$AS$245,3*($C$8-1)+3) -> 0.26761 | T130: =VLOOKUP($Q130,P_All!$X$5:$AS$245,3*($C$8-1)+4) -> 0.27467 | U130: =VLOOKUP($Q130,NA_All!$X$5:$AS$245,3*($C$8-1)+2) -> 0.11866 | V130: =VLOOKUP($Q130,NA_All!$X$5:$AS$245,3*($C$8-1)+3) -> 0.12383 | W130: =VLOOKUP($Q130,NA_All!$X$5:$AS$245,3*($C$8-1)+4) -> 0.13531 | X130: =IF(ISNA(VLOOKUP($B$6,$A$25:$E$52,IF($B$8=$A$22,3,2))),EXP(VLOOKUP($B$6,$A$25:$E$52,4)*LN(VLOOKUP($Q130,#REF!,$C$8+1)/1000)+VLOOKUP($B$6,$A$25:$E$52,5)),VLOOKUP($B$6,$A$25:$E$52,IF($B$8=$A$22,3,2))) -> 0
H131: 106 | I131: =VLOOKUP($H131,P_All!$A$5:$V$205,3*($C$8-1)+2) -> 0.1507691667 | J131: =VLOOKUP($H131,P_All!$A$5:$V$205,3*($C$8-1)+3) -> 0.1597116667 | K131: =VLOOKUP($H131,P_All!$A$5:$V$205,3*($C$8-1)+4) -> 0.1803041667 | L131: =VLOOKUP($H131,NA_All!$A$5:$V$205,3*($C$8-1)+2) -> 0.092116 | M131: =VLOOKUP($H131,NA_All!$A$5:$V$205,3*($C$8-1)+3) -> 0.1070041667 | N131: =VLOOKUP($H131,NA_All!$A$5:$V$205,3*($C$8-1)+4) -> 0.1529883333 | O131: =IF(ISNA(VLOOKUP($B$6,$A$25:$E$51,IF($B$8=$A$22,3,2))),EXP(VLOOKUP($B$6,$A$25:$E$51,4)*LN(VLOOKUP($H131,#REF!,$C$8+1)/1000)+VLOOKUP($B$6,$A$25:$E$51,5)),VLOOKUP($B$6,$A$25:$E$51,IF($B$8=$A$22,3,2))) -> 0 | Q131: 8.833333333 | R131: =VLOOKUP($Q131,P_All!$X$5:$AS$245,3*($C$8-1)+2) -> 0.25775 | S131: =VLOOKUP($Q131,P_All!$X$5:$AS$245,3*($C$8-1)+3) -> 0.26365 | T131: =VLOOKUP($Q131,P_All!$X$5:$AS$245,3*($C$8-1)+4) -> 0.27042 | U131: =VLOOKUP($Q131,NA_All!$X$5:$AS$245,3*($C$8-1)+2) -> 0.11835 | V131: =VLOOKUP($Q131,NA_All!$X$5:$AS$245,3*($C$8-1)+3) -> 0.12359 | W131: =VLOOKUP($Q131,NA_All!$X$5:$AS$245,3*($C$8-1)+4) -> 0.13514 | X131: =IF(ISNA(VLOOKUP($B$6,$A$25:$E$52,IF($B$8=$A$22,3,2))),EXP(VLOOKUP($B$6,$A$25:$E$52,4)*LN(VLOOKUP($Q131,#REF!,$C$8+1)/1000)+VLOOKUP($B$6,$A$25:$E$52,5)),VLOOKUP($B$6,$A$25:$E$52,IF($B$8=$A$22,3,2))) -> 0
H132: 107 | I132: =VLOOKUP($H132,P_All!$A$5:$V$205,3*($C$8-1)+2) -> 0.150275 | J132: =VLOOKUP($H132,P_All!$A$5:$V$205,3*($C$8-1)+3) -> 0.1598683333 | K132: =VLOOKUP($H132,P_All!$A$5:$V$205,3*($C$8-1)+4) -> 0.1806058333 | L132: =VLOOKUP($H132,NA_All!$A$5:$V$205,3*($C$8-1)+2) -> 0.09217575 | M132: =VLOOKUP($H132,NA_All!$A$5:$V$205,3*($C$8-1)+3) -> 0.1068375 | N132: =VLOOKUP($H132,NA_All!$A$5:$V$205,3*($C$8-1)+4) -> 0.1534283333 | O132: =IF(ISNA(VLOOKUP($B$6,$A$25:$E$51,IF($B$8=$A$22,3,2))),EXP(VLOOKUP($B$6,$A$25:$E$51,4)*LN(VLOOKUP($H132,#REF!,$C$8+1)/1000)+VLOOKUP($B$6,$A$25:$E$51,5)),VLOOKUP($B$6,$A$25:$E$51,IF($B$8=$A$22,3,2))) -> 0 | Q132: 8.916666667 | R132: =VLOOKUP($Q132,P_All!$X$5:$AS$245,3*($C$8-1)+2) -> 0.25439 | S132: =VLOOKUP($Q132,P_All!$X$5:$AS$245,3*($C$8-1)+3) -> 0.25989 | T132: =VLOOKUP($Q132,P_All!$X$5:$AS$245,3*($C$8-1)+4) -> 0.26635 | U132: =VLOOKUP($Q132,NA_All!$X$5:$AS$245,3*($C$8-1)+2) -> 0.11864 | V132: =VLOOKUP($Q132,NA_All!$X$5:$AS$245,3*($C$8-1)+3) -> 0.12392 | W132: =VLOOKUP($Q132,NA_All!$X$5:$AS$245,3*($C$8-1)+4) -> 0.13585 | X132: =IF(ISNA(VLOOKUP($B$6,$A$25:$E$52,IF($B$8=$A$22,3,2))),EXP(VLOOKUP($B$6,$A$25:$E$52,4)*LN(VLOOKUP($Q132,#REF!,$C$8+1)/1000)+VLOOKUP($B$6,$A$25:$E$52,5)),VLOOKUP($B$6,$A$25:$E$52,IF($B$8=$A$22,3,2))) -> 0
H133: 108 | I133: =VLOOKUP($H133,P_All!$A$5:$V$205,3*($C$8-1)+2) -> 0.1502625 | J133: =VLOOKUP($H133,P_All!$A$5:$V$205,3*($C$8-1)+3) -> 0.15992 | K133: =VLOOKUP($H133,P_All!$A$5:$V$205,3*($C$8-1)+4) -> 0.1802108333 | L133: =VLOOKUP($H133,NA_All!$A$5:$V$205,3*($C$8-1)+2) -> 0.0921395 | M133: =VLOOKUP($H133,NA_All!$A$5:$V$205,3*($C$8-1)+3) -> 0.1067391667 | N133: =VLOOKUP($H133,NA_All!$A$5:$V$205,3*($C$8-1)+4) -> 0.1545675 | O133: =IF(ISNA(VLOOKUP($B$6,$A$25:$E$51,IF($B$8=$A$22,3,2))),EXP(VLOOKUP($B$6,$A$25:$E$51,4)*LN(VLOOKUP($H133,#REF!,$C$8+1)/1000)+VLOOKUP($B$6,$A$25:$E$51,5)),VLOOKUP($B$6,$A$25:$E$51,IF($B$8=$A$22,3,2))) -> 0 | Q133: 9 | R133: =VLOOKUP($Q133,P_All!$X$5:$AS$245,3*($C$8-1)+2) -> 0.25102 | S133: =VLOOKUP($Q133,P_All!$X$5:$AS$245,3*($C$8-1)+3) -> 0.25633 | T133: =VLOOKUP($Q133,P_All!$X$5:$AS$245,3*($C$8-1)+4) -> 0.26254 | U133: =VLOOKUP($Q133,NA_All!$X$5:$AS$245,3*($C$8-1)+2) -> 0.11867 | V133: =VLOOKUP($Q133,NA_All!$X$5:$AS$245,3*($C$8-1)+3) -> 0.12407 | W133: =VLOOKUP($Q133,NA_All!$X$5:$AS$245,3*($C$8-1)+4) -> 0.13617 | X133: =IF(ISNA(VLOOKUP($B$6,$A$25:$E$52,IF($B$8=$A$22,3,2))),EXP(VLOOKUP($B$6,$A$25:$E$52,4)*LN(VLOOKUP($Q133,#REF!,$C$8+1)/1000)+VLOOKUP($B$6,$A$25:$E$52,5)),VLOOKUP($B$6,$A$25:$E$52,IF($B$8=$A$22,3,2))) -> 0
H134: 109 | I134: =VLOOKUP($H134,P_All!$A$5:$V$205,3*($C$8-1)+2) -> 0.1503158333 | J134: =VLOOKUP($H134,P_All!$A$5:$V$205,3*($C$8-1)+3) -> 0.1597783333 | K134: =VLOOKUP($H134,P_All!$A$5:$V$205,3*($C$8-1)+4) -> 0.1798266667 | L134: =VLOOKUP($H134,NA_All!$A$5:$V$205,3*($C$8-1)+2) -> 0.09188758333 | M134: =VLOOKUP($H134,NA_All!$A$5:$V$205,3*($C$8-1)+3) -> 0.1069325 | N134: =VLOOKUP($H134,NA_All!$A$5:$V$205,3*($C$8-1)+4) -> 0.1540275 | O134: =IF(ISNA(VLOOKUP($B$6,$A$25:$E$51,IF($B$8=$A$22,3,2))),EXP(VLOOKUP($B$6,$A$25:$E$51,4)*LN(VLOOKUP($H134,#REF!,$C$8+1)/1000)+VLOOKUP($B$6,$A$25:$E$51,5)),VLOOKUP($B$6,$A$25:$E$51,IF($B$8=$A$22,3,2))) -> 0 | Q134: 9.083333333 | R134: =VLOOKUP($Q134,P_All!$X$5:$AS$245,3*($C$8-1)+2) -> 0.24743 | S134: =VLOOKUP($Q134,P_All!$X$5:$AS$245,3*($C$8-1)+3) -> 0.25263 | T134: =VLOOKUP($Q134,P_All!$X$5:$AS$245,3*($C$8-1)+4) -> 0.25842 | U134: =VLOOKUP($Q134,NA_All!$X$5:$AS$245,3*($C$8-1)+2) -> 0.11828 | V134: =VLOOKUP($Q134,NA_All!$X$5:$AS$245,3*($C$8-1)+3) -> 0.12383 | W134: =VLOOKUP($Q134,NA_All!$X$5:$AS$245,3*($C$8-1)+4) -> 0.13588 | X134: =IF(ISNA(VLOOKUP($B$6,$A$25:$E$52,IF($B$8=$A$22,3,2))),EXP(VLOOKUP($B$6,$A$25:$E$52,4)*LN(VLOOKUP($Q134,#REF!,$C$8+1)/1000)+VLOOKUP($B$6,$A$25:$E$52,5)),VLOOKUP($B$6,$A$25:$E$52,IF($B$8=$A$22,3,2))) -> 0
H135: 110 | I135: =VLOOKUP($H135,P_All!$A$5:$V$205,3*($C$8-1)+2) -> 0.15031 | J135: =VLOOKUP($H135,P_All!$A$5:$V$205,3*($C$8-1)+3) -> 0.1593625 | K135: =VLOOKUP($H135,P_All!$A$5:$V$205,3*($C$8-1)+4) -> 0.1801325 | L135: =VLOOKUP($H135,NA_All!$A$5:$V$205,3*($C$8-1)+2) -> 0.09161108333 | M135: =VLOOKUP($H135,NA_All!$A$5:$V$205,3*($C$8-1)+3) -> 0.10691 | N135: =VLOOKUP($H135,NA_All!$A$5:$V$205,3*($C$8-1)+4) -> 0.1519583333 | O135: =IF(ISNA(VLOOKUP($B$6,$A$25:$E$51,IF($B$8=$A$22,3,2))),EXP(VLOOKUP($B$6,$A$25:$E$51,4)*LN(VLOOKUP($H135,#REF!,$C$8+1)/1000)+VLOOKUP($B$6,$A$25:$E$51,5)),VLOOKUP($B$6,$A$25:$E$51,IF($B$8=$A$22,3,2))) -> 0 | Q135: 9.166666667 | R135: =VLOOKUP($Q135,P_All!$X$5:$AS$245,3*($C$8-1)+2) -> 0.24393 | S135: =VLOOKUP($Q135,P_All!$X$5:$AS$245,3*($C$8-1)+3) -> 0.24871 | T135: =VLOOKUP($Q135,P_All!$X$5:$AS$245,3*($C$8-1)+4) -> 0.25418 | U135: =VLOOKUP($Q135,NA_All!$X$5:$AS$245,3*($C$8-1)+2) -> 0.11821 | V135: =VLOOKUP($Q135,NA_All!$X$5:$AS$245,3*($C$8-1)+3) -> 0.12376 | W135: =VLOOKUP($Q135,NA_All!$X$5:$AS$245,3*($C$8-1)+4) -> 0.13602 | X135: =IF(ISNA(VLOOKUP($B$6,$A$25:$E$52,IF($B$8=$A$22,3,2))),EXP(VLOOKUP($B$6,$A$25:$E$52,4)*LN(VLOOKUP($Q135,#REF!,$C$8+1)/1000)+VLOOKUP($B$6,$A$25:$E$52,5)),VLOOKUP($B$6,$A$25:$E$52,IF($B$8=$A$22,3,2))) -> 0
H136: 111 | I136: =VLOOKUP($H136,P_All!$A$5:$V$205,3*($C$8-1)+2) -> 0.1503675 | J136: =VLOOKUP($H136,P_All!$A$5:$V$205,3*($C$8-1)+3) -> 0.1593833333 | K136: =VLOOKUP($H136,P_All!$A$5:$V$205,3*($C$8-1)+4) -> 0.1795925 | L136: =VLOOKUP($H136,NA_All!$A$5:$V$205,3*($C$8-1)+2) -> 0.09154758333 | M136: =VLOOKUP($H136,NA_All!$A$5:$V$205,3*($C$8-1)+3) -> 0.1066666667 | N136: =VLOOKUP($H136,NA_All!$A$5:$V$205,3*($C$8-1)+4) -> 0.1504566667 | O136: =IF(ISNA(VLOOKUP($B$6,$A$25:$E$51,IF($B$8=$A$22,3,2))),EXP(VLOOKUP($B$6,$A$25:$E$51,4)*LN(VLOOKUP($H136,#REF!,$C$8+1)/1000)+VLOOKUP($B$6,$A$25:$E$51,5)),VLOOKUP($B$6,$A$25:$E$51,IF($B$8=$A$22,3,2))) -> 0 | Q136: 9.25 | R136: =VLOOKUP($Q136,P_All!$X$5:$AS$245,3*($C$8-1)+2) -> 0.24067 | S136: =VLOOKUP($Q136,P_All!$X$5:$AS$245,3*($C$8-1)+3) -> 0.24521 | T136: =VLOOKUP($Q136,P_All!$X$5:$AS$245,3*($C$8-1)+4) -> 0.25027 | U136: =VLOOKUP($Q136,NA_All!$X$5:$AS$245,3*($C$8-1)+2) -> 0.11849 | V136: =VLOOKUP($Q136,NA_All!$X$5:$AS$245,3*($C$8-1)+3) -> 0.12417 | W136: =VLOOKUP($Q136,NA_All!$X$5:$AS$245,3*($C$8-1)+4) -> 0.13654 | X136: =IF(ISNA(VLOOKUP($B$6,$A$25:$E$52,IF($B$8=$A$22,3,2))),EXP(VLOOKUP($B$6,$A$25:$E$52,4)*LN(VLOOKUP($Q136,#REF!,$C$8+1)/1000)+VLOOKUP($B$6,$A$25:$E$52,5)),VLOOKUP($B$6,$A$25:$E$52,IF($B$8=$A$22,3,2))) -> 0
H137: 112 | I137: =VLOOKUP($H137,P_All!$A$5:$V$205,3*($C$8-1)+2) -> 0.1502525 | J137: =VLOOKUP($H137,P_All!$A$5:$V$205,3*($C$8-1)+3) -> 0.1594241667 | K137: =VLOOKUP($H137,P_All!$A$5:$V$205,3*($C$8-1)+4) -> 0.1797316667 | L137: =VLOOKUP($H137,NA_All!$A$5:$V$205,3*($C$8-1)+2) -> 0.09150675 | M137: =VLOOKUP($H137,NA_All!$A$5:$V$205,3*($C$8-1)+3) -> 0.1065175 | N137: =VLOOKUP($H137,NA_All!$A$5:$V$205,3*($C$8-1)+4) -> 0.1508741667 | O137: =IF(ISNA(VLOOKUP($B$6,$A$25:$E$51,IF($B$8=$A$22,3,2))),EXP(VLOOKUP($B$6,$A$25:$E$51,4)*LN(VLOOKUP($H137,#REF!,$C$8+1)/1000)+VLOOKUP($B$6,$A$25:$E$51,5)),VLOOKUP($B$6,$A$25:$E$51,IF($B$8=$A$22,3,2))) -> 0 | Q137: 9.333333333 | R137: =VLOOKUP($Q137,P_All!$X$5:$AS$245,3*($C$8-1)+2) -> 0.22795 | S137: =VLOOKUP($Q137,P_All!$X$5:$AS$245,3*($C$8-1)+3) -> 0.23147 | T137: =VLOOKUP($Q137,P_All!$X$5:$AS$245,3*($C$8-1)+4) -> 0.2355 | U137: =VLOOKUP($Q137,NA_All!$X$5:$AS$245,3*($C$8-1)+2) -> 0.11845 | V137: =VLOOKUP($Q137,NA_All!$X$5:$AS$245,3*($C$8-1)+3) -> 0.12428 | W137: =VLOOKUP($Q137,NA_All!$X$5:$AS$245,3*($C$8-1)+4) -> 0.13662 | X137: =IF(ISNA(VLOOKUP($B$6,$A$25:$E$52,IF($B$8=$A$22,3,2))),EXP(VLOOKUP($B$6,$A$25:$E$52,4)*LN(VLOOKUP($Q137,#REF!,$C$8+1)/1000)+VLOOKUP($B$6,$A$25:$E$52,5)),VLOOKUP($B$6,$A$25:$E$52,IF($B$8=$A$22,3,2))) -> 0
H138: 113 | I138: =VLOOKUP($H138,P_All!$A$5:$V$205,3*($C$8-1)+2) -> 0.1504033333 | J138: =VLOOKUP($H138,P_All!$A$5:$V$205,3*($C$8-1)+3) -> 0.1596266667 | K138: =VLOOKUP($H138,P_All!$A$5:$V$205,3*($C$8-1)+4) -> 0.1803625 | L138: =VLOOKUP($H138,NA_All!$A$5:$V$205,3*($C$8-1)+2) -> 0.09134625 | M138: =VLOOKUP($H138,NA_All!$A$5:$V$205,3*($C$8-1)+3) -> 0.1064308333 | N138: =VLOOKUP($H138,NA_All!$A$5:$V$205,3*($C$8-1)+4) -> 0.1508891667 | O138: =IF(ISNA(VLOOKUP($B$6,$A$25:$E$51,IF($B$8=$A$22,3,2))),EXP(VLOOKUP($B$6,$A$25:$E$51,4)*LN(VLOOKUP($H138,#REF!,$C$8+1)/1000)+VLOOKUP($B$6,$A$25:$E$51,5)),VLOOKUP($B$6,$A$25:$E$51,IF($B$8=$A$22,3,2))) -> 0 | Q138: 9.416666667 | R138: =VLOOKUP($Q138,P_All!$X$5:$AS$245,3*($C$8-1)+2) -> 0.23253 | S138: =VLOOKUP($Q138,P_All!$X$5:$AS$245,3*($C$8-1)+3) -> 0.23636 | T138: =VLOOKUP($Q138,P_All!$X$5:$AS$245,3*($C$8-1)+4) -> 0.2407 | U138: =VLOOKUP($Q138,NA_All!$X$5:$AS$245,3*($C$8-1)+2) -> 0.11826 | V138: =VLOOKUP($Q138,NA_All!$X$5:$AS$245,3*($C$8-1)+3) -> 0.12421 | W138: =VLOOKUP($Q138,NA_All!$X$5:$AS$245,3*($C$8-1)+4) -> 0.13669 | X138: =IF(ISNA(VLOOKUP($B$6,$A$25:$E$52,IF($B$8=$A$22,3,2))),EXP(VLOOKUP($B$6,$A$25:$E$52,4)*LN(VLOOKUP($Q138,#REF!,$C$8+1)/1000)+VLOOKUP($B$6,$A$25:$E$52,5)),VLOOKUP($B$6,$A$25:$E$52,IF($B$8=$A$22,3,2))) -> 0
H139: 114 | I139: =VLOOKUP($H139,P_All!$A$5:$V$205,3*($C$8-1)+2) -> 0.1503591667 | J139: =VLOOKUP($H139,P_All!$A$5:$V$205,3*($C$8-1)+3) -> 0.159865 | K139: =VLOOKUP($H139,P_All!$A$5:$V$205,3*($C$8-1)+4) -> 0.1805058333 | L139: =VLOOKUP($H139,NA_All!$A$5:$V$205,3*($C$8-1)+2) -> 0.09127716667 | M139: =VLOOKUP($H139,NA_All!$A$5:$V$205,3*($C$8-1)+3) -> 0.1064016667 | N139: =VLOOKUP($H139,NA_All!$A$5:$V$205,3*($C$8-1)+4) -> 0.1504841667 | O139: =IF(ISNA(VLOOKUP($B$6,$A$25:$E$51,IF($B$8=$A$22,3,2))),EXP(VLOOKUP($B$6,$A$25:$E$51,4)*LN(VLOOKUP($H139,#REF!,$C$8+1)/1000)+VLOOKUP($B$6,$A$25:$E$51,5)),VLOOKUP($B$6,$A$25:$E$51,IF($B$8=$A$22,3,2))) -> 0 | Q139: 9.5 | R139: =VLOOKUP($Q139,P_All!$X$5:$AS$245,3*($C$8-1)+2) -> 0.23252 | S139: =VLOOKUP($Q139,P_All!$X$5:$AS$245,3*($C$8-1)+3) -> 0.23637 | T139: =VLOOKUP($Q139,P_All!$X$5:$AS$245,3*($C$8-1)+4) -> 0.24078 | U139: =VLOOKUP($Q139,NA_All!$X$5:$AS$245,3*($C$8-1)+2) -> 0.11814 | V139: =VLOOKUP($Q139,NA_All!$X$5:$AS$245,3*($C$8-1)+3) -> 0.12412 | W139: =VLOOKUP($Q139,NA_All!$X$5:$AS$245,3*($C$8-1)+4) -> 0.13682 | X139: =IF(ISNA(VLOOKUP($B$6,$A$25:$E$52,IF($B$8=$A$22,3,2))),EXP(VLOOKUP($B$6,$A$25:$E$52,4)*LN(VLOOKUP($Q139,#REF!,$C$8+1)/1000)+VLOOKUP($B$6,$A$25:$E$52,5)),VLOOKUP($B$6,$A$25:$E$52,IF($B$8=$A$22,3,2))) -> 0
H140: 115 | I140: =VLOOKUP($H140,P_All!$A$5:$V$205,3*($C$8-1)+2) -> 0.1501991667 | J140: =VLOOKUP($H140,P_All!$A$5:$V$205,3*($C$8-1)+3) -> 0.1598616667 | K140: =VLOOKUP($H140,P_All!$A$5:$V$205,3*($C$8-1)+4) -> 0.1801416667 | L140: =VLOOKUP($H140,NA_All!$A$5:$V$205,3*($C$8-1)+2) -> 0.091383 | M140: =VLOOKUP($H140,NA_All!$A$5:$V$205,3*($C$8-1)+3) -> 0.1062891667 | N140: =VLOOKUP($H140,NA_All!$A$5:$V$205,3*($C$8-1)+4) -> 0.1502608333 | O140: =IF(ISNA(VLOOKUP($B$6,$A$25:$E$51,IF($B$8=$A$22,3,2))),EXP(VLOOKUP($B$6,$A$25:$E$51,4)*LN(VLOOKUP($H140,#REF!,$C$8+1)/1000)+VLOOKUP($B$6,$A$25:$E$51,5)),VLOOKUP($B$6,$A$25:$E$51,IF($B$8=$A$22,3,2))) -> 0 | Q140: 9.583333333 | R140: =VLOOKUP($Q140,P_All!$X$5:$AS$245,3*($C$8-1)+2) -> 0.23025 | S140: =VLOOKUP($Q140,P_All!$X$5:$AS$245,3*($C$8-1)+3) -> 0.23389 | T140: =VLOOKUP($Q140,P_All!$X$5:$AS$245,3*($C$8-1)+4) -> 0.23814 | U140: =VLOOKUP($Q140,NA_All!$X$5:$AS$245,3*($C$8-1)+2) -> 0.1182 | V140: =VLOOKUP($Q140,NA_All!$X$5:$AS$245,3*($C$8-1)+3) -> 0.12424 | W140: =VLOOKUP($Q140,NA_All!$X$5:$AS$245,3*($C$8-1)+4) -> 0.13718 | X140: =IF(ISNA(VLOOKUP($B$6,$A$25:$E$52,IF($B$8=$A$22,3,2))),EXP(VLOOKUP($B$6,$A$25:$E$52,4)*LN(VLOOKUP($Q140,#REF!,$C$8+1)/1000)+VLOOKUP($B$6,$A$25:$E$52,5)),VLOOKUP($B$6,$A$25:$E$52,IF($B$8=$A$22,3,2))) -> 0
H141: 116 | I141: =VLOOKUP($H141,P_All!$A$5:$V$205,3*($C$8-1)+2) -> 0.15046 | J141: =VLOOKUP($H141,P_All!$A$5:$V$205,3*($C$8-1)+3) -> 0.15979 | K141: =VLOOKUP($H141,P_All!$A$5:$V$205,3*($C$8-1)+4) -> 0.1802725 | L141: =VLOOKUP($H141,NA_All!$A$5:$V$205,3*($C$8-1)+2) -> 0.09142366667 | M141: =VLOOKUP($H141,NA_All!$A$5:$V$205,3*($C$8-1)+3) -> 0.1061658333 | N141: =VLOOKUP($H141,NA_All!$A$5:$V$205,3*($C$8-1)+4) -> 0.1502033333 | O141: =IF(ISNA(VLOOKUP($B$6,$A$25:$E$51,IF($B$8=$A$22,3,2))),EXP(VLOOKUP($B$6,$A$25:$E$51,4)*LN(VLOOKUP($H141,#REF!,$C$8+1)/1000)+VLOOKUP($B$6,$A$25:$E$51,5)),VLOOKUP($B$6,$A$25:$E$51,IF($B$8=$A$22,3,2))) -> 0 | Q141: 9.666666667 | R141: =VLOOKUP($Q141,P_All!$X$5:$AS$245,3*($C$8-1)+2) -> 0.22579 | S141: =VLOOKUP($Q141,P_All!$X$5:$AS$245,3*($C$8-1)+3) -> 0.22914 | T141: =VLOOKUP($Q141,P_All!$X$5:$AS$245,3*($C$8-1)+4) -> 0.23286 | U141: =VLOOKUP($Q141,NA_All!$X$5:$AS$245,3*($C$8-1)+2) -> 0.11788 | V141: =VLOOKUP($Q141,NA_All!$X$5:$AS$245,3*($C$8-1)+3) -> 0.12401 | W141: =VLOOKUP($Q141,NA_All!$X$5:$AS$245,3*($C$8-1)+4) -> 0.13733 | X141: =IF(ISNA(VLOOKUP($B$6,$A$25:$E$52,IF($B$8=$A$22,3,2))),EXP(VLOOKUP($B$6,$A$25:$E$52,4)*LN(VLOOKUP($Q141,#REF!,$C$8+1)/1000)+VLOOKUP($B$6,$A$25:$E$52,5)),VLOOKUP($B$6,$A$25:$E$52,IF($B$8=$A$22,3,2))) -> 0
H142: 117 | I142: =VLOOKUP($H142,P_All!$A$5:$V$205,3*($C$8-1)+2) -> 0.1499375 | J142: =VLOOKUP($H142,P_All!$A$5:$V$205,3*($C$8-1)+3) -> 0.1599425 | K142: =VLOOKUP($H142,P_All!$A$5:$V$205,3*($C$8-1)+4) -> 0.1804391667 | L142: =VLOOKUP($H142,NA_All!$A$5:$V$205,3*($C$8-1)+2) -> 0.09146433333 | M142: =VLOOKUP($H142,NA_All!$A$5:$V$205,3*($C$8-1)+3) -> 0.1060258333 | N142: =VLOOKUP($H142,NA_All!$A$5:$V$205,3*($C$8-1)+4) -> 0.1498125 | O142: =IF(ISNA(VLOOKUP($B$6,$A$25:$E$51,IF($B$8=$A$22,3,2))),EXP(VLOOKUP($B$6,$A$25:$E$51,4)*LN(VLOOKUP($H142,#REF!,$C$8+1)/1000)+VLOOKUP($B$6,$A$25:$E$51,5)),VLOOKUP($B$6,$A$25:$E$51,IF($B$8=$A$22,3,2))) -> 0 | Q142: 9.75 | R142: =VLOOKUP($Q142,P_All!$X$5:$AS$245,3*($C$8-1)+2) -> 0.22346 | S142: =VLOOKUP($Q142,P_All!$X$5:$AS$245,3*($C$8-1)+3) -> 0.2267 | T142: =VLOOKUP($Q142,P_All!$X$5:$AS$245,3*($C$8-1)+4) -> 0.23024 | U142: =VLOOKUP($Q142,NA_All!$X$5:$AS$245,3*($C$8-1)+2) -> 0.11759 | V142: =VLOOKUP($Q142,NA_All!$X$5:$AS$245,3*($C$8-1)+3) -> 0.12383 | W142: =VLOOKUP($Q142,NA_All!$X$5:$AS$245,3*($C$8-1)+4) -> 0.13721 | X142: =IF(ISNA(VLOOKUP($B$6,$A$25:$E$52,IF($B$8=$A$22,3,2))),EXP(VLOOKUP($B$6,$A$25:$E$52,4)*LN(VLOOKUP($Q142,#REF!,$C$8+1)/1000)+VLOOKUP($B$6,$A$25:$E$52,5)),VLOOKUP($B$6,$A$25:$E$52,IF($B$8=$A$22,3,2))) -> 0
H143: 118 | I143: =VLOOKUP($H143,P_All!$A$5:$V$205,3*($C$8-1)+2) -> 0.1501275 | J143: =VLOOKUP($H143,P_All!$A$5:$V$205,3*($C$8-1)+3) -> 0.1600125 | K143: =VLOOKUP($H143,P_All!$A$5:$V$205,3*($C$8-1)+4) -> 0.1807741667 | L143: =VLOOKUP($H143,NA_All!$A$5:$V$205,3*($C$8-1)+2) -> 0.09134133333 | M143: =VLOOKUP($H143,NA_All!$A$5:$V$205,3*($C$8-1)+3) -> 0.1058766667 | N143: =VLOOKUP($H143,NA_All!$A$5:$V$205,3*($C$8-1)+4) -> 0.14951 | O143: =IF(ISNA(VLOOKUP($B$6,$A$25:$E$51,IF($B$8=$A$22,3,2))),EXP(VLOOKUP($B$6,$A$25:$E$51,4)*LN(VLOOKUP($H143,#REF!,$C$8+1)/1000)+VLOOKUP($B$6,$A$25:$E$51,5)),VLOOKUP($B$6,$A$25:$E$51,IF($B$8=$A$22,3,2))) -> 0 | Q143: 9.833333333 | R143: =VLOOKUP($Q143,P_All!$X$5:$AS$245,3*($C$8-1)+2) -> 0.22143 | S143: =VLOOKUP($Q143,P_All!$X$5:$AS$245,3*($C$8-1)+3) -> 0.2245 | T143: =VLOOKUP($Q143,P_All!$X$5:$AS$245,3*($C$8-1)+4) -> 0.22786 | U143: =VLOOKUP($Q143,NA_All!$X$5:$AS$245,3*($C$8-1)+2) -> 0.11792 | V143: =VLOOKUP($Q143,NA_All!$X$5:$AS$245,3*($C$8-1)+3) -> 0.12425 | W143: =VLOOKUP($Q143,NA_All!$X$5:$AS$245,3*($C$8-1)+4) -> 0.13786 | X143: =IF(ISNA(VLOOKUP($B$6,$A$25:$E$52,IF($B$8=$A$22,3,2))),EXP(VLOOKUP($B$6,$A$25:$E$52,4)*LN(VLOOKUP($Q143,#REF!,$C$8+1)/1000)+VLOOKUP($B$6,$A$25:$E$52,5)),VLOOKUP($B$6,$A$25:$E$52,IF($B$8=$A$22,3,2))) -> 0
H144: 119 | I144: =VLOOKUP($H144,P_All!$A$5:$V$205,3*($C$8-1)+2) -> 0.1505183333 | J144: =VLOOKUP($H144,P_All!$A$5:$V$205,3*($C$8-1)+3) -> 0.1599908333 | K144: =VLOOKUP($H144,P_All!$A$5:$V$205,3*($C$8-1)+4) -> 0.1802591667 | L144: =VLOOKUP($H144,NA_All!$A$5:$V$205,3*($C$8-1)+2) -> 0.09115991667 | M144: =VLOOKUP($H144,NA_All!$A$5:$V$205,3*($C$8-1)+3) -> 0.10556 | N144: =VLOOKUP($H144,NA_All!$A$5:$V$205,3*($C$8-1)+4) -> 0.1491916667 | O144: =IF(ISNA(VLOOKUP($B$6,$A$25:$E$51,IF($B$8=$A$22,3,2))),EXP(VLOOKUP($B$6,$A$25:$E$51,4)*LN(VLOOKUP($H144,#REF!,$C$8+1)/1000)+VLOOKUP($B$6,$A$25:$E$51,5)),VLOOKUP($B$6,$A$25:$E$51,IF($B$8=$A$22,3,2))) -> 0 | Q144: 9.916666667 | R144: =VLOOKUP($Q144,P_All!$X$5:$AS$245,3*($C$8-1)+2) -> 0.2148 | S144: =VLOOKUP($Q144,P_All!$X$5:$AS$245,3*($C$8-1)+3) -> 0.21723 | T144: =VLOOKUP($Q144,P_All!$X$5:$AS$245,3*($C$8-1)+4) -> 0.22019 | U144: =VLOOKUP($Q144,NA_All!$X$5:$AS$245,3*($C$8-1)+2) -> 0.1177 | V144: =VLOOKUP($Q144,NA_All!$X$5:$AS$245,3*($C$8-1)+3) -> 0.12421 | W144: =VLOOKUP($Q144,NA_All!$X$5:$AS$245,3*($C$8-1)+4) -> 0.13797 | X144: =IF(ISNA(VLOOKUP($B$6,$A$25:$E$52,IF($B$8=$A$22,3,2))),EXP(VLOOKUP($B$6,$A$25:$E$52,4)*LN(VLOOKUP($Q144,#REF!,$C$8+1)/1000)+VLOOKUP($B$6,$A$25:$E$52,5)),VLOOKUP($B$6,$A$25:$E$52,IF($B$8=$A$22,3,2))) -> 0
H145: 120 | I145: =VLOOKUP($H145,P_All!$A$5:$V$205,3*($C$8-1)+2) -> 0.1506141667 | J145: =VLOOKUP($H145,P_All!$A$5:$V$205,3*($C$8-1)+3) -> 0.1601483333 | K145: =VLOOKUP($H145,P_All!$A$5:$V$205,3*($C$8-1)+4) -> 0.1800075 | L145: =VLOOKUP($H145,NA_All!$A$5:$V$205,3*($C$8-1)+2) -> 0.09123825 | M145: =VLOOKUP($H145,NA_All!$A$5:$V$205,3*($C$8-1)+3) -> 0.1053575 | N145: =VLOOKUP($H145,NA_All!$A$5:$V$205,3*($C$8-1)+4) -> 0.1490841667 | O145: =IF(ISNA(VLOOKUP($B$6,$A$25:$E$51,IF($B$8=$A$22,3,2))),EXP(VLOOKUP($B$6,$A$25:$E$51,4)*LN(VLOOKUP($H145,#REF!,$C$8+1)/1000)+VLOOKUP($B$6,$A$25:$E$51,5)),VLOOKUP($B$6,$A$25:$E$51,IF($B$8=$A$22,3,2))) -> 0 | Q145: 10 | R145: =VLOOKUP($Q145,P_All!$X$5:$AS$245,3*($C$8-1)+2) -> 0.21045 | S145: =VLOOKUP($Q145,P_All!$X$5:$AS$245,3*($C$8-1)+3) -> 0.2127 | T145: =VLOOKUP($Q145,P_All!$X$5:$AS$245,3*($C$8-1)+4) -> 0.21548 | U145: =VLOOKUP($Q145,NA_All!$X$5:$AS$245,3*($C$8-1)+2) -> 0.11721 | V145: =VLOOKUP($Q145,NA_All!$X$5:$AS$245,3*($C$8-1)+3) -> 0.12381 | W145: =VLOOKUP($Q145,NA_All!$X$5:$AS$245,3*($C$8-1)+4) -> 0.1376 | X145: =IF(ISNA(VLOOKUP($B$6,$A$25:$E$52,IF($B$8=$A$22,3,2))),EXP(VLOOKUP($B$6,$A$25:$E$52,4)*LN(VLOOKUP($Q145,#REF!,$C$8+1)/1000)+VLOOKUP($B$6,$A$25:$E$52,5)),VLOOKUP($B$6,$A$25:$E$52,IF($B$8=$A$22,3,2))) -> 0
H146: 121 | I146: =VLOOKUP($H146,P_All!$A$5:$V$205,3*($C$8-1)+2) -> 0.1506158333 | J146: =VLOOKUP($H146,P_All!$A$5:$V$205,3*($C$8-1)+3) -> 0.1600475 | K146: =VLOOKUP($H146,P_All!$A$5:$V$205,3*($C$8-1)+4) -> 0.1806958333 | L146: =VLOOKUP($H146,NA_All!$A$5:$V$205,3*($C$8-1)+2) -> 0.09117066667 | M146: =VLOOKUP($H146,NA_All!$A$5:$V$205,3*($C$8-1)+3) -> 0.1053875 | N146: =VLOOKUP($H146,NA_All!$A$5:$V$205,3*($C$8-1)+4) -> 0.1485266667 | O146: =IF(ISNA(VLOOKUP($B$6,$A$25:$E$51,IF($B$8=$A$22,3,2))),EXP(VLOOKUP($B$6,$A$25:$E$51,4)*LN(VLOOKUP($H146,#REF!,$C$8+1)/1000)+VLOOKUP($B$6,$A$25:$E$51,5)),VLOOKUP($B$6,$A$25:$E$51,IF($B$8=$A$22,3,2))) -> 0 | Q146: 10.08333333 | R146: =VLOOKUP($Q146,P_All!$X$5:$AS$245,3*($C$8-1)+2) -> 0.21618 | S146: =VLOOKUP($Q146,P_All!$X$5:$AS$245,3*($C$8-1)+3) -> 0.21876 | T146: =VLOOKUP($Q146,P_All!$X$5:$AS$245,3*($C$8-1)+4) -> 0.22201 | U146: =VLOOKUP($Q146,NA_All!$X$5:$AS$245,3*($C$8-1)+2) -> 0.11705 | V146: =VLOOKUP($Q146,NA_All!$X$5:$AS$245,3*($C$8-1)+3) -> 0.12372 | W146: =VLOOKUP($Q146,NA_All!$X$5:$AS$245,3*($C$8-1)+4) -> 0.13783 | X146: =IF(ISNA(VLOOKUP($B$6,$A$25:$E$52,IF($B$8=$A$22,3,2))),EXP(VLOOKUP($B$6,$A$25:$E$52,4)*LN(VLOOKUP($Q146,#REF!,$C$8+1)/1000)+VLOOKUP($B$6,$A$25:$E$52,5)),VLOOKUP($B$6,$A$25:$E$52,IF($B$8=$A$22,3,2))) -> 0
H147: 122 | I147: =VLOOKUP($H147,P_All!$A$5:$V$205,3*($C$8-1)+2) -> 0.1505966667 | J147: =VLOOKUP($H147,P_All!$A$5:$V$205,3*($C$8-1)+3) -> 0.159525 | K147: =VLOOKUP($H147,P_All!$A$5:$V$205,3*($C$8-1)+4) -> 0.1808025 | L147: =VLOOKUP($H147,NA_All!$A$5:$V$205,3*($C$8-1)+2) -> 0.09113016667 | M147: =VLOOKUP($H147,NA_All!$A$5:$V$205,3*($C$8-1)+3) -> 0.105405 | N147: =VLOOKUP($H147,NA_All!$A$5:$V$205,3*($C$8-1)+4) -> 0.148745 | O147: =IF(ISNA(VLOOKUP($B$6,$A$25:$E$51,IF($B$8=$A$22,3,2))),EXP(VLOOKUP($B$6,$A$25:$E$51,4)*LN(VLOOKUP($H147,#REF!,$C$8+1)/1000)+VLOOKUP($B$6,$A$25:$E$51,5)),VLOOKUP($B$6,$A$25:$E$51,IF($B$8=$A$22,3,2))) -> 0 | Q147: 10.16666667 | R147: =VLOOKUP($Q147,P_All!$X$5:$AS$245,3*($C$8-1)+2) -> 0.21498 | S147: =VLOOKUP($Q147,P_All!$X$5:$AS$245,3*($C$8-1)+3) -> 0.21749 | T147: =VLOOKUP($Q147,P_All!$X$5:$AS$245,3*($C$8-1)+4) -> 0.22048 | U147: =VLOOKUP($Q147,NA_All!$X$5:$AS$245,3*($C$8-1)+2) -> 0.11716 | V147: =VLOOKUP($Q147,NA_All!$X$5:$AS$245,3*($C$8-1)+3) -> 0.12404 | W147: =VLOOKUP($Q147,NA_All!$X$5:$AS$245,3*($C$8-1)+4) -> 0.13841 | X147: =IF(ISNA(VLOOKUP($B$6,$A$25:$E$52,IF($B$8=$A$22,3,2))),EXP(VLOOKUP($B$6,$A$25:$E$52,4)*LN(VLOOKUP($Q147,#REF!,$C$8+1)/1000)+VLOOKUP($B$6,$A$25:$E$52,5)),VLOOKUP($B$6,$A$25:$E$52,IF($B$8=$A$22,3,2))) -> 0
H148: 123 | I148: =VLOOKUP($H148,P_All!$A$5:$V$205,3*($C$8-1)+2) -> 0.1505616667 | J148: =VLOOKUP($H148,P_All!$A$5:$V$205,3*($C$8-1)+3) -> 0.1595858333 | K148: =VLOOKUP($H148,P_All!$A$5:$V$205,3*($C$8-1)+4) -> 0.180735 | L148: =VLOOKUP($H148,NA_All!$A$5:$V$205,3*($C$8-1)+2) -> 0.09100958333 | M148: =VLOOKUP($H148,NA_All!$A$5:$V$205,3*($C$8-1)+3) -> 0.1053383333 | N148: =VLOOKUP($H148,NA_All!$A$5:$V$205,3*($C$8-1)+4) -> 0.1491308333 | O148: =IF(ISNA(VLOOKUP($B$6,$A$25:$E$51,IF($B$8=$A$22,3,2))),EXP(VLOOKUP($B$6,$A$25:$E$51,4)*LN(VLOOKUP($H148,#REF!,$C$8+1)/1000)+VLOOKUP($B$6,$A$25:$E$51,5)),VLOOKUP($B$6,$A$25:$E$51,IF($B$8=$A$22,3,2))) -> 0 | Q148: 10.25 | R148: =VLOOKUP($Q148,P_All!$X$5:$AS$245,3*($C$8-1)+2) -> 0.21378 | S148: =VLOOKUP($Q148,P_All!$X$5:$AS$245,3*($C$8-1)+3) -> 0.2162 | T148: =VLOOKUP($Q148,P_All!$X$5:$AS$245,3*($C$8-1)+4) -> 0.21931 | U148: =VLOOKUP($Q148,NA_All!$X$5:$AS$245,3*($C$8-1)+2) -> 0.11718 | V148: =VLOOKUP($Q148,NA_All!$X$5:$AS$245,3*($C$8-1)+3) -> 0.12396 | W148: =VLOOKUP($Q148,NA_All!$X$5:$AS$245,3*($C$8-1)+4) -> 0.13864 | X148: =IF(ISNA(VLOOKUP($B$6,$A$25:$E$52,IF($B$8=$A$22,3,2))),EXP(VLOOKUP($B$6,$A$25:$E$52,4)*LN(VLOOKUP($Q148,#REF!,$C$8+1)/1000)+VLOOKUP($B$6,$A$25:$E$52,5)),VLOOKUP($B$6,$A$25:$E$52,IF($B$8=$A$22,3,2))) -> 0
H149: 124 | I149: =VLOOKUP($H149,P_All!$A$5:$V$205,3*($C$8-1)+2) -> 0.1499975 | J149: =VLOOKUP($H149,P_All!$A$5:$V$205,3*($C$8-1)+3) -> 0.1594925 | K149: =VLOOKUP($H149,P_All!$A$5:$V$205,3*($C$8-1)+4) -> 0.1809133333 | L149: =VLOOKUP($H149,NA_All!$A$5:$V$205,3*($C$8-1)+2) -> 0.09074191667 | M149: =VLOOKUP($H149,NA_All!$A$5:$V$205,3*($C$8-1)+3) -> 0.1051358333 | N149: =VLOOKUP($H149,NA_All!$A$5:$V$205,3*($C$8-1)+4) -> 0.1491641667 | O149: =IF(ISNA(VLOOKUP($B$6,$A$25:$E$51,IF($B$8=$A$22,3,2))),EXP(VLOOKUP($B$6,$A$25:$E$51,4)*LN(VLOOKUP($H149,#REF!,$C$8+1)/1000)+VLOOKUP($B$6,$A$25:$E$51,5)),VLOOKUP($B$6,$A$25:$E$51,IF($B$8=$A$22,3,2))) -> 0 | Q149: 10.33333333 | R149: =VLOOKUP($Q149,P_All!$X$5:$AS$245,3*($C$8-1)+2) -> 0.21255 | S149: =VLOOKUP($Q149,P_All!$X$5:$AS$245,3*($C$8-1)+3) -> 0.21492 | T149: =VLOOKUP($Q149,P_All!$X$5:$AS$245,3*($C$8-1)+4) -> 0.21802 | U149: =VLOOKUP($Q149,NA_All!$X$5:$AS$245,3*($C$8-1)+2) -> 0.11694 | V149: =VLOOKUP($Q149,NA_All!$X$5:$AS$245,3*($C$8-1)+3) -> 0.12384 | W149: =VLOOKUP($Q149,NA_All!$X$5:$AS$245,3*($C$8-1)+4) -> 0.13863 | X149: =IF(ISNA(VLOOKUP($B$6,$A$25:$E$52,IF($B$8=$A$22,3,2))),EXP(VLOOKUP($B$6,$A$25:$E$52,4)*LN(VLOOKUP($Q149,#REF!,$C$8+1)/1000)+VLOOKUP($B$6,$A$25:$E$52,5)),VLOOKUP($B$6,$A$25:$E$52,IF($B$8=$A$22,3,2))) -> 0
H150: 125 | I150: =VLOOKUP($H150,P_All!$A$5:$V$205,3*($C$8-1)+2) -> 0.1498341667 | J150: =VLOOKUP($H150,P_All!$A$5:$V$205,3*($C$8-1)+3) -> 0.159925 | K150: =VLOOKUP($H150,P_All!$A$5:$V$205,3*($C$8-1)+4) -> 0.1803683333 | L150: =VLOOKUP($H150,NA_All!$A$5:$V$205,3*($C$8-1)+2) -> 0.09061508333 | M150: =VLOOKUP($H150,NA_All!$A$5:$V$205,3*($C$8-1)+3) -> 0.1050575 | N150: =VLOOKUP($H150,NA_All!$A$5:$V$205,3*($C$8-1)+4) -> 0.1496391667 | O150: =IF(ISNA(VLOOKUP($B$6,$A$25:$E$51,IF($B$8=$A$22,3,2))),EXP(VLOOKUP($B$6,$A$25:$E$51,4)*LN(VLOOKUP($H150,#REF!,$C$8+1)/1000)+VLOOKUP($B$6,$A$25:$E$51,5)),VLOOKUP($B$6,$A$25:$E$51,IF($B$8=$A$22,3,2))) -> 0 | Q150: 10.41666667 | R150: =VLOOKUP($Q150,P_All!$X$5:$AS$245,3*($C$8-1)+2) -> 0.21124 | S150: =VLOOKUP($Q150,P_All!$X$5:$AS$245,3*($C$8-1)+3) -> 0.21357 | T150: =VLOOKUP($Q150,P_All!$X$5:$AS$245,3*($C$8-1)+4) -> 0.21674 | U150: =VLOOKUP($Q150,NA_All!$X$5:$AS$245,3*($C$8-1)+2) -> 0.11678 | V150: =VLOOKUP($Q150,NA_All!$X$5:$AS$245,3*($C$8-1)+3) -> 0.12376 | W150: =VLOOKUP($Q150,NA_All!$X$5:$AS$245,3*($C$8-1)+4) -> 0.13877 | X150: =IF(ISNA(VLOOKUP($B$6,$A$25:$E$52,IF($B$8=$A$22,3,2))),EXP(VLOOKUP($B$6,$A$25:$E$52,4)*LN(VLOOKUP($Q150,#REF!,$C$8+1)/1000)+VLOOKUP($B$6,$A$25:$E$52,5)),VLOOKUP($B$6,$A$25:$E$52,IF($B$8=$A$22,3,2))) -> 0
H151: 126 | I151: =VLOOKUP($H151,P_All!$A$5:$V$205,3*($C$8-1)+2) -> 0.1495633333 | J151: =VLOOKUP($H151,P_All!$A$5:$V$205,3*($C$8-1)+3) -> 0.1597608333 | K151: =VLOOKUP($H151,P_All!$A$5:$V$205,3*($C$8-1)+4) -> 0.1802325 | L151: =VLOOKUP($H151,NA_All!$A$5:$V$205,3*($C$8-1)+2) -> 0.090644 | M151: =VLOOKUP($H151,NA_All!$A$5:$V$205,3*($C$8-1)+3) -> 0.1048708333 | N151: =VLOOKUP($H151,NA_All!$A$5:$V$205,3*($C$8-1)+4) -> 0.1498008333 | O151: =IF(ISNA(VLOOKUP($B$6,$A$25:$E$51,IF($B$8=$A$22,3,2))),EXP(VLOOKUP($B$6,$A$25:$E$51,4)*LN(VLOOKUP($H151,#REF!,$C$8+1)/1000)+VLOOKUP($B$6,$A$25:$E$51,5)),VLOOKUP($B$6,$A$25:$E$51,IF($B$8=$A$22,3,2))) -> 0 | Q151: 10.5 | R151: =VLOOKUP($Q151,P_All!$X$5:$AS$245,3*($C$8-1)+2) -> 0.21012 | S151: =VLOOKUP($Q151,P_All!$X$5:$AS$245,3*($C$8-1)+3) -> 0.21222 | T151: =VLOOKUP($Q151,P_All!$X$5:$AS$245,3*($C$8-1)+4) -> 0.21541 | U151: =VLOOKUP($Q151,NA_All!$X$5:$AS$245,3*($C$8-1)+2) -> 0.11684 | V151: =VLOOKUP($Q151,NA_All!$X$5:$AS$245,3*($C$8-1)+3) -> 0.12393 | W151: =VLOOKUP($Q151,NA_All!$X$5:$AS$245,3*($C$8-1)+4) -> 0.13927 | X151: =IF(ISNA(VLOOKUP($B$6,$A$25:$E$52,IF($B$8=$A$22,3,2))),EXP(VLOOKUP($B$6,$A$25:$E$52,4)*LN(VLOOKUP($Q151,#REF!,$C$8+1)/1000)+VLOOKUP($B$6,$A$25:$E$52,5)),VLOOKUP($B$6,$A$25:$E$52,IF($B$8=$A$22,3,2))) -> 0
H152: 127 | I152: =VLOOKUP($H152,P_All!$A$5:$V$205,3*($C$8-1)+2) -> 0.1491783333 | J152: =VLOOKUP($H152,P_All!$A$5:$V$205,3*($C$8-1)+3) -> 0.1596091667 | K152: =VLOOKUP($H152,P_All!$A$5:$V$205,3*($C$8-1)+4) -> 0.1802133333 | L152: =VLOOKUP($H152,NA_All!$A$5:$V$205,3*($C$8-1)+2) -> 0.09084675 | M152: =VLOOKUP($H152,NA_All!$A$5:$V$205,3*($C$8-1)+3) -> 0.1047333333 | N152: =VLOOKUP($H152,NA_All!$A$5:$V$205,3*($C$8-1)+4) -> 0.1493516667 | O152: =IF(ISNA(VLOOKUP($B$6,$A$25:$E$51,IF($B$8=$A$22,3,2))),EXP(VLOOKUP($B$6,$A$25:$E$51,4)*LN(VLOOKUP($H152,#REF!,$C$8+1)/1000)+VLOOKUP($B$6,$A$25:$E$51,5)),VLOOKUP($B$6,$A$25:$E$51,IF($B$8=$A$22,3,2))) -> 0 | Q152: 10.58333333 | R152: =VLOOKUP($Q152,P_All!$X$5:$AS$245,3*($C$8-1)+2) -> 0.2092 | S152: =VLOOKUP($Q152,P_All!$X$5:$AS$245,3*($C$8-1)+3) -> 0.21128 | T152: =VLOOKUP($Q152,P_All!$X$5:$AS$245,3*($C$8-1)+4) -> 0.21449 | U152: =VLOOKUP($Q152,NA_All!$X$5:$AS$245,3*($C$8-1)+2) -> 0.11704 | V152: =VLOOKUP($Q152,NA_All!$X$5:$AS$245,3*($C$8-1)+3) -> 0.12415 | W152: =VLOOKUP($Q152,NA_All!$X$5:$AS$245,3*($C$8-1)+4) -> 0.13985 | X152: =IF(ISNA(VLOOKUP($B$6,$A$25:$E$52,IF($B$8=$A$22,3,2))),EXP(VLOOKUP($B$6,$A$25:$E$52,4)*LN(VLOOKUP($Q152,#REF!,$C$8+1)/1000)+VLOOKUP($B$6,$A$25:$E$52,5)),VLOOKUP($B$6,$A$25:$E$52,IF($B$8=$A$22,3,2))) -> 0
H153: 128 | I153: =VLOOKUP($H153,P_All!$A$5:$V$205,3*($C$8-1)+2) -> 0.14955 | J153: =VLOOKUP($H153,P_All!$A$5:$V$205,3*($C$8-1)+3) -> 0.1598458333 | K153: =VLOOKUP($H153,P_All!$A$5:$V$205,3*($C$8-1)+4) -> 0.1803658333 | L153: =VLOOKUP($H153,NA_All!$A$5:$V$205,3*($C$8-1)+2) -> 0.09090058333 | M153: =VLOOKUP($H153,NA_All!$A$5:$V$205,3*($C$8-1)+3) -> 0.1047475 | N153: =VLOOKUP($H153,NA_All!$A$5:$V$205,3*($C$8-1)+4) -> 0.14818 | O153: =IF(ISNA(VLOOKUP($B$6,$A$25:$E$51,IF($B$8=$A$22,3,2))),EXP(VLOOKUP($B$6,$A$25:$E$51,4)*LN(VLOOKUP($H153,#REF!,$C$8+1)/1000)+VLOOKUP($B$6,$A$25:$E$51,5)),VLOOKUP($B$6,$A$25:$E$51,IF($B$8=$A$22,3,2))) -> 0 | Q153: 10.66666667 | R153: =VLOOKUP($Q153,P_All!$X$5:$AS$245,3*($C$8-1)+2) -> 0.19957 | S153: =VLOOKUP($Q153,P_All!$X$5:$AS$245,3*($C$8-1)+3) -> 0.2013 | T153: =VLOOKUP($Q153,P_All!$X$5:$AS$245,3*($C$8-1)+4) -> 0.2042 | U153: =VLOOKUP($Q153,NA_All!$X$5:$AS$245,3*($C$8-1)+2) -> 0.11655 | V153: =VLOOKUP($Q153,NA_All!$X$5:$AS$245,3*($C$8-1)+3) -> 0.12357 | W153: =VLOOKUP($Q153,NA_All!$X$5:$AS$245,3*($C$8-1)+4) -> 0.13957 | X153: =IF(ISNA(VLOOKUP($B$6,$A$25:$E$52,IF($B$8=$A$22,3,2))),EXP(VLOOKUP($B$6,$A$25:$E$52,4)*LN(VLOOKUP($Q153,#REF!,$C$8+1)/1000)+VLOOKUP($B$6,$A$25:$E$52,5)),VLOOKUP($B$6,$A$25:$E$52,IF($B$8=$A$22,3,2))) -> 0
H154: 129 | I154: =VLOOKUP($H154,P_All!$A$5:$V$205,3*($C$8-1)+2) -> 0.1497275 | J154: =VLOOKUP($H154,P_All!$A$5:$V$205,3*($C$8-1)+3) -> 0.1597641667 | K154: =VLOOKUP($H154,P_All!$A$5:$V$205,3*($C$8-1)+4) -> 0.1807716667 | L154: =VLOOKUP($H154,NA_All!$A$5:$V$205,3*($C$8-1)+2) -> 0.09077158333 | M154: =VLOOKUP($H154,NA_All!$A$5:$V$205,3*($C$8-1)+3) -> 0.1047633333 | N154: =VLOOKUP($H154,NA_All!$A$5:$V$205,3*($C$8-1)+4) -> 0.1484225 | O154: =IF(ISNA(VLOOKUP($B$6,$A$25:$E$51,IF($B$8=$A$22,3,2))),EXP(VLOOKUP($B$6,$A$25:$E$51,4)*LN(VLOOKUP($H154,#REF!,$C$8+1)/1000)+VLOOKUP($B$6,$A$25:$E$51,5)),VLOOKUP($B$6,$A$25:$E$51,IF($B$8=$A$22,3,2))) -> 0 | Q154: 10.75 | R154: =VLOOKUP($Q154,P_All!$X$5:$AS$245,3*($C$8-1)+2) -> 0.20717 | S154: =VLOOKUP($Q154,P_All!$X$5:$AS$245,3*($C$8-1)+3) -> 0.20914 | T154: =VLOOKUP($Q154,P_All!$X$5:$AS$245,3*($C$8-1)+4) -> 0.21238 | U154: =VLOOKUP($Q154,NA_All!$X$5:$AS$245,3*($C$8-1)+2) -> 0.11621 | V154: =VLOOKUP($Q154,NA_All!$X$5:$AS$245,3*($C$8-1)+3) -> 0.12332 | W154: =VLOOKUP($Q154,NA_All!$X$5:$AS$245,3*($C$8-1)+4) -> 0.13947 | X154: =IF(ISNA(VLOOKUP($B$6,$A$25:$E$52,IF($B$8=$A$22,3,2))),EXP(VLOOKUP($B$6,$A$25:$E$52,4)*LN(VLOOKUP($Q154,#REF!,$C$8+1)/1000)+VLOOKUP($B$6,$A$25:$E$52,5)),VLOOKUP($B$6,$A$25:$E$52,IF($B$8=$A$22,3,2))) -> 0
H155: 130 | I155: =VLOOKUP($H155,P_All!$A$5:$V$205,3*($C$8-1)+2) -> 0.1498025 | J155: =VLOOKUP($H155,P_All!$A$5:$V$205,3*($C$8-1)+3) -> 0.1596991667 | K155: =VLOOKUP($H155,P_All!$A$5:$V$205,3*($C$8-1)+4) -> 0.1809441667 | L155: =VLOOKUP($H155,NA_All!$A$5:$V$205,3*($C$8-1)+2) -> 0.09082058333 | M155: =VLOOKUP($H155,NA_All!$A$5:$V$205,3*($C$8-1)+3) -> 0.1046725 | N155: =VLOOKUP($H155,NA_All!$A$5:$V$205,3*($C$8-1)+4) -> 0.1466 | O155: =IF(ISNA(VLOOKUP($B$6,$A$25:$E$51,IF($B$8=$A$22,3,2))),EXP(VLOOKUP($B$6,$A$25:$E$51,4)*LN(VLOOKUP($H155,#REF!,$C$8+1)/1000)+VLOOKUP($B$6,$A$25:$E$51,5)),VLOOKUP($B$6,$A$25:$E$51,IF($B$8=$A$22,3,2))) -> 0 | Q155: =Q154+1/12 -> 10.83333333 | R155: =VLOOKUP($Q155,P_All!$X$5:$AS$245,3*($C$8-1)+2) -> 0.20687 | S155: =VLOOKUP($Q155,P_All!$X$5:$AS$245,3*($C$8-1)+3) -> 0.20883 | T155: =VLOOKUP($Q155,P_All!$X$5:$AS$245,3*($C$8-1)+4) -> 0.21223 | U155: =VLOOKUP($Q155,NA_All!$X$5:$AS$245,3*($C$8-1)+2) -> 0.11652 | V155: =VLOOKUP($Q155,NA_All!$X$5:$AS$245,3*($C$8-1)+3) -> 0.12374 | W155: =VLOOKUP($Q155,NA_All!$X$5:$AS$245,3*($C$8-1)+4) -> 0.1403 | X155: =IF(ISNA(VLOOKUP($B$6,$A$25:$E$52,IF($B$8=$A$22,3,2))),EXP(VLOOKUP($B$6,$A$25:$E$52,4)*LN(VLOOKUP($Q155,#REF!,$C$8+1)/1000)+VLOOKUP($B$6,$A$25:$E$52,5)),VLOOKUP($B$6,$A$25:$E$52,IF($B$8=$A$22,3,2))) -> 0
H156: 131 | I156: =VLOOKUP($H156,P_All!$A$5:$V$205,3*($C$8-1)+2) -> 0.14992 | J156: =VLOOKUP($H156,P_All!$A$5:$V$205,3*($C$8-1)+3) -> 0.1597925 | K156: =VLOOKUP($H156,P_All!$A$5:$V$205,3*($C$8-1)+4) -> 0.1816091667 | L156: =VLOOKUP($H156,NA_All!$A$5:$V$205,3*($C$8-1)+2) -> 0.090696 | M156: =VLOOKUP($H156,NA_All!$A$5:$V$205,3*($C$8-1)+3) -> 0.1046375 | N156: =VLOOKUP($H156,NA_All!$A$5:$V$205,3*($C$8-1)+4) -> 0.1459383333 | O156: =IF(ISNA(VLOOKUP($B$6,$A$25:$E$51,IF($B$8=$A$22,3,2))),EXP(VLOOKUP($B$6,$A$25:$E$51,4)*LN(VLOOKUP($H156,#REF!,$C$8+1)/1000)+VLOOKUP($B$6,$A$25:$E$51,5)),VLOOKUP($B$6,$A$25:$E$51,IF($B$8=$A$22,3,2))) -> 0 | Q156: 10.91666667 | R156: =VLOOKUP($Q156,P_All!$X$5:$AS$245,3*($C$8-1)+2) -> 0.20611 | S156: =VLOOKUP($Q156,P_All!$X$5:$AS$245,3*($C$8-1)+3) -> 0.20811 | T156: =VLOOKUP($Q156,P_All!$X$5:$AS$245,3*($C$8-1)+4) -> 0.21151 | U156: =VLOOKUP($Q156,NA_All!$X$5:$AS$245,3*($C$8-1)+2) -> 0.11637 | V156: =VLOOKUP($Q156,NA_All!$X$5:$AS$245,3*($C$8-1)+3) -> 0.12364 | W156: =VLOOKUP($Q156,NA_All!$X$5:$AS$245,3*($C$8-1)+4) -> 0.14058 | X156: =IF(ISNA(VLOOKUP($B$6,$A$25:$E$52,IF($B$8=$A$22,3,2))),EXP(VLOOKUP($B$6,$A$25:$E$52,4)*LN(VLOOKUP($Q156,#REF!,$C$8+1)/1000)+VLOOKUP($B$6,$A$25:$E$52,5)),VLOOKUP($B$6,$A$25:$E$52,IF($B$8=$A$22,3,2))) -> 0
H157: 132 | I157: =VLOOKUP($H157,P_All!$A$5:$V$205,3*($C$8-1)+2) -> 0.1501433333 | J157: =VLOOKUP($H157,P_All!$A$5:$V$205,3*($C$8-1)+3) -> 0.1598716667 | K157: =VLOOKUP($H157,P_All!$A$5:$V$205,3*($C$8-1)+4) -> 0.1814766667 | L157: =VLOOKUP($H157,NA_All!$A$5:$V$205,3*($C$8-1)+2) -> 0.09078058333 | M157: =VLOOKUP($H157,NA_All!$A$5:$V$205,3*($C$8-1)+3) -> 0.1046025 | N157: =VLOOKUP($H157,NA_All!$A$5:$V$205,3*($C$8-1)+4) -> 0.146055 | O157: =IF(ISNA(VLOOKUP($B$6,$A$25:$E$51,IF($B$8=$A$22,3,2))),EXP(VLOOKUP($B$6,$A$25:$E$51,4)*LN(VLOOKUP($H157,#REF!,$C$8+1)/1000)+VLOOKUP($B$6,$A$25:$E$51,5)),VLOOKUP($B$6,$A$25:$E$51,IF($B$8=$A$22,3,2))) -> 0 | Q157: 11 | R157: =VLOOKUP($Q157,P_All!$X$5:$AS$245,3*($C$8-1)+2) -> 0.20584 | S157: =VLOOKUP($Q157,P_All!$X$5:$AS$245,3*($C$8-1)+3) -> 0.20771 | T157: =VLOOKUP($Q157,P_All!$X$5:$AS$245,3*($C$8-1)+4) -> 0.21123 | U157: =VLOOKUP($Q157,NA_All!$X$5:$AS$245,3*($C$8-1)+2) -> 0.11602 | V157: =VLOOKUP($Q157,NA_All!$X$5:$AS$245,3*($C$8-1)+3) -> 0.1232 | W157: =VLOOKUP($Q157,NA_All!$X$5:$AS$245,3*($C$8-1)+4) -> 0.14042 | X157: =IF(ISNA(VLOOKUP($B$6,$A$25:$E$52,IF($B$8=$A$22,3,2))),EXP(VLOOKUP($B$6,$A$25:$E$52,4)*LN(VLOOKUP($Q157,#REF!,$C$8+1)/1000)+VLOOKUP($B$6,$A$25:$E$52,5)),VLOOKUP($B$6,$A$25:$E$52,IF($B$8=$A$22,3,2))) -> 0
H158: 133 | I158: =VLOOKUP($H158,P_All!$A$5:$V$205,3*($C$8-1)+2) -> 0.1503325 | J158: =VLOOKUP($H158,P_All!$A$5:$V$205,3*($C$8-1)+3) -> 0.1601491667 | K158: =VLOOKUP($H158,P_All!$A$5:$V$205,3*($C$8-1)+4) -> 0.1807108333 | L158: =VLOOKUP($H158,NA_All!$A$5:$V$205,3*($C$8-1)+2) -> 0.09064858333 | M158: =VLOOKUP($H158,NA_All!$A$5:$V$205,3*($C$8-1)+3) -> 0.1046475 | N158: =VLOOKUP($H158,NA_All!$A$5:$V$205,3*($C$8-1)+4) -> 0.1466725 | O158: =IF(ISNA(VLOOKUP($B$6,$A$25:$E$51,IF($B$8=$A$22,3,2))),EXP(VLOOKUP($B$6,$A$25:$E$51,4)*LN(VLOOKUP($H158,#REF!,$C$8+1)/1000)+VLOOKUP($B$6,$A$25:$E$51,5)),VLOOKUP($B$6,$A$25:$E$51,IF($B$8=$A$22,3,2))) -> 0 | Q158: 11.08333333 | R158: =VLOOKUP($Q158,P_All!$X$5:$AS$245,3*($C$8-1)+2) -> 0.20507 | S158: =VLOOKUP($Q158,P_All!$X$5:$AS$245,3*($C$8-1)+3) -> 0.20719 | T158: =VLOOKUP($Q158,P_All!$X$5:$AS$245,3*($C$8-1)+4) -> 0.21075 | U158: =VLOOKUP($Q158,NA_All!$X$5:$AS$245,3*($C$8-1)+2) -> 0.11587 | V158: =VLOOKUP($Q158,NA_All!$X$5:$AS$245,3*($C$8-1)+3) -> 0.12317 | W158: =VLOOKUP($Q158,NA_All!$X$5:$AS$245,3*($C$8-1)+4) -> 0.14074 | X158: =IF(ISNA(VLOOKUP($B$6,$A$25:$E$52,IF($B$8=$A$22,3,2))),EXP(VLOOKUP($B$6,$A$25:$E$52,4)*LN(VLOOKUP($Q158,#REF!,$C$8+1)/1000)+VLOOKUP($B$6,$A$25:$E$52,5)),VLOOKUP($B$6,$A$25:$E$52,IF($B$8=$A$22,3,2))) -> 0
H159: 134 | I159: =VLOOKUP($H159,P_All!$A$5:$V$205,3*($C$8-1)+2) -> 0.1504725 | J159: =VLOOKUP($H159,P_All!$A$5:$V$205,3*($C$8-1)+3) -> 0.1600258333 | K159: =VLOOKUP($H159,P_All!$A$5:$V$205,3*($C$8-1)+4) -> 0.1806791667 | L159: =VLOOKUP($H159,NA_All!$A$5:$V$205,3*($C$8-1)+2) -> 0.09070975 | M159: =VLOOKUP($H159,NA_All!$A$5:$V$205,3*($C$8-1)+3) -> 0.1046466667 | N159: =VLOOKUP($H159,NA_All!$A$5:$V$205,3*($C$8-1)+4) -> 0.1472433333 | O159: =IF(ISNA(VLOOKUP($B$6,$A$25:$E$51,IF($B$8=$A$22,3,2))),EXP(VLOOKUP($B$6,$A$25:$E$51,4)*LN(VLOOKUP($H159,#REF!,$C$8+1)/1000)+VLOOKUP($B$6,$A$25:$E$51,5)),VLOOKUP($B$6,$A$25:$E$51,IF($B$8=$A$22,3,2))) -> 0 | Q159: 11.16666667 | R159: =VLOOKUP($Q159,P_All!$X$5:$AS$245,3*($C$8-1)+2) -> 0.20485 | S159: =VLOOKUP($Q159,P_All!$X$5:$AS$245,3*($C$8-1)+3) -> 0.20674 | T159: =VLOOKUP($Q159,P_All!$X$5:$AS$245,3*($C$8-1)+4) -> 0.21029 | U159: =VLOOKUP($Q159,NA_All!$X$5:$AS$245,3*($C$8-1)+2) -> 0.1161 | V159: =VLOOKUP($Q159,NA_All!$X$5:$AS$245,3*($C$8-1)+3) -> 0.12339 | W159: =VLOOKUP($Q159,NA_All!$X$5:$AS$245,3*($C$8-1)+4) -> 0.14144 | X159: =IF(ISNA(VLOOKUP($B$6,$A$25:$E$52,IF($B$8=$A$22,3,2))),EXP(VLOOKUP($B$6,$A$25:$E$52,4)*LN(VLOOKUP($Q159,#REF!,$C$8+1)/1000)+VLOOKUP($B$6,$A$25:$E$52,5)),VLOOKUP($B$6,$A$25:$E$52,IF($B$8=$A$22,3,2))) -> 0
H160: 135 | I160: =VLOOKUP($H160,P_All!$A$5:$V$205,3*($C$8-1)+2) -> 0.1505616667 | J160: =VLOOKUP($H160,P_All!$A$5:$V$205,3*($C$8-1)+3) -> 0.1597741667 | K160: =VLOOKUP($H160,P_All!$A$5:$V$205,3*($C$8-1)+4) -> 0.1810091667 | L160: =VLOOKUP($H160,NA_All!$A$5:$V$205,3*($C$8-1)+2) -> 0.09048016667 | M160: =VLOOKUP($H160,NA_All!$A$5:$V$205,3*($C$8-1)+3) -> 0.1047441667 | N160: =VLOOKUP($H160,NA_All!$A$5:$V$205,3*($C$8-1)+4) -> 0.1472008333 | O160: =IF(ISNA(VLOOKUP($B$6,$A$25:$E$51,IF($B$8=$A$22,3,2))),EXP(VLOOKUP($B$6,$A$25:$E$51,4)*LN(VLOOKUP($H160,#REF!,$C$8+1)/1000)+VLOOKUP($B$6,$A$25:$E$51,5)),VLOOKUP($B$6,$A$25:$E$51,IF($B$8=$A$22,3,2))) -> 0 | Q160: 11.25 | R160: =VLOOKUP($Q160,P_All!$X$5:$AS$245,3*($C$8-1)+2) -> 0.20441 | S160: =VLOOKUP($Q160,P_All!$X$5:$AS$245,3*($C$8-1)+3) -> 0.20634 | T160: =VLOOKUP($Q160,P_All!$X$5:$AS$245,3*($C$8-1)+4) -> 0.20987 | U160: =VLOOKUP($Q160,NA_All!$X$5:$AS$245,3*($C$8-1)+2) -> 0.11604 | V160: =VLOOKUP($Q160,NA_All!$X$5:$AS$245,3*($C$8-1)+3) -> 0.12348 | W160: =VLOOKUP($Q160,NA_All!$X$5:$AS$245,3*($C$8-1)+4) -> 0.14164 | X160: =IF(ISNA(VLOOKUP($B$6,$A$25:$E$52,IF($B$8=$A$22,3,2))),EXP(VLOOKUP($B$6,$A$25:$E$52,4)*LN(VLOOKUP($Q160,#REF!,$C$8+1)/1000)+VLOOKUP($B$6,$A$25:$E$52,5)),VLOOKUP($B$6,$A$25:$E$52,IF($B$8=$A$22,3,2))) -> 0
H161: 136 | I161: =VLOOKUP($H161,P_All!$A$5:$V$205,3*($C$8-1)+2) -> 0.1503191667 | J161: =VLOOKUP($H161,P_All!$A$5:$V$205,3*($C$8-1)+3) -> 0.1595625 | K161: =VLOOKUP($H161,P_All!$A$5:$V$205,3*($C$8-1)+4) -> 0.1807066667 | L161: =VLOOKUP($H161,NA_All!$A$5:$V$205,3*($C$8-1)+2) -> 0.0905345 | M161: =VLOOKUP($H161,NA_All!$A$5:$V$205,3*($C$8-1)+3) -> 0.1047383333 | N161: =VLOOKUP($H161,NA_All!$A$5:$V$205,3*($C$8-1)+4) -> 0.1474441667 | O161: =IF(ISNA(VLOOKUP($B$6,$A$25:$E$51,IF($B$8=$A$22,3,2))),EXP(VLOOKUP($B$6,$A$25:$E$51,4)*LN(VLOOKUP($H161,#REF!,$C$8+1)/1000)+VLOOKUP($B$6,$A$25:$E$51,5)),VLOOKUP($B$6,$A$25:$E$51,IF($B$8=$A$22,3,2))) -> 0 | Q161: 11.33333333 | R161: =VLOOKUP($Q161,P_All!$X$5:$AS$245,3*($C$8-1)+2) -> 0.20116 | S161: =VLOOKUP($Q161,P_All!$X$5:$AS$245,3*($C$8-1)+3) -> 0.203 | T161: =VLOOKUP($Q161,P_All!$X$5:$AS$245,3*($C$8-1)+4) -> 0.20632 | U161: =VLOOKUP($Q161,NA_All!$X$5:$AS$245,3*($C$8-1)+2) -> 0.11568 | V161: =VLOOKUP($Q161,NA_All!$X$5:$AS$245,3*($C$8-1)+3) -> 0.12317 | W161: =VLOOKUP($Q161,NA_All!$X$5:$AS$245,3*($C$8-1)+4) -> 0.14142 | X161: =IF(ISNA(VLOOKUP($B$6,$A$25:$E$52,IF($B$8=$A$22,3,2))),EXP(VLOOKUP($B$6,$A$25:$E$52,4)*LN(VLOOKUP($Q161,#REF!,$C$8+1)/1000)+VLOOKUP($B$6,$A$25:$E$52,5)),VLOOKUP($B$6,$A$25:$E$52,IF($B$8=$A$22,3,2))) -> 0
H162: 137 | I162: =VLOOKUP($H162,P_All!$A$5:$V$205,3*($C$8-1)+2) -> 0.1499891667 | J162: =VLOOKUP($H162,P_All!$A$5:$V$205,3*($C$8-1)+3) -> 0.1594566667 | K162: =VLOOKUP($H162,P_All!$A$5:$V$205,3*($C$8-1)+4) -> 0.1808091667 | L162: =VLOOKUP($H162,NA_All!$A$5:$V$205,3*($C$8-1)+2) -> 0.09063633333 | M162: =VLOOKUP($H162,NA_All!$A$5:$V$205,3*($C$8-1)+3) -> 0.1046125 | N162: =VLOOKUP($H162,NA_All!$A$5:$V$205,3*($C$8-1)+4) -> 0.1476475 | O162: =IF(ISNA(VLOOKUP($B$6,$A$25:$E$51,IF($B$8=$A$22,3,2))),EXP(VLOOKUP($B$6,$A$25:$E$51,4)*LN(VLOOKUP($H162,#REF!,$C$8+1)/1000)+VLOOKUP($B$6,$A$25:$E$51,5)),VLOOKUP($B$6,$A$25:$E$51,IF($B$8=$A$22,3,2))) -> 0 | Q162: 11.41666667 | R162: =VLOOKUP($Q162,P_All!$X$5:$AS$245,3*($C$8-1)+2) -> 0.20167 | S162: =VLOOKUP($Q162,P_All!$X$5:$AS$245,3*($C$8-1)+3) -> 0.20359 | T162: =VLOOKUP($Q162,P_All!$X$5:$AS$245,3*($C$8-1)+4) -> 0.20701 | U162: =VLOOKUP($Q162,NA_All!$X$5:$AS$245,3*($C$8-1)+2) -> 0.11547 | V162: =VLOOKUP($Q162,NA_All!$X$5:$AS$245,3*($C$8-1)+3) -> 0.12307 | W162: =VLOOKUP($Q162,NA_All!$X$5:$AS$245,3*($C$8-1)+4) -> 0.14146 | X162: =IF(ISNA(VLOOKUP($B$6,$A$25:$E$52,IF($B$8=$A$22,3,2))),EXP(VLOOKUP($B$6,$A$25:$E$52,4)*LN(VLOOKUP($Q162,#REF!,$C$8+1)/1000)+VLOOKUP($B$6,$A$25:$E$52,5)),VLOOKUP($B$6,$A$25:$E$52,IF($B$8=$A$22,3,2))) -> 0
H163: 138 | I163: =VLOOKUP($H163,P_All!$A$5:$V$205,3*($C$8-1)+2) -> 0.1500516667 | J163: =VLOOKUP($H163,P_All!$A$5:$V$205,3*($C$8-1)+3) -> 0.15928 | K163: =VLOOKUP($H163,P_All!$A$5:$V$205,3*($C$8-1)+4) -> 0.1805708333 | L163: =VLOOKUP($H163,NA_All!$A$5:$V$205,3*($C$8-1)+2) -> 0.09063241667 | M163: =VLOOKUP($H163,NA_All!$A$5:$V$205,3*($C$8-1)+3) -> 0.1043625 | N163: =VLOOKUP($H163,NA_All!$A$5:$V$205,3*($C$8-1)+4) -> 0.1470566667 | O163: =IF(ISNA(VLOOKUP($B$6,$A$25:$E$51,IF($B$8=$A$22,3,2))),EXP(VLOOKUP($B$6,$A$25:$E$51,4)*LN(VLOOKUP($H163,#REF!,$C$8+1)/1000)+VLOOKUP($B$6,$A$25:$E$51,5)),VLOOKUP($B$6,$A$25:$E$51,IF($B$8=$A$22,3,2))) -> 0 | Q163: 11.5 | R163: =VLOOKUP($Q163,P_All!$X$5:$AS$245,3*($C$8-1)+2) -> 0.20342 | S163: =VLOOKUP($Q163,P_All!$X$5:$AS$245,3*($C$8-1)+3) -> 0.20531 | T163: =VLOOKUP($Q163,P_All!$X$5:$AS$245,3*($C$8-1)+4) -> 0.20912 | U163: =VLOOKUP($Q163,NA_All!$X$5:$AS$245,3*($C$8-1)+2) -> 0.11555 | V163: =VLOOKUP($Q163,NA_All!$X$5:$AS$245,3*($C$8-1)+3) -> 0.12327 | W163: =VLOOKUP($Q163,NA_All!$X$5:$AS$245,3*($C$8-1)+4) -> 0.1418 | X163: =IF(ISNA(VLOOKUP($B$6,$A$25:$E$52,IF($B$8=$A$22,3,2))),EXP(VLOOKUP($B$6,$A$25:$E$52,4)*LN(VLOOKUP($Q163,#REF!,$C$8+1)/1000)+VLOOKUP($B$6,$A$25:$E$52,5)),VLOOKUP($B$6,$A$25:$E$52,IF($B$8=$A$22,3,2))) -> 0
H164: 139 | I164: =VLOOKUP($H164,P_All!$A$5:$V$205,3*($C$8-1)+2) -> 0.1503958333 | J164: =VLOOKUP($H164,P_All!$A$5:$V$205,3*($C$8-1)+3) -> 0.1593275 | K164: =VLOOKUP($H164,P_All!$A$5:$V$205,3*($C$8-1)+4) -> 0.18136 | L164: =VLOOKUP($H164,NA_All!$A$5:$V$205,3*($C$8-1)+2) -> 0.09075791667 | M164: =VLOOKUP($H164,NA_All!$A$5:$V$205,3*($C$8-1)+3) -> 0.1042883333 | N164: =VLOOKUP($H164,NA_All!$A$5:$V$205,3*($C$8-1)+4) -> 0.1460833333 | O164: =IF(ISNA(VLOOKUP($B$6,$A$25:$E$51,IF($B$8=$A$22,3,2))),EXP(VLOOKUP($B$6,$A$25:$E$51,4)*LN(VLOOKUP($H164,#REF!,$C$8+1)/1000)+VLOOKUP($B$6,$A$25:$E$51,5)),VLOOKUP($B$6,$A$25:$E$51,IF($B$8=$A$22,3,2))) -> 0 | Q164: 11.58333333 | R164: =VLOOKUP($Q164,P_All!$X$5:$AS$245,3*($C$8-1)+2) -> 0.20366 | S164: =VLOOKUP($Q164,P_All!$X$5:$AS$245,3*($C$8-1)+3) -> 0.2056 | T164: =VLOOKUP($Q164,P_All!$X$5:$AS$245,3*($C$8-1)+4) -> 0.20938 | U164: =VLOOKUP($Q164,NA_All!$X$5:$AS$245,3*($C$8-1)+2) -> 0.11577 | V164: =VLOOKUP($Q164,NA_All!$X$5:$AS$245,3*($C$8-1)+3) -> 0.12346 | W164: =VLOOKUP($Q164,NA_All!$X$5:$AS$245,3*($C$8-1)+4) -> 0.1422 | X164: =IF(ISNA(VLOOKUP($B$6,$A$25:$E$52,IF($B$8=$A$22,3,2))),EXP(VLOOKUP($B$6,$A$25:$E$52,4)*LN(VLOOKUP($Q164,#REF!,$C$8+1)/1000)+VLOOKUP($B$6,$A$25:$E$52,5)),VLOOKUP($B$6,$A$25:$E$52,IF($B$8=$A$22,3,2))) -> 0
H165: 140 | I165: =VLOOKUP($H165,P_All!$A$5:$V$205,3*($C$8-1)+2) -> 0.150445 | J165: =VLOOKUP($H165,P_All!$A$5:$V$205,3*($C$8-1)+3) -> 0.1594458333 | K165: =VLOOKUP($H165,P_All!$A$5:$V$205,3*($C$8-1)+4) -> 0.1814316667 | L165: =VLOOKUP($H165,NA_All!$A$5:$V$205,3*($C$8-1)+2) -> 0.090738 | M165: =VLOOKUP($H165,NA_All!$A$5:$V$205,3*($C$8-1)+3) -> 0.104265 | N165: =VLOOKUP($H165,NA_All!$A$5:$V$205,3*($C$8-1)+4) -> 0.145885 | O165: =IF(ISNA(VLOOKUP($B$6,$A$25:$E$51,IF($B$8=$A$22,3,2))),EXP(VLOOKUP($B$6,$A$25:$E$51,4)*LN(VLOOKUP($H165,#REF!,$C$8+1)/1000)+VLOOKUP($B$6,$A$25:$E$51,5)),VLOOKUP($B$6,$A$25:$E$51,IF($B$8=$A$22,3,2))) -> 0 | Q165: 11.66666667 | R165: =VLOOKUP($Q165,P_All!$X$5:$AS$245,3*($C$8-1)+2) -> 0.20312 | S165: =VLOOKUP($Q165,P_All!$X$5:$AS$245,3*($C$8-1)+3) -> 0.20507 | T165: =VLOOKUP($Q165,P_All!$X$5:$AS$245,3*($C$8-1)+4) -> 0.20897 | U165: =VLOOKUP($Q165,NA_All!$X$5:$AS$245,3*($C$8-1)+2) -> 0.11534 | V165: =VLOOKUP($Q165,NA_All!$X$5:$AS$245,3*($C$8-1)+3) -> 0.12299 | W165: =VLOOKUP($Q165,NA_All!$X$5:$AS$245,3*($C$8-1)+4) -> 0.14194 | X165: =IF(ISNA(VLOOKUP($B$6,$A$25:$E$52,IF($B$8=$A$22,3,2))),EXP(VLOOKUP($B$6,$A$25:$E$52,4)*LN(VLOOKUP($Q165,#REF!,$C$8+1)/1000)+VLOOKUP($B$6,$A$25:$E$52,5)),VLOOKUP($B$6,$A$25:$E$52,IF($B$8=$A$22,3,2))) -> 0
H166: 141 | I166: =VLOOKUP($H166,P_All!$A$5:$V$205,3*($C$8-1)+2) -> 0.1504133333 | J166: =VLOOKUP($H166,P_All!$A$5:$V$205,3*($C$8-1)+3) -> 0.1595891667 | K166: =VLOOKUP($H166,P_All!$A$5:$V$205,3*($C$8-1)+4) -> 0.18043 | L166: =VLOOKUP($H166,NA_All!$A$5:$V$205,3*($C$8-1)+2) -> 0.09071083333 | M166: =VLOOKUP($H166,NA_All!$A$5:$V$205,3*($C$8-1)+3) -> 0.1042033333 | N166: =VLOOKUP($H166,NA_All!$A$5:$V$205,3*($C$8-1)+4) -> 0.1460958333 | O166: =IF(ISNA(VLOOKUP($B$6,$A$25:$E$51,IF($B$8=$A$22,3,2))),EXP(VLOOKUP($B$6,$A$25:$E$51,4)*LN(VLOOKUP($H166,#REF!,$C$8+1)/1000)+VLOOKUP($B$6,$A$25:$E$51,5)),VLOOKUP($B$6,$A$25:$E$51,IF($B$8=$A$22,3,2))) -> 0 | Q166: 11.75 | R166: =VLOOKUP($Q166,P_All!$X$5:$AS$245,3*($C$8-1)+2) -> 0.20287 | S166: =VLOOKUP($Q166,P_All!$X$5:$AS$245,3*($C$8-1)+3) -> 0.20486 | T166: =VLOOKUP($Q166,P_All!$X$5:$AS$245,3*($C$8-1)+4) -> 0.20883 | U166: =VLOOKUP($Q166,NA_All!$X$5:$AS$245,3*($C$8-1)+2) -> 0.11505 | V166: =VLOOKUP($Q166,NA_All!$X$5:$AS$245,3*($C$8-1)+3) -> 0.12281 | W166: =VLOOKUP($Q166,NA_All!$X$5:$AS$245,3*($C$8-1)+4) -> 0.14213 | X166: =IF(ISNA(VLOOKUP($B$6,$A$25:$E$52,IF($B$8=$A$22,3,2))),EXP(VLOOKUP($B$6,$A$25:$E$52,4)*LN(VLOOKUP($Q166,#REF!,$C$8+1)/1000)+VLOOKUP($B$6,$A$25:$E$52,5)),VLOOKUP($B$6,$A$25:$E$52,IF($B$8=$A$22,3,2))) -> 0
H167: 142 | I167: =VLOOKUP($H167,P_All!$A$5:$V$205,3*($C$8-1)+2) -> 0.1504266667 | J167: =VLOOKUP($H167,P_All!$A$5:$V$205,3*($C$8-1)+3) -> 0.1596216667 | K167: =VLOOKUP($H167,P_All!$A$5:$V$205,3*($C$8-1)+4) -> 0.1800333333 | L167: =VLOOKUP($H167,NA_All!$A$5:$V$205,3*($C$8-1)+2) -> 0.09053975 | M167: =VLOOKUP($H167,NA_All!$A$5:$V$205,3*($C$8-1)+3) -> 0.1041216667 | N167: =VLOOKUP($H167,NA_All!$A$5:$V$205,3*($C$8-1)+4) -> 0.1456908333 | O167: =IF(ISNA(VLOOKUP($B$6,$A$25:$E$51,IF($B$8=$A$22,3,2))),EXP(VLOOKUP($B$6,$A$25:$E$51,4)*LN(VLOOKUP($H167,#REF!,$C$8+1)/1000)+VLOOKUP($B$6,$A$25:$E$51,5)),VLOOKUP($B$6,$A$25:$E$51,IF($B$8=$A$22,3,2))) -> 0 | Q167: 11.83333333 | R167: =VLOOKUP($Q167,P_All!$X$5:$AS$245,3*($C$8-1)+2) -> 0.2031 | S167: =VLOOKUP($Q167,P_All!$X$5:$AS$245,3*($C$8-1)+3) -> 0.2051 | T167: =VLOOKUP($Q167,P_All!$X$5:$AS$245,3*($C$8-1)+4) -> 0.2092 | U167: =VLOOKUP($Q167,NA_All!$X$5:$AS$245,3*($C$8-1)+2) -> 0.11547 | V167: =VLOOKUP($Q167,NA_All!$X$5:$AS$245,3*($C$8-1)+3) -> 0.12321 | W167: =VLOOKUP($Q167,NA_All!$X$5:$AS$245,3*($C$8-1)+4) -> 0.14329 | X167: =IF(ISNA(VLOOKUP($B$6,$A$25:$E$52,IF($B$8=$A$22,3,2))),EXP(VLOOKUP($B$6,$A$25:$E$52,4)*LN(VLOOKUP($Q167,#REF!,$C$8+1)/1000)+VLOOKUP($B$6,$A$25:$E$52,5)),VLOOKUP($B$6,$A$25:$E$52,IF($B$8=$A$22,3,2))) -> 0
H168: 143 | I168: =VLOOKUP($H168,P_All!$A$5:$V$205,3*($C$8-1)+2) -> 0.1505583333 | J168: =VLOOKUP($H168,P_All!$A$5:$V$205,3*($C$8-1)+3) -> 0.1597791667 | K168: =VLOOKUP($H168,P_All!$A$5:$V$205,3*($C$8-1)+4) -> 0.1801866667 | L168: =VLOOKUP($H168,NA_All!$A$5:$V$205,3*($C$8-1)+2) -> 0.09045891667 | M168: =VLOOKUP($H168,NA_All!$A$5:$V$205,3*($C$8-1)+3) -> 0.1039775 | N168: =VLOOKUP($H168,NA_All!$A$5:$V$205,3*($C$8-1)+4) -> 0.146515 | O168: =IF(ISNA(VLOOKUP($B$6,$A$25:$E$51,IF($B$8=$A$22,3,2))),EXP(VLOOKUP($B$6,$A$25:$E$51,4)*LN(VLOOKUP($H168,#REF!,$C$8+1)/1000)+VLOOKUP($B$6,$A$25:$E$51,5)),VLOOKUP($B$6,$A$25:$E$51,IF($B$8=$A$22,3,2))) -> 0 | Q168: 11.91666667 | R168: =VLOOKUP($Q168,P_All!$X$5:$AS$245,3*($C$8-1)+2) -> 0.20299 | S168: =VLOOKUP($Q168,P_All!$X$5:$AS$245,3*($C$8-1)+3) -> 0.20499 | T168: =VLOOKUP($Q168,P_All!$X$5:$AS$245,3*($C$8-1)+4) -> 0.20916 | U168: =VLOOKUP($Q168,NA_All!$X$5:$AS$245,3*($C$8-1)+2) -> 0.11538 | V168: =VLOOKUP($Q168,NA_All!$X$5:$AS$245,3*($C$8-1)+3) -> 0.12314 | W168: =VLOOKUP($Q168,NA_All!$X$5:$AS$245,3*($C$8-1)+4) -> 0.1436 | X168: =IF(ISNA(VLOOKUP($B$6,$A$25:$E$52,IF($B$8=$A$22,3,2))),EXP(VLOOKUP($B$6,$A$25:$E$52,4)*LN(VLOOKUP($Q168,#REF!,$C$8+1)/1000)+VLOOKUP($B$6,$A$25:$E$52,5)),VLOOKUP($B$6,$A$25:$E$52,IF($B$8=$A$22,3,2))) -> 0
H169: 144 | I169: =VLOOKUP($H169,P_All!$A$5:$V$205,3*($C$8-1)+2) -> 0.1505016667 | J169: =VLOOKUP($H169,P_All!$A$5:$V$205,3*($C$8-1)+3) -> 0.1602175 | K169: =VLOOKUP($H169,P_All!$A$5:$V$205,3*($C$8-1)+4) -> 0.1800025 | L169: =VLOOKUP($H169,NA_All!$A$5:$V$205,3*($C$8-1)+2) -> 0.09045116667 | M169: =VLOOKUP($H169,NA_All!$A$5:$V$205,3*($C$8-1)+3) -> 0.1038741667 | N169: =VLOOKUP($H169,NA_All!$A$5:$V$205,3*($C$8-1)+4) -> 0.1472391667 | O169: =IF(ISNA(VLOOKUP($B$6,$A$25:$E$51,IF($B$8=$A$22,3,2))),EXP(VLOOKUP($B$6,$A$25:$E$51,4)*LN(VLOOKUP($H169,#REF!,$C$8+1)/1000)+VLOOKUP($B$6,$A$25:$E$51,5)),VLOOKUP($B$6,$A$25:$E$51,IF($B$8=$A$22,3,2))) -> 0 | Q169: 12 | R169: =VLOOKUP($Q169,P_All!$X$5:$AS$245,3*($C$8-1)+2) -> 0.20206 | S169: =VLOOKUP($Q169,P_All!$X$5:$AS$245,3*($C$8-1)+3) -> 0.20405 | T169: =VLOOKUP($Q169,P_All!$X$5:$AS$245,3*($C$8-1)+4) -> 0.20817 | U169: =VLOOKUP($Q169,NA_All!$X$5:$AS$245,3*($C$8-1)+2) -> 0.11491 | V169: =VLOOKUP($Q169,NA_All!$X$5:$AS$245,3*($C$8-1)+3) -> 0.12273 | W169: =VLOOKUP($Q169,NA_All!$X$5:$AS$245,3*($C$8-1)+4) -> 0.1435 | X169: =IF(ISNA(VLOOKUP($B$6,$A$25:$E$52,IF($B$8=$A$22,3,2))),EXP(VLOOKUP($B$6,$A$25:$E$52,4)*LN(VLOOKUP($Q169,#REF!,$C$8+1)/1000)+VLOOKUP($B$6,$A$25:$E$52,5)),VLOOKUP($B$6,$A$25:$E$52,IF($B$8=$A$22,3,2))) -> 0
H170: 145 | I170: =VLOOKUP($H170,P_All!$A$5:$V$205,3*($C$8-1)+2) -> 0.15043 | J170: =VLOOKUP($H170,P_All!$A$5:$V$205,3*($C$8-1)+3) -> 0.1604925 | K170: =VLOOKUP($H170,P_All!$A$5:$V$205,3*($C$8-1)+4) -> 0.1794625 | L170: =VLOOKUP($H170,NA_All!$A$5:$V$205,3*($C$8-1)+2) -> 0.090353 | M170: =VLOOKUP($H170,NA_All!$A$5:$V$205,3*($C$8-1)+3) -> 0.1039866667 | N170: =VLOOKUP($H170,NA_All!$A$5:$V$205,3*($C$8-1)+4) -> 0.1474791667 | O170: =IF(ISNA(VLOOKUP($B$6,$A$25:$E$51,IF($B$8=$A$22,3,2))),EXP(VLOOKUP($B$6,$A$25:$E$51,4)*LN(VLOOKUP($H170,#REF!,$C$8+1)/1000)+VLOOKUP($B$6,$A$25:$E$51,5)),VLOOKUP($B$6,$A$25:$E$51,IF($B$8=$A$22,3,2))) -> 0 | Q170: 12.08333333 | R170: =VLOOKUP($Q170,P_All!$X$5:$AS$245,3*($C$8-1)+2) -> 0.20092 | S170: =VLOOKUP($Q170,P_All!$X$5:$AS$245,3*($C$8-1)+3) -> 0.20304 | T170: =VLOOKUP($Q170,P_All!$X$5:$AS$245,3*($C$8-1)+4) -> 0.20711 | U170: =VLOOKUP($Q170,NA_All!$X$5:$AS$245,3*($C$8-1)+2) -> 0.11485 | V170: =VLOOKUP($Q170,NA_All!$X$5:$AS$245,3*($C$8-1)+3) -> 0.12254 | W170: =VLOOKUP($Q170,NA_All!$X$5:$AS$245,3*($C$8-1)+4) -> 0.14378 | X170: =IF(ISNA(VLOOKUP($B$6,$A$25:$E$52,IF($B$8=$A$22,3,2))),EXP(VLOOKUP($B$6,$A$25:$E$52,4)*LN(VLOOKUP($Q170,#REF!,$C$8+1)/1000)+VLOOKUP($B$6,$A$25:$E$52,5)),VLOOKUP($B$6,$A$25:$E$52,IF($B$8=$A$22,3,2))) -> 0
H171: 146 | I171: =VLOOKUP($H171,P_All!$A$5:$V$205,3*($C$8-1)+2) -> 0.1502408333 | J171: =VLOOKUP($H171,P_All!$A$5:$V$205,3*($C$8-1)+3) -> 0.1603941667 | K171: =VLOOKUP($H171,P_All!$A$5:$V$205,3*($C$8-1)+4) -> 0.1797483333 | L171: =VLOOKUP($H171,NA_All!$A$5:$V$205,3*($C$8-1)+2) -> 0.09019775 | M171: =VLOOKUP($H171,NA_All!$A$5:$V$205,3*($C$8-1)+3) -> 0.1041291667 | N171: =VLOOKUP($H171,NA_All!$A$5:$V$205,3*($C$8-1)+4) -> 0.14749 | O171: =IF(ISNA(VLOOKUP($B$6,$A$25:$E$51,IF($B$8=$A$22,3,2))),EXP(VLOOKUP($B$6,$A$25:$E$51,4)*LN(VLOOKUP($H171,#REF!,$C$8+1)/1000)+VLOOKUP($B$6,$A$25:$E$51,5)),VLOOKUP($B$6,$A$25:$E$51,IF($B$8=$A$22,3,2))) -> 0 | Q171: 12.16666667 | R171: =VLOOKUP($Q171,P_All!$X$5:$AS$245,3*($C$8-1)+2) -> 0.20224 | S171: =VLOOKUP($Q171,P_All!$X$5:$AS$245,3*($C$8-1)+3) -> 0.2043 | T171: =VLOOKUP($Q171,P_All!$X$5:$AS$245,3*($C$8-1)+4) -> 0.20881 | U171: =VLOOKUP($Q171,NA_All!$X$5:$AS$245,3*($C$8-1)+2) -> 0.11495 | V171: =VLOOKUP($Q171,NA_All!$X$5:$AS$245,3*($C$8-1)+3) -> 0.12285 | W171: =VLOOKUP($Q171,NA_All!$X$5:$AS$245,3*($C$8-1)+4) -> 0.14423 | X171: =IF(ISNA(VLOOKUP($B$6,$A$25:$E$52,IF($B$8=$A$22,3,2))),EXP(VLOOKUP($B$6,$A$25:$E$52,4)*LN(VLOOKUP($Q171,#REF!,$C$8+1)/1000)+VLOOKUP($B$6,$A$25:$E$52,5)),VLOOKUP($B$6,$A$25:$E$52,IF($B$8=$A$22,3,2))) -> 0
H172: 147 | I172: =VLOOKUP($H172,P_All!$A$5:$V$205,3*($C$8-1)+2) -> 0.1503783333 | J172: =VLOOKUP($H172,P_All!$A$5:$V$205,3*($C$8-1)+3) -> 0.1598825 | K172: =VLOOKUP($H172,P_All!$A$5:$V$205,3*($C$8-1)+4) -> 0.17993 | L172: =VLOOKUP($H172,NA_All!$A$5:$V$205,3*($C$8-1)+2) -> 0.09017516667 | M172: =VLOOKUP($H172,NA_All!$A$5:$V$205,3*($C$8-1)+3) -> 0.1041066667 | N172: =VLOOKUP($H172,NA_All!$A$5:$V$205,3*($C$8-1)+4) -> 0.1466541667 | O172: =IF(ISNA(VLOOKUP($B$6,$A$25:$E$51,IF($B$8=$A$22,3,2))),EXP(VLOOKUP($B$6,$A$25:$E$51,4)*LN(VLOOKUP($H172,#REF!,$C$8+1)/1000)+VLOOKUP($B$6,$A$25:$E$51,5)),VLOOKUP($B$6,$A$25:$E$51,IF($B$8=$A$22,3,2))) -> 0 | Q172: 12.25 | R172: =VLOOKUP($Q172,P_All!$X$5:$AS$245,3*($C$8-1)+2) -> 0.2032 | S172: =VLOOKUP($Q172,P_All!$X$5:$AS$245,3*($C$8-1)+3) -> 0.20532 | T172: =VLOOKUP($Q172,P_All!$X$5:$AS$245,3*($C$8-1)+4) -> 0.20988 | U172: =VLOOKUP($Q172,NA_All!$X$5:$AS$245,3*($C$8-1)+2) -> 0.11501 | V172: =VLOOKUP($Q172,NA_All!$X$5:$AS$245,3*($C$8-1)+3) -> 0.1228 | W172: =VLOOKUP($Q172,NA_All!$X$5:$AS$245,3*($C$8-1)+4) -> 0.14439 | X172: =IF(ISNA(VLOOKUP($B$6,$A$25:$E$52,IF($B$8=$A$22,3,2))),EXP(VLOOKUP($B$6,$A$25:$E$52,4)*LN(VLOOKUP($Q172,#REF!,$C$8+1)/1000)+VLOOKUP($B$6,$A$25:$E$52,5)),VLOOKUP($B$6,$A$25:$E$52,IF($B$8=$A$22,3,2))) -> 0
H173: 148 | I173: =VLOOKUP($H173,P_All!$A$5:$V$205,3*($C$8-1)+2) -> 0.1501841667 | J173: =VLOOKUP($H173,P_All!$A$5:$V$205,3*($C$8-1)+3) -> 0.1597316667 | K173: =VLOOKUP($H173,P_All!$A$5:$V$205,3*($C$8-1)+4) -> 0.179765 | L173: =VLOOKUP($H173,NA_All!$A$5:$V$205,3*($C$8-1)+2) -> 0.09009133333 | M173: =VLOOKUP($H173,NA_All!$A$5:$V$205,3*($C$8-1)+3) -> 0.1037325 | N173: =VLOOKUP($H173,NA_All!$A$5:$V$205,3*($C$8-1)+4) -> 0.1462825 | O173: =IF(ISNA(VLOOKUP($B$6,$A$25:$E$51,IF($B$8=$A$22,3,2))),EXP(VLOOKUP($B$6,$A$25:$E$51,4)*LN(VLOOKUP($H173,#REF!,$C$8+1)/1000)+VLOOKUP($B$6,$A$25:$E$51,5)),VLOOKUP($B$6,$A$25:$E$51,IF($B$8=$A$22,3,2))) -> 0 | Q173: 12.33333333 | R173: =VLOOKUP($Q173,P_All!$X$5:$AS$245,3*($C$8-1)+2) -> 0.20294 | S173: =VLOOKUP($Q173,P_All!$X$5:$AS$245,3*($C$8-1)+3) -> 0.20508 | T173: =VLOOKUP($Q173,P_All!$X$5:$AS$245,3*($C$8-1)+4) -> 0.20978 | U173: =VLOOKUP($Q173,NA_All!$X$5:$AS$245,3*($C$8-1)+2) -> 0.11479 | V173: =VLOOKUP($Q173,NA_All!$X$5:$AS$245,3*($C$8-1)+3) -> 0.12259 | W173: =VLOOKUP($Q173,NA_All!$X$5:$AS$245,3*($C$8-1)+4) -> 0.14427 | X173: =IF(ISNA(VLOOKUP($B$6,$A$25:$E$52,IF($B$8=$A$22,3,2))),EXP(VLOOKUP($B$6,$A$25:$E$52,4)*LN(VLOOKUP($Q173,#REF!,$C$8+1)/1000)+VLOOKUP($B$6,$A$25:$E$52,5)),VLOOKUP($B$6,$A$25:$E$52,IF($B$8=$A$22,3,2))) -> 0
H174: 149 | I174: =VLOOKUP($H174,P_All!$A$5:$V$205,3*($C$8-1)+2) -> 0.1499725 | J174: =VLOOKUP($H174,P_All!$A$5:$V$205,3*($C$8-1)+3) -> 0.159365 | K174: =VLOOKUP($H174,P_All!$A$5:$V$205,3*($C$8-1)+4) -> 0.180225 | L174: =VLOOKUP($H174,NA_All!$A$5:$V$205,3*($C$8-1)+2) -> 0.09009283333 | M174: =VLOOKUP($H174,NA_All!$A$5:$V$205,3*($C$8-1)+3) -> 0.1034816667 | N174: =VLOOKUP($H174,NA_All!$A$5:$V$205,3*($C$8-1)+4) -> 0.14606 | O174: =IF(ISNA(VLOOKUP($B$6,$A$25:$E$51,IF($B$8=$A$22,3,2))),EXP(VLOOKUP($B$6,$A$25:$E$51,4)*LN(VLOOKUP($H174,#REF!,$C$8+1)/1000)+VLOOKUP($B$6,$A$25:$E$51,5)),VLOOKUP($B$6,$A$25:$E$51,IF($B$8=$A$22,3,2))) -> 0 | Q174: 12.41666667 | R174: =VLOOKUP($Q174,P_All!$X$5:$AS$245,3*($C$8-1)+2) -> 0.20276 | S174: =VLOOKUP($Q174,P_All!$X$5:$AS$245,3*($C$8-1)+3) -> 0.20484 | T174: =VLOOKUP($Q174,P_All!$X$5:$AS$245,3*($C$8-1)+4) -> 0.20985 | U174: =VLOOKUP($Q174,NA_All!$X$5:$AS$245,3*($C$8-1)+2) -> 0.11472 | V174: =VLOOKUP($Q174,NA_All!$X$5:$AS$245,3*($C$8-1)+3) -> 0.12255 | W174: =VLOOKUP($Q174,NA_All!$X$5:$AS$245,3*($C$8-1)+4) -> 0.14457 | X174: =IF(ISNA(VLOOKUP($B$6,$A$25:$E$52,IF($B$8=$A$22,3,2))),EXP(VLOOKUP($B$6,$A$25:$E$52,4)*LN(VLOOKUP($Q174,#REF!,$C$8+1)/1000)+VLOOKUP($B$6,$A$25:$E$52,5)),VLOOKUP($B$6,$A$25:$E$52,IF($B$8=$A$22,3,2))) -> 0
H175: 150 | I175: =VLOOKUP($H175,P_All!$A$5:$V$205,3*($C$8-1)+2) -> 0.1498266667 | J175: =VLOOKUP($H175,P_All!$A$5:$V$205,3*($C$8-1)+3) -> 0.1595533333 | K175: =VLOOKUP($H175,P_All!$A$5:$V$205,3*($C$8-1)+4) -> 0.1808216667 | L175: =VLOOKUP($H175,NA_All!$A$5:$V$205,3*($C$8-1)+2) -> 0.09017483333 | M175: =VLOOKUP($H175,NA_All!$A$5:$V$205,3*($C$8-1)+3) -> 0.1032566667 | N175: =VLOOKUP($H175,NA_All!$A$5:$V$205,3*($C$8-1)+4) -> 0.1452025 | O175: =IF(ISNA(VLOOKUP($B$6,$A$25:$E$51,IF($B$8=$A$22,3,2))),EXP(VLOOKUP($B$6,$A$25:$E$51,4)*LN(VLOOKUP($H175,#REF!,$C$8+1)/1000)+VLOOKUP($B$6,$A$25:$E$51,5)),VLOOKUP($B$6,$A$25:$E$51,IF($B$8=$A$22,3,2))) -> 0 | Q175: 12.5 | R175: =VLOOKUP($Q175,P_All!$X$5:$AS$245,3*($C$8-1)+2) -> 0.20302 | S175: =VLOOKUP($Q175,P_All!$X$5:$AS$245,3*($C$8-1)+3) -> 0.20515 | T175: =VLOOKUP($Q175,P_All!$X$5:$AS$245,3*($C$8-1)+4) -> 0.21019 | U175: =VLOOKUP($Q175,NA_All!$X$5:$AS$245,3*($C$8-1)+2) -> 0.11477 | V175: =VLOOKUP($Q175,NA_All!$X$5:$AS$245,3*($C$8-1)+3) -> 0.12278 | W175: =VLOOKUP($Q175,NA_All!$X$5:$AS$245,3*($C$8-1)+4) -> 0.14518 | X175: =IF(ISNA(VLOOKUP($B$6,$A$25:$E$52,IF($B$8=$A$22,3,2))),EXP(VLOOKUP($B$6,$A$25:$E$52,4)*LN(VLOOKUP($Q175,#REF!,$C$8+1)/1000)+VLOOKUP($B$6,$A$25:$E$52,5)),VLOOKUP($B$6,$A$25:$E$52,IF($B$8=$A$22,3,2))) -> 0
H176: 151 | I176: =VLOOKUP($H176,P_All!$A$5:$V$205,3*($C$8-1)+2) -> 0.1499408333 | J176: =VLOOKUP($H176,P_All!$A$5:$V$205,3*($C$8-1)+3) -> 0.1596083333 | K176: =VLOOKUP($H176,P_All!$A$5:$V$205,3*($C$8-1)+4) -> 0.1808008333 | L176: =VLOOKUP($H176,NA_All!$A$5:$V$205,3*($C$8-1)+2) -> 0.09011508333 | M176: =VLOOKUP($H176,NA_All!$A$5:$V$205,3*($C$8-1)+3) -> 0.1033041667 | N176: =VLOOKUP($H176,NA_All!$A$5:$V$205,3*($C$8-1)+4) -> 0.1449908333 | O176: =IF(ISNA(VLOOKUP($B$6,$A$25:$E$51,IF($B$8=$A$22,3,2))),EXP(VLOOKUP($B$6,$A$25:$E$51,4)*LN(VLOOKUP($H176,#REF!,$C$8+1)/1000)+VLOOKUP($B$6,$A$25:$E$51,5)),VLOOKUP($B$6,$A$25:$E$51,IF($B$8=$A$22,3,2))) -> 0 | Q176: 12.58333333 | R176: =VLOOKUP($Q176,P_All!$X$5:$AS$245,3*($C$8-1)+2) -> 0.20356 | S176: =VLOOKUP($Q176,P_All!$X$5:$AS$245,3*($C$8-1)+3) -> 0.20572 | T176: =VLOOKUP($Q176,P_All!$X$5:$AS$245,3*($C$8-1)+4) -> 0.211 | U176: =VLOOKUP($Q176,NA_All!$X$5:$AS$245,3*($C$8-1)+2) -> 0.11484 | V176: =VLOOKUP($Q176,NA_All!$X$5:$AS$245,3*($C$8-1)+3) -> 0.12293 | W176: =VLOOKUP($Q176,NA_All!$X$5:$AS$245,3*($C$8-1)+4) -> 0.14577 | X176: =IF(ISNA(VLOOKUP($B$6,$A$25:$E$52,IF($B$8=$A$22,3,2))),EXP(VLOOKUP($B$6,$A$25:$E$52,4)*LN(VLOOKUP($Q176,#REF!,$C$8+1)/1000)+VLOOKUP($B$6,$A$25:$E$52,5)),VLOOKUP($B$6,$A$25:$E$52,IF($B$8=$A$22,3,2))) -> 0
H177: 152 | I177: =VLOOKUP($H177,P_All!$A$5:$V$205,3*($C$8-1)+2) -> 0.15015 | J177: =VLOOKUP($H177,P_All!$A$5:$V$205,3*($C$8-1)+3) -> 0.1596766667 | K177: =VLOOKUP($H177,P_All!$A$5:$V$205,3*($C$8-1)+4) -> 0.1804808333 | L177: =VLOOKUP($H177,NA_All!$A$5:$V$205,3*($C$8-1)+2) -> 0.09009475 | M177: =VLOOKUP($H177,NA_All!$A$5:$V$205,3*($C$8-1)+3) -> 0.1033566667 | N177: =VLOOKUP($H177,NA_All!$A$5:$V$205,3*($C$8-1)+4) -> 0.1450333333 | O177: =IF(ISNA(VLOOKUP($B$6,$A$25:$E$51,IF($B$8=$A$22,3,2))),EXP(VLOOKUP($B$6,$A$25:$E$51,4)*LN(VLOOKUP($H177,#REF!,$C$8+1)/1000)+VLOOKUP($B$6,$A$25:$E$51,5)),VLOOKUP($B$6,$A$25:$E$51,IF($B$8=$A$22,3,2))) -> 0 | Q177: 12.66666667 | R177: =VLOOKUP($Q177,P_All!$X$5:$AS$245,3*($C$8-1)+2) -> 0.20309 | S177: =VLOOKUP($Q177,P_All!$X$5:$AS$245,3*($C$8-1)+3) -> 0.20524 | T177: =VLOOKUP($Q177,P_All!$X$5:$AS$245,3*($C$8-1)+4) -> 0.21051 | U177: =VLOOKUP($Q177,NA_All!$X$5:$AS$245,3*($C$8-1)+2) -> 0.11444 | V177: =VLOOKUP($Q177,NA_All!$X$5:$AS$245,3*($C$8-1)+3) -> 0.12243 | W177: =VLOOKUP($Q177,NA_All!$X$5:$AS$245,3*($C$8-1)+4) -> 0.14542 | X177: =IF(ISNA(VLOOKUP($B$6,$A$25:$E$52,IF($B$8=$A$22,3,2))),EXP(VLOOKUP($B$6,$A$25:$E$52,4)*LN(VLOOKUP($Q177,#REF!,$C$8+1)/1000)+VLOOKUP($B$6,$A$25:$E$52,5)),VLOOKUP($B$6,$A$25:$E$52,IF($B$8=$A$22,3,2))) -> 0
H178: 153 | I178: =VLOOKUP($H178,P_All!$A$5:$V$205,3*($C$8-1)+2) -> 0.1500258333 | J178: =VLOOKUP($H178,P_All!$A$5:$V$205,3*($C$8-1)+3) -> 0.1597191667 | K178: =VLOOKUP($H178,P_All!$A$5:$V$205,3*($C$8-1)+4) -> 0.1808533333 | L178: =VLOOKUP($H178,NA_All!$A$5:$V$205,3*($C$8-1)+2) -> 0.09002 | M178: =VLOOKUP($H178,NA_All!$A$5:$V$205,3*($C$8-1)+3) -> 0.1033941667 | N178: =VLOOKUP($H178,NA_All!$A$5:$V$205,3*($C$8-1)+4) -> 0.1452475 | O178: =IF(ISNA(VLOOKUP($B$6,$A$25:$E$51,IF($B$8=$A$22,3,2))),EXP(VLOOKUP($B$6,$A$25:$E$51,4)*LN(VLOOKUP($H178,#REF!,$C$8+1)/1000)+VLOOKUP($B$6,$A$25:$E$51,5)),VLOOKUP($B$6,$A$25:$E$51,IF($B$8=$A$22,3,2))) -> 0 | Q178: 12.75 | R178: =VLOOKUP($Q178,P_All!$X$5:$AS$245,3*($C$8-1)+2) -> 0.20268 | S178: =VLOOKUP($Q178,P_All!$X$5:$AS$245,3*($C$8-1)+3) -> 0.20497 | T178: =VLOOKUP($Q178,P_All!$X$5:$AS$245,3*($C$8-1)+4) -> 0.21065 | U178: =VLOOKUP($Q178,NA_All!$X$5:$AS$245,3*($C$8-1)+2) -> 0.1142 | V178: =VLOOKUP($Q178,NA_All!$X$5:$AS$245,3*($C$8-1)+3) -> 0.12218 | W178: =VLOOKUP($Q178,NA_All!$X$5:$AS$245,3*($C$8-1)+4) -> 0.14542 | X178: =IF(ISNA(VLOOKUP($B$6,$A$25:$E$52,IF($B$8=$A$22,3,2))),EXP(VLOOKUP($B$6,$A$25:$E$52,4)*LN(VLOOKUP($Q178,#REF!,$C$8+1)/1000)+VLOOKUP($B$6,$A$25:$E$52,5)),VLOOKUP($B$6,$A$25:$E$52,IF($B$8=$A$22,3,2))) -> 0
H179: 154 | I179: =VLOOKUP($H179,P_All!$A$5:$V$205,3*($C$8-1)+2) -> 0.15001 | J179: =VLOOKUP($H179,P_All!$A$5:$V$205,3*($C$8-1)+3) -> 0.1594941667 | K179: =VLOOKUP($H179,P_All!$A$5:$V$205,3*($C$8-1)+4) -> 0.1813083333 | L179: =VLOOKUP($H179,NA_All!$A$5:$V$205,3*($C$8-1)+2) -> 0.08995125 | M179: =VLOOKUP($H179,NA_All!$A$5:$V$205,3*($C$8-1)+3) -> 0.10342 | N179: =VLOOKUP($H179,NA_All!$A$5:$V$205,3*($C$8-1)+4) -> 0.144705 | O179: =IF(ISNA(VLOOKUP($B$6,$A$25:$E$51,IF($B$8=$A$22,3,2))),EXP(VLOOKUP($B$6,$A$25:$E$51,4)*LN(VLOOKUP($H179,#REF!,$C$8+1)/1000)+VLOOKUP($B$6,$A$25:$E$51,5)),VLOOKUP($B$6,$A$25:$E$51,IF($B$8=$A$22,3,2))) -> 0 | Q179: 12.83333333 | R179: =VLOOKUP($Q179,P_All!$X$5:$AS$245,3*($C$8-1)+2) -> 0.20321 | S179: =VLOOKUP($Q179,P_All!$X$5:$AS$245,3*($C$8-1)+3) -> 0.20544 | T179: =VLOOKUP($Q179,P_All!$X$5:$AS$245,3*($C$8-1)+4) -> 0.21109 | U179: =VLOOKUP($Q179,NA_All!$X$5:$AS$245,3*($C$8-1)+2) -> 0.11453 | V179: =VLOOKUP($Q179,NA_All!$X$5:$AS$245,3*($C$8-1)+3) -> 0.12284 | W179: =VLOOKUP($Q179,NA_All!$X$5:$AS$245,3*($C$8-1)+4) -> 0.14648 | X179: =IF(ISNA(VLOOKUP($B$6,$A$25:$E$52,IF($B$8=$A$22,3,2))),EXP(VLOOKUP($B$6,$A$25:$E$52,4)*LN(VLOOKUP($Q179,#REF!,$C$8+1)/1000)+VLOOKUP($B$6,$A$25:$E$52,5)),VLOOKUP($B$6,$A$25:$E$52,IF($B$8=$A$22,3,2))) -> 0
H180: 155 | I180: =VLOOKUP($H180,P_All!$A$5:$V$205,3*($C$8-1)+2) -> 0.1500466667 | J180: =VLOOKUP($H180,P_All!$A$5:$V$205,3*($C$8-1)+3) -> 0.1593483333 | K180: =VLOOKUP($H180,P_All!$A$5:$V$205,3*($C$8-1)+4) -> 0.1805575 | L180: =VLOOKUP($H180,NA_All!$A$5:$V$205,3*($C$8-1)+2) -> 0.08988175 | M180: =VLOOKUP($H180,NA_All!$A$5:$V$205,3*($C$8-1)+3) -> 0.1032016667 | N180: =VLOOKUP($H180,NA_All!$A$5:$V$205,3*($C$8-1)+4) -> 0.1449366667 | O180: =IF(ISNA(VLOOKUP($B$6,$A$25:$E$51,IF($B$8=$A$22,3,2))),EXP(VLOOKUP($B$6,$A$25:$E$51,4)*LN(VLOOKUP($H180,#REF!,$C$8+1)/1000)+VLOOKUP($B$6,$A$25:$E$51,5)),VLOOKUP($B$6,$A$25:$E$51,IF($B$8=$A$22,3,2))) -> 0 | Q180: 12.91666667 | R180: =VLOOKUP($Q180,P_All!$X$5:$AS$245,3*($C$8-1)+2) -> 0.20352 | S180: =VLOOKUP($Q180,P_All!$X$5:$AS$245,3*($C$8-1)+3) -> 0.20583 | T180: =VLOOKUP($Q180,P_All!$X$5:$AS$245,3*($C$8-1)+4) -> 0.21153 | U180: =VLOOKUP($Q180,NA_All!$X$5:$AS$245,3*($C$8-1)+2) -> 0.11433 | V180: =VLOOKUP($Q180,NA_All!$X$5:$AS$245,3*($C$8-1)+3) -> 0.12285 | W180: =VLOOKUP($Q180,NA_All!$X$5:$AS$245,3*($C$8-1)+4) -> 0.14658 | X180: =IF(ISNA(VLOOKUP($B$6,$A$25:$E$52,IF($B$8=$A$22,3,2))),EXP(VLOOKUP($B$6,$A$25:$E$52,4)*LN(VLOOKUP($Q180,#REF!,$C$8+1)/1000)+VLOOKUP($B$6,$A$25:$E$52,5)),VLOOKUP($B$6,$A$25:$E$52,IF($B$8=$A$22,3,2))) -> 0
H181: 156 | I181: =VLOOKUP($H181,P_All!$A$5:$V$205,3*($C$8-1)+2) -> 0.1500925 | J181: =VLOOKUP($H181,P_All!$A$5:$V$205,3*($C$8-1)+3) -> 0.1593083333 | K181: =VLOOKUP($H181,P_All!$A$5:$V$205,3*($C$8-1)+4) -> 0.1808433333 | L181: =VLOOKUP($H181,NA_All!$A$5:$V$205,3*($C$8-1)+2) -> 0.08983425 | M181: =VLOOKUP($H181,NA_All!$A$5:$V$205,3*($C$8-1)+3) -> 0.1030425 | N181: =VLOOKUP($H181,NA_All!$A$5:$V$205,3*($C$8-1)+4) -> 0.1446966667 | O181: =IF(ISNA(VLOOKUP($B$6,$A$25:$E$51,IF($B$8=$A$22,3,2))),EXP(VLOOKUP($B$6,$A$25:$E$51,4)*LN(VLOOKUP($H181,#REF!,$C$8+1)/1000)+VLOOKUP($B$6,$A$25:$E$51,5)),VLOOKUP($B$6,$A$25:$E$51,IF($B$8=$A$22,3,2))) -> 0 | Q181: 13 | R181: =VLOOKUP($Q181,P_All!$X$5:$AS$245,3*($C$8-1)+2) -> 0.20379 | S181: =VLOOKUP($Q181,P_All!$X$5:$AS$245,3*($C$8-1)+3) -> 0.20607 | T181: =VLOOKUP($Q181,P_All!$X$5:$AS$245,3*($C$8-1)+4) -> 0.21181 | U181: =VLOOKUP($Q181,NA_All!$X$5:$AS$245,3*($C$8-1)+2) -> 0.11399 | V181: =VLOOKUP($Q181,NA_All!$X$5:$AS$245,3*($C$8-1)+3) -> 0.12235 | W181: =VLOOKUP($Q181,NA_All!$X$5:$AS$245,3*($C$8-1)+4) -> 0.14641 | X181: =IF(ISNA(VLOOKUP($B$6,$A$25:$E$52,IF($B$8=$A$22,3,2))),EXP(VLOOKUP($B$6,$A$25:$E$52,4)*LN(VLOOKUP($Q181,#REF!,$C$8+1)/1000)+VLOOKUP($B$6,$A$25:$E$52,5)),VLOOKUP($B$6,$A$25:$E$52,IF($B$8=$A$22,3,2))) -> 0
H182: 157 | I182: =VLOOKUP($H182,P_All!$A$5:$V$205,3*($C$8-1)+2) -> 0.1501291667 | J182: =VLOOKUP($H182,P_All!$A$5:$V$205,3*($C$8-1)+3) -> 0.1591258333 | K182: =VLOOKUP($H182,P_All!$A$5:$V$205,3*($C$8-1)+4) -> 0.181995 | L182: =VLOOKUP($H182,NA_All!$A$5:$V$205,3*($C$8-1)+2) -> 0.08988291667 | M182: =VLOOKUP($H182,NA_All!$A$5:$V$205,3*($C$8-1)+3) -> 0.1028508333 | N182: =VLOOKUP($H182,NA_All!$A$5:$V$205,3*($C$8-1)+4) -> 0.1442816667 | O182: =IF(ISNA(VLOOKUP($B$6,$A$25:$E$51,IF($B$8=$A$22,3,2))),EXP(VLOOKUP($B$6,$A$25:$E$51,4)*LN(VLOOKUP($H182,#REF!,$C$8+1)/1000)+VLOOKUP($B$6,$A$25:$E$51,5)),VLOOKUP($B$6,$A$25:$E$51,IF($B$8=$A$22,3,2))) -> 0 | Q182: 13.08333333 | R182: =VLOOKUP($Q182,P_All!$X$5:$AS$245,3*($C$8-1)+2) -> 0.20358 | S182: =VLOOKUP($Q182,P_All!$X$5:$AS$245,3*($C$8-1)+3) -> 0.20593 | T182: =VLOOKUP($Q182,P_All!$X$5:$AS$245,3*($C$8-1)+4) -> 0.21201 | U182: =VLOOKUP($Q182,NA_All!$X$5:$AS$245,3*($C$8-1)+2) -> 0.11393 | V182: =VLOOKUP($Q182,NA_All!$X$5:$AS$245,3*($C$8-1)+3) -> 0.12253 | W182: =VLOOKUP($Q182,NA_All!$X$5:$AS$245,3*($C$8-1)+4) -> 0.14666 | X182: =IF(ISNA(VLOOKUP($B$6,$A$25:$E$52,IF($B$8=$A$22,3,2))),EXP(VLOOKUP($B$6,$A$25:$E$52,4)*LN(VLOOKUP($Q182,#REF!,$C$8+1)/1000)+VLOOKUP($B$6,$A$25:$E$52,5)),VLOOKUP($B$6,$A$25:$E$52,IF($B$8=$A$22,3,2))) -> 0
H183: 158 | I183: =VLOOKUP($H183,P_All!$A$5:$V$205,3*($C$8-1)+2) -> 0.1497516667 | J183: =VLOOKUP($H183,P_All!$A$5:$V$205,3*($C$8-1)+3) -> 0.1589183333 | K183: =VLOOKUP($H183,P_All!$A$5:$V$205,3*($C$8-1)+4) -> 0.1819875 | L183: =VLOOKUP($H183,NA_All!$A$5:$V$205,3*($C$8-1)+2) -> 0.08985691667 | M183: =VLOOKUP($H183,NA_All!$A$5:$V$205,3*($C$8-1)+3) -> 0.1028783333 | N183: =VLOOKUP($H183,NA_All!$A$5:$V$205,3*($C$8-1)+4) -> 0.1440991667 | O183: =IF(ISNA(VLOOKUP($B$6,$A$25:$E$51,IF($B$8=$A$22,3,2))),EXP(VLOOKUP($B$6,$A$25:$E$51,4)*LN(VLOOKUP($H183,#REF!,$C$8+1)/1000)+VLOOKUP($B$6,$A$25:$E$51,5)),VLOOKUP($B$6,$A$25:$E$51,IF($B$8=$A$22,3,2))) -> 0 | Q183: 13.16666667 | R183: =VLOOKUP($Q183,P_All!$X$5:$AS$245,3*($C$8-1)+2) -> 0.20365 | S183: =VLOOKUP($Q183,P_All!$X$5:$AS$245,3*($C$8-1)+3) -> 0.20596 | T183: =VLOOKUP($Q183,P_All!$X$5:$AS$245,3*($C$8-1)+4) -> 0.21208 | U183: =VLOOKUP($Q183,NA_All!$X$5:$AS$245,3*($C$8-1)+2) -> 0.11415 | V183: =VLOOKUP($Q183,NA_All!$X$5:$AS$245,3*($C$8-1)+3) -> 0.12277 | W183: =VLOOKUP($Q183,NA_All!$X$5:$AS$245,3*($C$8-1)+4) -> 0.14742 | X183: =IF(ISNA(VLOOKUP($B$6,$A$25:$E$52,IF($B$8=$A$22,3,2))),EXP(VLOOKUP($B$6,$A$25:$E$52,4)*LN(VLOOKUP($Q183,#REF!,$C$8+1)/1000)+VLOOKUP($B$6,$A$25:$E$52,5)),VLOOKUP($B$6,$A$25:$E$52,IF($B$8=$A$22,3,2))) -> 0
H184: 159 | I184: =VLOOKUP($H184,P_All!$A$5:$V$205,3*($C$8-1)+2) -> 0.14984 | J184: =VLOOKUP($H184,P_All!$A$5:$V$205,3*($C$8-1)+3) -> 0.1588466667 | K184: =VLOOKUP($H184,P_All!$A$5:$V$205,3*($C$8-1)+4) -> 0.18113 | L184: =VLOOKUP($H184,NA_All!$A$5:$V$205,3*($C$8-1)+2) -> 0.08978866667 | M184: =VLOOKUP($H184,NA_All!$A$5:$V$205,3*($C$8-1)+3) -> 0.1028791667 | N184: =VLOOKUP($H184,NA_All!$A$5:$V$205,3*($C$8-1)+4) -> 0.14384 | O184: =IF(ISNA(VLOOKUP($B$6,$A$25:$E$51,IF($B$8=$A$22,3,2))),EXP(VLOOKUP($B$6,$A$25:$E$51,4)*LN(VLOOKUP($H184,#REF!,$C$8+1)/1000)+VLOOKUP($B$6,$A$25:$E$51,5)),VLOOKUP($B$6,$A$25:$E$51,IF($B$8=$A$22,3,2))) -> 0 | Q184: 13.25 | R184: =VLOOKUP($Q184,P_All!$X$5:$AS$245,3*($C$8-1)+2) -> 0.20407 | S184: =VLOOKUP($Q184,P_All!$X$5:$AS$245,3*($C$8-1)+3) -> 0.20636 | T184: =VLOOKUP($Q184,P_All!$X$5:$AS$245,3*($C$8-1)+4) -> 0.21258 | U184: =VLOOKUP($Q184,NA_All!$X$5:$AS$245,3*($C$8-1)+2) -> 0.11417 | V184: =VLOOKUP($Q184,NA_All!$X$5:$AS$245,3*($C$8-1)+3) -> 0.12274 | W184: =VLOOKUP($Q184,NA_All!$X$5:$AS$245,3*($C$8-1)+4) -> 0.14754 | X184: =IF(ISNA(VLOOKUP($B$6,$A$25:$E$52,IF($B$8=$A$22,3,2))),EXP(VLOOKUP($B$6,$A$25:$E$52,4)*LN(VLOOKUP($Q184,#REF!,$C$8+1)/1000)+VLOOKUP($B$6,$A$25:$E$52,5)),VLOOKUP($B$6,$A$25:$E$52,IF($B$8=$A$22,3,2))) -> 0
H185: 160 | I185: =VLOOKUP($H185,P_All!$A$5:$V$205,3*($C$8-1)+2) -> 0.1503166667 | J185: =VLOOKUP($H185,P_All!$A$5:$V$205,3*($C$8-1)+3) -> 0.15925 | K185: =VLOOKUP($H185,P_All!$A$5:$V$205,3*($C$8-1)+4) -> 0.1805666667 | L185: =VLOOKUP($H185,NA_All!$A$5:$V$205,3*($C$8-1)+2) -> 0.08973066667 | M185: =VLOOKUP($H185,NA_All!$A$5:$V$205,3*($C$8-1)+3) -> 0.1030458333 | N185: =VLOOKUP($H185,NA_All!$A$5:$V$205,3*($C$8-1)+4) -> 0.1446733333 | O185: =IF(ISNA(VLOOKUP($B$6,$A$25:$E$51,IF($B$8=$A$22,3,2))),EXP(VLOOKUP($B$6,$A$25:$E$51,4)*LN(VLOOKUP($H185,#REF!,$C$8+1)/1000)+VLOOKUP($B$6,$A$25:$E$51,5)),VLOOKUP($B$6,$A$25:$E$51,IF($B$8=$A$22,3,2))) -> 0 | Q185: 13.33333333 | R185: =VLOOKUP($Q185,P_All!$X$5:$AS$245,3*($C$8-1)+2) -> 0.20382 | S185: =VLOOKUP($Q185,P_All!$X$5:$AS$245,3*($C$8-1)+3) -> 0.20623 | T185: =VLOOKUP($Q185,P_All!$X$5:$AS$245,3*($C$8-1)+4) -> 0.21259 | U185: =VLOOKUP($Q185,NA_All!$X$5:$AS$245,3*($C$8-1)+2) -> 0.11382 | V185: =VLOOKUP($Q185,NA_All!$X$5:$AS$245,3*($C$8-1)+3) -> 0.12226 | W185: =VLOOKUP($Q185,NA_All!$X$5:$AS$245,3*($C$8-1)+4) -> 0.14722 | X185: =IF(ISNA(VLOOKUP($B$6,$A$25:$E$52,IF($B$8=$A$22,3,2))),EXP(VLOOKUP($B$6,$A$25:$E$52,4)*LN(VLOOKUP($Q185,#REF!,$C$8+1)/1000)+VLOOKUP($B$6,$A$25:$E$52,5)),VLOOKUP($B$6,$A$25:$E$52,IF($B$8=$A$22,3,2))) -> 0
H186: 161 | I186: =VLOOKUP($H186,P_All!$A$5:$V$205,3*($C$8-1)+2) -> 0.1499475 | J186: =VLOOKUP($H186,P_All!$A$5:$V$205,3*($C$8-1)+3) -> 0.1594025 | K186: =VLOOKUP($H186,P_All!$A$5:$V$205,3*($C$8-1)+4) -> 0.1800283333 | L186: =VLOOKUP($H186,NA_All!$A$5:$V$205,3*($C$8-1)+2) -> 0.0897285 | M186: =VLOOKUP($H186,NA_All!$A$5:$V$205,3*($C$8-1)+3) -> 0.1030133333 | N186: =VLOOKUP($H186,NA_All!$A$5:$V$205,3*($C$8-1)+4) -> 0.1451858333 | O186: =IF(ISNA(VLOOKUP($B$6,$A$25:$E$51,IF($B$8=$A$22,3,2))),EXP(VLOOKUP($B$6,$A$25:$E$51,4)*LN(VLOOKUP($H186,#REF!,$C$8+1)/1000)+VLOOKUP($B$6,$A$25:$E$51,5)),VLOOKUP($B$6,$A$25:$E$51,IF($B$8=$A$22,3,2))) -> 0 | Q186: 13.41666667 | R186: =VLOOKUP($Q186,P_All!$X$5:$AS$245,3*($C$8-1)+2) -> 0.20366 | S186: =VLOOKUP($Q186,P_All!$X$5:$AS$245,3*($C$8-1)+3) -> 0.20627 | T186: =VLOOKUP($Q186,P_All!$X$5:$AS$245,3*($C$8-1)+4) -> 0.21306 | U186: =VLOOKUP($Q186,NA_All!$X$5:$AS$245,3*($C$8-1)+2) -> 0.11369 | V186: =VLOOKUP($Q186,NA_All!$X$5:$AS$245,3*($C$8-1)+3) -> 0.1222 | W186: =VLOOKUP($Q186,NA_All!$X$5:$AS$245,3*($C$8-1)+4) -> 0.14715 | X186: =IF(ISNA(VLOOKUP($B$6,$A$25:$E$52,IF($B$8=$A$22,3,2))),EXP(VLOOKUP($B$6,$A$25:$E$52,4)*LN(VLOOKUP($Q186,#REF!,$C$8+1)/1000)+VLOOKUP($B$6,$A$25:$E$52,5)),VLOOKUP($B$6,$A$25:$E$52,IF($B$8=$A$22,3,2))) -> 0
H187: 162 | I187: =VLOOKUP($H187,P_All!$A$5:$V$205,3*($C$8-1)+2) -> 0.1496666667 | J187: =VLOOKUP($H187,P_All!$A$5:$V$205,3*($C$8-1)+3) -> 0.1593558333 | K187: =VLOOKUP($H187,P_All!$A$5:$V$205,3*($C$8-1)+4) -> 0.1805091667 | L187: =VLOOKUP($H187,NA_All!$A$5:$V$205,3*($C$8-1)+2) -> 0.08973825 | M187: =VLOOKUP($H187,NA_All!$A$5:$V$205,3*($C$8-1)+3) -> 0.1028108333 | N187: =VLOOKUP($H187,NA_All!$A$5:$V$205,3*($C$8-1)+4) -> 0.1450633333 | O187: =IF(ISNA(VLOOKUP($B$6,$A$25:$E$51,IF($B$8=$A$22,3,2))),EXP(VLOOKUP($B$6,$A$25:$E$51,4)*LN(VLOOKUP($H187,#REF!,$C$8+1)/1000)+VLOOKUP($B$6,$A$25:$E$51,5)),VLOOKUP($B$6,$A$25:$E$51,IF($B$8=$A$22,3,2))) -> 0 | Q187: 13.5 | R187: =VLOOKUP($Q187,P_All!$X$5:$AS$245,3*($C$8-1)+2) -> 0.20403 | S187: =VLOOKUP($Q187,P_All!$X$5:$AS$245,3*($C$8-1)+3) -> 0.20661 | T187: =VLOOKUP($Q187,P_All!$X$5:$AS$245,3*($C$8-1)+4) -> 0.21389 | U187: =VLOOKUP($Q187,NA_All!$X$5:$AS$245,3*($C$8-1)+2) -> 0.11384 | V187: =VLOOKUP($Q187,NA_All!$X$5:$AS$245,3*($C$8-1)+3) -> 0.1224 | W187: =VLOOKUP($Q187,NA_All!$X$5:$AS$245,3*($C$8-1)+4) -> 0.1475 | X187: =IF(ISNA(VLOOKUP($B$6,$A$25:$E$52,IF($B$8=$A$22,3,2))),EXP(VLOOKUP($B$6,$A$25:$E$52,4)*LN(VLOOKUP($Q187,#REF!,$C$8+1)/1000)+VLOOKUP($B$6,$A$25:$E$52,5)),VLOOKUP($B$6,$A$25:$E$52,IF($B$8=$A$22,3,2))) -> 0
H188: 163 | I188: =VLOOKUP($H188,P_All!$A$5:$V$205,3*($C$8-1)+2) -> 0.1496966667 | J188: =VLOOKUP($H188,P_All!$A$5:$V$205,3*($C$8-1)+3) -> 0.1592966667 | K188: =VLOOKUP($H188,P_All!$A$5:$V$205,3*($C$8-1)+4) -> 0.180585 | L188: =VLOOKUP($H188,NA_All!$A$5:$V$205,3*($C$8-1)+2) -> 0.08966291667 | M188: =VLOOKUP($H188,NA_All!$A$5:$V$205,3*($C$8-1)+3) -> 0.1028308333 | N188: =VLOOKUP($H188,NA_All!$A$5:$V$205,3*($C$8-1)+4) -> 0.1449391667 | O188: =IF(ISNA(VLOOKUP($B$6,$A$25:$E$51,IF($B$8=$A$22,3,2))),EXP(VLOOKUP($B$6,$A$25:$E$51,4)*LN(VLOOKUP($H188,#REF!,$C$8+1)/1000)+VLOOKUP($B$6,$A$25:$E$51,5)),VLOOKUP($B$6,$A$25:$E$51,IF($B$8=$A$22,3,2))) -> 0 | Q188: 13.58333333 | R188: =VLOOKUP($Q188,P_All!$X$5:$AS$245,3*($C$8-1)+2) -> 0.20394 | S188: =VLOOKUP($Q188,P_All!$X$5:$AS$245,3*($C$8-1)+3) -> 0.20635 | T188: =VLOOKUP($Q188,P_All!$X$5:$AS$245,3*($C$8-1)+4) -> 0.21288 | U188: =VLOOKUP($Q188,NA_All!$X$5:$AS$245,3*($C$8-1)+2) -> 0.11404 | V188: =VLOOKUP($Q188,NA_All!$X$5:$AS$245,3*($C$8-1)+3) -> 0.12261 | W188: =VLOOKUP($Q188,NA_All!$X$5:$AS$245,3*($C$8-1)+4) -> 0.14789 | X188: =IF(ISNA(VLOOKUP($B$6,$A$25:$E$52,IF($B$8=$A$22,3,2))),EXP(VLOOKUP($B$6,$A$25:$E$52,4)*LN(VLOOKUP($Q188,#REF!,$C$8+1)/1000)+VLOOKUP($B$6,$A$25:$E$52,5)),VLOOKUP($B$6,$A$25:$E$52,IF($B$8=$A$22,3,2))) -> 0
H189: 164 | I189: =VLOOKUP($H189,P_All!$A$5:$V$205,3*($C$8-1)+2) -> 0.1501191667 | J189: =VLOOKUP($H189,P_All!$A$5:$V$205,3*($C$8-1)+3) -> 0.1594108333 | K189: =VLOOKUP($H189,P_All!$A$5:$V$205,3*($C$8-1)+4) -> 0.1805191667 | L189: =VLOOKUP($H189,NA_All!$A$5:$V$205,3*($C$8-1)+2) -> 0.08962775 | M189: =VLOOKUP($H189,NA_All!$A$5:$V$205,3*($C$8-1)+3) -> 0.1028275 | N189: =VLOOKUP($H189,NA_All!$A$5:$V$205,3*($C$8-1)+4) -> 0.144995 | O189: =IF(ISNA(VLOOKUP($B$6,$A$25:$E$51,IF($B$8=$A$22,3,2))),EXP(VLOOKUP($B$6,$A$25:$E$51,4)*LN(VLOOKUP($H189,#REF!,$C$8+1)/1000)+VLOOKUP($B$6,$A$25:$E$51,5)),VLOOKUP($B$6,$A$25:$E$51,IF($B$8=$A$22,3,2))) -> 0 | Q189: 13.66666667 | R189: =VLOOKUP($Q189,P_All!$X$5:$AS$245,3*($C$8-1)+2) -> 0.20326 | S189: =VLOOKUP($Q189,P_All!$X$5:$AS$245,3*($C$8-1)+3) -> 0.20572 | T189: =VLOOKUP($Q189,P_All!$X$5:$AS$245,3*($C$8-1)+4) -> 0.21242 | U189: =VLOOKUP($Q189,NA_All!$X$5:$AS$245,3*($C$8-1)+2) -> 0.1136 | V189: =VLOOKUP($Q189,NA_All!$X$5:$AS$245,3*($C$8-1)+3) -> 0.12212 | W189: =VLOOKUP($Q189,NA_All!$X$5:$AS$245,3*($C$8-1)+4) -> 0.14732 | X189: =IF(ISNA(VLOOKUP($B$6,$A$25:$E$52,IF($B$8=$A$22,3,2))),EXP(VLOOKUP($B$6,$A$25:$E$52,4)*LN(VLOOKUP($Q189,#REF!,$C$8+1)/1000)+VLOOKUP($B$6,$A$25:$E$52,5)),VLOOKUP($B$6,$A$25:$E$52,IF($B$8=$A$22,3,2))) -> 0
H190: 165 | I190: =VLOOKUP($H190,P_All!$A$5:$V$205,3*($C$8-1)+2) -> 0.1499191667 | J190: =VLOOKUP($H190,P_All!$A$5:$V$205,3*($C$8-1)+3) -> 0.1594191667 | K190: =VLOOKUP($H190,P_All!$A$5:$V$205,3*($C$8-1)+4) -> 0.1803058333 | L190: =VLOOKUP($H190,NA_All!$A$5:$V$205,3*($C$8-1)+2) -> 0.08974766667 | M190: =VLOOKUP($H190,NA_All!$A$5:$V$205,3*($C$8-1)+3) -> 0.1029633333 | N190: =VLOOKUP($H190,NA_All!$A$5:$V$205,3*($C$8-1)+4) -> 0.1447775 | O190: =IF(ISNA(VLOOKUP($B$6,$A$25:$E$51,IF($B$8=$A$22,3,2))),EXP(VLOOKUP($B$6,$A$25:$E$51,4)*LN(VLOOKUP($H190,#REF!,$C$8+1)/1000)+VLOOKUP($B$6,$A$25:$E$51,5)),VLOOKUP($B$6,$A$25:$E$51,IF($B$8=$A$22,3,2))) -> 0 | Q190: 13.75 | R190: =VLOOKUP($Q190,P_All!$X$5:$AS$245,3*($C$8-1)+2) -> 0.20367 | S190: =VLOOKUP($Q190,P_All!$X$5:$AS$245,3*($C$8-1)+3) -> 0.20617 | T190: =VLOOKUP($Q190,P_All!$X$5:$AS$245,3*($C$8-1)+4) -> 0.21275 | U190: =VLOOKUP($Q190,NA_All!$X$5:$AS$245,3*($C$8-1)+2) -> 0.11338 | V190: =VLOOKUP($Q190,NA_All!$X$5:$AS$245,3*($C$8-1)+3) -> 0.12188 | W190: =VLOOKUP($Q190,NA_All!$X$5:$AS$245,3*($C$8-1)+4) -> 0.14709 | X190: =IF(ISNA(VLOOKUP($B$6,$A$25:$E$52,IF($B$8=$A$22,3,2))),EXP(VLOOKUP($B$6,$A$25:$E$52,4)*LN(VLOOKUP($Q190,#REF!,$C$8+1)/1000)+VLOOKUP($B$6,$A$25:$E$52,5)),VLOOKUP($B$6,$A$25:$E$52,IF($B$8=$A$22,3,2))) -> 0
H191: 166 | I191: =VLOOKUP($H191,P_All!$A$5:$V$205,3*($C$8-1)+2) -> 0.1498291667 | J191: =VLOOKUP($H191,P_All!$A$5:$V$205,3*($C$8-1)+3) -> 0.1594275 | K191: =VLOOKUP($H191,P_All!$A$5:$V$205,3*($C$8-1)+4) -> 0.1808783333 | L191: =VLOOKUP($H191,NA_All!$A$5:$V$205,3*($C$8-1)+2) -> 0.08987366667 | M191: =VLOOKUP($H191,NA_All!$A$5:$V$205,3*($C$8-1)+3) -> 0.1031125 | N191: =VLOOKUP($H191,NA_All!$A$5:$V$205,3*($C$8-1)+4) -> 0.1448358333 | O191: =IF(ISNA(VLOOKUP($B$6,$A$25:$E$51,IF($B$8=$A$22,3,2))),EXP(VLOOKUP($B$6,$A$25:$E$51,4)*LN(VLOOKUP($H191,#REF!,$C$8+1)/1000)+VLOOKUP($B$6,$A$25:$E$51,5)),VLOOKUP($B$6,$A$25:$E$51,IF($B$8=$A$22,3,2))) -> 0 | Q191: 13.83333333 | R191: =VLOOKUP($Q191,P_All!$X$5:$AS$245,3*($C$8-1)+2) -> 0.2038 | S191: =VLOOKUP($Q191,P_All!$X$5:$AS$245,3*($C$8-1)+3) -> 0.20639 | T191: =VLOOKUP($Q191,P_All!$X$5:$AS$245,3*($C$8-1)+4) -> 0.21303 | U191: =VLOOKUP($Q191,NA_All!$X$5:$AS$245,3*($C$8-1)+2) -> 0.11371 | V191: =VLOOKUP($Q191,NA_All!$X$5:$AS$245,3*($C$8-1)+3) -> 0.12246 | W191: =VLOOKUP($Q191,NA_All!$X$5:$AS$245,3*($C$8-1)+4) -> 0.14776 | X191: =IF(ISNA(VLOOKUP($B$6,$A$25:$E$52,IF($B$8=$A$22,3,2))),EXP(VLOOKUP($B$6,$A$25:$E$52,4)*LN(VLOOKUP($Q191,#REF!,$C$8+1)/1000)+VLOOKUP($B$6,$A$25:$E$52,5)),VLOOKUP($B$6,$A$25:$E$52,IF($B$8=$A$22,3,2))) -> 0
H192: 167 | I192: =VLOOKUP($H192,P_All!$A$5:$V$205,3*($C$8-1)+2) -> 0.1495408333 | J192: =VLOOKUP($H192,P_All!$A$5:$V$205,3*($C$8-1)+3) -> 0.1597791667 | K192: =VLOOKUP($H192,P_All!$A$5:$V$205,3*($C$8-1)+4) -> 0.18111 | L192: =VLOOKUP($H192,NA_All!$A$5:$V$205,3*($C$8-1)+2) -> 0.08975858333 | M192: =VLOOKUP($H192,NA_All!$A$5:$V$205,3*($C$8-1)+3) -> 0.1028808333 | N192: =VLOOKUP($H192,NA_All!$A$5:$V$205,3*($C$8-1)+4) -> 0.1450108333 | O192: =IF(ISNA(VLOOKUP($B$6,$A$25:$E$51,IF($B$8=$A$22,3,2))),EXP(VLOOKUP($B$6,$A$25:$E$51,4)*LN(VLOOKUP($H192,#REF!,$C$8+1)/1000)+VLOOKUP($B$6,$A$25:$E$51,5)),VLOOKUP($B$6,$A$25:$E$51,IF($B$8=$A$22,3,2))) -> 0 | Q192: 13.91666667 | R192: =VLOOKUP($Q192,P_All!$X$5:$AS$245,3*($C$8-1)+2) -> 0.20364 | S192: =VLOOKUP($Q192,P_All!$X$5:$AS$245,3*($C$8-1)+3) -> 0.20616 | T192: =VLOOKUP($Q192,P_All!$X$5:$AS$245,3*($C$8-1)+4) -> 0.213 | U192: =VLOOKUP($Q192,NA_All!$X$5:$AS$245,3*($C$8-1)+2) -> 0.11375 | V192: =VLOOKUP($Q192,NA_All!$X$5:$AS$245,3*($C$8-1)+3) -> 0.1224 | W192: =VLOOKUP($Q192,NA_All!$X$5:$AS$245,3*($C$8-1)+4) -> 0.14792 | X192: =IF(ISNA(VLOOKUP($B$6,$A$25:$E$52,IF($B$8=$A$22,3,2))),EXP(VLOOKUP($B$6,$A$25:$E$52,4)*LN(VLOOKUP($Q192,#REF!,$C$8+1)/1000)+VLOOKUP($B$6,$A$25:$E$52,5)),VLOOKUP($B$6,$A$25:$E$52,IF($B$8=$A$22,3,2))) -> 0
H193: 168 | I193: =VLOOKUP($H193,P_All!$A$5:$V$205,3*($C$8-1)+2) -> 0.15016 | J193: =VLOOKUP($H193,P_All!$A$5:$V$205,3*($C$8-1)+3) -> 0.1598666667 | K193: =VLOOKUP($H193,P_All!$A$5:$V$205,3*($C$8-1)+4) -> 0.181405 | L193: =VLOOKUP($H193,NA_All!$A$5:$V$205,3*($C$8-1)+2) -> 0.08969 | M193: =VLOOKUP($H193,NA_All!$A$5:$V$205,3*($C$8-1)+3) -> 0.1025966667 | N193: =VLOOKUP($H193,NA_All!$A$5:$V$205,3*($C$8-1)+4) -> 0.1451166667 | O193: =IF(ISNA(VLOOKUP($B$6,$A$25:$E$51,IF($B$8=$A$22,3,2))),EXP(VLOOKUP($B$6,$A$25:$E$51,4)*LN(VLOOKUP($H193,#REF!,$C$8+1)/1000)+VLOOKUP($B$6,$A$25:$E$51,5)),VLOOKUP($B$6,$A$25:$E$51,IF($B$8=$A$22,3,2))) -> 0 | Q193: 14 | R193: =VLOOKUP($Q193,P_All!$X$5:$AS$245,3*($C$8-1)+2) -> 0.20363 | S193: =VLOOKUP($Q193,P_All!$X$5:$AS$245,3*($C$8-1)+3) -> 0.20624 | T193: =VLOOKUP($Q193,P_All!$X$5:$AS$245,3*($C$8-1)+4) -> 0.21289 | U193: =VLOOKUP($Q193,NA_All!$X$5:$AS$245,3*($C$8-1)+2) -> 0.11342 | V193: =VLOOKUP($Q193,NA_All!$X$5:$AS$245,3*($C$8-1)+3) -> 0.12204 | W193: =VLOOKUP($Q193,NA_All!$X$5:$AS$245,3*($C$8-1)+4) -> 0.14763 | X193: =IF(ISNA(VLOOKUP($B$6,$A$25:$E$52,IF($B$8=$A$22,3,2))),EXP(VLOOKUP($B$6,$A$25:$E$52,4)*LN(VLOOKUP($Q193,#REF!,$C$8+1)/1000)+VLOOKUP($B$6,$A$25:$E$52,5)),VLOOKUP($B$6,$A$25:$E$52,IF($B$8=$A$22,3,2))) -> 0
H194: 169 | I194: =VLOOKUP($H194,P_All!$A$5:$V$205,3*($C$8-1)+2) -> 0.1504783333 | J194: =VLOOKUP($H194,P_All!$A$5:$V$205,3*($C$8-1)+3) -> 0.1598625 | K194: =VLOOKUP($H194,P_All!$A$5:$V$205,3*($C$8-1)+4) -> 0.1809725 | L194: =VLOOKUP($H194,NA_All!$A$5:$V$205,3*($C$8-1)+2) -> 0.089708 | M194: =VLOOKUP($H194,NA_All!$A$5:$V$205,3*($C$8-1)+3) -> 0.1027058333 | N194: =VLOOKUP($H194,NA_All!$A$5:$V$205,3*($C$8-1)+4) -> 0.1446216667 | O194: =IF(ISNA(VLOOKUP($B$6,$A$25:$E$51,IF($B$8=$A$22,3,2))),EXP(VLOOKUP($B$6,$A$25:$E$51,4)*LN(VLOOKUP($H194,#REF!,$C$8+1)/1000)+VLOOKUP($B$6,$A$25:$E$51,5)),VLOOKUP($B$6,$A$25:$E$51,IF($B$8=$A$22,3,2))) -> 0 | Q194: 14.08333333 | R194: =VLOOKUP($Q194,P_All!$X$5:$AS$245,3*($C$8-1)+2) -> 0.20333 | S194: =VLOOKUP($Q194,P_All!$X$5:$AS$245,3*($C$8-1)+3) -> 0.20603 | T194: =VLOOKUP($Q194,P_All!$X$5:$AS$245,3*($C$8-1)+4) -> 0.21287 | U194: =VLOOKUP($Q194,NA_All!$X$5:$AS$245,3*($C$8-1)+2) -> 0.11335 | V194: =VLOOKUP($Q194,NA_All!$X$5:$AS$245,3*($C$8-1)+3) -> 0.12224 | W194: =VLOOKUP($Q194,NA_All!$X$5:$AS$245,3*($C$8-1)+4) -> 0.1478 | X194: =IF(ISNA(VLOOKUP($B$6,$A$25:$E$52,IF($B$8=$A$22,3,2))),EXP(VLOOKUP($B$6,$A$25:$E$52,4)*LN(VLOOKUP($Q194,#REF!,$C$8+1)/1000)+VLOOKUP($B$6,$A$25:$E$52,5)),VLOOKUP($B$6,$A$25:$E$52,IF($B$8=$A$22,3,2))) -> 0
H195: 170 | I195: =VLOOKUP($H195,P_All!$A$5:$V$205,3*($C$8-1)+2) -> 0.1505425 | J195: =VLOOKUP($H195,P_All!$A$5:$V$205,3*($C$8-1)+3) -> 0.1598125 | K195: =VLOOKUP($H195,P_All!$A$5:$V$205,3*($C$8-1)+4) -> 0.1806325 | L195: =VLOOKUP($H195,NA_All!$A$5:$V$205,3*($C$8-1)+2) -> 0.08967975 | M195: =VLOOKUP($H195,NA_All!$A$5:$V$205,3*($C$8-1)+3) -> 0.1026466667 | N195: =VLOOKUP($H195,NA_All!$A$5:$V$205,3*($C$8-1)+4) -> 0.1435033333 | O195: =IF(ISNA(VLOOKUP($B$6,$A$25:$E$51,IF($B$8=$A$22,3,2))),EXP(VLOOKUP($B$6,$A$25:$E$51,4)*LN(VLOOKUP($H195,#REF!,$C$8+1)/1000)+VLOOKUP($B$6,$A$25:$E$51,5)),VLOOKUP($B$6,$A$25:$E$51,IF($B$8=$A$22,3,2))) -> 0 | Q195: 14.16666667 | R195: =VLOOKUP($Q195,P_All!$X$5:$AS$245,3*($C$8-1)+2) -> 0.2044 | S195: =VLOOKUP($Q195,P_All!$X$5:$AS$245,3*($C$8-1)+3) -> 0.20735 | T195: =VLOOKUP($Q195,P_All!$X$5:$AS$245,3*($C$8-1)+4) -> 0.21515 | U195: =VLOOKUP($Q195,NA_All!$X$5:$AS$245,3*($C$8-1)+2) -> 0.1135 | V195: =VLOOKUP($Q195,NA_All!$X$5:$AS$245,3*($C$8-1)+3) -> 0.12241 | W195: =VLOOKUP($Q195,NA_All!$X$5:$AS$245,3*($C$8-1)+4) -> 0.14834 | X195: =IF(ISNA(VLOOKUP($B$6,$A$25:$E$52,IF($B$8=$A$22,3,2))),EXP(VLOOKUP($B$6,$A$25:$E$52,4)*LN(VLOOKUP($Q195,#REF!,$C$8+1)/1000)+VLOOKUP($B$6,$A$25:$E$52,5)),VLOOKUP($B$6,$A$25:$E$52,IF($B$8=$A$22,3,2))) -> 0
H196: 171 | I196: =VLOOKUP($H196,P_All!$A$5:$V$205,3*($C$8-1)+2) -> 0.15058 | J196: =VLOOKUP($H196,P_All!$A$5:$V$205,3*($C$8-1)+3) -> 0.1597441667 | K196: =VLOOKUP($H196,P_All!$A$5:$V$205,3*($C$8-1)+4) -> 0.1799058333 | L196: =VLOOKUP($H196,NA_All!$A$5:$V$205,3*($C$8-1)+2) -> 0.08972083333 | M196: =VLOOKUP($H196,NA_All!$A$5:$V$205,3*($C$8-1)+3) -> 0.1025841667 | N196: =VLOOKUP($H196,NA_All!$A$5:$V$205,3*($C$8-1)+4) -> 0.1435766667 | O196: =IF(ISNA(VLOOKUP($B$6,$A$25:$E$51,IF($B$8=$A$22,3,2))),EXP(VLOOKUP($B$6,$A$25:$E$51,4)*LN(VLOOKUP($H196,#REF!,$C$8+1)/1000)+VLOOKUP($B$6,$A$25:$E$51,5)),VLOOKUP($B$6,$A$25:$E$51,IF($B$8=$A$22,3,2))) -> 0 | Q196: 14.25 | R196: =VLOOKUP($Q196,P_All!$X$5:$AS$245,3*($C$8-1)+2) -> 0.2036 | S196: =VLOOKUP($Q196,P_All!$X$5:$AS$245,3*($C$8-1)+3) -> 0.20614 | T196: =VLOOKUP($Q196,P_All!$X$5:$AS$245,3*($C$8-1)+4) -> 0.21289 | U196: =VLOOKUP($Q196,NA_All!$X$5:$AS$245,3*($C$8-1)+2) -> 0.11351 | V196: =VLOOKUP($Q196,NA_All!$X$5:$AS$245,3*($C$8-1)+3) -> 0.12255 | W196: =VLOOKUP($Q196,NA_All!$X$5:$AS$245,3*($C$8-1)+4) -> 0.14845 | X196: =IF(ISNA(VLOOKUP($B$6,$A$25:$E$52,IF($B$8=$A$22,3,2))),EXP(VLOOKUP($B$6,$A$25:$E$52,4)*LN(VLOOKUP($Q196,#REF!,$C$8+1)/1000)+VLOOKUP($B$6,$A$25:$E$52,5)),VLOOKUP($B$6,$A$25:$E$52,IF($B$8=$A$22,3,2))) -> 0
H197: 172 | I197: =VLOOKUP($H197,P_All!$A$5:$V$205,3*($C$8-1)+2) -> 0.150545 | J197: =VLOOKUP($H197,P_All!$A$5:$V$205,3*($C$8-1)+3) -> 0.1596858333 | K197: =VLOOKUP($H197,P_All!$A$5:$V$205,3*($C$8-1)+4) -> 0.1797966667 | L197: =VLOOKUP($H197,NA_All!$A$5:$V$205,3*($C$8-1)+2) -> 0.08967058333 | M197: =VLOOKUP($H197,NA_All!$A$5:$V$205,3*($C$8-1)+3) -> 0.1025083333 | N197: =VLOOKUP($H197,NA_All!$A$5:$V$205,3*($C$8-1)+4) -> 0.1433783333 | O197: =IF(ISNA(VLOOKUP($B$6,$A$25:$E$51,IF($B$8=$A$22,3,2))),EXP(VLOOKUP($B$6,$A$25:$E$51,4)*LN(VLOOKUP($H197,#REF!,$C$8+1)/1000)+VLOOKUP($B$6,$A$25:$E$51,5)),VLOOKUP($B$6,$A$25:$E$51,IF($B$8=$A$22,3,2))) -> 0 | Q197: 14.33333333 | R197: =VLOOKUP($Q197,P_All!$X$5:$AS$245,3*($C$8-1)+2) -> 0.20258 | S197: =VLOOKUP($Q197,P_All!$X$5:$AS$245,3*($C$8-1)+3) -> 0.20517 | T197: =VLOOKUP($Q197,P_All!$X$5:$AS$245,3*($C$8-1)+4) -> 0.21185 | U197: =VLOOKUP($Q197,NA_All!$X$5:$AS$245,3*($C$8-1)+2) -> 0.11318 | V197: =VLOOKUP($Q197,NA_All!$X$5:$AS$245,3*($C$8-1)+3) -> 0.12216 | W197: =VLOOKUP($Q197,NA_All!$X$5:$AS$245,3*($C$8-1)+4) -> 0.14803 | X197: =IF(ISNA(VLOOKUP($B$6,$A$25:$E$52,IF($B$8=$A$22,3,2))),EXP(VLOOKUP($B$6,$A$25:$E$52,4)*LN(VLOOKUP($Q197,#REF!,$C$8+1)/1000)+VLOOKUP($B$6,$A$25:$E$52,5)),VLOOKUP($B$6,$A$25:$E$52,IF($B$8=$A$22,3,2))) -> 0
H198: 173 | I198: =VLOOKUP($H198,P_All!$A$5:$V$205,3*($C$8-1)+2) -> 0.15017 | J198: =VLOOKUP($H198,P_All!$A$5:$V$205,3*($C$8-1)+3) -> 0.1597633333 | K198: =VLOOKUP($H198,P_All!$A$5:$V$205,3*($C$8-1)+4) -> 0.179855 | L198: =VLOOKUP($H198,NA_All!$A$5:$V$205,3*($C$8-1)+2) -> 0.08954541667 | M198: =VLOOKUP($H198,NA_All!$A$5:$V$205,3*($C$8-1)+3) -> 0.1026 | N198: =VLOOKUP($H198,NA_All!$A$5:$V$205,3*($C$8-1)+4) -> 0.1427591667 | O198: =IF(ISNA(VLOOKUP($B$6,$A$25:$E$51,IF($B$8=$A$22,3,2))),EXP(VLOOKUP($B$6,$A$25:$E$51,4)*LN(VLOOKUP($H198,#REF!,$C$8+1)/1000)+VLOOKUP($B$6,$A$25:$E$51,5)),VLOOKUP($B$6,$A$25:$E$51,IF($B$8=$A$22,3,2))) -> 0 | Q198: 14.41666667 | R198: =VLOOKUP($Q198,P_All!$X$5:$AS$245,3*($C$8-1)+2) -> 0.20225 | S198: =VLOOKUP($Q198,P_All!$X$5:$AS$245,3*($C$8-1)+3) -> 0.2048 | T198: =VLOOKUP($Q198,P_All!$X$5:$AS$245,3*($C$8-1)+4) -> 0.21129 | U198: =VLOOKUP($Q198,NA_All!$X$5:$AS$245,3*($C$8-1)+2) -> 0.11303 | V198: =VLOOKUP($Q198,NA_All!$X$5:$AS$245,3*($C$8-1)+3) -> 0.12206 | W198: =VLOOKUP($Q198,NA_All!$X$5:$AS$245,3*($C$8-1)+4) -> 0.14794 | X198: =IF(ISNA(VLOOKUP($B$6,$A$25:$E$52,IF($B$8=$A$22,3,2))),EXP(VLOOKUP($B$6,$A$25:$E$52,4)*LN(VLOOKUP($Q198,#REF!,$C$8+1)/1000)+VLOOKUP($B$6,$A$25:$E$52,5)),VLOOKUP($B$6,$A$25:$E$52,IF($B$8=$A$22,3,2))) -> 0
H199: 174 | I199: =VLOOKUP($H199,P_All!$A$5:$V$205,3*($C$8-1)+2) -> 0.1502183333 | J199: =VLOOKUP($H199,P_All!$A$5:$V$205,3*($C$8-1)+3) -> 0.1594808333 | K199: =VLOOKUP($H199,P_All!$A$5:$V$205,3*($C$8-1)+4) -> 0.180795 | L199: =VLOOKUP($H199,NA_All!$A$5:$V$205,3*($C$8-1)+2) -> 0.08960208333 | M199: =VLOOKUP($H199,NA_All!$A$5:$V$205,3*($C$8-1)+3) -> 0.1025916667 | N199: =VLOOKUP($H199,NA_All!$A$5:$V$205,3*($C$8-1)+4) -> 0.14309 | O199: =IF(ISNA(VLOOKUP($B$6,$A$25:$E$51,IF($B$8=$A$22,3,2))),EXP(VLOOKUP($B$6,$A$25:$E$51,4)*LN(VLOOKUP($H199,#REF!,$C$8+1)/1000)+VLOOKUP($B$6,$A$25:$E$51,5)),VLOOKUP($B$6,$A$25:$E$51,IF($B$8=$A$22,3,2))) -> 0 | Q199: 14.5 | R199: =VLOOKUP($Q199,P_All!$X$5:$AS$245,3*($C$8-1)+2) -> 0.20293 | S199: =VLOOKUP($Q199,P_All!$X$5:$AS$245,3*($C$8-1)+3) -> 0.20544 | T199: =VLOOKUP($Q199,P_All!$X$5:$AS$245,3*($C$8-1)+4) -> 0.21179 | U199: =VLOOKUP($Q199,NA_All!$X$5:$AS$245,3*($C$8-1)+2) -> 0.11319 | V199: =VLOOKUP($Q199,NA_All!$X$5:$AS$245,3*($C$8-1)+3) -> 0.12225 | W199: =VLOOKUP($Q199,NA_All!$X$5:$AS$245,3*($C$8-1)+4) -> 0.14824 | X199: =IF(ISNA(VLOOKUP($B$6,$A$25:$E$52,IF($B$8=$A$22,3,2))),EXP(VLOOKUP($B$6,$A$25:$E$52,4)*LN(VLOOKUP($Q199,#REF!,$C$8+1)/1000)+VLOOKUP($B$6,$A$25:$E$52,5)),VLOOKUP($B$6,$A$25:$E$52,IF($B$8=$A$22,3,2))) -> 0
H200: 175 | I200: =VLOOKUP($H200,P_All!$A$5:$V$205,3*($C$8-1)+2) -> 0.1503033333 | J200: =VLOOKUP($H200,P_All!$A$5:$V$205,3*($C$8-1)+3) -> 0.1597875 | K200: =VLOOKUP($H200,P_All!$A$5:$V$205,3*($C$8-1)+4) -> 0.1812625 | L200: =VLOOKUP($H200,NA_All!$A$5:$V$205,3*($C$8-1)+2) -> 0.08956975 | M200: =VLOOKUP($H200,NA_All!$A$5:$V$205,3*($C$8-1)+3) -> 0.1025458333 | N200: =VLOOKUP($H200,NA_All!$A$5:$V$205,3*($C$8-1)+4) -> 0.1430966667 | O200: =IF(ISNA(VLOOKUP($B$6,$A$25:$E$51,IF($B$8=$A$22,3,2))),EXP(VLOOKUP($B$6,$A$25:$E$51,4)*LN(VLOOKUP($H200,#REF!,$C$8+1)/1000)+VLOOKUP($B$6,$A$25:$E$51,5)),VLOOKUP($B$6,$A$25:$E$51,IF($B$8=$A$22,3,2))) -> 0 | Q200: 14.58333333 | R200: =VLOOKUP($Q200,P_All!$X$5:$AS$245,3*($C$8-1)+2) -> 0.20262 | S200: =VLOOKUP($Q200,P_All!$X$5:$AS$245,3*($C$8-1)+3) -> 0.20518 | T200: =VLOOKUP($Q200,P_All!$X$5:$AS$245,3*($C$8-1)+4) -> 0.21175 | U200: =VLOOKUP($Q200,NA_All!$X$5:$AS$245,3*($C$8-1)+2) -> 0.11343 | V200: =VLOOKUP($Q200,NA_All!$X$5:$AS$245,3*($C$8-1)+3) -> 0.12248 | W200: =VLOOKUP($Q200,NA_All!$X$5:$AS$245,3*($C$8-1)+4) -> 0.14864 | X200: =IF(ISNA(VLOOKUP($B$6,$A$25:$E$52,IF($B$8=$A$22,3,2))),EXP(VLOOKUP($B$6,$A$25:$E$52,4)*LN(VLOOKUP($Q200,#REF!,$C$8+1)/1000)+VLOOKUP($B$6,$A$25:$E$52,5)),VLOOKUP($B$6,$A$25:$E$52,IF($B$8=$A$22,3,2))) -> 0
H201: 176 | I201: =VLOOKUP($H201,P_All!$A$5:$V$205,3*($C$8-1)+2) -> 0.1501775 | J201: =VLOOKUP($H201,P_All!$A$5:$V$205,3*($C$8-1)+3) -> 0.1601583333 | K201: =VLOOKUP($H201,P_All!$A$5:$V$205,3*($C$8-1)+4) -> 0.18077 | L201: =VLOOKUP($H201,NA_All!$A$5:$V$205,3*($C$8-1)+2) -> 0.089558 | M201: =VLOOKUP($H201,NA_All!$A$5:$V$205,3*($C$8-1)+3) -> 0.1025875 | N201: =VLOOKUP($H201,NA_All!$A$5:$V$205,3*($C$8-1)+4) -> 0.143385 | O201: =IF(ISNA(VLOOKUP($B$6,$A$25:$E$51,IF($B$8=$A$22,3,2))),EXP(VLOOKUP($B$6,$A$25:$E$51,4)*LN(VLOOKUP($H201,#REF!,$C$8+1)/1000)+VLOOKUP($B$6,$A$25:$E$51,5)),VLOOKUP($B$6,$A$25:$E$51,IF($B$8=$A$22,3,2))) -> 0 | Q201: 14.66666667 | R201: =VLOOKUP($Q201,P_All!$X$5:$AS$245,3*($C$8-1)+2) -> 0.20152 | S201: =VLOOKUP($Q201,P_All!$X$5:$AS$245,3*($C$8-1)+3) -> 0.20408 | T201: =VLOOKUP($Q201,P_All!$X$5:$AS$245,3*($C$8-1)+4) -> 0.21032 | U201: =VLOOKUP($Q201,NA_All!$X$5:$AS$245,3*($C$8-1)+2) -> 0.11297 | V201: =VLOOKUP($Q201,NA_All!$X$5:$AS$245,3*($C$8-1)+3) -> 0.12214 | W201: =VLOOKUP($Q201,NA_All!$X$5:$AS$245,3*($C$8-1)+4) -> 0.14825 | X201: =IF(ISNA(VLOOKUP($B$6,$A$25:$E$52,IF($B$8=$A$22,3,2))),EXP(VLOOKUP($B$6,$A$25:$E$52,4)*LN(VLOOKUP($Q201,#REF!,$C$8+1)/1000)+VLOOKUP($B$6,$A$25:$E$52,5)),VLOOKUP($B$6,$A$25:$E$52,IF($B$8=$A$22,3,2))) -> 0
H202: 177 | I202: =VLOOKUP($H202,P_All!$A$5:$V$205,3*($C$8-1)+2) -> 0.1499391667 | J202: =VLOOKUP($H202,P_All!$A$5:$V$205,3*($C$8-1)+3) -> 0.1602825 | K202: =VLOOKUP($H202,P_All!$A$5:$V$205,3*($C$8-1)+4) -> 0.1806475 | L202: =VLOOKUP($H202,NA_All!$A$5:$V$205,3*($C$8-1)+2) -> 0.08949741667 | M202: =VLOOKUP($H202,NA_All!$A$5:$V$205,3*($C$8-1)+3) -> 0.1024091667 | N202: =VLOOKUP($H202,NA_All!$A$5:$V$205,3*($C$8-1)+4) -> 0.142735 | O202: =IF(ISNA(VLOOKUP($B$6,$A$25:$E$51,IF($B$8=$A$22,3,2))),EXP(VLOOKUP($B$6,$A$25:$E$51,4)*LN(VLOOKUP($H202,#REF!,$C$8+1)/1000)+VLOOKUP($B$6,$A$25:$E$51,5)),VLOOKUP($B$6,$A$25:$E$51,IF($B$8=$A$22,3,2))) -> 0 | Q202: 14.75 | R202: =VLOOKUP($Q202,P_All!$X$5:$AS$245,3*($C$8-1)+2) -> 0.20169 | S202: =VLOOKUP($Q202,P_All!$X$5:$AS$245,3*($C$8-1)+3) -> 0.20424 | T202: =VLOOKUP($Q202,P_All!$X$5:$AS$245,3*($C$8-1)+4) -> 0.21032 | U202: =VLOOKUP($Q202,NA_All!$X$5:$AS$245,3*($C$8-1)+2) -> 0.11266 | V202: =VLOOKUP($Q202,NA_All!$X$5:$AS$245,3*($C$8-1)+3) -> 0.12197 | W202: =VLOOKUP($Q202,NA_All!$X$5:$AS$245,3*($C$8-1)+4) -> 0.14808 | X202: =IF(ISNA(VLOOKUP($B$6,$A$25:$E$52,IF($B$8=$A$22,3,2))),EXP(VLOOKUP($B$6,$A$25:$E$52,4)*LN(VLOOKUP($Q202,#REF!,$C$8+1)/1000)+VLOOKUP($B$6,$A$25:$E$52,5)),VLOOKUP($B$6,$A$25:$E$52,IF($B$8=$A$22,3,2))) -> 0
H203: 178 | I203: =VLOOKUP($H203,P_All!$A$5:$V$205,3*($C$8-1)+2) -> 0.1495433333 | J203: =VLOOKUP($H203,P_All!$A$5:$V$205,3*($C$8-1)+3) -> 0.160115 | K203: =VLOOKUP($H203,P_All!$A$5:$V$205,3*($C$8-1)+4) -> 0.1807525 | L203: =VLOOKUP($H203,NA_All!$A$5:$V$205,3*($C$8-1)+2) -> 0.08951133333 | M203: =VLOOKUP($H203,NA_All!$A$5:$V$205,3*($C$8-1)+3) -> 0.102295 | N203: =VLOOKUP($H203,NA_All!$A$5:$V$205,3*($C$8-1)+4) -> 0.1425833333 | O203: =IF(ISNA(VLOOKUP($B$6,$A$25:$E$51,IF($B$8=$A$22,3,2))),EXP(VLOOKUP($B$6,$A$25:$E$51,4)*LN(VLOOKUP($H203,#REF!,$C$8+1)/1000)+VLOOKUP($B$6,$A$25:$E$51,5)),VLOOKUP($B$6,$A$25:$E$51,IF($B$8=$A$22,3,2))) -> 0 | Q203: 14.83333333 | R203: =VLOOKUP($Q203,P_All!$X$5:$AS$245,3*($C$8-1)+2) -> 0.20219 | S203: =VLOOKUP($Q203,P_All!$X$5:$AS$245,3*($C$8-1)+3) -> 0.20483 | T203: =VLOOKUP($Q203,P_All!$X$5:$AS$245,3*($C$8-1)+4) -> 0.21128 | U203: =VLOOKUP($Q203,NA_All!$X$5:$AS$245,3*($C$8-1)+2) -> 0.11298 | V203: =VLOOKUP($Q203,NA_All!$X$5:$AS$245,3*($C$8-1)+3) -> 0.12249 | W203: =VLOOKUP($Q203,NA_All!$X$5:$AS$245,3*($C$8-1)+4) -> 0.14857 | X203: =IF(ISNA(VLOOKUP($B$6,$A$25:$E$52,IF($B$8=$A$22,3,2))),EXP(VLOOKUP($B$6,$A$25:$E$52,4)*LN(VLOOKUP($Q203,#REF!,$C$8+1)/1000)+VLOOKUP($B$6,$A$25:$E$52,5)),VLOOKUP($B$6,$A$25:$E$52,IF($B$8=$A$22,3,2))) -> 0
H204: 179 | I204: =VLOOKUP($H204,P_All!$A$5:$V$205,3*($C$8-1)+2) -> 0.1497908333 | J204: =VLOOKUP($H204,P_All!$A$5:$V$205,3*($C$8-1)+3) -> 0.1598658333 | K204: =VLOOKUP($H204,P_All!$A$5:$V$205,3*($C$8-1)+4) -> 0.1805641667 | L204: =VLOOKUP($H204,NA_All!$A$5:$V$205,3*($C$8-1)+2) -> 0.08962066667 | M204: =VLOOKUP($H204,NA_All!$A$5:$V$205,3*($C$8-1)+3) -> 0.10225 | N204: =VLOOKUP($H204,NA_All!$A$5:$V$205,3*($C$8-1)+4) -> 0.14274 | O204: =IF(ISNA(VLOOKUP($B$6,$A$25:$E$51,IF($B$8=$A$22,3,2))),EXP(VLOOKUP($B$6,$A$25:$E$51,4)*LN(VLOOKUP($H204,#REF!,$C$8+1)/1000)+VLOOKUP($B$6,$A$25:$E$51,5)),VLOOKUP($B$6,$A$25:$E$51,IF($B$8=$A$22,3,2))) -> 0 | Q204: 14.91666667 | R204: =VLOOKUP($Q204,P_All!$X$5:$AS$245,3*($C$8-1)+2) -> 0.20195 | S204: =VLOOKUP($Q204,P_All!$X$5:$AS$245,3*($C$8-1)+3) -> 0.20444 | T204: =VLOOKUP($Q204,P_All!$X$5:$AS$245,3*($C$8-1)+4) -> 0.2106 | U204: =VLOOKUP($Q204,NA_All!$X$5:$AS$245,3*($C$8-1)+2) -> 0.11296 | V204: =VLOOKUP($Q204,NA_All!$X$5:$AS$245,3*($C$8-1)+3) -> 0.12243 | W204: =VLOOKUP($Q204,NA_All!$X$5:$AS$245,3*($C$8-1)+4) -> 0.14857 | X204: =IF(ISNA(VLOOKUP($B$6,$A$25:$E$52,IF($B$8=$A$22,3,2))),EXP(VLOOKUP($B$6,$A$25:$E$52,4)*LN(VLOOKUP($Q204,#REF!,$C$8+1)/1000)+VLOOKUP($B$6,$A$25:$E$52,5)),VLOOKUP($B$6,$A$25:$E$52,IF($B$8=$A$22,3,2))) -> 0
H205: 180 | I205: =VLOOKUP($H205,P_All!$A$5:$V$205,3*($C$8-1)+2) -> 0.15001 | J205: =VLOOKUP($H205,P_All!$A$5:$V$205,3*($C$8-1)+3) -> 0.1600008333 | K205: =VLOOKUP($H205,P_All!$A$5:$V$205,3*($C$8-1)+4) -> 0.18004 | L205: =VLOOKUP($H205,NA_All!$A$5:$V$205,3*($C$8-1)+2) -> 0.08945475 | M205: =VLOOKUP($H205,NA_All!$A$5:$V$205,3*($C$8-1)+3) -> 0.1024233333 | N205: =VLOOKUP($H205,NA_All!$A$5:$V$205,3*($C$8-1)+4) -> 0.1433416667 | O205: =IF(ISNA(VLOOKUP($B$6,$A$25:$E$51,IF($B$8=$A$22,3,2))),EXP(VLOOKUP($B$6,$A$25:$E$51,4)*LN(VLOOKUP($H205,#REF!,$C$8+1)/1000)+VLOOKUP($B$6,$A$25:$E$51,5)),VLOOKUP($B$6,$A$25:$E$51,IF($B$8=$A$22,3,2))) -> 0 | Q205: 15 | R205: =VLOOKUP($Q205,P_All!$X$5:$AS$245,3*($C$8-1)+2) -> 0.2013 | S205: =VLOOKUP($Q205,P_All!$X$5:$AS$245,3*($C$8-1)+3) -> 0.20375 | T205: =VLOOKUP($Q205,P_All!$X$5:$AS$245,3*($C$8-1)+4) -> 0.20964 | U205: =VLOOKUP($Q205,NA_All!$X$5:$AS$245,3*($C$8-1)+2) -> 0.11271 | V205: =VLOOKUP($Q205,NA_All!$X$5:$AS$245,3*($C$8-1)+3) -> 0.122 | W205: =VLOOKUP($Q205,NA_All!$X$5:$AS$245,3*($C$8-1)+4) -> 0.14808 | X205: =IF(ISNA(VLOOKUP($B$6,$A$25:$E$52,IF($B$8=$A$22,3,2))),EXP(VLOOKUP($B$6,$A$25:$E$52,4)*LN(VLOOKUP($Q205,#REF!,$C$8+1)/1000)+VLOOKUP($B$6,$A$25:$E$52,5)),VLOOKUP($B$6,$A$25:$E$52,IF($B$8=$A$22,3,2))) -> 0
H206: 181 | I206: =VLOOKUP($H206,P_All!$A$5:$V$205,3*($C$8-1)+2) -> 0.150215 | J206: =VLOOKUP($H206,P_All!$A$5:$V$205,3*($C$8-1)+3) -> 0.1597258333 | K206: =VLOOKUP($H206,P_All!$A$5:$V$205,3*($C$8-1)+4) -> 0.1803416667 | L206: =VLOOKUP($H206,NA_All!$A$5:$V$205,3*($C$8-1)+2) -> 0.08961275 | M206: =VLOOKUP($H206,NA_All!$A$5:$V$205,3*($C$8-1)+3) -> 0.1025066667 | N206: =VLOOKUP($H206,NA_All!$A$5:$V$205,3*($C$8-1)+4) -> 0.14389 | O206: =IF(ISNA(VLOOKUP($B$6,$A$25:$E$51,IF($B$8=$A$22,3,2))),EXP(VLOOKUP($B$6,$A$25:$E$51,4)*LN(VLOOKUP($H206,#REF!,$C$8+1)/1000)+VLOOKUP($B$6,$A$25:$E$51,5)),VLOOKUP($B$6,$A$25:$E$51,IF($B$8=$A$22,3,2))) -> 0 | Q206: 15.08333333 | R206: =VLOOKUP($Q206,P_All!$X$5:$AS$245,3*($C$8-1)+2) -> 0.19974 | S206: =VLOOKUP($Q206,P_All!$X$5:$AS$245,3*($C$8-1)+3) -> 0.20216 | T206: =VLOOKUP($Q206,P_All!$X$5:$AS$245,3*($C$8-1)+4) -> 0.20786 | U206: =VLOOKUP($Q206,NA_All!$X$5:$AS$245,3*($C$8-1)+2) -> 0.11265 | V206: =VLOOKUP($Q206,NA_All!$X$5:$AS$245,3*($C$8-1)+3) -> 0.12201 | W206: =VLOOKUP($Q206,NA_All!$X$5:$AS$245,3*($C$8-1)+4) -> 0.14801 | X206: =IF(ISNA(VLOOKUP($B$6,$A$25:$E$52,IF($B$8=$A$22,3,2))),EXP(VLOOKUP($B$6,$A$25:$E$52,4)*LN(VLOOKUP($Q206,#REF!,$C$8+1)/1000)+VLOOKUP($B$6,$A$25:$E$52,5)),VLOOKUP($B$6,$A$25:$E$52,IF($B$8=$A$22,3,2))) -> 0
H207: 182 | I207: =VLOOKUP($H207,P_All!$A$5:$V$205,3*($C$8-1)+2) -> 0.1505108333 | J207: =VLOOKUP($H207,P_All!$A$5:$V$205,3*($C$8-1)+3) -> 0.1598125 | K207: =VLOOKUP($H207,P_All!$A$5:$V$205,3*($C$8-1)+4) -> 0.1805866667 | L207: =VLOOKUP($H207,NA_All!$A$5:$V$205,3*($C$8-1)+2) -> 0.08967775 | M207: =VLOOKUP($H207,NA_All!$A$5:$V$205,3*($C$8-1)+3) -> 0.1021516667 | N207: =VLOOKUP($H207,NA_All!$A$5:$V$205,3*($C$8-1)+4) -> 0.143475 | O207: =IF(ISNA(VLOOKUP($B$6,$A$25:$E$51,IF($B$8=$A$22,3,2))),EXP(VLOOKUP($B$6,$A$25:$E$51,4)*LN(VLOOKUP($H207,#REF!,$C$8+1)/1000)+VLOOKUP($B$6,$A$25:$E$51,5)),VLOOKUP($B$6,$A$25:$E$51,IF($B$8=$A$22,3,2))) -> 0 | Q207: 15.16666667 | R207: =VLOOKUP($Q207,P_All!$X$5:$AS$245,3*($C$8-1)+2) -> 0.20067 | S207: =VLOOKUP($Q207,P_All!$X$5:$AS$245,3*($C$8-1)+3) -> 0.20315 | T207: =VLOOKUP($Q207,P_All!$X$5:$AS$245,3*($C$8-1)+4) -> 0.20875 | U207: =VLOOKUP($Q207,NA_All!$X$5:$AS$245,3*($C$8-1)+2) -> 0.11278 | V207: =VLOOKUP($Q207,NA_All!$X$5:$AS$245,3*($C$8-1)+3) -> 0.12229 | W207: =VLOOKUP($Q207,NA_All!$X$5:$AS$245,3*($C$8-1)+4) -> 0.14845 | X207: =IF(ISNA(VLOOKUP($B$6,$A$25:$E$52,IF($B$8=$A$22,3,2))),EXP(VLOOKUP($B$6,$A$25:$E$52,4)*LN(VLOOKUP($Q207,#REF!,$C$8+1)/1000)+VLOOKUP($B$6,$A$25:$E$52,5)),VLOOKUP($B$6,$A$25:$E$52,IF($B$8=$A$22,3,2))) -> 0
H208: 183 | I208: =VLOOKUP($H208,P_All!$A$5:$V$205,3*($C$8-1)+2) -> 0.1506241667 | J208: =VLOOKUP($H208,P_All!$A$5:$V$205,3*($C$8-1)+3) -> 0.1598833333 | K208: =VLOOKUP($H208,P_All!$A$5:$V$205,3*($C$8-1)+4) -> 0.1812641667 | L208: =VLOOKUP($H208,NA_All!$A$5:$V$205,3*($C$8-1)+2) -> 0.08959941667 | M208: =VLOOKUP($H208,NA_All!$A$5:$V$205,3*($C$8-1)+3) -> 0.1019591667 | N208: =VLOOKUP($H208,NA_All!$A$5:$V$205,3*($C$8-1)+4) -> 0.1433391667 | O208: =IF(ISNA(VLOOKUP($B$6,$A$25:$E$51,IF($B$8=$A$22,3,2))),EXP(VLOOKUP($B$6,$A$25:$E$51,4)*LN(VLOOKUP($H208,#REF!,$C$8+1)/1000)+VLOOKUP($B$6,$A$25:$E$51,5)),VLOOKUP($B$6,$A$25:$E$51,IF($B$8=$A$22,3,2))) -> 0 | Q208: 15.25 | R208: =VLOOKUP($Q208,P_All!$X$5:$AS$245,3*($C$8-1)+2) -> 0.20078 | S208: =VLOOKUP($Q208,P_All!$X$5:$AS$245,3*($C$8-1)+3) -> 0.20313 | T208: =VLOOKUP($Q208,P_All!$X$5:$AS$245,3*($C$8-1)+4) -> 0.20848 | U208: =VLOOKUP($Q208,NA_All!$X$5:$AS$245,3*($C$8-1)+2) -> 0.11272 | V208: =VLOOKUP($Q208,NA_All!$X$5:$AS$245,3*($C$8-1)+3) -> 0.12223 | W208: =VLOOKUP($Q208,NA_All!$X$5:$AS$245,3*($C$8-1)+4) -> 0.14865 | X208: =IF(ISNA(VLOOKUP($B$6,$A$25:$E$52,IF($B$8=$A$22,3,2))),EXP(VLOOKUP($B$6,$A$25:$E$52,4)*LN(VLOOKUP($Q208,#REF!,$C$8+1)/1000)+VLOOKUP($B$6,$A$25:$E$52,5)),VLOOKUP($B$6,$A$25:$E$52,IF($B$8=$A$22,3,2))) -> 0
... 57 more rows

Sheet P_All
B1: Values shown for constituent selected on PlotControl tab | Y1: Values shown for constituent selected on PlotControl tab
B2: =PlotControl!$A$15 -> North Toe | E2: =PlotControl!$A$16 -> Northwest Toe | H2: =PlotControl!$A$17 -> South Toe | K2: =PlotControl!$A$18 -> West Toe | N2: =PlotControl!$A$19 -> East Toe | Q2: =PlotControl!$A$20 -> 0 | T2: =PlotControl!$A$21 -> 0 | Y2: =PlotControl!$A$15 -> North Toe | AB2: =PlotControl!$A$16 -> Northwest Toe | AE2: =PlotControl!$A$17 -> South Toe | AH2: =PlotControl!$A$18 -> West Toe | AK2: =PlotControl!$A$19 -> East Toe | AN2: =PlotControl!$A$20 -> 0 | AQ2: =PlotControl!$A$21 -> 0
B3: Annual Project Results | E3: Annual Project Results | H3: Annual Project Results | K3: Annual Project Results | N3: Annual Project Results | Q3: Annual Project Results | T3: Annual Project Results | Y3: Monthly Project Results | AB3: Monthly Project Results | AE3: Monthly Project Results | AH3: Monthly Project Results | AK3: Monthly Project Results | AN3: Monthly Project Results | AQ3: Monthly Project Results
A4: Time | B4: P10 | C4: P50 | D4: P90 | E4: P10 | F4: P50 | G4: P90 | H4: P10 | I4: P50 | J4: P90 | K4: P10 | L4: P50 | M4: P90 | N4: P10 | O4: P50 | P4: P90 | Q4: P10 | R4: P50 | S4: P90 | T4: P10 | U4: P50 | V4: P90 | X4: Time | Y4: P10 | Z4: P50 | AA4: P90 | AB4: P10 | AC4: P50 | AD4: P90 | AE4: P10 | AF4: P50 | AG4: P90 | AH4: P10 | AI4: P50 | AJ4: P90 | AK4: P10 | AL4: P50 | AM4: P90 | AN4: P10 | AO4: P50 | AP4: P90 | AQ4: P10 | AR4: P50 | AS4: P90
A5: 0 | B5: =IF(PlotControl!$B$4 = "Annual Max",MAX(OFFSET(P_NToe!$C$10,12*$A5,4*(PlotControl!$C$6-1),12,1)),AVERAGE(OFFSET(P_NToe!$C$10,12*$A5,4*(PlotControl!$C$6-1),12,1))) -> 0.1276075 | C5: =IF(PlotControl!$B$4 = "Annual Max",MAX(OFFSET(P_NToe!$D$10,12*$A5,4*(PlotControl!$C$6-1),12,1)),AVERAGE(OFFSET(P_NToe!$D$10,12*$A5,4*(PlotControl!$C$6-1),12,1))) -> 0.1276075 | D5: =IF(PlotControl!$B$4 = "Annual Max",MAX(OFFSET(P_NToe!$E$10,12*$A5,4*(PlotControl!$C$6-1),12,1)),AVERAGE(OFFSET(P_NToe!$E$10,12*$A5,4*(PlotControl!$C$6-1),12,1))) -> 0.1276075 | E5: =IF(PlotControl!$B$4 = "Annual Max",MAX(OFFSET(P_NWToe!$C$10,12*$A5,4*(PlotControl!$C$6-1),12,1)),AVERAGE(OFFSET(P_NWToe!$C$10,12*$A5,4*(PlotControl!$C$6-1),12,1))) -> 0.100485 | F5: =IF(PlotControl!$B$4 = "Annual Max",MAX(OFFSET(P_NWToe!$D$10,12*$A5,4*(PlotControl!$C$6-1),12,1)),AVERAGE(OFFSET(P_NWToe!$D$10,12*$A5,4*(PlotControl!$C$6-1),12,1))) -> 0.100485 | G5: =IF(PlotControl!$B$4 = "Annual Max",MAX(OFFSET(P_NWToe!$E$10,12*$A5,4*(PlotControl!$C$6-1),12,1)),AVERAGE(OFFSET(P_NWToe!$E$10,12*$A5,4*(PlotControl!$C$6-1),12,1))) -> 0.100485 | H5: =IF(PlotControl!$B$4 = "Annual Max",MAX(OFFSET(P_SToe!$C$10,12*$A5,4*(PlotControl!$C$6-1),12,1)),AVERAGE(OFFSET(P_SToe!$C$10,12*$A5,4*(PlotControl!$C$6-1),12,1))) -> 0.1189591667 | I5: =IF(PlotControl!$B$4 = "Annual Max",MAX(OFFSET(P_SToe!$D$10,12*$A5,4*(PlotControl!$C$6-1),12,1)),AVERAGE(OFFSET(P_SToe!$D$10,12*$A5,4*(PlotControl!$C$6-1),12,1))) -> 0.1189591667 | J5: =IF(PlotControl!$B$4 = "Annual Max",MAX(OFFSET(P_SToe!$E$10,12*$A5,4*(PlotControl!$C$6-1),12,1)),AVERAGE(OFFSET(P_SToe!$E$10,12*$A5,4*(PlotControl!$C$6-1),12,1))) -> 0.1189591667 | K5: =IF(PlotControl!$B$4 = "Annual Max",MAX(OFFSET(P_WToe!$C$10,12*$A5,4*(PlotControl!$C$6-1),12,1)),AVERAGE(OFFSET(P_WToe!$C$10,12*$A5,4*(PlotControl!$C$6-1),12,1))) -> 0.1100575 | L5: =IF(PlotControl!$B$4 = "Annual Max",MAX(OFFSET(P_WToe!$D$10,12*$A5,4*(PlotControl!$C$6-1),12,1)),AVERAGE(OFFSET(P_WToe!$D$10,12*$A5,4*(PlotControl!$C$6-1),12,1))) -> 0.1100575 | M5: =IF(PlotControl!$B$4 = "Annual Max",MAX(OFFSET(P_WToe!$E$10,12*$A5,4*(PlotControl!$C$6-1),12,1)),AVERAGE(OFFSET(P_WToe!$E$10,12*$A5,4*(PlotControl!$C$6-1),12,1))) -> 0.1100575 | N5: =IF(PlotControl!$B$4 = "Annual Max",MAX(OFFSET(P_EToe!$C$10,12*$A5,4*(PlotControl!$C$6-1),12,1)),AVERAGE(OFFSET(P_EToe!$C$10,12*$A5,4*(PlotControl!$C$6-1),12,1))) -> 0.075 | O5: =IF(PlotControl!$B$4 = "Annual Max",MAX(OFFSET(P_EToe!$D$10,12*$A5,4*(PlotControl!$C$6-1),12,1)),AVERAGE(OFFSET(P_EToe!$D$10,12*$A5,4*(PlotControl!$C$6-1),12,1))) -> 0.075 | P5: =IF(PlotControl!$B$4 = "Annual Max",MAX(OFFSET(P_EToe!$E$10,12*$A5,4*(PlotControl!$C$6-1),12,1)),AVERAGE(OFFSET(P_EToe!$E$10,12*$A5,4*(PlotControl!$C$6-1),12,1))) -> 0.075 | X5: =PlotControl!$B$10 -> 0 | Y5: =OFFSET(P_NToe!$C$10,12*$X5,4*(PlotControl!$C$6-1),1,1) -> 0.13 | Z5: =OFFSET(P_NToe!$D$10,12*$X5,4*(PlotControl!$C$6-1),1,1) -> 0.13 | AA5: =OFFSET(P_NToe!$E$10,12*$X5,4*(PlotControl!$C$6-1),1,1) -> 0.13 | AB5: =OFFSET(P_NWToe!$C$10,12*$X5,4*(PlotControl!$C$6-1),1,1) -> 0.10087 | AC5: =OFFSET(P_NWToe!$D$10,12*$X5,4*(PlotControl!$C$6-1),1,1) -> 0.10087 | AD5: =OFFSET(P_NWToe!$E$10,12*$X5,4*(PlotControl!$C$6-1),1,1) -> 0.10087 | AE5: =OFFSET(P_SToe!$C$10,12*$X5,4*(PlotControl!$C$6-1),1,1) -> 0.11846 | AF5: =OFFSET(P_SToe!$D$10,12*$X5,4*(PlotControl!$C$6-1),1,1) -> 0.11846 | AG5: =OFFSET(P_SToe!$E$10,12*$X5,4*(PlotControl!$C$6-1),1,1) -> 0.11846 | AH5: =OFFSET(P_WToe!$C$10,12*$X5,4*(PlotControl!$C$6-1),1,1) -> 0.11079 | AI5: =OFFSET(P_WToe!$D$10,12*$X5,4*(PlotControl!$C$6-1),1,1) -> 0.11079 | AJ5: =OFFSET(P_WToe!$E$10,12*$X5,4*(PlotControl!$C$6-1),1,1) -> 0.11079 | AK5: =OFFSET(#REF!,12*$X5,4*(PlotControl!$C$6-1),1,1) ->  | AL5: =OFFSET(#REF!,12*$X5,4*(PlotControl!$C$6-1),1,1) ->  | AM5: =OFFSET(#REF!,12*$X5,4*(PlotControl!$C$6-1),1,1) -> 
A6: 1 | B6: =IF(PlotControl!$B$4 = "Annual Max",MAX(OFFSET(P_NToe!$C$10,12*$A6,4*(PlotControl!$C$6-1),12,1)),AVERAGE(OFFSET(P_NToe!$C$10,12*$A6,4*(PlotControl!$C$6-1),12,1))) -> 0.1273916667 | C6: =IF(PlotControl!$B$4 = "Annual Max",MAX(OFFSET(P_NToe!$D$10,12*$A6,4*(PlotControl!$C$6-1),12,1)),AVERAGE(OFFSET(P_NToe!$D$10,12*$A6,4*(PlotControl!$C$6-1),12,1))) -> 0.1273916667 | D6: =IF(PlotControl!$B$4 = "Annual Max",MAX(OFFSET(P_NToe!$E$10,12*$A6,4*(PlotControl!$C$6-1),12,1)),AVERAGE(OFFSET(P_NToe!$E$10,12*$A6,4*(PlotControl!$C$6-1),12,1))) -> 0.1273916667 | E6: =IF(PlotControl!$B$4 = "Annual Max",MAX(OFFSET(P_NWToe!$C$10,12*$A6,4*(PlotControl!$C$6-1),12,1)),AVERAGE(OFFSET(P_NWToe!$C$10,12*$A6,4*(PlotControl!$C$6-1),12,1))) -> 0.10045 | F6: =IF(PlotControl!$B$4 = "Annual Max",MAX(OFFSET(P_NWToe!$D$10,12*$A6,4*(PlotControl!$C$6-1),12,1)),AVERAGE(OFFSET(P_NWToe!$D$10,12*$A6,4*(PlotControl!$C$6-1),12,1))) -> 0.10045 | G6: =IF(PlotControl!$B$4 = "Annual Max",MAX(OFFSET(P_NWToe!$E$10,12*$A6,4*(PlotControl!$C$6-1),12,1)),AVERAGE(OFFSET(P_NWToe!$E$10,12*$A6,4*(PlotControl!$C$6-1),12,1))) -> 0.10045 | H6: =IF(PlotControl!$B$4 = "Annual Max",MAX(OFFSET(P_SToe!$C$10,12*$A6,4*(PlotControl!$C$6-1),12,1)),AVERAGE(OFFSET(P_SToe!$C$10,12*$A6,4*(PlotControl!$C$6-1),12,1))) -> 0.1190066667 | I6: =IF(PlotControl!$B$4 = "Annual Max",MAX(OFFSET(P_SToe!$D$10,12*$A6,4*(PlotControl!$C$6-1),12,1)),AVERAGE(OFFSET(P_SToe!$D$10,12*$A6,4*(PlotControl!$C$6-1),12,1))) -> 0.1190075 | J6: =IF(PlotControl!$B$4 = "Annual Max",MAX(OFFSET(P_SToe!$E$10,12*$A6,4*(PlotControl!$C$6-1),12,1)),AVERAGE(OFFSET(P_SToe!$E$10,12*$A6,4*(PlotControl!$C$6-1),12,1))) -> 0.1190075 | K6: =IF(PlotControl!$B$4 = "Annual Max",MAX(OFFSET(P_WToe!$C$10,12*$A6,4*(PlotControl!$C$6-1),12,1)),AVERAGE(OFFSET(P_WToe!$C$10,12*$A6,4*(PlotControl!$C$6-1),12,1))) -> 0.1099908333 | L6: =IF(PlotControl!$B$4 = "Annual Max",MAX(OFFSET(P_WToe!$D$10,12*$A6,4*(PlotControl!$C$6-1),12,1)),AVERAGE(OFFSET(P_WToe!$D$10,12*$A6,4*(PlotControl!$C$6-1),12,1))) -> 0.1099908333 | M6: =IF(PlotControl!$B$4 = "Annual Max",MAX(OFFSET(P_WToe!$E$10,12*$A6,4*(PlotControl!$C$6-1),12,1)),AVERAGE(OFFSET(P_WToe!$E$10,12*$A6,4*(PlotControl!$C$6-1),12,1))) -> 0.1099908333 | N6: =IF(PlotControl!$B$4 = "Annual Max",MAX(OFFSET(P_EToe!$C$10,12*$A6,4*(PlotControl!$C$6-1),12,1)),AVERAGE(OFFSET(P_EToe!$C$10,12*$A6,4*(PlotControl!$C$6-1),12,1))) -> 0.075 | O6: =IF(PlotControl!$B$4 = "Annual Max",MAX(OFFSET(P_EToe!$D$10,12*$A6,4*(PlotControl!$C$6-1),12,1)),AVERAGE(OFFSET(P_EToe!$D$10,12*$A6,4*(PlotControl!$C$6-1),12,1))) -> 0.075 | P6: =IF(PlotControl!$B$4 = "Annual Max",MAX(OFFSET(P_EToe!$E$10,12*$A6,4*(PlotControl!$C$6-1),12,1)),AVERAGE(OFFSET(P_EToe!$E$10,12*$A6,4*(PlotControl!$C$6-1),12,1))) -> 0.075 | X6: =X5+1/12 -> 0.08333333333 | Y6: =OFFSET(P_NToe!$C$10,12*$X6,4*(PlotControl!$C$6-1),1,1) -> 0.12739 | Z6: =OFFSET(P_NToe!$D$10,12*$X6,4*(PlotControl!$C$6-1),1,1) -> 0.12739 | AA6: =OFFSET(P_NToe!$E$10,12*$X6,4*(PlotControl!$C$6-1),1,1) -> 0.12739 | AB6: =OFFSET(P_NWToe!$C$10,12*$X6,4*(PlotControl!$C$6-1),1,1) -> 0.10045 | AC6: =OFFSET(P_NWToe!$D$10,12*$X6,4*(PlotControl!$C$6-1),1,1) -> 0.10045 | AD6: =OFFSET(P_NWToe!$E$10,12*$X6,4*(PlotControl!$C$6-1),1,1) -> 0.10045 | AE6: =OFFSET(P_SToe!$C$10,12*$X6,4*(PlotControl!$C$6-1),1,1) -> 0.11896 | AF6: =OFFSET(P_SToe!$D$10,12*$X6,4*(PlotControl!$C$6-1),1,1) -> 0.11896 | AG6: =OFFSET(P_SToe!$E$10,12*$X6,4*(PlotControl!$C$6-1),1,1) -> 0.11896 | AH6: =OFFSET(P_WToe!$C$10,12*$X6,4*(PlotControl!$C$6-1),1,1) -> 0.11 | AI6: =OFFSET(P_WToe!$D$10,12*$X6,4*(PlotControl!$C$6-1),1,1) -> 0.11 | AJ6: =OFFSET(P_WToe!$E$10,12*$X6,4*(PlotControl!$C$6-1),1,1) -> 0.11 | AK6: =OFFSET(#REF!,12*$X6,4*(PlotControl!$C$6-1),1,1) ->  | AL6: =OFFSET(#REF!,12*$X6,4*(PlotControl!$C$6-1),1,1) ->  | AM6: =OFFSET(#REF!,12*$X6,4*(PlotControl!$C$6-1),1,1) -> 
A7: 2 | B7: =IF(PlotControl!$B$4 = "Annual Max",MAX(OFFSET(P_NToe!$C$10,12*$A7,4*(PlotControl!$C$6-1),12,1)),AVERAGE(OFFSET(P_NToe!$C$10,12*$A7,4*(PlotControl!$C$6-1),12,1))) -> 0.1272616667 | C7: =IF(PlotControl!$B$4 = "Annual Max",MAX(OFFSET(P_NToe!$D$10,12*$A7,4*(PlotControl!$C$6-1),12,1)),AVERAGE(OFFSET(P_NToe!$D$10,12*$A7,4*(PlotControl!$C$6-1),12,1))) -> 0.1272691667 | D7: =IF(PlotControl!$B$4 = "Annual Max",MAX(OFFSET(P_NToe!$E$10,12*$A7,4*(PlotControl!$C$6-1),12,1)),AVERAGE(OFFSET(P_NToe!$E$10,12*$A7,4*(PlotControl!$C$6-1),12,1))) -> 0.1272816667 | E7: =IF(PlotControl!$B$4 = "Annual Max",MAX(OFFSET(P_NWToe!$C$10,12*$A7,4*(PlotControl!$C$6-1),12,1)),AVERAGE(OFFSET(P_NWToe!$C$10,12*$A7,4*(PlotControl!$C$6-1),12,1))) -> 0.1004683333 | F7: =IF(PlotControl!$B$4 = "Annual Max",MAX(OFFSET(P_NWToe!$D$10,12*$A7,4*(PlotControl!$C$6-1),12,1)),AVERAGE(OFFSET(P_NWToe!$D$10,12*$A7,4*(PlotControl!$C$6-1),12,1))) -> 0.1004708333 | G7: =IF(PlotControl!$B$4 = "Annual Max",MAX(OFFSET(P_NWToe!$E$10,12*$A7,4*(PlotControl!$C$6-1),12,1)),AVERAGE(OFFSET(P_NWToe!$E$10,12*$A7,4*(PlotControl!$C$6-1),12,1))) -> 0.1004716667 | H7: =IF(PlotControl!$B$4 = "Annual Max",MAX(OFFSET(P_SToe!$C$10,12*$A7,4*(PlotControl!$C$6-1),12,1)),AVERAGE(OFFSET(P_SToe!$C$10,12*$A7,4*(PlotControl!$C$6-1),12,1))) -> 0.1189333333 | I7: =IF(PlotControl!$B$4 = "Annual Max",MAX(OFFSET(P_SToe!$D$10,12*$A7,4*(PlotControl!$C$6-1),12,1)),AVERAGE(OFFSET(P_SToe!$D$10,12*$A7,4*(PlotControl!$C$6-1),12,1))) -> 0.1189425 | J7: =IF(PlotControl!$B$4 = "Annual Max",MAX(OFFSET(P_SToe!$E$10,12*$A7,4*(PlotControl!$C$6-1),12,1)),AVERAGE(OFFSET(P_SToe!$E$10,12*$A7,4*(PlotControl!$C$6-1),12,1))) -> 0.1189575 | K7: =IF(PlotControl!$B$4 = "Annual Max",MAX(OFFSET(P_WToe!$C$10,12*$A7,4*(PlotControl!$C$6-1),12,1)),AVERAGE(OFFSET(P_WToe!$C$10,12*$A7,4*(PlotControl!$C$6-1),12,1))) -> 0.109995 | L7: =IF(PlotControl!$B$4 = "Annual Max",MAX(OFFSET(P_WToe!$D$10,12*$A7,4*(PlotControl!$C$6-1),12,1)),AVERAGE(OFFSET(P_WToe!$D$10,12*$A7,4*(PlotControl!$C$6-1),12,1))) -> 0.1099966667 | M7: =IF(PlotControl!$B$4 = "Annual Max",MAX(OFFSET(P_WToe!$E$10,12*$A7,4*(PlotControl!$C$6-1),12,1)),AVERAGE(OFFSET(P_WToe!$E$10,12*$A7,4*(PlotControl!$C$6-1),12,1))) -> 0.1099991667 | N7: =IF(PlotControl!$B$4 = "Annual Max",MAX(OFFSET(P_EToe!$C$10,12*$A7,4*(PlotControl!$C$6-1),12,1)),AVERAGE(OFFSET(P_EToe!$C$10,12*$A7,4*(PlotControl!$C$6-1),12,1))) -> 0.075 | O7: =IF(PlotControl!$B$4 = "Annual Max",MAX(OFFSET(P_EToe!$D$10,12*$A7,4*(PlotControl!$C$6-1),12,1)),AVERAGE(OFFSET(P_EToe!$D$10,12*$A7,4*(PlotControl!$C$6-1),12,1))) -> 0.075 | P7: =IF(PlotControl!$B$4 = "Annual Max",MAX(OFFSET(P_EToe!$E$10,12*$A7,4*(PlotControl!$C$6-1),12,1)),AVERAGE(OFFSET(P_EToe!$E$10,12*$A7,4*(PlotControl!$C$6-1),12,1))) -> 0.075 | X7: =X6+1/12 -> 0.1666666667 | Y7: =OFFSET(P_NToe!$C$10,12*$X7,4*(PlotControl!$C$6-1),1,1) -> 0.12739 | Z7: =OFFSET(P_NToe!$D$10,12*$X7,4*(PlotControl!$C$6-1),1,1) -> 0.12739 | AA7: =OFFSET(P_NToe!$E$10,12*$X7,4*(PlotControl!$C$6-1),1,1) -> 0.12739 | AB7: =OFFSET(P_NWToe!$C$10,12*$X7,4*(PlotControl!$C$6-1),1,1) -> 0.10045 | AC7: =OFFSET(P_NWToe!$D$10,12*$X7,4*(PlotControl!$C$6-1),1,1) -> 0.10045 | AD7: =OFFSET(P_NWToe!$E$10,12*$X7,4*(PlotControl!$C$6-1),1,1) -> 0.10045 | AE7: =OFFSET(P_SToe!$C$10,12*$X7,4*(PlotControl!$C$6-1),1,1) -> 0.119 | AF7: =OFFSET(P_SToe!$D$10,12*$X7,4*(PlotControl!$C$6-1),1,1) -> 0.119 | AG7: =OFFSET(P_SToe!$E$10,12*$X7,4*(PlotControl!$C$6-1),1,1) -> 0.119 | AH7: =OFFSET(P_WToe!$C$10,12*$X7,4*(PlotControl!$C$6-1),1,1) -> 0.10999 | AI7: =OFFSET(P_WToe!$D$10,12*$X7,4*(PlotControl!$C$6-1),1,1) -> 0.10999 | AJ7: =OFFSET(P_WToe!$E$10,12*$X7,4*(PlotControl!$C$6-1),1,1) -> 0.10999 | AK7: =OFFSET(#REF!,12*$X7,4*(PlotControl!$C$6-1),1,1) ->  | AL7: =OFFSET(#REF!,12*$X7,4*(PlotControl!$C$6-1),1,1) ->  | AM7: =OFFSET(#REF!,12*$X7,4*(PlotControl!$C$6-1),1,1) -> 
A8: 3 | B8: =IF(PlotControl!$B$4 = "Annual Max",MAX(OFFSET(P_NToe!$C$10,12*$A8,4*(PlotControl!$C$6-1),12,1)),AVERAGE(OFFSET(P_NToe!$C$10,12*$A8,4*(PlotControl!$C$6-1),12,1))) -> 0.1299733333 | C8: =IF(PlotControl!$B$4 = "Annual Max",MAX(OFFSET(P_NToe!$D$10,12*$A8,4*(PlotControl!$C$6-1),12,1)),AVERAGE(OFFSET(P_NToe!$D$10,12*$A8,4*(PlotControl!$C$6-1),12,1))) -> 0.1302833333 | D8: =IF(PlotControl!$B$4 = "Annual Max",MAX(OFFSET(P_NToe!$E$10,12*$A8,4*(PlotControl!$C$6-1),12,1)),AVERAGE(OFFSET(P_NToe!$E$10,12*$A8,4*(PlotControl!$C$6-1),12,1))) -> 0.1306083333 | E8: =IF(PlotControl!$B$4 = "Annual Max",MAX(OFFSET(P_NWToe!$C$10,12*$A8,4*(PlotControl!$C$6-1),12,1)),AVERAGE(OFFSET(P_NWToe!$C$10,12*$A8,4*(PlotControl!$C$6-1),12,1))) -> 0.1007283333 | F8: =IF(PlotControl!$B$4 = "Annual Max",MAX(OFFSET(P_NWToe!$D$10,12*$A8,4*(PlotControl!$C$6-1),12,1)),AVERAGE(OFFSET(P_NWToe!$D$10,12*$A8,4*(PlotControl!$C$6-1),12,1))) -> 0.1007733333 | G8: =IF(PlotControl!$B$4 = "Annual Max",MAX(OFFSET(P_NWToe!$E$10,12*$A8,4*(PlotControl!$C$6-1),12,1)),AVERAGE(OFFSET(P_NWToe!$E$10,12*$A8,4*(PlotControl!$C$6-1),12,1))) -> 0.1008191667 | H8: =IF(PlotControl!$B$4 = "Annual Max",MAX(OFFSET(P_SToe!$C$10,12*$A8,4*(PlotControl!$C$6-1),12,1)),AVERAGE(OFFSET(P_SToe!$C$10,12*$A8,4*(PlotControl!$C$6-1),12,1))) -> 0.1185475 | I8: =IF(PlotControl!$B$4 = "Annual Max",MAX(OFFSET(P_SToe!$D$10,12*$A8,4*(PlotControl!$C$6-1),12,1)),AVERAGE(OFFSET(P_SToe!$D$10,12*$A8,4*(PlotControl!$C$6-1),12,1))) -> 0.1190166667 | J8: =IF(PlotControl!$B$4 = "Annual Max",MAX(OFFSET(P_SToe!$E$10,12*$A8,4*(PlotControl!$C$6-1),12,1)),AVERAGE(OFFSET(P_SToe!$E$10,12*$A8,4*(PlotControl!$C$6-1),12,1))) -> 0.119505 | K8: =IF(PlotControl!$B$4 = "Annual Max",MAX(OFFSET(P_WToe!$C$10,12*$A8,4*(PlotControl!$C$6-1),12,1)),AVERAGE(OFFSET(P_WToe!$C$10,12*$A8,4*(PlotControl!$C$6-1),12,1))) -> 0.1098791667 | L8: =IF(PlotControl!$B$4 = "Annual Max",MAX(OFFSET(P_WToe!$D$10,12*$A8,4*(PlotControl!$C$6-1),12,1)),AVERAGE(OFFSET(P_WToe!$D$10,12*$A8,4*(PlotControl!$C$6-1),12,1))) -> 0.1099083333 | M8: =IF(PlotControl!$B$4 = "Annual Max",MAX(OFFSET(P_WToe!$E$10,12*$A8,4*(PlotControl!$C$6-1),12,1)),AVERAGE(OFFSET(P_WToe!$E$10,12*$A8,4*(PlotControl!$C$6-1),12,1))) -> 0.1099341667 | N8: =IF(PlotControl!$B$4 = "Annual Max",MAX(OFFSET(P_EToe!$C$10,12*$A8,4*(PlotControl!$C$6-1),12,1)),AVERAGE(OFFSET(P_EToe!$C$10,12*$A8,4*(PlotControl!$C$6-1),12,1))) -> 0.075 | O8: =IF(PlotControl!$B$4 = "Annual Max",MAX(OFFSET(P_EToe!$D$10,12*$A8,4*(PlotControl!$C$6-1),12,1)),AVERAGE(OFFSET(P_EToe!$D$10,12*$A8,4*(PlotControl!$C$6-1),12,1))) -> 0.075 | P8: =IF(PlotControl!$B$4 = "Annual Max",MAX(OFFSET(P_EToe!$E$10,12*$A8,4*(PlotControl!$C$6-1),12,1)),AVERAGE(OFFSET(P_EToe!$E$10,12*$A8,4*(PlotControl!$C$6-1),12,1))) -> 0.075 | X8: 0.25 | Y8: =OFFSET(P_NToe!$C$10,12*$X8,4*(PlotControl!$C$6-1),1,1) -> 0.12739 | Z8: =OFFSET(P_NToe!$D$10,12*$X8,4*(PlotControl!$C$6-1),1,1) -> 0.12739 | AA8: =OFFSET(P_NToe!$E$10,12*$X8,4*(PlotControl!$C$6-1),1,1) -> 0.12739 | AB8: =OFFSET(P_NWToe!$C$10,12*$X8,4*(PlotControl!$C$6-1),1,1) -> 0.10045 | AC8: =OFFSET(P_NWToe!$D$10,12*$X8,4*(PlotControl!$C$6-1),1,1) -> 0.10045 | AD8: =OFFSET(P_NWToe!$E$10,12*$X8,4*(PlotControl!$C$6-1),1,1) -> 0.10045 | AE8: =OFFSET(P_SToe!$C$10,12*$X8,4*(PlotControl!$C$6-1),1,1) -> 0.11901 | AF8: =OFFSET(P_SToe!$D$10,12*$X8,4*(PlotControl!$C$6-1),1,1) -> 0.11901 | AG8: =OFFSET(P_SToe!$E$10,12*$X8,4*(PlotControl!$C$6-1),1,1) -> 0.11901 | AH8: =OFFSET(P_WToe!$C$10,12*$X8,4*(PlotControl!$C$6-1),1,1) -> 0.10999 | AI8: =OFFSET(P_WToe!$D$10,12*$X8,4*(PlotControl!$C$6-1),1,1) -> 0.10999 | AJ8: =OFFSET(P_WToe!$E$10,12*$X8,4*(PlotControl!$C$6-1),1,1) -> 0.10999 | AK8: =OFFSET(#REF!,12*$X8,4*(PlotControl!$C$6-1),1,1) ->  | AL8: =OFFSET(#REF!,12*$X8,4*(PlotControl!$C$6-1),1,1) ->  | AM8: =OFFSET(#REF!,12*$X8,4*(PlotControl!$C$6-1),1,1) -> 
A9: 4 | B9: =IF(PlotControl!$B$4 = "Annual Max",MAX(OFFSET(P_NToe!$C$10,12*$A9,4*(PlotControl!$C$6-1),12,1)),AVERAGE(OFFSET(P_NToe!$C$10,12*$A9,4*(PlotControl!$C$6-1),12,1))) -> 0.1644908333 | C9: =IF(PlotControl!$B$4 = "Annual Max",MAX(OFFSET(P_NToe!$D$10,12*$A9,4*(PlotControl!$C$6-1),12,1)),AVERAGE(OFFSET(P_NToe!$D$10,12*$A9,4*(PlotControl!$C$6-1),12,1))) -> 0.1667708333 | D9: =IF(PlotControl!$B$4 = "Annual Max",MAX(OFFSET(P_NToe!$E$10,12*$A9,4*(PlotControl!$C$6-1),12,1)),AVERAGE(OFFSET(P_NToe!$E$10,12*$A9,4*(PlotControl!$C$6-1),12,1))) -> 0.1685966667 | E9: =IF(PlotControl!$B$4 = "Annual Max",MAX(OFFSET(P_NWToe!$C$10,12*$A9,4*(PlotControl!$C$6-1),12,1)),AVERAGE(OFFSET(P_NWToe!$C$10,12*$A9,4*(PlotControl!$C$6-1),12,1))) -> 0.1013016667 | F9: =IF(PlotControl!$B$4 = "Annual Max",MAX(OFFSET(P_NWToe!$D$10,12*$A9,4*(PlotControl!$C$6-1),12,1)),AVERAGE(OFFSET(P_NWToe!$D$10,12*$A9,4*(PlotControl!$C$6-1),12,1))) -> 0.1017033333 | G9: =IF(PlotControl!$B$4 = "Annual Max",MAX(OFFSET(P_NWToe!$E$10,12*$A9,4*(PlotControl!$C$6-1),12,1)),AVERAGE(OFFSET(P_NWToe!$E$10,12*$A9,4*(PlotControl!$C$6-1),12,1))) -> 0.1020991667 | H9: =IF(PlotControl!$B$4 = "Annual Max",MAX(OFFSET(P_SToe!$C$10,12*$A9,4*(PlotControl!$C$6-1),12,1)),AVERAGE(OFFSET(P_SToe!$C$10,12*$A9,4*(PlotControl!$C$6-1),12,1))) -> 0.1230908333 | I9: =IF(PlotControl!$B$4 = "Annual Max",MAX(OFFSET(P_SToe!$D$10,12*$A9,4*(PlotControl!$C$6-1),12,1)),AVERAGE(OFFSET(P_SToe!$D$10,12*$A9,4*(PlotControl!$C$6-1),12,1))) -> 0.1265 | J9: =IF(PlotControl!$B$4 = "Annual Max",MAX(OFFSET(P_SToe!$E$10,12*$A9,4*(PlotControl!$C$6-1),12,1)),AVERAGE(OFFSET(P_SToe!$E$10,12*$A9,4*(PlotControl!$C$6-1),12,1))) -> 0.1291458333 | K9: =IF(PlotControl!$B$4 = "Annual Max",MAX(OFFSET(P_WToe!$C$10,12*$A9,4*(PlotControl!$C$6-1),12,1)),AVERAGE(OFFSET(P_WToe!$C$10,12*$A9,4*(PlotControl!$C$6-1),12,1))) -> 0.1085508333 | L9: =IF(PlotControl!$B$4 = "Annual Max",MAX(OFFSET(P_WToe!$D$10,12*$A9,4*(PlotControl!$C$6-1),12,1)),AVERAGE(OFFSET(P_WToe!$D$10,12*$A9,4*(PlotControl!$C$6-1),12,1))) -> 0.1088983333 | M9: =IF(PlotControl!$B$4 = "Annual Max",MAX(OFFSET(P_WToe!$E$10,12*$A9,4*(PlotControl!$C$6-1),12,1)),AVERAGE(OFFSET(P_WToe!$E$10,12*$A9,4*(PlotControl!$C$6-1),12,1))) -> 0.1092491667 | N9: =IF(PlotControl!$B$4 = "Annual Max",MAX(OFFSET(P_EToe!$C$10,12*$A9,4*(PlotControl!$C$6-1),12,1)),AVERAGE(OFFSET(P_EToe!$C$10,12*$A9,4*(PlotControl!$C$6-1),12,1))) -> 0.07500216667 | O9: =IF(PlotControl!$B$4 = "Annual Max",MAX(OFFSET(P_EToe!$D$10,12*$A9,4*(PlotControl!$C$6-1),12,1)),AVERAGE(OFFSET(P_EToe!$D$10,12*$A9,4*(PlotControl!$C$6-1),12,1))) -> 0.07500375 | P9: =IF(PlotControl!$B$4 = "Annual Max",MAX(OFFSET(P_EToe!$E$10,12*$A9,4*(PlotControl!$C$6-1),12,1)),AVERAGE(OFFSET(P_EToe!$E$10,12*$A9,4*(PlotControl!$C$6-1),12,1))) -> 0.0750055 | X9: 0.3333333333 | Y9: =OFFSET(P_NToe!$C$10,12*$X9,4*(PlotControl!$C$6-1),1,1) -> 0.12739 | Z9: =OFFSET(P_NToe!$D$10,12*$X9,4*(PlotControl!$C$6-1),1,1) -> 0.12739 | AA9: =OFFSET(P_NToe!$E$10,12*$X9,4*(PlotControl!$C$6-1),1,1) -> 0.12739 | AB9: =OFFSET(P_NWToe!$C$10,12*$X9,4*(PlotControl!$C$6-1),1,1) -> 0.10045 | AC9: =OFFSET(P_NWToe!$D$10,12*$X9,4*(PlotControl!$C$6-1),1,1) -> 0.10045 | AD9: =OFFSET(P_NWToe!$E$10,12*$X9,4*(PlotControl!$C$6-1),1,1) -> 0.10045 | AE9: =OFFSET(P_SToe!$C$10,12*$X9,4*(PlotControl!$C$6-1),1,1) -> 0.11901 | AF9: =OFFSET(P_SToe!$D$10,12*$X9,4*(PlotControl!$C$6-1),1,1) -> 0.11901 | AG9: =OFFSET(P_SToe!$E$10,12*$X9,4*(PlotControl!$C$6-1),1,1) -> 0.11901 | AH9: =OFFSET(P_WToe!$C$10,12*$X9,4*(PlotControl!$C$6-1),1,1) -> 0.10999 | AI9: =OFFSET(P_WToe!$D$10,12*$X9,4*(PlotControl!$C$6-1),1,1) -> 0.10999 | AJ9: =OFFSET(P_WToe!$E$10,12*$X9,4*(PlotControl!$C$6-1),1,1) -> 0.10999 | AK9: =OFFSET(#REF!,12*$X9,4*(PlotControl!$C$6-1),1,1) ->  | AL9: =OFFSET(#REF!,12*$X9,4*(PlotControl!$C$6-1),1,1) ->  | AM9: =OFFSET(#REF!,12*$X9,4*(PlotControl!$C$6-1),1,1) -> 
A10: 5 | B10: =IF(PlotControl!$B$4 = "Annual Max",MAX(OFFSET(P_NToe!$C$10,12*$A10,4*(PlotControl!$C$6-1),12,1)),AVERAGE(OFFSET(P_NToe!$C$10,12*$A10,4*(PlotControl!$C$6-1),12,1))) -> 0.26289 | C10: =IF(PlotControl!$B$4 = "Annual Max",MAX(OFFSET(P_NToe!$D$10,12*$A10,4*(PlotControl!$C$6-1),12,1)),AVERAGE(OFFSET(P_NToe!$D$10,12*$A10,4*(PlotControl!$C$6-1),12,1))) -> 0.2686275 | D10: =IF(PlotControl!$B$4 = "Annual Max",MAX(OFFSET(P_NToe!$E$10,12*$A10,4*(PlotControl!$C$6-1),12,1)),AVERAGE(OFFSET(P_NToe!$E$10,12*$A10,4*(PlotControl!$C$6-1),12,1))) -> 0.2739066667 | E10: =IF(PlotControl!$B$4 = "Annual Max",MAX(OFFSET(P_NWToe!$C$10,12*$A10,4*(PlotControl!$C$6-1),12,1)),AVERAGE(OFFSET(P_NWToe!$C$10,12*$A10,4*(PlotControl!$C$6-1),12,1))) -> 0.1001380833 | F10: =IF(PlotControl!$B$4 = "Annual Max",MAX(OFFSET(P_NWToe!$D$10,12*$A10,4*(PlotControl!$C$6-1),12,1)),AVERAGE(OFFSET(P_NWToe!$D$10,12*$A10,4*(PlotControl!$C$6-1),12,1))) -> 0.1017858333 | G10: =IF(PlotControl!$B$4 = "Annual Max",MAX(OFFSET(P_NWToe!$E$10,12*$A10,4*(PlotControl!$C$6-1),12,1)),AVERAGE(OFFSET(P_NWToe!$E$10,12*$A10,4*(PlotControl!$C$6-1),12,1))) -> 0.1035308333 | H10: =IF(PlotControl!$B$4 = "Annual Max",MAX(OFFSET(P_SToe!$C$10,12*$A10,4*(PlotControl!$C$6-1),12,1)),AVERAGE(OFFSET(P_SToe!$C$10,12*$A10,4*(PlotControl!$C$6-1),12,1))) -> 0.145165 | I10: =IF(PlotControl!$B$4 = "Annual Max",MAX(OFFSET(P_SToe!$D$10,12*$A10,4*(PlotControl!$C$6-1),12,1)),AVERAGE(OFFSET(P_SToe!$D$10,12*$A10,4*(PlotControl!$C$6-1),12,1))) -> 0.15254 | J10: =IF(PlotControl!$B$4 = "Annual Max",MAX(OFFSET(P_SToe!$E$10,12*$A10,4*(PlotControl!$C$6-1),12,1)),AVERAGE(OFFSET(P_SToe!$E$10,12*$A10,4*(PlotControl!$C$6-1),12,1))) -> 0.1572166667 | K10: =IF(PlotControl!$B$4 = "Annual Max",MAX(OFFSET(P_WToe!$C$10,12*$A10,4*(PlotControl!$C$6-1),12,1)),AVERAGE(OFFSET(P_WToe!$C$10,12*$A10,4*(PlotControl!$C$6-1),12,1))) -> 0.1033825 | L10: =IF(PlotControl!$B$4 = "Annual Max",MAX(OFFSET(P_WToe!$D$10,12*$A10,4*(PlotControl!$C$6-1),12,1)),AVERAGE(OFFSET(P_WToe!$D$10,12*$A10,4*(PlotControl!$C$6-1),12,1))) -> 0.1048941667 | M10: =IF(PlotControl!$B$4 = "Annual Max",MAX(OFFSET(P_WToe!$E$10,12*$A10,4*(PlotControl!$C$6-1),12,1)),AVERAGE(OFFSET(P_WToe!$E$10,12*$A10,4*(PlotControl!$C$6-1),12,1))) -> 0.10645 | N10: =IF(PlotControl!$B$4 = "Annual Max",MAX(OFFSET(P_EToe!$C$10,12*$A10,4*(PlotControl!$C$6-1),12,1)),AVERAGE(OFFSET(P_EToe!$C$10,12*$A10,4*(PlotControl!$C$6-1),12,1))) -> 0.0752225 | O10: =IF(PlotControl!$B$4 = "Annual Max",MAX(OFFSET(P_EToe!$D$10,12*$A10,4*(PlotControl!$C$6-1),12,1)),AVERAGE(OFFSET(P_EToe!$D$10,12*$A10,4*(PlotControl!$C$6-1),12,1))) -> 0.07529 | P10: =IF(PlotControl!$B$4 = "Annual Max",MAX(OFFSET(P_EToe!$E$10,12*$A10,4*(PlotControl!$C$6-1),12,1)),AVERAGE(OFFSET(P_EToe!$E$10,12*$A10,4*(PlotControl!$C$6-1),12,1))) -> 0.07538616667 | X10: 0.4166666667 | Y10: =OFFSET(P_NToe!$C$10,12*$X10,4*(PlotControl!$C$6-1),1,1) -> 0.12739 | Z10: =OFFSET(P_NToe!$D$10,12*$X10,4*(PlotControl!$C$6-1),1,1) -> 0.12739 | AA10: =OFFSET(P_NToe!$E$10,12*$X10,4*(PlotControl!$C$6-1),1,1) -> 0.12739 | AB10: =OFFSET(P_NWToe!$C$10,12*$X10,4*(PlotControl!$C$6-1),1,1) -> 0.10045 | AC10: =OFFSET(P_NWToe!$D$10,12*$X10,4*(PlotControl!$C$6-1),1,1) -> 0.10045 | AD10: =OFFSET(P_NWToe!$E$10,12*$X10,4*(PlotControl!$C$6-1),1,1) -> 0.10045 | AE10: =OFFSET(P_SToe!$C$10,12*$X10,4*(PlotControl!$C$6-1),1,1) -> 0.11901 | AF10: =OFFSET(P_SToe!$D$10,12*$X10,4*(PlotControl!$C$6-1),1,1) -> 0.11901 | AG10: =OFFSET(P_SToe!$E$10,12*$X10,4*(PlotControl!$C$6-1),1,1) -> 0.11901 | AH10: =OFFSET(P_WToe!$C$10,12*$X10,4*(PlotControl!$C$6-1),1,1) -> 0.10999 | AI10: =OFFSET(P_WToe!$D$10,12*$X10,4*(PlotControl!$C$6-1),1,1) -> 0.10999 | AJ10: =OFFSET(P_WToe!$E$10,12*$X10,4*(PlotControl!$C$6-1),1,1) -> 0.10999 | AK10: =OFFSET(#REF!,12*$X10,4*(PlotControl!$C$6-1),1,1) ->  | AL10: =OFFSET(#REF!,12*$X10,4*(PlotControl!$C$6-1),1,1) ->  | AM10: =OFFSET(#REF!,12*$X10,4*(PlotControl!$C$6-1),1,1) -> 
A11: 6 | B11: =IF(PlotControl!$B$4 = "Annual Max",MAX(OFFSET(P_NToe!$C$10,12*$A11,4*(PlotControl!$C$6-1),12,1)),AVERAGE(OFFSET(P_NToe!$C$10,12*$A11,4*(PlotControl!$C$6-1),12,1))) -> 0.3395208333 | C11: =IF(PlotControl!$B$4 = "Annual Max",MAX(OFFSET(P_NToe!$D$10,12*$A11,4*(PlotControl!$C$6-1),12,1)),AVERAGE(OFFSET(P_NToe!$D$10,12*$A11,4*(PlotControl!$C$6-1),12,1))) -> 0.3515416667 | D11: =IF(PlotControl!$B$4 = "Annual Max",MAX(OFFSET(P_NToe!$E$10,12*$A11,4*(PlotControl!$C$6-1),12,1)),AVERAGE(OFFSET(P_NToe!$E$10,12*$A11,4*(PlotControl!$C$6-1),12,1))) -> 0.3630233333 | E11: =IF(PlotControl!$B$4 = "Annual Max",MAX(OFFSET(P_NWToe!$C$10,12*$A11,4*(PlotControl!$C$6-1),12,1)),AVERAGE(OFFSET(P_NWToe!$C$10,12*$A11,4*(PlotControl!$C$6-1),12,1))) -> 0.09928875 | F11: =IF(PlotControl!$B$4 = "Annual Max",MAX(OFFSET(P_NWToe!$D$10,12*$A11,4*(PlotControl!$C$6-1),12,1)),AVERAGE(OFFSET(P_NWToe!$D$10,12*$A11,4*(PlotControl!$C$6-1),12,1))) -> 0.1028091667 | G11: =IF(PlotControl!$B$4 = "Annual Max",MAX(OFFSET(P_NWToe!$E$10,12*$A11,4*(PlotControl!$C$6-1),12,1)),AVERAGE(OFFSET(P_NWToe!$E$10,12*$A11,4*(PlotControl!$C$6-1),12,1))) -> 0.1066466667 | H11: =IF(PlotControl!$B$4 = "Annual Max",MAX(OFFSET(P_SToe!$C$10,12*$A11,4*(PlotControl!$C$6-1),12,1)),AVERAGE(OFFSET(P_SToe!$C$10,12*$A11,4*(PlotControl!$C$6-1),12,1))) -> 0.1764091667 | I11: =IF(PlotControl!$B$4 = "Annual Max",MAX(OFFSET(P_SToe!$D$10,12*$A11,4*(PlotControl!$C$6-1),12,1)),AVERAGE(OFFSET(P_SToe!$D$10,12*$A11,4*(PlotControl!$C$6-1),12,1))) -> 0.1830366667 | J11: =IF(PlotControl!$B$4 = "Annual Max",MAX(OFFSET(P_SToe!$E$10,12*$A11,4*(PlotControl!$C$6-1),12,1)),AVERAGE(OFFSET(P_SToe!$E$10,12*$A11,4*(PlotControl!$C$6-1),12,1))) -> 0.18795 | K11: =IF(PlotControl!$B$4 = "Annual Max",MAX(OFFSET(P_WToe!$C$10,12*$A11,4*(PlotControl!$C$6-1),12,1)),AVERAGE(OFFSET(P_WToe!$C$10,12*$A11,4*(PlotControl!$C$6-1),12,1))) -> 0.09677491667 | L11: =IF(PlotControl!$B$4 = "Annual Max",MAX(OFFSET(P_WToe!$D$10,12*$A11,4*(PlotControl!$C$6-1),12,1)),AVERAGE(OFFSET(P_WToe!$D$10,12*$A11,4*(PlotControl!$C$6-1),12,1))) -> 0.1000526667 | M11: =IF(PlotControl!$B$4 = "Annual Max",MAX(OFFSET(P_WToe!$E$10,12*$A11,4*(PlotControl!$C$6-1),12,1)),AVERAGE(OFFSET(P_WToe!$E$10,12*$A11,4*(PlotControl!$C$6-1),12,1))) -> 0.10352 | N11: =IF(PlotControl!$B$4 = "Annual Max",MAX(OFFSET(P_EToe!$C$10,12*$A11,4*(PlotControl!$C$6-1),12,1)),AVERAGE(OFFSET(P_EToe!$C$10,12*$A11,4*(PlotControl!$C$6-1),12,1))) -> 0.07769325 | O11: =IF(PlotControl!$B$4 = "Annual Max",MAX(OFFSET(P_EToe!$D$10,12*$A11,4*(PlotControl!$C$6-1),12,1)),AVERAGE(OFFSET(P_EToe!$D$10,12*$A11,4*(PlotControl!$C$6-1),12,1))) -> 0.07835891667 | P11: =IF(PlotControl!$B$4 = "Annual Max",MAX(OFFSET(P_EToe!$E$10,12*$A11,4*(PlotControl!$C$6-1),12,1)),AVERAGE(OFFSET(P_EToe!$E$10,12*$A11,4*(PlotControl!$C$6-1),12,1))) -> 0.079418 | X11: 0.5 | Y11: =OFFSET(P_NToe!$C$10,12*$X11,4*(PlotControl!$C$6-1),1,1) -> 0.12739 | Z11: =OFFSET(P_NToe!$D$10,12*$X11,4*(PlotControl!$C$6-1),1,1) -> 0.12739 | AA11: =OFFSET(P_NToe!$E$10,12*$X11,4*(PlotControl!$C$6-1),1,1) -> 0.12739 | AB11: =OFFSET(P_NWToe!$C$10,12*$X11,4*(PlotControl!$C$6-1),1,1) -> 0.10045 | AC11: =OFFSET(P_NWToe!$D$10,12*$X11,4*(PlotControl!$C$6-1),1,1) -> 0.10045 | AD11: =OFFSET(P_NWToe!$E$10,12*$X11,4*(PlotControl!$C$6-1),1,1) -> 0.10045 | AE11: =OFFSET(P_SToe!$C$10,12*$X11,4*(PlotControl!$C$6-1),1,1) -> 0.11901 | AF11: =OFFSET(P_SToe!$D$10,12*$X11,4*(PlotControl!$C$6-1),1,1) -> 0.11901 | AG11: =OFFSET(P_SToe!$E$10,12*$X11,4*(PlotControl!$C$6-1),1,1) -> 0.11901 | AH11: =OFFSET(P_WToe!$C$10,12*$X11,4*(PlotControl!$C$6-1),1,1) -> 0.10999 | AI11: =OFFSET(P_WToe!$D$10,12*$X11,4*(PlotControl!$C$6-1),1,1) -> 0.10999 | AJ11: =OFFSET(P_WToe!$E$10,12*$X11,4*(PlotControl!$C$6-1),1,1) -> 0.10999 | AK11: =OFFSET(#REF!,12*$X11,4*(PlotControl!$C$6-1),1,1) ->  | AL11: =OFFSET(#REF!,12*$X11,4*(PlotControl!$C$6-1),1,1) ->  | AM11: =OFFSET(#REF!,12*$X11,4*(PlotControl!$C$6-1),1,1) -> 
A12: 7 | B12: =IF(PlotControl!$B$4 = "Annual Max",MAX(OFFSET(P_NToe!$C$10,12*$A12,4*(PlotControl!$C$6-1),12,1)),AVERAGE(OFFSET(P_NToe!$C$10,12*$A12,4*(PlotControl!$C$6-1),12,1))) -> 0.3252658333 | C12: =IF(PlotControl!$B$4 = "Annual Max",MAX(OFFSET(P_NToe!$D$10,12*$A12,4*(PlotControl!$C$6-1),12,1)),AVERAGE(OFFSET(P_NToe!$D$10,12*$A12,4*(PlotControl!$C$6-1),12,1))) -> 0.3377925 | D12: =IF(PlotControl!$B$4 = "Annual Max",MAX(OFFSET(P_NToe!$E$10,12*$A12,4*(PlotControl!$C$6-1),12,1)),AVERAGE(OFFSET(P_NToe!$E$10,12*$A12,4*(PlotControl!$C$6-1),12,1))) -> 0.3503133333 | E12: =IF(PlotControl!$B$4 = "Annual Max",MAX(OFFSET(P_NWToe!$C$10,12*$A12,4*(PlotControl!$C$6-1),12,1)),AVERAGE(OFFSET(P_NWToe!$C$10,12*$A12,4*(PlotControl!$C$6-1),12,1))) -> 0.10552 | F12: =IF(PlotControl!$B$4 = "Annual Max",MAX(OFFSET(P_NWToe!$D$10,12*$A12,4*(PlotControl!$C$6-1),12,1)),AVERAGE(OFFSET(P_NWToe!$D$10,12*$A12,4*(PlotControl!$C$6-1),12,1))) -> 0.1106641667 | G12: =IF(PlotControl!$B$4 = "Annual Max",MAX(OFFSET(P_NWToe!$E$10,12*$A12,4*(PlotControl!$C$6-1),12,1)),AVERAGE(OFFSET(P_NWToe!$E$10,12*$A12,4*(PlotControl!$C$6-1),12,1))) -> 0.1163916667 | H12: =IF(PlotControl!$B$4 = "Annual Max",MAX(OFFSET(P_SToe!$C$10,12*$A12,4*(PlotControl!$C$6-1),12,1)),AVERAGE(OFFSET(P_SToe!$C$10,12*$A12,4*(PlotControl!$C$6-1),12,1))) -> 0.1949625 | I12: =IF(PlotControl!$B$4 = "Annual Max",MAX(OFFSET(P_SToe!$D$10,12*$A12,4*(PlotControl!$C$6-1),12,1)),AVERAGE(OFFSET(P_SToe!$D$10,12*$A12,4*(PlotControl!$C$6-1),12,1))) -> 0.2000558333 | J12: =IF(PlotControl!$B$4 = "Annual Max",MAX(OFFSET(P_SToe!$E$10,12*$A12,4*(PlotControl!$C$6-1),12,1)),AVERAGE(OFFSET(P_SToe!$E$10,12*$A12,4*(PlotControl!$C$6-1),12,1))) -> 0.2063575 | K12: =IF(PlotControl!$B$4 = "Annual Max",MAX(OFFSET(P_WToe!$C$10,12*$A12,4*(PlotControl!$C$6-1),12,1)),AVERAGE(OFFSET(P_WToe!$C$10,12*$A12,4*(PlotControl!$C$6-1),12,1))) -> 0.09752275 | L12: =IF(PlotControl!$B$4 = "Annual Max",MAX(OFFSET(P_WToe!$D$10,12*$A12,4*(PlotControl!$C$6-1),12,1)),AVERAGE(OFFSET(P_WToe!$D$10,12*$A12,4*(PlotControl!$C$6-1),12,1))) -> 0.1024038333 | M12: =IF(PlotControl!$B$4 = "Annual Max",MAX(OFFSET(P_WToe!$E$10,12*$A12,4*(PlotControl!$C$6-1),12,1)),AVERAGE(OFFSET(P_WToe!$E$10,12*$A12,4*(PlotControl!$C$6-1),12,1))) -> 0.1087791667 | N12: =IF(PlotControl!$B$4 = "Annual Max",MAX(OFFSET(P_EToe!$C$10,12*$A12,4*(PlotControl!$C$6-1),12,1)),AVERAGE(OFFSET(P_EToe!$C$10,12*$A12,4*(PlotControl!$C$6-1),12,1))) -> 0.0896425 | O12: =IF(PlotControl!$B$4 = "Annual Max",MAX(OFFSET(P_EToe!$D$10,12*$A12,4*(PlotControl!$C$6-1),12,1)),AVERAGE(OFFSET(P_EToe!$D$10,12*$A12,4*(PlotControl!$C$6-1),12,1))) -> 0.09252291667 | P12: =IF(PlotControl!$B$4 = "Annual Max",MAX(OFFSET(P_EToe!$E$10,12*$A12,4*(PlotControl!$C$6-1),12,1)),AVERAGE(OFFSET(P_EToe!$E$10,12*$A12,4*(PlotControl!$C$6-1),12,1))) -> 0.09891025 | X12: 0.5833333333 | Y12: =OFFSET(P_NToe!$C$10,12*$X12,4*(PlotControl!$C$6-1),1,1) -> 0.12739 | Z12: =OFFSET(P_NToe!$D$10,12*$X12,4*(PlotControl!$C$6-1),1,1) -> 0.12739 | AA12: =OFFSET(P_NToe!$E$10,12*$X12,4*(PlotControl!$C$6-1),1,1) -> 0.12739 | AB12: =OFFSET(P_NWToe!$C$10,12*$X12,4*(PlotControl!$C$6-1),1,1) -> 0.10045 | AC12: =OFFSET(P_NWToe!$D$10,12*$X12,4*(PlotControl!$C$6-1),1,1) -> 0.10045 | AD12: =OFFSET(P_NWToe!$E$10,12*$X12,4*(PlotControl!$C$6-1),1,1) -> 0.10045 | AE12: =OFFSET(P_SToe!$C$10,12*$X12,4*(PlotControl!$C$6-1),1,1) -> 0.11901 | AF12: =OFFSET(P_SToe!$D$10,12*$X12,4*(PlotControl!$C$6-1),1,1) -> 0.11901 | AG12: =OFFSET(P_SToe!$E$10,12*$X12,4*(PlotControl!$C$6-1),1,1) -> 0.11901 | AH12: =OFFSET(P_WToe!$C$10,12*$X12,4*(PlotControl!$C$6-1),1,1) -> 0.10999 | AI12: =OFFSET(P_WToe!$D$10,12*$X12,4*(PlotControl!$C$6-1),1,1) -> 0.10999 | AJ12: =OFFSET(P_WToe!$E$10,12*$X12,4*(PlotControl!$C$6-1),1,1) -> 0.10999 | AK12: =OFFSET(#REF!,12*$X12,4*(PlotControl!$C$6-1),1,1) ->  | AL12: =OFFSET(#REF!,12*$X12,4*(PlotControl!$C$6-1),1,1) ->  | AM12: =OFFSET(#REF!,12*$X12,4*(PlotControl!$C$6-1),1,1) -> 
A13: 8 | B13: =IF(PlotControl!$B$4 = "Annual Max",MAX(OFFSET(P_NToe!$C$10,12*$A13,4*(PlotControl!$C$6-1),12,1)),AVERAGE(OFFSET(P_NToe!$C$10,12*$A13,4*(PlotControl!$C$6-1),12,1))) -> 0.2713266667 | C13: =IF(PlotControl!$B$4 = "Annual Max",MAX(OFFSET(P_NToe!$D$10,12*$A13,4*(PlotControl!$C$6-1),12,1)),AVERAGE(OFFSET(P_NToe!$D$10,12*$A13,4*(PlotControl!$C$6-1),12,1))) -> 0.2785775 | D13: =IF(PlotControl!$B$4 = "Annual Max",MAX(OFFSET(P_NToe!$E$10,12*$A13,4*(PlotControl!$C$6-1),12,1)),AVERAGE(OFFSET(P_NToe!$E$10,12*$A13,4*(PlotControl!$C$6-1),12,1))) -> 0.2867033333 | E13: =IF(PlotControl!$B$4 = "Annual Max",MAX(OFFSET(P_NWToe!$C$10,12*$A13,4*(PlotControl!$C$6-1),12,1)),AVERAGE(OFFSET(P_NWToe!$C$10,12*$A13,4*(PlotControl!$C$6-1),12,1))) -> 0.1184866667 | F13: =IF(PlotControl!$B$4 = "Annual Max",MAX(OFFSET(P_NWToe!$D$10,12*$A13,4*(PlotControl!$C$6-1),12,1)),AVERAGE(OFFSET(P_NWToe!$D$10,12*$A13,4*(PlotControl!$C$6-1),12,1))) -> 0.1244166667 | G13: =IF(PlotControl!$B$4 = "Annual Max",MAX(OFFSET(P_NWToe!$E$10,12*$A13,4*(PlotControl!$C$6-1),12,1)),AVERAGE(OFFSET(P_NWToe!$E$10,12*$A13,4*(PlotControl!$C$6-1),12,1))) -> 0.13321 | H13: =IF(PlotControl!$B$4 = "Annual Max",MAX(OFFSET(P_SToe!$C$10,12*$A13,4*(PlotControl!$C$6-1),12,1)),AVERAGE(OFFSET(P_SToe!$C$10,12*$A13,4*(PlotControl!$C$6-1),12,1))) -> 0.20002 | I13: =IF(PlotControl!$B$4 = "Annual Max",MAX(OFFSET(P_SToe!$D$10,12*$A13,4*(PlotControl!$C$6-1),12,1)),AVERAGE(OFFSET(P_SToe!$D$10,12*$A13,4*(PlotControl!$C$6-1),12,1))) -> 0.2054108333 | J13: =IF(PlotControl!$B$4 = "Annual Max",MAX(OFFSET(P_SToe!$E$10,12*$A13,4*(PlotControl!$C$6-1),12,1)),AVERAGE(OFFSET(P_SToe!$E$10,12*$A13,4*(PlotControl!$C$6-1),12,1))) -> 0.2146625 | K13: =IF(PlotControl!$B$4 = "Annual Max",MAX(OFFSET(P_WToe!$C$10,12*$A13,4*(PlotControl!$C$6-1),12,1)),AVERAGE(OFFSET(P_WToe!$C$10,12*$A13,4*(PlotControl!$C$6-1),12,1))) -> 0.1061375 | L13: =IF(PlotControl!$B$4 = "Annual Max",MAX(OFFSET(P_WToe!$D$10,12*$A13,4*(PlotControl!$C$6-1),12,1)),AVERAGE(OFFSET(P_WToe!$D$10,12*$A13,4*(PlotControl!$C$6-1),12,1))) -> 0.11197 | M13: =IF(PlotControl!$B$4 = "Annual Max",MAX(OFFSET(P_WToe!$E$10,12*$A13,4*(PlotControl!$C$6-1),12,1)),AVERAGE(OFFSET(P_WToe!$E$10,12*$A13,4*(PlotControl!$C$6-1),12,1))) -> 0.1240066667 | N13: =IF(PlotControl!$B$4 = "Annual Max",MAX(OFFSET(P_EToe!$C$10,12*$A13,4*(PlotControl!$C$6-1),12,1)),AVERAGE(OFFSET(P_EToe!$C$10,12*$A13,4*(PlotControl!$C$6-1),12,1))) -> 0.1199191667 | O13: =IF(PlotControl!$B$4 = "Annual Max",MAX(OFFSET(P_EToe!$D$10,12*$A13,4*(PlotControl!$C$6-1),12,1)),AVERAGE(OFFSET(P_EToe!$D$10,12*$A13,4*(PlotControl!$C$6-1),12,1))) -> 0.1282916667 | P13: =IF(PlotControl!$B$4 = "Annual Max",MAX(OFFSET(P_EToe!$E$10,12*$A13,4*(PlotControl!$C$6-1),12,1)),AVERAGE(OFFSET(P_EToe!$E$10,12*$A13,4*(PlotControl!$C$6-1),12,1))) -> 0.1506833333 | X13: 0.6666666667 | Y13: =OFFSET(P_NToe!$C$10,12*$X13,4*(PlotControl!$C$6-1),1,1) -> 0.12739 | Z13: =OFFSET(P_NToe!$D$10,12*$X13,4*(PlotControl!$C$6-1),1,1) -> 0.12739 | AA13: =OFFSET(P_NToe!$E$10,12*$X13,4*(PlotControl!$C$6-1),1,1) -> 0.12739 | AB13: =OFFSET(P_NWToe!$C$10,12*$X13,4*(PlotControl!$C$6-1),1,1) -> 0.10045 | AC13: =OFFSET(P_NWToe!$D$10,12*$X13,4*(PlotControl!$C$6-1),1,1) -> 0.10045 | AD13: =OFFSET(P_NWToe!$E$10,12*$X13,4*(PlotControl!$C$6-1),1,1) -> 0.10045 | AE13: =OFFSET(P_SToe!$C$10,12*$X13,4*(PlotControl!$C$6-1),1,1) -> 0.11901 | AF13: =OFFSET(P_SToe!$D$10,12*$X13,4*(PlotControl!$C$6-1),1,1) -> 0.11901 | AG13: =OFFSET(P_SToe!$E$10,12*$X13,4*(PlotControl!$C$6-1),1,1) -> 0.11901 | AH13: =OFFSET(P_WToe!$C$10,12*$X13,4*(PlotControl!$C$6-1),1,1) -> 0.10999 | AI13: =OFFSET(P_WToe!$D$10,12*$X13,4*(PlotControl!$C$6-1),1,1) -> 0.10999 | AJ13: =OFFSET(P_WToe!$E$10,12*$X13,4*(PlotControl!$C$6-1),1,1) -> 0.10999 | AK13: =OFFSET(#REF!,12*$X13,4*(PlotControl!$C$6-1),1,1) ->  | AL13: =OFFSET(#REF!,12*$X13,4*(PlotControl!$C$6-1),1,1) ->  | AM13: =OFFSET(#REF!,12*$X13,4*(PlotControl!$C$6-1),1,1) -> 
A14: 9 | B14: =IF(PlotControl!$B$4 = "Annual Max",MAX(OFFSET(P_NToe!$C$10,12*$A14,4*(PlotControl!$C$6-1),12,1)),AVERAGE(OFFSET(P_NToe!$C$10,12*$A14,4*(PlotControl!$C$6-1),12,1))) -> 0.2307375 | C14: =IF(PlotControl!$B$4 = "Annual Max",MAX(OFFSET(P_NToe!$D$10,12*$A14,4*(PlotControl!$C$6-1),12,1)),AVERAGE(OFFSET(P_NToe!$D$10,12*$A14,4*(PlotControl!$C$6-1),12,1))) -> 0.2344875 | D14: =IF(PlotControl!$B$4 = "Annual Max",MAX(OFFSET(P_NToe!$E$10,12*$A14,4*(PlotControl!$C$6-1),12,1)),AVERAGE(OFFSET(P_NToe!$E$10,12*$A14,4*(PlotControl!$C$6-1),12,1))) -> 0.2387308333 | E14: =IF(PlotControl!$B$4 = "Annual Max",MAX(OFFSET(P_NWToe!$C$10,12*$A14,4*(PlotControl!$C$6-1),12,1)),AVERAGE(OFFSET(P_NWToe!$C$10,12*$A14,4*(PlotControl!$C$6-1),12,1))) -> 0.1312191667 | F14: =IF(PlotControl!$B$4 = "Annual Max",MAX(OFFSET(P_NWToe!$D$10,12*$A14,4*(PlotControl!$C$6-1),12,1)),AVERAGE(OFFSET(P_NWToe!$D$10,12*$A14,4*(PlotControl!$C$6-1),12,1))) -> 0.13786 | G14: =IF(PlotControl!$B$4 = "Annual Max",MAX(OFFSET(P_NWToe!$E$10,12*$A14,4*(PlotControl!$C$6-1),12,1)),AVERAGE(OFFSET(P_NWToe!$E$10,12*$A14,4*(PlotControl!$C$6-1),12,1))) -> 0.1506458333 | H14: =IF(PlotControl!$B$4 = "Annual Max",MAX(OFFSET(P_SToe!$C$10,12*$A14,4*(PlotControl!$C$6-1),12,1)),AVERAGE(OFFSET(P_SToe!$C$10,12*$A14,4*(PlotControl!$C$6-1),12,1))) -> 0.1991441667 | I14: =IF(PlotControl!$B$4 = "Annual Max",MAX(OFFSET(P_SToe!$D$10,12*$A14,4*(PlotControl!$C$6-1),12,1)),AVERAGE(OFFSET(P_SToe!$D$10,12*$A14,4*(PlotControl!$C$6-1),12,1))) -> 0.2058083333 | J14: =IF(PlotControl!$B$4 = "Annual Max",MAX(OFFSET(P_SToe!$E$10,12*$A14,4*(PlotControl!$C$6-1),12,1)),AVERAGE(OFFSET(P_SToe!$E$10,12*$A14,4*(PlotControl!$C$6-1),12,1))) -> 0.2184933333 | K14: =IF(PlotControl!$B$4 = "Annual Max",MAX(OFFSET(P_WToe!$C$10,12*$A14,4*(PlotControl!$C$6-1),12,1)),AVERAGE(OFFSET(P_WToe!$C$10,12*$A14,4*(PlotControl!$C$6-1),12,1))) -> 0.1152366667 | L14: =IF(PlotControl!$B$4 = "Annual Max",MAX(OFFSET(P_WToe!$D$10,12*$A14,4*(PlotControl!$C$6-1),12,1)),AVERAGE(OFFSET(P_WToe!$D$10,12*$A14,4*(PlotControl!$C$6-1),12,1))) -> 0.1224716667 | M14: =IF(PlotControl!$B$4 = "Annual Max",MAX(OFFSET(P_WToe!$E$10,12*$A14,4*(PlotControl!$C$6-1),12,1)),AVERAGE(OFFSET(P_WToe!$E$10,12*$A14,4*(PlotControl!$C$6-1),12,1))) -> 0.1411341667 | N14: =IF(PlotControl!$B$4 = "Annual Max",MAX(OFFSET(P_EToe!$C$10,12*$A14,4*(PlotControl!$C$6-1),12,1)),AVERAGE(OFFSET(P_EToe!$C$10,12*$A14,4*(PlotControl!$C$6-1),12,1))) -> 0.1631025 | O14: =IF(PlotControl!$B$4 = "Annual Max",MAX(OFFSET(P_EToe!$D$10,12*$A14,4*(PlotControl!$C$6-1),12,1)),AVERAGE(OFFSET(P_EToe!$D$10,12*$A14,4*(PlotControl!$C$6-1),12,1))) -> 0.1802733333 | P14: =IF(PlotControl!$B$4 = "Annual Max",MAX(OFFSET(P_EToe!$E$10,12*$A14,4*(PlotControl!$C$6-1),12,1)),AVERAGE(OFFSET(P_EToe!$E$10,12*$A14,4*(PlotControl!$C$6-1),12,1))) -> 0.2314608333 | X14: 0.75 | Y14: =OFFSET(P_NToe!$C$10,12*$X14,4*(PlotControl!$C$6-1),1,1) -> 0.12739 | Z14: =OFFSET(P_NToe!$D$10,12*$X14,4*(PlotControl!$C$6-1),1,1) -> 0.12739 | AA14: =OFFSET(P_NToe!$E$10,12*$X14,4*(PlotControl!$C$6-1),1,1) -> 0.12739 | AB14: =OFFSET(P_NWToe!$C$10,12*$X14,4*(PlotControl!$C$6-1),1,1) -> 0.10045 | AC14: =OFFSET(P_NWToe!$D$10,12*$X14,4*(PlotControl!$C$6-1),1,1) -> 0.10045 | AD14: =OFFSET(P_NWToe!$E$10,12*$X14,4*(PlotControl!$C$6-1),1,1) -> 0.10045 | AE14: =OFFSET(P_SToe!$C$10,12*$X14,4*(PlotControl!$C$6-1),1,1) -> 0.11901 | AF14: =OFFSET(P_SToe!$D$10,12*$X14,4*(PlotControl!$C$6-1),1,1) -> 0.11901 | AG14: =OFFSET(P_SToe!$E$10,12*$X14,4*(PlotControl!$C$6-1),1,1) -> 0.11901 | AH14: =OFFSET(P_WToe!$C$10,12*$X14,4*(PlotControl!$C$6-1),1,1) -> 0.10999 | AI14: =OFFSET(P_WToe!$D$10,12*$X14,4*(PlotControl!$C$6-1),1,1) -> 0.10999 | AJ14: =OFFSET(P_WToe!$E$10,12*$X14,4*(PlotControl!$C$6-1),1,1) -> 0.10999 | AK14: =OFFSET(#REF!,12*$X14,4*(PlotControl!$C$6-1),1,1) ->  | AL14: =OFFSET(#REF!,12*$X14,4*(PlotControl!$C$6-1),1,1) ->  | AM14: =OFFSET(#REF!,12*$X14,4*(PlotControl!$C$6-1),1,1) -> 
A15: 10 | B15: =IF(PlotControl!$B$4 = "Annual Max",MAX(OFFSET(P_NToe!$C$10,12*$A15,4*(PlotControl!$C$6-1),12,1)),AVERAGE(OFFSET(P_NToe!$C$10,12*$A15,4*(PlotControl!$C$6-1),12,1))) -> 0.2098516667 | C15: =IF(PlotControl!$B$4 = "Annual Max",MAX(OFFSET(P_NToe!$D$10,12*$A15,4*(PlotControl!$C$6-1),12,1)),AVERAGE(OFFSET(P_NToe!$D$10,12*$A15,4*(PlotControl!$C$6-1),12,1))) -> 0.2120433333 | D15: =IF(PlotControl!$B$4 = "Annual Max",MAX(OFFSET(P_NToe!$E$10,12*$A15,4*(PlotControl!$C$6-1),12,1)),AVERAGE(OFFSET(P_NToe!$E$10,12*$A15,4*(PlotControl!$C$6-1),12,1))) -> 0.2151883333 | E15: =IF(PlotControl!$B$4 = "Annual Max",MAX(OFFSET(P_NWToe!$C$10,12*$A15,4*(PlotControl!$C$6-1),12,1)),AVERAGE(OFFSET(P_NWToe!$C$10,12*$A15,4*(PlotControl!$C$6-1),12,1))) -> 0.1394483333 | F15: =IF(PlotControl!$B$4 = "Annual Max",MAX(OFFSET(P_NWToe!$D$10,12*$A15,4*(PlotControl!$C$6-1),12,1)),AVERAGE(OFFSET(P_NWToe!$D$10,12*$A15,4*(PlotControl!$C$6-1),12,1))) -> 0.1476691667 | G15: =IF(PlotControl!$B$4 = "Annual Max",MAX(OFFSET(P_NWToe!$E$10,12*$A15,4*(PlotControl!$C$6-1),12,1)),AVERAGE(OFFSET(P_NWToe!$E$10,12*$A15,4*(PlotControl!$C$6-1),12,1))) -> 0.1641691667 | H15: =IF(PlotControl!$B$4 = "Annual Max",MAX(OFFSET(P_SToe!$C$10,12*$A15,4*(PlotControl!$C$6-1),12,1)),AVERAGE(OFFSET(P_SToe!$C$10,12*$A15,4*(PlotControl!$C$6-1),12,1))) -> 0.1972241667 | I15: =IF(PlotControl!$B$4 = "Annual Max",MAX(OFFSET(P_SToe!$D$10,12*$A15,4*(PlotControl!$C$6-1),12,1)),AVERAGE(OFFSET(P_SToe!$D$10,12*$A15,4*(PlotControl!$C$6-1),12,1))) -> 0.2061566667 | J15: =IF(PlotControl!$B$4 = "Annual Max",MAX(OFFSET(P_SToe!$E$10,12*$A15,4*(PlotControl!$C$6-1),12,1)),AVERAGE(OFFSET(P_SToe!$E$10,12*$A15,4*(PlotControl!$C$6-1),12,1))) -> 0.22365 | K15: =IF(PlotControl!$B$4 = "Annual Max",MAX(OFFSET(P_WToe!$C$10,12*$A15,4*(PlotControl!$C$6-1),12,1)),AVERAGE(OFFSET(P_WToe!$C$10,12*$A15,4*(PlotControl!$C$6-1),12,1))) -> 0.1197683333 | L15: =IF(PlotControl!$B$4 = "Annual Max",MAX(OFFSET(P_WToe!$D$10,12*$A15,4*(PlotControl!$C$6-1),12,1)),AVERAGE(OFFSET(P_WToe!$D$10,12*$A15,4*(PlotControl!$C$6-1),12,1))) -> 0.1294941667 | M15: =IF(PlotControl!$B$4 = "Annual Max",MAX(OFFSET(P_WToe!$E$10,12*$A15,4*(PlotControl!$C$6-1),12,1)),AVERAGE(OFFSET(P_WToe!$E$10,12*$A15,4*(PlotControl!$C$6-1),12,1))) -> 0.1547141667 | N15: =IF(PlotControl!$B$4 = "Annual Max",MAX(OFFSET(P_EToe!$C$10,12*$A15,4*(PlotControl!$C$6-1),12,1)),AVERAGE(OFFSET(P_EToe!$C$10,12*$A15,4*(PlotControl!$C$6-1),12,1))) -> 0.1962041667 | O15: =IF(PlotControl!$B$4 = "Annual Max",MAX(OFFSET(P_EToe!$D$10,12*$A15,4*(PlotControl!$C$6-1),12,1)),AVERAGE(OFFSET(P_EToe!$D$10,12*$A15,4*(PlotControl!$C$6-1),12,1))) -> 0.2271925 | P15: =IF(PlotControl!$B$4 = "Annual Max",MAX(OFFSET(P_EToe!$E$10,12*$A15,4*(PlotControl!$C$6-1),12,1)),AVERAGE(OFFSET(P_EToe!$E$10,12*$A15,4*(PlotControl!$C$6-1),12,1))) -> 0.3130558333 | X15: 0.8333333333 | Y15: =OFFSET(P_NToe!$C$10,12*$X15,4*(PlotControl!$C$6-1),1,1) -> 0.12739 | Z15: =OFFSET(P_NToe!$D$10,12*$X15,4*(PlotControl!$C$6-1),1,1) -> 0.12739 | AA15: =OFFSET(P_NToe!$E$10,12*$X15,4*(PlotControl!$C$6-1),1,1) -> 0.12739 | AB15: =OFFSET(P_NWToe!$C$10,12*$X15,4*(PlotControl!$C$6-1),1,1) -> 0.10045 | AC15: =OFFSET(P_NWToe!$D$10,12*$X15,4*(PlotControl!$C$6-1),1,1) -> 0.10045 | AD15: =OFFSET(P_NWToe!$E$10,12*$X15,4*(PlotControl!$C$6-1),1,1) -> 0.10045 | AE15: =OFFSET(P_SToe!$C$10,12*$X15,4*(PlotControl!$C$6-1),1,1) -> 0.11901 | AF15: =OFFSET(P_SToe!$D$10,12*$X15,4*(PlotControl!$C$6-1),1,1) -> 0.11901 | AG15: =OFFSET(P_SToe!$E$10,12*$X15,4*(PlotControl!$C$6-1),1,1) -> 0.11901 | AH15: =OFFSET(P_WToe!$C$10,12*$X15,4*(PlotControl!$C$6-1),1,1) -> 0.10999 | AI15: =OFFSET(P_WToe!$D$10,12*$X15,4*(PlotControl!$C$6-1),1,1) -> 0.10999 | AJ15: =OFFSET(P_WToe!$E$10,12*$X15,4*(PlotControl!$C$6-1),1,1) -> 0.10999 | AK15: =OFFSET(#REF!,12*$X15,4*(PlotControl!$C$6-1),1,1) ->  | AL15: =OFFSET(#REF!,12*$X15,4*(PlotControl!$C$6-1),1,1) ->  | AM15: =OFFSET(#REF!,12*$X15,4*(PlotControl!$C$6-1),1,1) -> 
A16: 11 | B16: =IF(PlotControl!$B$4 = "Annual Max",MAX(OFFSET(P_NToe!$C$10,12*$A16,4*(PlotControl!$C$6-1),12,1)),AVERAGE(OFFSET(P_NToe!$C$10,12*$A16,4*(PlotControl!$C$6-1),12,1))) -> 0.2035133333 | C16: =IF(PlotControl!$B$4 = "Annual Max",MAX(OFFSET(P_NToe!$D$10,12*$A16,4*(PlotControl!$C$6-1),12,1)),AVERAGE(OFFSET(P_NToe!$D$10,12*$A16,4*(PlotControl!$C$6-1),12,1))) -> 0.2054583333 | D16: =IF(PlotControl!$B$4 = "Annual Max",MAX(OFFSET(P_NToe!$E$10,12*$A16,4*(PlotControl!$C$6-1),12,1)),AVERAGE(OFFSET(P_NToe!$E$10,12*$A16,4*(PlotControl!$C$6-1),12,1))) -> 0.2091775 | E16: =IF(PlotControl!$B$4 = "Annual Max",MAX(OFFSET(P_NWToe!$C$10,12*$A16,4*(PlotControl!$C$6-1),12,1)),AVERAGE(OFFSET(P_NWToe!$C$10,12*$A16,4*(PlotControl!$C$6-1),12,1))) -> 0.1422791667 | F16: =IF(PlotControl!$B$4 = "Annual Max",MAX(OFFSET(P_NWToe!$D$10,12*$A16,4*(PlotControl!$C$6-1),12,1)),AVERAGE(OFFSET(P_NWToe!$D$10,12*$A16,4*(PlotControl!$C$6-1),12,1))) -> 0.1518058333 | G16: =IF(PlotControl!$B$4 = "Annual Max",MAX(OFFSET(P_NWToe!$E$10,12*$A16,4*(PlotControl!$C$6-1),12,1)),AVERAGE(OFFSET(P_NWToe!$E$10,12*$A16,4*(PlotControl!$C$6-1),12,1))) -> 0.1751091667 | H16: =IF(PlotControl!$B$4 = "Annual Max",MAX(OFFSET(P_SToe!$C$10,12*$A16,4*(PlotControl!$C$6-1),12,1)),AVERAGE(OFFSET(P_SToe!$C$10,12*$A16,4*(PlotControl!$C$6-1),12,1))) -> 0.2020091667 | I16: =IF(PlotControl!$B$4 = "Annual Max",MAX(OFFSET(P_SToe!$D$10,12*$A16,4*(PlotControl!$C$6-1),12,1)),AVERAGE(OFFSET(P_SToe!$D$10,12*$A16,4*(PlotControl!$C$6-1),12,1))) -> 0.2170233333 | J16: =IF(PlotControl!$B$4 = "Annual Max",MAX(OFFSET(P_SToe!$E$10,12*$A16,4*(PlotControl!$C$6-1),12,1)),AVERAGE(OFFSET(P_SToe!$E$10,12*$A16,4*(PlotControl!$C$6-1),12,1))) -> 0.2511625 | K16: =IF(PlotControl!$B$4 = "Annual Max",MAX(OFFSET(P_WToe!$C$10,12*$A16,4*(PlotControl!$C$6-1),12,1)),AVERAGE(OFFSET(P_WToe!$C$10,12*$A16,4*(PlotControl!$C$6-1),12,1))) -> 0.1202816667 | L16: =IF(PlotControl!$B$4 = "Annual Max",MAX(OFFSET(P_WToe!$D$10,12*$A16,4*(PlotControl!$C$6-1),12,1)),AVERAGE(OFFSET(P_WToe!$D$10,12*$A16,4*(PlotControl!$C$6-1),12,1))) -> 0.13171 | M16: =IF(PlotControl!$B$4 = "Annual Max",MAX(OFFSET(P_WToe!$E$10,12*$A16,4*(PlotControl!$C$6-1),12,1)),AVERAGE(OFFSET(P_WToe!$E$10,12*$A16,4*(PlotControl!$C$6-1),12,1))) -> 0.1646541667 | N16: =IF(PlotControl!$B$4 = "Annual Max",MAX(OFFSET(P_EToe!$C$10,12*$A16,4*(PlotControl!$C$6-1),12,1)),AVERAGE(OFFSET(P_EToe!$C$10,12*$A16,4*(PlotControl!$C$6-1),12,1))) -> 0.2078741667 | O16: =IF(PlotControl!$B$4 = "Annual Max",MAX(OFFSET(P_EToe!$D$10,12*$A16,4*(PlotControl!$C$6-1),12,1)),AVERAGE(OFFSET(P_EToe!$D$10,12*$A16,4*(PlotControl!$C$6-1),12,1))) -> 0.247225 | P16: =IF(PlotControl!$B$4 = "Annual Max",MAX(OFFSET(P_EToe!$E$10,12*$A16,4*(PlotControl!$C$6-1),12,1)),AVERAGE(OFFSET(P_EToe!$E$10,12*$A16,4*(PlotControl!$C$6-1),12,1))) -> 0.3439091667 | X16: 0.9166666667 | Y16: =OFFSET(P_NToe!$C$10,12*$X16,4*(PlotControl!$C$6-1),1,1) -> 0.12739 | Z16: =OFFSET(P_NToe!$D$10,12*$X16,4*(PlotControl!$C$6-1),1,1) -> 0.12739 | AA16: =OFFSET(P_NToe!$E$10,12*$X16,4*(PlotControl!$C$6-1),1,1) -> 0.12739 | AB16: =OFFSET(P_NWToe!$C$10,12*$X16,4*(PlotControl!$C$6-1),1,1) -> 0.10045 | AC16: =OFFSET(P_NWToe!$D$10,12*$X16,4*(PlotControl!$C$6-1),1,1) -> 0.10045 | AD16: =OFFSET(P_NWToe!$E$10,12*$X16,4*(PlotControl!$C$6-1),1,1) -> 0.10045 | AE16: =OFFSET(P_SToe!$C$10,12*$X16,4*(PlotControl!$C$6-1),1,1) -> 0.11901 | AF16: =OFFSET(P_SToe!$D$10,12*$X16,4*(PlotControl!$C$6-1),1,1) -> 0.11901 | AG16: =OFFSET(P_SToe!$E$10,12*$X16,4*(PlotControl!$C$6-1),1,1) -> 0.11901 | AH16: =OFFSET(P_WToe!$C$10,12*$X16,4*(PlotControl!$C$6-1),1,1) -> 0.10999 | AI16: =OFFSET(P_WToe!$D$10,12*$X16,4*(PlotControl!$C$6-1),1,1) -> 0.10999 | AJ16: =OFFSET(P_WToe!$E$10,12*$X16,4*(PlotControl!$C$6-1),1,1) -> 0.10999 | AK16: =OFFSET(#REF!,12*$X16,4*(PlotControl!$C$6-1),1,1) ->  | AL16: =OFFSET(#REF!,12*$X16,4*(PlotControl!$C$6-1),1,1) ->  | AM16: =OFFSET(#REF!,12*$X16,4*(PlotControl!$C$6-1),1,1) -> 
A17: 12 | B17: =IF(PlotControl!$B$4 = "Annual Max",MAX(OFFSET(P_NToe!$C$10,12*$A17,4*(PlotControl!$C$6-1),12,1)),AVERAGE(OFFSET(P_NToe!$C$10,12*$A17,4*(PlotControl!$C$6-1),12,1))) -> 0.2027666667 | C17: =IF(PlotControl!$B$4 = "Annual Max",MAX(OFFSET(P_NToe!$D$10,12*$A17,4*(PlotControl!$C$6-1),12,1)),AVERAGE(OFFSET(P_NToe!$D$10,12*$A17,4*(PlotControl!$C$6-1),12,1))) -> 0.204915 | D17: =IF(PlotControl!$B$4 = "Annual Max",MAX(OFFSET(P_NToe!$E$10,12*$A17,4*(PlotControl!$C$6-1),12,1)),AVERAGE(OFFSET(P_NToe!$E$10,12*$A17,4*(PlotControl!$C$6-1),12,1))) -> 0.2098808333 | E17: =IF(PlotControl!$B$4 = "Annual Max",MAX(OFFSET(P_NWToe!$C$10,12*$A17,4*(PlotControl!$C$6-1),12,1)),AVERAGE(OFFSET(P_NWToe!$C$10,12*$A17,4*(PlotControl!$C$6-1),12,1))) -> 0.1376208333 | F17: =IF(PlotControl!$B$4 = "Annual Max",MAX(OFFSET(P_NWToe!$D$10,12*$A17,4*(PlotControl!$C$6-1),12,1)),AVERAGE(OFFSET(P_NWToe!$D$10,12*$A17,4*(PlotControl!$C$6-1),12,1))) -> 0.1498341667 | G17: =IF(PlotControl!$B$4 = "Annual Max",MAX(OFFSET(P_NWToe!$E$10,12*$A17,4*(PlotControl!$C$6-1),12,1)),AVERAGE(OFFSET(P_NWToe!$E$10,12*$A17,4*(PlotControl!$C$6-1),12,1))) -> 0.18356 | H17: =IF(PlotControl!$B$4 = "Annual Max",MAX(OFFSET(P_SToe!$C$10,12*$A17,4*(PlotControl!$C$6-1),12,1)),AVERAGE(OFFSET(P_SToe!$C$10,12*$A17,4*(PlotControl!$C$6-1),12,1))) -> 0.2223925 | I17: =IF(PlotControl!$B$4 = "Annual Max",MAX(OFFSET(P_SToe!$D$10,12*$A17,4*(PlotControl!$C$6-1),12,1)),AVERAGE(OFFSET(P_SToe!$D$10,12*$A17,4*(PlotControl!$C$6-1),12,1))) -> 0.251115 | J17: =IF(PlotControl!$B$4 = "Annual Max",MAX(OFFSET(P_SToe!$E$10,12*$A17,4*(PlotControl!$C$6-1),12,1)),AVERAGE(OFFSET(P_SToe!$E$10,12*$A17,4*(PlotControl!$C$6-1),12,1))) -> 0.3243483333 | K17: =IF(PlotControl!$B$4 = "Annual Max",MAX(OFFSET(P_WToe!$C$10,12*$A17,4*(PlotControl!$C$6-1),12,1)),AVERAGE(OFFSET(P_WToe!$C$10,12*$A17,4*(PlotControl!$C$6-1),12,1))) -> 0.1168775 | L17: =IF(PlotControl!$B$4 = "Annual Max",MAX(OFFSET(P_WToe!$D$10,12*$A17,4*(PlotControl!$C$6-1),12,1)),AVERAGE(OFFSET(P_WToe!$D$10,12*$A17,4*(PlotControl!$C$6-1),12,1))) -> 0.1298758333 | M17: =IF(PlotControl!$B$4 = "Annual Max",MAX(OFFSET(P_WToe!$E$10,12*$A17,4*(PlotControl!$C$6-1),12,1)),AVERAGE(OFFSET(P_WToe!$E$10,12*$A17,4*(PlotControl!$C$6-1),12,1))) -> 0.1686925 | N17: =IF(PlotControl!$B$4 = "Annual Max",MAX(OFFSET(P_EToe!$C$10,12*$A17,4*(PlotControl!$C$6-1),12,1)),AVERAGE(OFFSET(P_EToe!$C$10,12*$A17,4*(PlotControl!$C$6-1),12,1))) -> 0.2014558333 | O17: =IF(PlotControl!$B$4 = "Annual Max",MAX(OFFSET(P_EToe!$D$10,12*$A17,4*(PlotControl!$C$6-1),12,1)),AVERAGE(OFFSET(P_EToe!$D$10,12*$A17,4*(PlotControl!$C$6-1),12,1))) -> 0.22639 | P17: =IF(PlotControl!$B$4 = "Annual Max",MAX(OFFSET(P_EToe!$E$10,12*$A17,4*(PlotControl!$C$6-1),12,1)),AVERAGE(OFFSET(P_EToe!$E$10,12*$A17,4*(PlotControl!$C$6-1),12,1))) -> 0.2783216667 | X17: 1 | Y17: =OFFSET(P_NToe!$C$10,12*$X17,4*(PlotControl!$C$6-1),1,1) -> 0.12739 | Z17: =OFFSET(P_NToe!$D$10,12*$X17,4*(PlotControl!$C$6-1),1,1) -> 0.12739 | AA17: =OFFSET(P_NToe!$E$10,12*$X17,4*(PlotControl!$C$6-1),1,1) -> 0.12739 | AB17: =OFFSET(P_NWToe!$C$10,12*$X17,4*(PlotControl!$C$6-1),1,1) -> 0.10045 | AC17: =OFFSET(P_NWToe!$D$10,12*$X17,4*(PlotControl!$C$6-1),1,1) -> 0.10045 | AD17: =OFFSET(P_NWToe!$E$10,12*$X17,4*(PlotControl!$C$6-1),1,1) -> 0.10045 | AE17: =OFFSET(P_SToe!$C$10,12*$X17,4*(PlotControl!$C$6-1),1,1) -> 0.11901 | AF17: =OFFSET(P_SToe!$D$10,12*$X17,4*(PlotControl!$C$6-1),1,1) -> 0.11901 | AG17: =OFFSET(P_SToe!$E$10,12*$X17,4*(PlotControl!$C$6-1),1,1) -> 0.11901 | AH17: =OFFSET(P_WToe!$C$10,12*$X17,4*(PlotControl!$C$6-1),1,1) -> 0.10999 | AI17: =OFFSET(P_WToe!$D$10,12*$X17,4*(PlotControl!$C$6-1),1,1) -> 0.10999 | AJ17: =OFFSET(P_WToe!$E$10,12*$X17,4*(PlotControl!$C$6-1),1,1) -> 0.10999 | AK17: =OFFSET(#REF!,12*$X17,4*(PlotControl!$C$6-1),1,1) ->  | AL17: =OFFSET(#REF!,12*$X17,4*(PlotControl!$C$6-1),1,1) ->  | AM17: =OFFSET(#REF!,12*$X17,4*(PlotControl!$C$6-1),1,1) -> 
A18: 13 | B18: =IF(PlotControl!$B$4 = "Annual Max",MAX(OFFSET(P_NToe!$C$10,12*$A18,4*(PlotControl!$C$6-1),12,1)),AVERAGE(OFFSET(P_NToe!$C$10,12*$A18,4*(PlotControl!$C$6-1),12,1))) -> 0.2037425 | C18: =IF(PlotControl!$B$4 = "Annual Max",MAX(OFFSET(P_NToe!$D$10,12*$A18,4*(PlotControl!$C$6-1),12,1)),AVERAGE(OFFSET(P_NToe!$D$10,12*$A18,4*(PlotControl!$C$6-1),12,1))) -> 0.206185 | D18: =IF(PlotControl!$B$4 = "Annual Max",MAX(OFFSET(P_NToe!$E$10,12*$A18,4*(PlotControl!$C$6-1),12,1)),AVERAGE(OFFSET(P_NToe!$E$10,12*$A18,4*(PlotControl!$C$6-1),12,1))) -> 0.212675 | E18: =IF(PlotControl!$B$4 = "Annual Max",MAX(OFFSET(P_NWToe!$C$10,12*$A18,4*(PlotControl!$C$6-1),12,1)),AVERAGE(OFFSET(P_NWToe!$C$10,12*$A18,4*(PlotControl!$C$6-1),12,1))) -> 0.1270433333 | F18: =IF(PlotControl!$B$4 = "Annual Max",MAX(OFFSET(P_NWToe!$D$10,12*$A18,4*(PlotControl!$C$6-1),12,1)),AVERAGE(OFFSET(P_NWToe!$D$10,12*$A18,4*(PlotControl!$C$6-1),12,1))) -> 0.1418275 | G18: =IF(PlotControl!$B$4 = "Annual Max",MAX(OFFSET(P_NWToe!$E$10,12*$A18,4*(PlotControl!$C$6-1),12,1)),AVERAGE(OFFSET(P_NWToe!$E$10,12*$A18,4*(PlotControl!$C$6-1),12,1))) -> 0.186015 | H18: =IF(PlotControl!$B$4 = "Annual Max",MAX(OFFSET(P_SToe!$C$10,12*$A18,4*(PlotControl!$C$6-1),12,1)),AVERAGE(OFFSET(P_SToe!$C$10,12*$A18,4*(PlotControl!$C$6-1),12,1))) -> 0.2349425 | I18: =IF(PlotControl!$B$4 = "Annual Max",MAX(OFFSET(P_SToe!$D$10,12*$A18,4*(PlotControl!$C$6-1),12,1)),AVERAGE(OFFSET(P_SToe!$D$10,12*$A18,4*(PlotControl!$C$6-1),12,1))) -> 0.26607 | J18: =IF(PlotControl!$B$4 = "Annual Max",MAX(OFFSET(P_SToe!$E$10,12*$A18,4*(PlotControl!$C$6-1),12,1)),AVERAGE(OFFSET(P_SToe!$E$10,12*$A18,4*(PlotControl!$C$6-1),12,1))) -> 0.3496583333 | K18: =IF(PlotControl!$B$4 = "Annual Max",MAX(OFFSET(P_WToe!$C$10,12*$A18,4*(PlotControl!$C$6-1),12,1)),AVERAGE(OFFSET(P_WToe!$C$10,12*$A18,4*(PlotControl!$C$6-1),12,1))) -> 0.1122425 | L18: =IF(PlotControl!$B$4 = "Annual Max",MAX(OFFSET(P_WToe!$D$10,12*$A18,4*(PlotControl!$C$6-1),12,1)),AVERAGE(OFFSET(P_WToe!$D$10,12*$A18,4*(PlotControl!$C$6-1),12,1))) -> 0.1258058333 | M18: =IF(PlotControl!$B$4 = "Annual Max",MAX(OFFSET(P_WToe!$E$10,12*$A18,4*(PlotControl!$C$6-1),12,1)),AVERAGE(OFFSET(P_WToe!$E$10,12*$A18,4*(PlotControl!$C$6-1),12,1))) -> 0.1665508333 | N18: =IF(PlotControl!$B$4 = "Annual Max",MAX(OFFSET(P_EToe!$C$10,12*$A18,4*(PlotControl!$C$6-1),12,1)),AVERAGE(OFFSET(P_EToe!$C$10,12*$A18,4*(PlotControl!$C$6-1),12,1))) -> 0.1980158333 | O18: =IF(PlotControl!$B$4 = "Annual Max",MAX(OFFSET(P_EToe!$D$10,12*$A18,4*(PlotControl!$C$6-1),12,1)),AVERAGE(OFFSET(P_EToe!$D$10,12*$A18,4*(PlotControl!$C$6-1),12,1))) -> 0.2129916667 | P18: =IF(PlotControl!$B$4 = "Annual Max",MAX(OFFSET(P_EToe!$E$10,12*$A18,4*(PlotControl!$C$6-1),12,1)),AVERAGE(OFFSET(P_EToe!$E$10,12*$A18,4*(PlotControl!$C$6-1),12,1))) -> 0.2385216667 | X18: 1.083333333 | Y18: =OFFSET(P_NToe!$C$10,12*$X18,4*(PlotControl!$C$6-1),1,1) -> 0.12739 | Z18: =OFFSET(P_NToe!$D$10,12*$X18,4*(PlotControl!$C$6-1),1,1) -> 0.12739 | AA18: =OFFSET(P_NToe!$E$10,12*$X18,4*(PlotControl!$C$6-1),1,1) -> 0.12739 | AB18: =OFFSET(P_NWToe!$C$10,12*$X18,4*(PlotControl!$C$6-1),1,1) -> 0.10045 | AC18: =OFFSET(P_NWToe!$D$10,12*$X18,4*(PlotControl!$C$6-1),1,1) -> 0.10045 | AD18: =OFFSET(P_NWToe!$E$10,12*$X18,4*(PlotControl!$C$6-1),1,1) -> 0.10045 | AE18: =OFFSET(P_SToe!$C$10,12*$X18,4*(PlotControl!$C$6-1),1,1) -> 0.11901 | AF18: =OFFSET(P_SToe!$D$10,12*$X18,4*(PlotControl!$C$6-1),1,1) -> 0.11901 | AG18: =OFFSET(P_SToe!$E$10,12*$X18,4*(PlotControl!$C$6-1),1,1) -> 0.11901 | AH18: =OFFSET(P_WToe!$C$10,12*$X18,4*(PlotControl!$C$6-1),1,1) -> 0.10999 | AI18: =OFFSET(P_WToe!$D$10,12*$X18,4*(PlotControl!$C$6-1),1,1) -> 0.10999 | AJ18: =OFFSET(P_WToe!$E$10,12*$X18,4*(PlotControl!$C$6-1),1,1) -> 0.10999 | AK18: =OFFSET(#REF!,12*$X18,4*(PlotControl!$C$6-1),1,1) ->  | AL18: =OFFSET(#REF!,12*$X18,4*(PlotControl!$C$6-1),1,1) ->  | AM18: =OFFSET(#REF!,12*$X18,4*(PlotControl!$C$6-1),1,1) -> 
A19: 14 | B19: =IF(PlotControl!$B$4 = "Annual Max",MAX(OFFSET(P_NToe!$C$10,12*$A19,4*(PlotControl!$C$6-1),12,1)),AVERAGE(OFFSET(P_NToe!$C$10,12*$A19,4*(PlotControl!$C$6-1),12,1))) -> 0.2027241667 | C19: =IF(PlotControl!$B$4 = "Annual Max",MAX(OFFSET(P_NToe!$D$10,12*$A19,4*(PlotControl!$C$6-1),12,1)),AVERAGE(OFFSET(P_NToe!$D$10,12*$A19,4*(PlotControl!$C$6-1),12,1))) -> 0.2053283333 | D19: =IF(PlotControl!$B$4 = "Annual Max",MAX(OFFSET(P_NToe!$E$10,12*$A19,4*(PlotControl!$C$6-1),12,1)),AVERAGE(OFFSET(P_NToe!$E$10,12*$A19,4*(PlotControl!$C$6-1),12,1))) -> 0.2119166667 | E19: =IF(PlotControl!$B$4 = "Annual Max",MAX(OFFSET(P_NWToe!$C$10,12*$A19,4*(PlotControl!$C$6-1),12,1)),AVERAGE(OFFSET(P_NWToe!$C$10,12*$A19,4*(PlotControl!$C$6-1),12,1))) -> 0.1158608333 | F19: =IF(PlotControl!$B$4 = "Annual Max",MAX(OFFSET(P_NWToe!$D$10,12*$A19,4*(PlotControl!$C$6-1),12,1)),AVERAGE(OFFSET(P_NWToe!$D$10,12*$A19,4*(PlotControl!$C$6-1),12,1))) -> 0.1322316667 | G19: =IF(PlotControl!$B$4 = "Annual Max",MAX(OFFSET(P_NWToe!$E$10,12*$A19,4*(PlotControl!$C$6-1),12,1)),AVERAGE(OFFSET(P_NWToe!$E$10,12*$A19,4*(PlotControl!$C$6-1),12,1))) -> 0.1819558333 | H19: =IF(PlotControl!$B$4 = "Annual Max",MAX(OFFSET(P_SToe!$C$10,12*$A19,4*(PlotControl!$C$6-1),12,1)),AVERAGE(OFFSET(P_SToe!$C$10,12*$A19,4*(PlotControl!$C$6-1),12,1))) -> 0.226035 | I19: =IF(PlotControl!$B$4 = "Annual Max",MAX(OFFSET(P_SToe!$D$10,12*$A19,4*(PlotControl!$C$6-1),12,1)),AVERAGE(OFFSET(P_SToe!$D$10,12*$A19,4*(PlotControl!$C$6-1),12,1))) -> 0.2452966667 | J19: =IF(PlotControl!$B$4 = "Annual Max",MAX(OFFSET(P_SToe!$E$10,12*$A19,4*(PlotControl!$C$6-1),12,1)),AVERAGE(OFFSET(P_SToe!$E$10,12*$A19,4*(PlotControl!$C$6-1),12,1))) -> 0.29664 | K19: =IF(PlotControl!$B$4 = "Annual Max",MAX(OFFSET(P_WToe!$C$10,12*$A19,4*(PlotControl!$C$6-1),12,1)),AVERAGE(OFFSET(P_WToe!$C$10,12*$A19,4*(PlotControl!$C$6-1),12,1))) -> 0.1098433333 | L19: =IF(PlotControl!$B$4 = "Annual Max",MAX(OFFSET(P_WToe!$D$10,12*$A19,4*(PlotControl!$C$6-1),12,1)),AVERAGE(OFFSET(P_WToe!$D$10,12*$A19,4*(PlotControl!$C$6-1),12,1))) -> 0.1236183333 | M19: =IF(PlotControl!$B$4 = "Annual Max",MAX(OFFSET(P_WToe!$E$10,12*$A19,4*(PlotControl!$C$6-1),12,1)),AVERAGE(OFFSET(P_WToe!$E$10,12*$A19,4*(PlotControl!$C$6-1),12,1))) -> 0.1665016667 | N19: =IF(PlotControl!$B$4 = "Annual Max",MAX(OFFSET(P_EToe!$C$10,12*$A19,4*(PlotControl!$C$6-1),12,1)),AVERAGE(OFFSET(P_EToe!$C$10,12*$A19,4*(PlotControl!$C$6-1),12,1))) -> 0.1961308333 | O19: =IF(PlotControl!$B$4 = "Annual Max",MAX(OFFSET(P_EToe!$D$10,12*$A19,4*(PlotControl!$C$6-1),12,1)),AVERAGE(OFFSET(P_EToe!$D$10,12*$A19,4*(PlotControl!$C$6-1),12,1))) -> 0.20553 | P19: =IF(PlotControl!$B$4 = "Annual Max",MAX(OFFSET(P_EToe!$E$10,12*$A19,4*(PlotControl!$C$6-1),12,1)),AVERAGE(OFFSET(P_EToe!$E$10,12*$A19,4*(PlotControl!$C$6-1),12,1))) -> 0.2186566667 | X19: 1.166666667 | Y19: =OFFSET(P_NToe!$C$10,12*$X19,4*(PlotControl!$C$6-1),1,1) -> 0.12739 | Z19: =OFFSET(P_NToe!$D$10,12*$X19,4*(PlotControl!$C$6-1),1,1) -> 0.12739 | AA19: =OFFSET(P_NToe!$E$10,12*$X19,4*(PlotControl!$C$6-1),1,1) -> 0.12739 | AB19: =OFFSET(P_NWToe!$C$10,12*$X19,4*(PlotControl!$C$6-1),1,1) -> 0.10045 | AC19: =OFFSET(P_NWToe!$D$10,12*$X19,4*(PlotControl!$C$6-1),1,1) -> 0.10045 | AD19: =OFFSET(P_NWToe!$E$10,12*$X19,4*(PlotControl!$C$6-1),1,1) -> 0.10045 | AE19: =OFFSET(P_SToe!$C$10,12*$X19,4*(PlotControl!$C$6-1),1,1) -> 0.11901 | AF19: =OFFSET(P_SToe!$D$10,12*$X19,4*(PlotControl!$C$6-1),1,1) -> 0.11901 | AG19: =OFFSET(P_SToe!$E$10,12*$X19,4*(PlotControl!$C$6-1),1,1) -> 0.11901 | AH19: =OFFSET(P_WToe!$C$10,12*$X19,4*(PlotControl!$C$6-1),1,1) -> 0.10999 | AI19: =OFFSET(P_WToe!$D$10,12*$X19,4*(PlotControl!$C$6-1),1,1) -> 0.10999 | AJ19: =OFFSET(P_WToe!$E$10,12*$X19,4*(PlotControl!$C$6-1),1,1) -> 0.10999 | AK19: =OFFSET(#REF!,12*$X19,4*(PlotControl!$C$6-1),1,1) ->  | AL19: =OFFSET(#REF!,12*$X19,4*(PlotControl!$C$6-1),1,1) ->  | AM19: =OFFSET(#REF!,12*$X19,4*(PlotControl!$C$6-1),1,1) -> 
A20: 15 | B20: =IF(PlotControl!$B$4 = "Annual Max",MAX(OFFSET(P_NToe!$C$10,12*$A20,4*(PlotControl!$C$6-1),12,1)),AVERAGE(OFFSET(P_NToe!$C$10,12*$A20,4*(PlotControl!$C$6-1),12,1))) -> 0.1992708333 | C20: =IF(PlotControl!$B$4 = "Annual Max",MAX(OFFSET(P_NToe!$D$10,12*$A20,4*(PlotControl!$C$6-1),12,1)),AVERAGE(OFFSET(P_NToe!$D$10,12*$A20,4*(PlotControl!$C$6-1),12,1))) -> 0.2016583333 | D20: =IF(PlotControl!$B$4 = "Annual Max",MAX(OFFSET(P_NToe!$E$10,12*$A20,4*(PlotControl!$C$6-1),12,1)),AVERAGE(OFFSET(P_NToe!$E$10,12*$A20,4*(PlotControl!$C$6-1),12,1))) -> 0.2066375 | E20: =IF(PlotControl!$B$4 = "Annual Max",MAX(OFFSET(P_NWToe!$C$10,12*$A20,4*(PlotControl!$C$6-1),12,1)),AVERAGE(OFFSET(P_NWToe!$C$10,12*$A20,4*(PlotControl!$C$6-1),12,1))) -> 0.1084408333 | F20: =IF(PlotControl!$B$4 = "Annual Max",MAX(OFFSET(P_NWToe!$D$10,12*$A20,4*(PlotControl!$C$6-1),12,1)),AVERAGE(OFFSET(P_NWToe!$D$10,12*$A20,4*(PlotControl!$C$6-1),12,1))) -> 0.1248783333 | G20: =IF(PlotControl!$B$4 = "Annual Max",MAX(OFFSET(P_NWToe!$E$10,12*$A20,4*(PlotControl!$C$6-1),12,1)),AVERAGE(OFFSET(P_NWToe!$E$10,12*$A20,4*(PlotControl!$C$6-1),12,1))) -> 0.1778933333 | H20: =IF(PlotControl!$B$4 = "Annual Max",MAX(OFFSET(P_SToe!$C$10,12*$A20,4*(PlotControl!$C$6-1),12,1)),AVERAGE(OFFSET(P_SToe!$C$10,12*$A20,4*(PlotControl!$C$6-1),12,1))) -> 0.2136091667 | I20: =IF(PlotControl!$B$4 = "Annual Max",MAX(OFFSET(P_SToe!$D$10,12*$A20,4*(PlotControl!$C$6-1),12,1)),AVERAGE(OFFSET(P_SToe!$D$10,12*$A20,4*(PlotControl!$C$6-1),12,1))) -> 0.2229616667 | J20: =IF(PlotControl!$B$4 = "Annual Max",MAX(OFFSET(P_SToe!$E$10,12*$A20,4*(PlotControl!$C$6-1),12,1)),AVERAGE(OFFSET(P_SToe!$E$10,12*$A20,4*(PlotControl!$C$6-1),12,1))) -> 0.24829 | K20: =IF(PlotControl!$B$4 = "Annual Max",MAX(OFFSET(P_WToe!$C$10,12*$A20,4*(PlotControl!$C$6-1),12,1)),AVERAGE(OFFSET(P_WToe!$C$10,12*$A20,4*(PlotControl!$C$6-1),12,1))) -> 0.1101925 | L20: =IF(PlotControl!$B$4 = "Annual Max",MAX(OFFSET(P_WToe!$D$10,12*$A20,4*(PlotControl!$C$6-1),12,1)),AVERAGE(OFFSET(P_WToe!$D$10,12*$A20,4*(PlotControl!$C$6-1),12,1))) -> 0.1249208333 | M20: =IF(PlotControl!$B$4 = "Annual Max",MAX(OFFSET(P_WToe!$E$10,12*$A20,4*(PlotControl!$C$6-1),12,1)),AVERAGE(OFFSET(P_WToe!$E$10,12*$A20,4*(PlotControl!$C$6-1),12,1))) -> 0.1730208333 | N20: =IF(PlotControl!$B$4 = "Annual Max",MAX(OFFSET(P_EToe!$C$10,12*$A20,4*(PlotControl!$C$6-1),12,1)),AVERAGE(OFFSET(P_EToe!$C$10,12*$A20,4*(PlotControl!$C$6-1),12,1))) -> 0.1937258333 | O20: =IF(PlotControl!$B$4 = "Annual Max",MAX(OFFSET(P_EToe!$D$10,12*$A20,4*(PlotControl!$C$6-1),12,1)),AVERAGE(OFFSET(P_EToe!$D$10,12*$A20,4*(PlotControl!$C$6-1),12,1))) -> 0.2004566667 | P20: =IF(PlotControl!$B$4 = "Annual Max",MAX(OFFSET(P_EToe!$E$10,12*$A20,4*(PlotControl!$C$6-1),12,1)),AVERAGE(OFFSET(P_EToe!$E$10,12*$A20,4*(PlotControl!$C$6-1),12,1))) -> 0.2088625 | X20: 1.25 | Y20: =OFFSET(P_NToe!$C$10,12*$X20,4*(PlotControl!$C$6-1),1,1) -> 0.12739 | Z20: =OFFSET(P_NToe!$D$10,12*$X20,4*(PlotControl!$C$6-1),1,1) -> 0.12739 | AA20: =OFFSET(P_NToe!$E$10,12*$X20,4*(PlotControl!$C$6-1),1,1) -> 0.12739 | AB20: =OFFSET(P_NWToe!$C$10,12*$X20,4*(PlotControl!$C$6-1),1,1) -> 0.10045 | AC20: =OFFSET(P_NWToe!$D$10,12*$X20,4*(PlotControl!$C$6-1),1,1) -> 0.10045 | AD20: =OFFSET(P_NWToe!$E$10,12*$X20,4*(PlotControl!$C$6-1),1,1) -> 0.10045 | AE20: =OFFSET(P_SToe!$C$10,12*$X20,4*(PlotControl!$C$6-1),1,1) -> 0.11901 | AF20: =OFFSET(P_SToe!$D$10,12*$X20,4*(PlotControl!$C$6-1),1,1) -> 0.11901 | AG20: =OFFSET(P_SToe!$E$10,12*$X20,4*(PlotControl!$C$6-1),1,1) -> 0.11901 | AH20: =OFFSET(P_WToe!$C$10,12*$X20,4*(PlotControl!$C$6-1),1,1) -> 0.10999 | AI20: =OFFSET(P_WToe!$D$10,12*$X20,4*(PlotControl!$C$6-1),1,1) -> 0.10999 | AJ20: =OFFSET(P_WToe!$E$10,12*$X20,4*(PlotControl!$C$6-1),1,1) -> 0.10999 | AK20: =OFFSET(#REF!,12*$X20,4*(PlotControl!$C$6-1),1,1) ->  | AL20: =OFFSET(#REF!,12*$X20,4*(PlotControl!$C$6-1),1,1) ->  | AM20: =OFFSET(#REF!,12*$X20,4*(PlotControl!$C$6-1),1,1) -> 
